Workbook

Sheet User's instructions
C2: 1. Unblock the Excel file after downloading the Excel file from the Internet
C36: More detailed instructions are available on the following link: : https://www.buyexceltemplates.com/pages/excel-unblock-file-properties-windows-10-after-downloading-internet
C39: 2. Click on the "Refresh" button in the top left-hand corner of some graph sheets to refresh the graphs after updating the data (see example below).

Sheet Input. 2016 fmk
B2: =Profile!F256 -> Team Leader | S2: =Profile!F290 -> PEFA assessment - 2016 Framework
C3: =Profile!F257 -> Country | H3: Pefalia | J3: =Profile!$F$258 -> Overall Rating
B4: =Profile!F259 -> Current assessment | H4: 2023 | J4: =Profile!F259 -> Current assessment | K4: =IF(K6>3.65,"A", IF(K6>=3.25,"B+", IF(K6>2.65,"B", IF(K6>=2.25,"C+", IF(K6>1.75,"C", IF(K6>1.25,"D+", IF(AND(K6<=1.25,K6>0),"D", "NA" ))))))) -> C
B5: =Profile!F260 -> Previous assessment | H5: 2016 | J5: =Profile!F260 -> Previous assessment | K5: =IF(I6>3.65,"A", IF(I6>=3.25,"B+", IF(I6>2.65,"B", IF(I6>=2.25,"C+", IF(I6>1.75,"C", IF(I6>1.25,"D+", IF(AND(I6<=1.25,I6>0),"D", "NA" ))))))) -> D+
H6: Score global | I6: =IFERROR(AVERAGEIFS(O9:O139,D9:D139,"Indic",O9:O139,">0"),0) -> 1.747311828 | J6: Score global | K6: =AVERAGEIFS(Q9:Q139,D9:D139,"Indic",Q9:Q139,">0") -> 1.819892473
A7: Pays | B7: ID | C7: Method | D7: Type | E7: PI-Pilar | F7: Pilar | G7: PI-Indic | H7: Libellé | I7: =H5 -> 2016 | J7: =Profile!F283&" "&I7 -> Rationale for the assessment 2016 | K7: =H4 -> 2023 | L7: =Profile!F283&" "&K7 -> Rationale for the assessment 2023 | M7: =Profile!$F$301 -> Justification of the evolution | N7: Comp | O7: ="Num-temp "&I7 -> Num-temp 2016 | P7: ="Num-"&H5 -> Num-2016 | Q7: ="Num-temp "&K7 -> Num-temp 2023 | R7: ="Num-"&K7 -> Num-2023 | S7: Evol | T7: ="Perf-"&K7 -> Perf-2023 | U7: ="SW-"&K7 -> SW-2023 | V7: Outcome1 | W7: Outcome2 | X7: Outcome3 | Y7: Section
A8: =H3 -> Pefalia | B8: I | D8: Pilar | E8: I | F8: =VLOOKUP(E8,Profile!A:B,2,FALSE) -> I-Budget reliability | H8: =IFERROR(VLOOKUP(B8,Profile!A:B,2,FALSE),"") -> I-Budget reliability | I8: =IF(COUNTIFS($D:$D,"Indic",$E:$E,$E8)=COUNTIFS($D:$D,"Indic",$E:$E,$E8,$I:$I,"=NU"),"NU", IF(COUNTIFS($D:$D,"Indic",$E:$E,$E8)=COUNTIFS($D:$D,"Indic",$E:$E,C9,$I:$I,"=NA"),"NA", IF(O8>3.65,"A", IF(O8>=3.25,"B+", IF(O8>2.65,"B", IF(O8>=2.25,"C+", IF(O8>1.75,"C", IF(O8>1.25,"D+", IF(AND(O8<=1.25,O8>0),"D", "" ))))))))) -> B | K8: =IF(COUNTIFS($D:$D,"Indic",$E:$E,E8)=COUNTIFS($D:$D,"Indic",$E:$E,E8,$K:$K,"=NU"),"NU", IF(COUNTIFS($D:$D,"Indic",$E:$E,E8)=COUNTIFS($D:$D,"Indic",$E:$E,E8,$K:$K,"=NA"),"NA", IF(Q8>3.65,"A", IF(Q8>=3.25,"B+", IF(Q8>2.65,"B", IF(Q8>=2.25,"C+", IF(Q8>1.75,"C", IF(Q8>1.25,"D+", IF(AND(Q8<=1.25,Q8>0),"D", "" ))))))))) -> C | N8: =IF(COUNTIFS(N9:N17,Profile!E250)=9,Profile!E250,Profile!E251) -> No | O8: =AVERAGEIFS(O:O,$D:$D,"Indic",$E:$E,$E8,O:O,">0") -> 2.666666667 | P8: =IF(I8="D",1, IF(I8="D*",1, IF(I8="D+",1.5, IF(I8="C",2, IF(I8="C+",2.5, IF(I8="B",3, IF(I8="B+",3.5, IF(I8="A",4, )))))))) -> 3 | Q8: =AVERAGEIFS(Q:Q,$D:$D,"Indic",$E:$E,$E8,Q:Q,">0") -> 2 | R8: =IF(K8="D",1, IF(K8="D+",1.5, IF(K8="C",2, IF(K8="C+",2.5, IF(K8="B",3, IF(K8="B+",3.5, IF(K8="A",4, ))))))) -> 2 | S8: =IFERROR(IF(N8=Profile!$E$250,IF(R8-P8<0,"-",IF(R8-P8>0,"+"," =")),"N.C."),"") -> N.C. | T8: =IF(K8="D",Profile!F276, IF(K8="D+",Profile!F276, IF(K8="D*",Profile!F276, IF(K8="C",Profile!F277, IF(K8="C+",Profile!F278, IF(K8="B",Profile!F278, IF(K8="B+",Profile!F279, IF(K8="A",Profile!F279,"")))))))) -> 2. Basic | U8: =IF(K8="A",Profile!F280, IF(K8="B+",Profile!F280, IF(K8="B",Profile!F280, IF(K8="D+",Profile!F281, IF(K8="D",Profile!F281, IF(K8="D*",Profile!F281, Profile!F282)))))) -> Average
A9: =H3 -> Pefalia | B9: PI-1 | C9: M1 | D9: Indic | E9: I | F9: =VLOOKUP(E9,Profile!A:B,2,FALSE) -> I-Budget reliability | G9: PI-1 | H9: =IFERROR(VLOOKUP(B9,Profile!A:B,2,FALSE),"") -> PI-1 Aggregate expenditure outturn | I9: =IF(COUNTIFS($D:$D,"Comp",$G:$G,$G9)=COUNTIFS($D:$D,"Comp",$G:$G,$G9,I:I,"=NU"),"NU", IF(COUNTIFS($D:$D,"Comp",$G:$G,$G9)=COUNTIFS($D:$D,"Comp",$G:$G,$G9,I:I,"=NA")+COUNTIFS($D:$D,"Comp",$G:$G,$G9,I:I,"=NU"),"NA", IF(O9>3.65,"A", IF(O9>=3.25,"B+", IF(O9>2.65,"B", IF(O9>=2.25,"C+", IF(O9>1.75,"C", IF(O9>1.25,"D+", IF(AND(O9<=1.25,O9>0),"D", "" ))))))))) -> A | K9: =IF(COUNTIFS($D:$D,"Comp",$G:$G,$G9)=COUNTIFS($D:$D,"Comp",$G:$G,$G9,K:K,"=NU"),"NU", IF(COUNTIFS($D:$D,"Comp",$G:$G,$G9)=COUNTIFS($D:$D,"Comp",$G:$G,$G9,K:K,"=NA")+COUNTIFS($D:$D,"Comp",$G:$G,$G9,K:K,"=NU"),"NA", IF(Q9>3.65,"A", IF(Q9>=3.25,"B+", IF(Q9>2.65,"B", IF(Q9>=2.25,"C+", IF(Q9>1.75,"C", IF(Q9>1.25,"D+", IF(AND(Q9<=1.25,Q9>0),"D", "" ))))))))) -> B | N9: =N10 -> Yes | O9: =IFERROR( (IF($C9="M1", IF(ROUND(AVERAGEIFS(O:O,$G:$G,$G9,$D:$D,"Comp",$O:$O,">0"),1)=ROUND(_xlfn.MINIFS(O:O,$G:$G,$G9,$D:$D,"Comp",$O:$O,">0"),1), AVERAGEIFS(O:O,$G:$G,$G9,$D:$D,"Comp",$O:$O,">0"),_xlfn.MINIFS(O:O,$G:$G,$G9,$D:$D,"Comp",$O:$O,">0")+0.5), AVERAGEIFS(O:O,$G:$G,$G9,$D:$D,"Comp",$O:$O,">0"))), 0) -> 4 | P9: =IF(I9="D",1, IF(I9="D*",1, IF(I9="D+",1.5, IF(I9="C",2, IF(I9="C+",2.5, IF(I9="B",3, IF(I9="B+",3.5, IF(I9="A",4, )))))))) -> 4 | Q9: =IFERROR( (IF($C9="M1", IF(ROUND(AVERAGEIFS(Q:Q,$G:$G,$G9,$D:$D,"Comp",$Q:$Q,">0"),1)=ROUND(_xlfn.MINIFS(Q:Q,$G:$G,$G9,$D:$D,"Comp",$Q:$Q,">0"),1), AVERAGEIFS(Q:Q,$G:$G,$G9,$D:$D,"Comp",$Q:$Q,">0"),_xlfn.MINIFS(Q:Q,$G:$G,$G9,$D:$D,"Comp",$Q:$Q,">0")+0.5), AVERAGEIFS(Q:Q,$G:$G,$G9,$D:$D,"Comp",$Q:$Q,">0"))), 0) -> 3 | R9: 3 | S9: =IFERROR(IF(N9=Profile!$E$250,IF(R9-P9<0,"-",IF(R9-P9>0,"+"," =")),"N.C."),"") -> - | T9: =IF(K9="D",Profile!$F$276, IF(K9="D+",Profile!$F$276, IF(K9="D*",Profile!$F$276, IF(K9="C",Profile!$F$277, IF(K9="C+",Profile!$F$278, IF(K9="B",Profile!$F$278, IF(K9="B+",Profile!$F$279, IF(K9="A",Profile!$F$279,"")))))))) -> 3. Sound | U9: =IF(K9="A",Profile!$F$280, IF(K9="B+",Profile!$F$280, IF(K9="B",Profile!$F$280, IF(K9="D+",Profile!$F$281, IF(K9="D",Profile!$F$281, IF(K9="D*",Profile!$F$281, Profile!$F$282)))))) -> Strength | V9: 1 | W9: 0 | X9: 0 | Y9: =Y10 -> 1
A10: =H3 -> Pefalia | B10: 1.1 | D10: Comp | E10: I | F10: =VLOOKUP(E10,Profile!A:B,2,FALSE) -> I-Budget reliability | G10: PI-1 | H10: =IFERROR(VLOOKUP(B10,Profile!A:B,2,FALSE),"") -> 1.1 Aggregate expenditure outturn | I10: A | J10: Total actual expenditure charged to each of the fiscal years 2014 to 2016 represented 100.3%, 101.0% and 92.8% respectively of expenditure included in the budgets initially voted (before the start of the fiscal year). | K10: B | L10: Aggregate expenditure outturn was between 90% and 110% of the approved aggregate expenditure in two of the last three FY (2016/17 and 2018/19). | N10: Yes | O10: =IFERROR(IF(TRIM(CLEAN(I10))="A",4)+IF(TRIM(CLEAN(I10))="B+",3.5)+IF(TRIM(CLEAN(I10))="B",3)+IF(TRIM(CLEAN(I10))="C+",2.5)+IF(TRIM(CLEAN(I10))="C",2)+IF(TRIM(CLEAN(I10))="D+",1.5)+IF(TRIM(CLEAN(I10))="D",1)+IF(TRIM(CLEAN(I10))="D*",1)+IF(TRIM(CLEAN(I10))="NU",0)+IF(TRIM(CLEAN(I10))="NA",0),"") -> 4 | P10: =O10 -> 4 | Q10: =IFERROR(IF(TRIM(CLEAN(K10))="A",4)+IF(TRIM(CLEAN(K10))="B+",3.5)+IF(TRIM(CLEAN(K10))="B",3)+IF(TRIM(CLEAN(K10))="C+",2.5)+IF(TRIM(CLEAN(K10))="C",2)+IF(TRIM(CLEAN(K10))="D+",1.5)+IF(TRIM(CLEAN(K10))="D",1)+IF(TRIM(CLEAN(K10))="D*",1)+IF(TRIM(CLEAN(K10))="NU",0)+IF(TRIM(CLEAN(K10))="NA",0),"") -> 3 | R10: =Q10 -> 3 | S10: =IFERROR(IF(N10=Profile!$E$250,IF(R10-P10<0,"-",IF(R10-P10>0,"+"," =")),"N.C."),"") -> - | T10: =IF(K10="D",Profile!F276, IF(K10="D+",Profile!F276, IF(K10="D*",Profile!F276, IF(K10="C",Profile!F277, IF(K10="C+",Profile!F278, IF(K10="B",Profile!F278, IF(K10="B+",Profile!F279, IF(K10="A",Profile!F279,"")))))))) -> 3. Sound | U10: =IF(K10="A",Profile!F280, IF(K10="B+",Profile!F280, IF(K10="B",Profile!F280, IF(K10="D+",Profile!F281, IF(K10="D",Profile!F281, IF(K10="D*",Profile!F281, Profile!F282)))))) -> Strength | V10: 1 | W10: 0 | X10: 0 | Y10: 1
A11: =H3 -> Pefalia | B11: PI-2 | C11: M1 | D11: Indic | E11: I | F11: =VLOOKUP(E11,Profile!A:B,2,FALSE) -> I-Budget reliability | G11: PI-2 | H11: =IFERROR(VLOOKUP(B11,Profile!A:B,2,FALSE),"") -> PI-2 Expenditure composition outturn | I11: =IF(COUNTIFS($D:$D,"Comp",$G:$G,$G11)=COUNTIFS($D:$D,"Comp",$G:$G,$G11,I:I,"=NU"),"NU", IF(COUNTIFS($D:$D,"Comp",$G:$G,$G11)=COUNTIFS($D:$D,"Comp",$G:$G,$G11,I:I,"=NA")+COUNTIFS($D:$D,"Comp",$G:$G,$G11,I:I,"=NU"),"NA", IF(O11>3.65,"A", IF(O11>=3.25,"B+", IF(O11>2.65,"B", IF(O11>=2.25,"C+", IF(O11>1.75,"C", IF(O11>1.25,"D+", IF(AND(O11<=1.25,O11>0),"D", "" ))))))))) -> D+ | K11: =IF(COUNTIFS($D:$D,"Comp",$G:$G,$G11)=COUNTIFS($D:$D,"Comp",$G:$G,$G11,K:K,"=NU"),"NU", IF(COUNTIFS($D:$D,"Comp",$G:$G,$G11)=COUNTIFS($D:$D,"Comp",$G:$G,$G11,K:K,"=NA")+COUNTIFS($D:$D,"Comp",$G:$G,$G11,K:K,"=NU"),"NA", IF(Q11>3.65,"A", IF(Q11>=3.25,"B+", IF(Q11>2.65,"B", IF(Q11>=2.25,"C+", IF(Q11>1.75,"C", IF(Q11>1.25,"D+", IF(AND(Q11<=1.25,Q11>0),"D", "" ))))))))) -> D+ | N11: =IF(AND(N12=Profile!E250,N13=Profile!E250,N14=Profile!E250),Profile!E250,Profile!E251) -> No | O11: =IFERROR( (IF($C11="M1", IF(ROUND(AVERAGEIFS(O:O,$G:$G,$G11,$D:$D,"Comp",$O:$O,">0"),1)=ROUND(_xlfn.MINIFS(O:O,$G:$G,$G11,$D:$D,"Comp",$O:$O,">0"),1), AVERAGEIFS(O:O,$G:$G,$G11,$D:$D,"Comp",$O:$O,">0"),_xlfn.MINIFS(O:O,$G:$G,$G11,$D:$D,"Comp",$O:$O,">0")+0.5), AVERAGEIFS(O:O,$G:$G,$G11,$D:$D,"Comp",$O:$O,">0"))), 0) -> 1.5 | P11: =IF(I11="D",1, IF(I11="D*",1, IF(I11="D+",1.5, IF(I11="C",2, IF(I11="C+",2.5, IF(I11="B",3, IF(I11="B+",3.5, IF(I11="A",4, )))))))) -> 1.5 | Q11: =IFERROR( (IF($C11="M1", IF(ROUND(AVERAGEIFS(Q:Q,$G:$G,$G11,$D:$D,"Comp",$Q:$Q,">0"),1)=ROUND(_xlfn.MINIFS(Q:Q,$G:$G,$G11,$D:$D,"Comp",$Q:$Q,">0"),1), AVERAGEIFS(Q:Q,$G:$G,$G11,$D:$D,"Comp",$Q:$Q,">0"),_xlfn.MINIFS(Q:Q,$G:$G,$G11,$D:$D,"Comp",$Q:$Q,">0")+0.5), AVERAGEIFS(Q:Q,$G:$G,$G11,$D:$D,"Comp",$Q:$Q,">0"))), 0) -> 1.5 | R11: 1.5 | S11: =IFERROR(IF(N11=Profile!$E$250,IF(R11-P11<0,"-",IF(R11-P11>0,"+"," =")),"N.C."),"") -> N.C. | T11: =IF(K11="D",Profile!F276, IF(K11="D+",Profile!F276, IF(K11="D*",Profile!F276, IF(K11="C",Profile!F277, IF(K11="C+",Profile!F278, IF(K11="B",Profile!F278, IF(K11="B+",Profile!F279, IF(K11="A",Profile!F279,"")))))))) -> 1. Below basic | U11: =IF(K11="A",Profile!F280, IF(K11="B+",Profile!F280, IF(K11="B",Profile!F280, IF(K11="D+",Profile!F281, IF(K11="D",Profile!F281, IF(K11="D*",Profile!F281, Profile!F282)))))) -> Weakness | V11: 0 | W11: 1 | X11: 1 | Y11: =Y12 -> 3
A12: =H3 -> Pefalia | B12: 2.1 | D12: Comp | E12: I | F12: =VLOOKUP(E12,Profile!A:B,2,FALSE) -> I-Budget reliability | G12: PI-2 | H12: =IFERROR(VLOOKUP(B12,Profile!A:B,2,FALSE),"") -> 2.1 Expenditure composition outturn by function | I12: C | J12: The composition of expenditure by administrative classification deviated from the initial forecasts by 14.0% in 2014, 13.9% in 2015 and 13.0% in 2016. | K12: C | L12: Variance in expenditure composition by function was less than 15% in all three years but was more than 10% in two of the last FY (2016/17 and 2018/19). | N12: Yes | O12: =IFERROR(IF(TRIM(CLEAN(I12))="A",4)+IF(TRIM(CLEAN(I12))="B+",3.5)+IF(TRIM(CLEAN(I12))="B",3)+IF(TRIM(CLEAN(I12))="C+",2.5)+IF(TRIM(CLEAN(I12))="C",2)+IF(TRIM(CLEAN(I12))="D+",1.5)+IF(TRIM(CLEAN(I12))="D",1)+IF(TRIM(CLEAN(I12))="D*",1)+IF(TRIM(CLEAN(I12))="NU",0)+IF(TRIM(CLEAN(I12))="NA",0),"") -> 2 | P12: =O12 -> 2 | Q12: =IFERROR(IF(TRIM(CLEAN(K12))="A",4)+IF(TRIM(CLEAN(K12))="B+",3.5)+IF(TRIM(CLEAN(K12))="B",3)+IF(TRIM(CLEAN(K12))="C+",2.5)+IF(TRIM(CLEAN(K12))="C",2)+IF(TRIM(CLEAN(K12))="D+",1.5)+IF(TRIM(CLEAN(K12))="D",1)+IF(TRIM(CLEAN(K12))="D*",1)+IF(TRIM(CLEAN(K12))="NU",0)+IF(TRIM(CLEAN(K12))="NA",0),"") -> 2 | R12: =Q12 -> 2 | S12: =IFERROR(IF(N12=Profile!$E$250,IF(R12-P12<0,"-",IF(R12-P12>0,"+"," =")),"N.C."),"") -> = | T12: =IF(K12="D",Profile!F276, IF(K12="D+",Profile!F276, IF(K12="D*",Profile!F276, IF(K12="C",Profile!F277, IF(K12="C+",Profile!F278, IF(K12="B",Profile!F278, IF(K12="B+",Profile!F279, IF(K12="A",Profile!F279,"")))))))) -> 2. Basic | U12: =IF(K12="A",Profile!F280, IF(K12="B+",Profile!F280, IF(K12="B",Profile!F280, IF(K12="D+",Profile!F281, IF(K12="D",Profile!F281, IF(K12="D*",Profile!F281, Profile!F282)))))) -> Average | V12: 0 | W12: 1 | X12: 1 | Y12: 3
A13: =H3 -> Pefalia | B13: 2.2 | D13: Comp | E13: I | F13: =VLOOKUP(E13,Profile!A:B,2,FALSE) -> I-Budget reliability | G13: PI-2 | H13: =IFERROR(VLOOKUP(B13,Profile!A:B,2,FALSE),"") -> 2.2 Expenditure composition outturn by economic type | I13: D | J13: The composition of spending by economic classification deviated from the initial forecasts by 16.4% in 2014, 16.3% in 2015 and 9.3% in 2016. | K13: D | L13: Variance in expenditure composition by economic type exceeded 15% for each fiscal year. | N13: Yes | O13: =IFERROR(IF(TRIM(CLEAN(I13))="A",4)+IF(TRIM(CLEAN(I13))="B+",3.5)+IF(TRIM(CLEAN(I13))="B",3)+IF(TRIM(CLEAN(I13))="C+",2.5)+IF(TRIM(CLEAN(I13))="C",2)+IF(TRIM(CLEAN(I13))="D+",1.5)+IF(TRIM(CLEAN(I13))="D",1)+IF(TRIM(CLEAN(I13))="D*",1)+IF(TRIM(CLEAN(I13))="NU",0)+IF(TRIM(CLEAN(I13))="NA",0),"") -> 1 | P13: 1 | Q13: =IFERROR(IF(TRIM(CLEAN(K13))="A",4)+IF(TRIM(CLEAN(K13))="B+",3.5)+IF(TRIM(CLEAN(K13))="B",3)+IF(TRIM(CLEAN(K13))="C+",2.5)+IF(TRIM(CLEAN(K13))="C",2)+IF(TRIM(CLEAN(K13))="D+",1.5)+IF(TRIM(CLEAN(K13))="D",1)+IF(TRIM(CLEAN(K13))="D*",1)+IF(TRIM(CLEAN(K13))="NU",0)+IF(TRIM(CLEAN(K13))="NA",0),"") -> 1 | R13: 1 | S13: =IFERROR(IF(N13=Profile!$E$250,IF(R13-P13<0,"-",IF(R13-P13>0,"+"," =")),"N.C."),"") -> = | T13: =IF(K13="D",Profile!F276, IF(K13="D+",Profile!F276, IF(K13="D*",Profile!F276, IF(K13="C",Profile!F277, IF(K13="C+",Profile!F278, IF(K13="B",Profile!F278, IF(K13="B+",Profile!F279, IF(K13="A",Profile!F279,"")))))))) -> 1. Below basic | U13: =IF(K13="A",Profile!F280, IF(K13="B+",Profile!F280, IF(K13="B",Profile!F280, IF(K13="D+",Profile!F281, IF(K13="D",Profile!F281, IF(K13="D*",Profile!F281, Profile!F282)))))) -> Weakness | V13: 0 | W13: 1 | X13: 1 | Y13: 3
A14: =H3 -> Pefalia | B14: 2.3 | D14: Comp | E14: I | F14: =VLOOKUP(E14,Profile!A:B,2,FALSE) -> I-Budget reliability | G14: PI-2 | H14: =IFERROR(VLOOKUP(B14,Profile!A:B,2,FALSE),"") -> 2.3 Expenditure from contingency reserves | I14: A | J14: Expenditure charged to provisional reserves represented an average of 0.8% of state budget expenditure over the three years 2014 to 2016 | K14: A | L14: The average level of expenditure charged directly to the Contingency Fund was less than 1% of the original budget. | N14: No | O14: =IFERROR(IF(TRIM(CLEAN(I14))="A",4)+IF(TRIM(CLEAN(I14))="B+",3.5)+IF(TRIM(CLEAN(I14))="B",3)+IF(TRIM(CLEAN(I14))="C+",2.5)+IF(TRIM(CLEAN(I14))="C",2)+IF(TRIM(CLEAN(I14))="D+",1.5)+IF(TRIM(CLEAN(I14))="D",1)+IF(TRIM(CLEAN(I14))="D*",1)+IF(TRIM(CLEAN(I14))="NU",0)+IF(TRIM(CLEAN(I14))="NA",0),"") -> 4 | P14: 4 | Q14: =IFERROR(IF(TRIM(CLEAN(K14))="A",4)+IF(TRIM(CLEAN(K14))="B+",3.5)+IF(TRIM(CLEAN(K14))="B",3)+IF(TRIM(CLEAN(K14))="C+",2.5)+IF(TRIM(CLEAN(K14))="C",2)+IF(TRIM(CLEAN(K14))="D+",1.5)+IF(TRIM(CLEAN(K14))="D",1)+IF(TRIM(CLEAN(K14))="D*",1)+IF(TRIM(CLEAN(K14))="NU",0)+IF(TRIM(CLEAN(K14))="NA",0),"") -> 4 | R14: 4 | S14: =IFERROR(IF(N14=Profile!$E$250,IF(R14-P14<0,"-",IF(R14-P14>0,"+"," =")),"N.C."),"") -> N.C. | T14: =IF(K14="D",Profile!F276, IF(K14="D+",Profile!F276, IF(K14="D*",Profile!F276, IF(K14="C",Profile!F277, IF(K14="C+",Profile!F278, IF(K14="B",Profile!F278, IF(K14="B+",Profile!F279, IF(K14="A",Profile!F279,"")))))))) -> 4. High | U14: =IF(K14="A",Profile!F280, IF(K14="B+",Profile!F280, IF(K14="B",Profile!F280, IF(K14="D+",Profile!F281, IF(K14="D",Profile!F281, IF(K14="D*",Profile!F281, Profile!F282)))))) -> Strength | V14: 0 | W14: 1 | X14: 1 | Y14: 3
A15: =H3 -> Pefalia | B15: PI-3 | C15: M2 | D15: Indic | E15: I | F15: =VLOOKUP(E15,Profile!A:B,2,FALSE) -> I-Budget reliability | G15: PI-3 | H15: =IFERROR(VLOOKUP(B15,Profile!A:B,2,FALSE),"") -> PI-3 Revenue outturn | I15: =IF(COUNTIFS($D:$D,"Comp",$G:$G,$G15)=COUNTIFS($D:$D,"Comp",$G:$G,$G15,I:I,"=NU"),"NU", IF(COUNTIFS($D:$D,"Comp",$G:$G,$G15)=COUNTIFS($D:$D,"Comp",$G:$G,$G15,I:I,"=NA")+COUNTIFS($D:$D,"Comp",$G:$G,$G15,I:I,"=NU"),"NA", IF(O15>3.65,"A", IF(O15>=3.25,"B+", IF(O15>2.65,"B", IF(O15>=2.25,"C+", IF(O15>1.75,"C", IF(O15>1.25,"D+", IF(AND(O15<=1.25,O15>0),"D", "" ))))))))) -> C+ | K15: =IF(COUNTIFS($D:$D,"Comp",$G:$G,$G15)=COUNTIFS($D:$D,"Comp",$G:$G,$G15,K:K,"=NU"),"NU", IF(COUNTIFS($D:$D,"Comp",$G:$G,$G15)=COUNTIFS($D:$D,"Comp",$G:$G,$G15,K:K,"=NA")+COUNTIFS($D:$D,"Comp",$G:$G,$G15,K:K,"=NU"),"NA", IF(Q15>3.65,"A", IF(Q15>=3.25,"B+", IF(Q15>2.65,"B", IF(Q15>=2.25,"C+", IF(Q15>1.75,"C", IF(Q15>1.25,"D+", IF(AND(Q15<=1.25,Q15>0),"D", "" ))))))))) -> D+ | N15: =IF(AND(N16=Profile!E250,N17=Profile!E250),Profile!E250,Profile!E251) -> Yes | O15: =IFERROR( (IF($C15="M1", IF(ROUND(AVERAGEIFS(O:O,$G:$G,$G15,$D:$D,"Comp",$O:$O,">0"),1)=ROUND(_xlfn.MINIFS(O:O,$G:$G,$G15,$D:$D,"Comp",$O:$O,">0"),1), AVERAGEIFS(O:O,$G:$G,$G15,$D:$D,"Comp",$O:$O,">0"),_xlfn.MINIFS(O:O,$G:$G,$G15,$D:$D,"Comp",$O:$O,">0")+0.5), AVERAGEIFS(O:O,$G:$G,$G15,$D:$D,"Comp",$O:$O,">0"))), 0) -> 2.5 | P15: =IF(I15="D",1, IF(I15="D*",1, IF(I15="D+",1.5, IF(I15="C",2, IF(I15="C+",2.5, IF(I15="B",3, IF(I15="B+",3.5, IF(I15="A",4, )))))))) -> 2.5 | Q15: =IFERROR( (IF($C15="M1", IF(ROUND(AVERAGEIFS(Q:Q,$G:$G,$G15,$D:$D,"Comp",$Q:$Q,">0"),1)=ROUND(_xlfn.MINIFS(Q:Q,$G:$G,$G15,$D:$D,"Comp",$Q:$Q,">0"),1), AVERAGEIFS(Q:Q,$G:$G,$G15,$D:$D,"Comp",$Q:$Q,">0"),_xlfn.MINIFS(Q:Q,$G:$G,$G15,$D:$D,"Comp",$Q:$Q,">0")+0.5), AVERAGEIFS(Q:Q,$G:$G,$G15,$D:$D,"Comp",$Q:$Q,">0"))), 0) -> 1.5 | R15: 1.5 | S15: =IFERROR(IF(N15=Profile!$E$250,IF(R15-P15<0,"-",IF(R15-P15>0,"+"," =")),"N.C."),"") -> - | T15: =IF(K15="D",Profile!F276, IF(K15="D+",Profile!F276, IF(K15="D*",Profile!F276, IF(K15="C",Profile!F277, IF(K15="C+",Profile!F278, IF(K15="B",Profile!F278, IF(K15="B+",Profile!F279, IF(K15="A",Profile!F279,"")))))))) -> 1. Below basic | U15: =IF(K15="A",Profile!F280, IF(K15="B+",Profile!F280, IF(K15="B",Profile!F280, IF(K15="D+",Profile!F281, IF(K15="D",Profile!F281, IF(K15="D*",Profile!F281, Profile!F282)))))) -> Weakness | V15: 1 | W15: 0 | X15: 0 | Y15: =Y16 -> 2
A16: =H3 -> Pefalia | B16: 3.1 | D16: Comp | E16: I | F16: =VLOOKUP(E16,Profile!A:B,2,FALSE) -> I-Budget reliability | G16: PI-3 | H16: =IFERROR(VLOOKUP(B16,Profile!A:B,2,FALSE),"") -> 3.1 Aggregate revenue outturn | I16: B | J16: For the years 2014 to 2016, total realized revenues represented 108.2%, 99.4% and 96.2% respectively of the total revenues forecast in the initial Finance Act. | K16: D | L16: Actual revenue was less than 92% of budgeted revenue in 2017/18 and 2018/19. | N16: Yes | O16: =IFERROR(IF(TRIM(CLEAN(I16))="A",4)+IF(TRIM(CLEAN(I16))="B+",3.5)+IF(TRIM(CLEAN(I16))="B",3)+IF(TRIM(CLEAN(I16))="C+",2.5)+IF(TRIM(CLEAN(I16))="C",2)+IF(TRIM(CLEAN(I16))="D+",1.5)+IF(TRIM(CLEAN(I16))="D",1)+IF(TRIM(CLEAN(I16))="D*",1)+IF(TRIM(CLEAN(I16))="NU",0)+IF(TRIM(CLEAN(I16))="NA",0),"") -> 3 | P16: =O16 -> 3 | Q16: =IFERROR(IF(TRIM(CLEAN(K16))="A",4)+IF(TRIM(CLEAN(K16))="B+",3.5)+IF(TRIM(CLEAN(K16))="B",3)+IF(TRIM(CLEAN(K16))="C+",2.5)+IF(TRIM(CLEAN(K16))="C",2)+IF(TRIM(CLEAN(K16))="D+",1.5)+IF(TRIM(CLEAN(K16))="D",1)+IF(TRIM(CLEAN(K16))="D*",1)+IF(TRIM(CLEAN(K16))="NU",0)+IF(TRIM(CLEAN(K16))="NA",0),"") -> 1 | R16: =Q16 -> 1 | S16: =IFERROR(IF(N16=Profile!$E$250,IF(R16-P16<0,"-",IF(R16-P16>0,"+"," =")),"N.C."),"") -> - | T16: =IF(K16="D",Profile!F276, IF(K16="D+",Profile!F276, IF(K16="D*",Profile!F276, IF(K16="C",Profile!F277, IF(K16="C+",Profile!F278, IF(K16="B",Profile!F278, IF(K16="B+",Profile!F279, IF(K16="A",Profile!F279,"")))))))) -> 1. Below basic | U16: =IF(K16="A",Profile!F280, IF(K16="B+",Profile!F280, IF(K16="B",Profile!F280, IF(K16="D+",Profile!F281, IF(K16="D",Profile!F281, IF(K16="D*",Profile!F281, Profile!F282)))))) -> Weakness | V16: 1 | W16: 0 | X16: 0 | Y16: 2
A17: =H3 -> Pefalia | B17: 3.2 | D17: Comp | E17: I | F17: =VLOOKUP(E17,Profile!A:B,2,FALSE) -> I-Budget reliability | G17: PI-3 | H17: =IFERROR(VLOOKUP(B17,Profile!A:B,2,FALSE),"") -> 3.2 Revenue composition outturn | I17: C | J17: The difference between the revenue mix forecast by the initial Finance Act and the actual mix was 9.9%, 15.1% and 10.4% respectively in 2014, 2015 and 2016. The data show, for each year, a wide dispersion in the realization rates of each revenue category. They also show wide variations in these rates from one year to the next. | K17: C | L17: Variance in revenue composition was more than 10% in all three years. | N17: Yes | O17: =IFERROR(IF(TRIM(CLEAN(I17))="A",4)+IF(TRIM(CLEAN(I17))="B+",3.5)+IF(TRIM(CLEAN(I17))="B",3)+IF(TRIM(CLEAN(I17))="C+",2.5)+IF(TRIM(CLEAN(I17))="C",2)+IF(TRIM(CLEAN(I17))="D+",1.5)+IF(TRIM(CLEAN(I17))="D",1)+IF(TRIM(CLEAN(I17))="D*",1)+IF(TRIM(CLEAN(I17))="NU",0)+IF(TRIM(CLEAN(I17))="NA",0),"") -> 2 | P17: 2 | Q17: =IFERROR(IF(TRIM(CLEAN(K17))="A",4)+IF(TRIM(CLEAN(K17))="B+",3.5)+IF(TRIM(CLEAN(K17))="B",3)+IF(TRIM(CLEAN(K17))="C+",2.5)+IF(TRIM(CLEAN(K17))="C",2)+IF(TRIM(CLEAN(K17))="D+",1.5)+IF(TRIM(CLEAN(K17))="D",1)+IF(TRIM(CLEAN(K17))="D*",1)+IF(TRIM(CLEAN(K17))="NU",0)+IF(TRIM(CLEAN(K17))="NA",0),"") -> 2 | R17: 2 | S17: =IFERROR(IF(N17=Profile!$E$250,IF(R17-P17<0,"-",IF(R17-P17>0,"+"," =")),"N.C."),"") -> = | T17: =IF(K17="D",Profile!F276, IF(K17="D+",Profile!F276, IF(K17="D*",Profile!F276, IF(K17="C",Profile!F277, IF(K17="C+",Profile!F278, IF(K17="B",Profile!F278, IF(K17="B+",Profile!F279, IF(K17="A",Profile!F279,"")))))))) -> 2. Basic | U17: =IF(K17="A",Profile!F280, IF(K17="B+",Profile!F280, IF(K17="B",Profile!F280, IF(K17="D+",Profile!F281, IF(K17="D",Profile!F281, IF(K17="D*",Profile!F281, Profile!F282)))))) -> Average | V17: 1 | W17: 0 | X17: 0 | Y17: 2
A18: =H3 -> Pefalia | B18: II | D18: Pilar | E18: II | F18: =VLOOKUP(E18,Profile!A:B,2,FALSE) -> II-Transparency of public finances | H18: =IFERROR(VLOOKUP(B18,Profile!A:B,2,FALSE),"") -> II-Transparency of public finances | I18: =IF(COUNTIFS($D:$D,"Indic",$E:$E,$E18)=COUNTIFS($D:$D,"Indic",$E:$E,$E18,$I:$I,"=NU"),"NU", IF(COUNTIFS($D:$D,"Indic",$E:$E,$E18)=COUNTIFS($D:$D,"Indic",$E:$E,C19,$I:$I,"=NA"),"NA", IF(O18>3.65,"A", IF(O18>=3.25,"B+", IF(O18>2.65,"B", IF(O18>=2.25,"C+", IF(O18>1.75,"C", IF(O18>1.25,"D+", IF(AND(O18<=1.25,O18>0),"D", "" ))))))))) -> D+ | K18: =IF(COUNTIFS($D:$D,"Indic",$E:$E,E18)=COUNTIFS($D:$D,"Indic",$E:$E,E19,$K:$K,"=NU"),"NU", IF(COUNTIFS($D:$D,"Indic",$E:$E,E18)=COUNTIFS($D:$D,"Indic",$E:$E,E19,$K:$K,"=NA"),"NA", IF(Q18>3.65,"A", IF(Q18>=3.25,"B+", IF(Q18>2.65,"B", IF(Q18>=2.25,"C+", IF(Q18>1.75,"C", IF(Q18>1.25,"D+", IF(AND(Q18<=1.25,Q18>0),"D", "" ))))))))) -> D+ | N18: =IF(COUNTIFS(N19:N36,Profile!$E$250)=18,Profile!$E$250,Profile!$E$251) -> No | O18: =AVERAGEIFS(O:O,$D:$D,"Indic",$E:$E,$E18,O:O,">0") -> 1.708333333 | P18: =IF(I18="D",1, IF(I18="D*",1, IF(I18="D+",1.5, IF(I18="C",2, IF(I18="C+",2.5, IF(I18="B",3, IF(I18="B+",3.5, IF(I18="A",4, )))))))) -> 1.5 | Q18: =AVERAGEIFS(Q:Q,$D:$D,"Indic",$E:$E,$E18,Q:Q,">0") -> 1.694444444 | R18: 1.5 | S18: =IFERROR(IF(N18=Profile!$E$250,IF(R18-P18<0,"-",IF(R18-P18>0,"+"," =")),"N.C."),"") -> N.C. | T18: =IF(K18="D",Profile!F276, IF(K18="D+",Profile!F276, IF(K18="D*",Profile!F276, IF(K18="C",Profile!F277, IF(K18="C+",Profile!F278, IF(K18="B",Profile!F278, IF(K18="B+",Profile!F279, IF(K18="A",Profile!F279,"")))))))) -> 1. Below basic | U18: =IF(K18="A",Profile!F280, IF(K18="B+",Profile!F280, IF(K18="B",Profile!F280, IF(K18="D+",Profile!F281, IF(K18="D",Profile!F281, IF(K18="D*",Profile!F281, Profile!F282)))))) -> Weakness
A19: =H3 -> Pefalia | B19: PI-4 | C19: M1 | D19: Indic | E19: II | F19: =VLOOKUP(E19,Profile!A:B,2,FALSE) -> II-Transparency of public finances | G19: PI-4 | H19: =IFERROR(VLOOKUP(B19,Profile!A:B,2,FALSE),"") -> PI-4 Budget classification | I19: =IF(COUNTIFS($D:$D,"Comp",$G:$G,$G19)=COUNTIFS($D:$D,"Comp",$G:$G,$G19,I:I,"=NU"),"NU", IF(COUNTIFS($D:$D,"Comp",$G:$G,$G19)=COUNTIFS($D:$D,"Comp",$G:$G,$G19,I:I,"=NA")+COUNTIFS($D:$D,"Comp",$G:$G,$G19,I:I,"=NU"),"NA", IF(O19>3.65,"A", IF(O19>=3.25,"B+", IF(O19>2.65,"B", IF(O19>=2.25,"C+", IF(O19>1.75,"C", IF(O19>1.25,"D+", IF(AND(O19<=1.25,O19>0),"D", "" ))))))))) -> C | K19: =IF(COUNTIFS($D:$D,"Comp",$G:$G,$G19)=COUNTIFS($D:$D,"Comp",$G:$G,$G19,K:K,"=NU"),"NU", IF(COUNTIFS($D:$D,"Comp",$G:$G,$G19)=COUNTIFS($D:$D,"Comp",$G:$G,$G19,K:K,"=NA")+COUNTIFS($D:$D,"Comp",$G:$G,$G19,K:K,"=NU"),"NA", IF(Q19>3.65,"A", IF(Q19>=3.25,"B+", IF(Q19>2.65,"B", IF(Q19>=2.25,"C+", IF(Q19>1.75,"C", IF(Q19>1.25,"D+", IF(AND(Q19<=1.25,Q19>0),"D", "" ))))))))) -> C | N19: =N20 -> Yes | O19: =IFERROR( (IF($C19="M1", IF(ROUND(AVERAGEIFS(O:O,$G:$G,$G19,$D:$D,"Comp",$O:$O,">0"),1)=ROUND(_xlfn.MINIFS(O:O,$G:$G,$G19,$D:$D,"Comp",$O:$O,">0"),1), AVERAGEIFS(O:O,$G:$G,$G19,$D:$D,"Comp",$O:$O,">0"),_xlfn.MINIFS(O:O,$G:$G,$G19,$D:$D,"Comp",$O:$O,">0")+0.5), AVERAGEIFS(O:O,$G:$G,$G19,$D:$D,"Comp",$O:$O,">0"))), 0) -> 2 | P19: =IF(I19="D",1, IF(I19="D*",1, IF(I19="D+",1.5, IF(I19="C",2, IF(I19="C+",2.5, IF(I19="B",3, IF(I19="B+",3.5, IF(I19="A",4, )))))))) -> 2 | Q19: =IFERROR( (IF($C19="M1", IF(ROUND(AVERAGEIFS(Q:Q,$G:$G,$G19,$D:$D,"Comp",$Q:$Q,">0"),1)=ROUND(_xlfn.MINIFS(Q:Q,$G:$G,$G19,$D:$D,"Comp",$Q:$Q,">0"),1), AVERAGEIFS(Q:Q,$G:$G,$G19,$D:$D,"Comp",$Q:$Q,">0"),_xlfn.MINIFS(Q:Q,$G:$G,$G19,$D:$D,"Comp",$Q:$Q,">0")+0.5), AVERAGEIFS(Q:Q,$G:$G,$G19,$D:$D,"Comp",$Q:$Q,">0"))), 0) -> 2 | R19: =IF(K19="D",1, IF(K19="D+",1.5, IF(K19="C",2, IF(K19="C+",2.5, IF(K19="B",3, IF(K19="B+",3.5, IF(K19="A",4, ))))))) -> 2 | S19: =IFERROR(IF(N19=Profile!$E$250,IF(R19-P19<0,"-",IF(R19-P19>0,"+"," =")),"N.C."),"") -> = | T19: =IF(K19="D",Profile!F276, IF(K19="D+",Profile!F276, IF(K19="D*",Profile!F276, IF(K19="C",Profile!F277, IF(K19="C+",Profile!F278, IF(K19="B",Profile!F278, IF(K19="B+",Profile!F279, IF(K19="A",Profile!F279,"")))))))) -> 2. Basic | U19: =IF(K19="A",Profile!F280, IF(K19="B+",Profile!F280, IF(K19="B",Profile!F280, IF(K19="D+",Profile!F281, IF(K19="D",Profile!F281, IF(K19="D*",Profile!F281, Profile!F282)))))) -> Average | V19: 0 | W19: 1 | X19: 0 | Y19: =Y20 -> 1
A20: =H3 -> Pefalia | B20: 4.1 | D20: Comp | E20: II | F20: =VLOOKUP(E20,Profile!A:B,2,FALSE) -> II-Transparency of public finances | G20: PI-4 | H20: =IFERROR(VLOOKUP(B20,Profile!A:B,2,FALSE),"") -> 4.1 Budget classification | I20: C | J20: Budget formulation, execution and presentation are based on administrative and economic classification and apply the SFP standard. Functional classification does not comply with CFAP/COFOG. | K20: C | L20: Budget formulation, execution, and reporting are based on administrative and economic classifications comparable with GFS standards. | N20: Yes | O20: =IFERROR(IF(TRIM(CLEAN(I20))="A",4)+IF(TRIM(CLEAN(I20))="B+",3.5)+IF(TRIM(CLEAN(I20))="B",3)+IF(TRIM(CLEAN(I20))="C+",2.5)+IF(TRIM(CLEAN(I20))="C",2)+IF(TRIM(CLEAN(I20))="D+",1.5)+IF(TRIM(CLEAN(I20))="D",1)+IF(TRIM(CLEAN(I20))="D*",1)+IF(TRIM(CLEAN(I20))="NU",0)+IF(TRIM(CLEAN(I20))="NA",0),"") -> 2 | P20: =O20 -> 2 | Q20: =IFERROR(IF(TRIM(CLEAN(K20))="A",4)+IF(TRIM(CLEAN(K20))="B+",3.5)+IF(TRIM(CLEAN(K20))="B",3)+IF(TRIM(CLEAN(K20))="C+",2.5)+IF(TRIM(CLEAN(K20))="C",2)+IF(TRIM(CLEAN(K20))="D+",1.5)+IF(TRIM(CLEAN(K20))="D",1)+IF(TRIM(CLEAN(K20))="D*",1)+IF(TRIM(CLEAN(K20))="NU",0)+IF(TRIM(CLEAN(K20))="NA",0),"") -> 2 | R20: =Q20 -> 2 | S20: =IFERROR(IF(N20=Profile!$E$250,IF(R20-P20<0,"-",IF(R20-P20>0,"+"," =")),"N.C."),"") -> = | T20: =IF(K20="D",Profile!F276, IF(K20="D+",Profile!F276, IF(K20="D*",Profile!F276, IF(K20="C",Profile!F277, IF(K20="C+",Profile!F278, IF(K20="B",Profile!F278, IF(K20="B+",Profile!F279, IF(K20="A",Profile!F279,"")))))))) -> 2. Basic | U20: =IF(K20="A",Profile!F280, IF(K20="B+",Profile!F280, IF(K20="B",Profile!F280, IF(K20="D+",Profile!F281, IF(K20="D",Profile!F281, IF(K20="D*",Profile!F281, Profile!F282)))))) -> Average | V20: 0 | W20: 1 | X20: 0 | Y20: 1
A21: =H3 -> Pefalia | B21: PI-5 | C21: M1 | D21: Indic | E21: II | F21: =VLOOKUP(E21,Profile!A:B,2,FALSE) -> II-Transparency of public finances | G21: PI-5 | H21: =IFERROR(VLOOKUP(B21,Profile!A:B,2,FALSE),"") -> PI-5 Budget documentation | I21: =IF(COUNTIFS($D:$D,"Comp",$G:$G,$G21)=COUNTIFS($D:$D,"Comp",$G:$G,$G21,I:I,"=NU"),"NU", IF(COUNTIFS($D:$D,"Comp",$G:$G,$G21)=COUNTIFS($D:$D,"Comp",$G:$G,$G21,I:I,"=NA")+COUNTIFS($D:$D,"Comp",$G:$G,$G21,I:I,"=NU"),"NA", IF(O21>3.65,"A", IF(O21>=3.25,"B+", IF(O21>2.65,"B", IF(O21>=2.25,"C+", IF(O21>1.75,"C", IF(O21>1.25,"D+", IF(AND(O21<=1.25,O21>0),"D", "" ))))))))) -> B | K21: =IF(COUNTIFS($D:$D,"Comp",$G:$G,$G21)=COUNTIFS($D:$D,"Comp",$G:$G,$G21,K:K,"=NU"),"NU", IF(COUNTIFS($D:$D,"Comp",$G:$G,$G21)=COUNTIFS($D:$D,"Comp",$G:$G,$G21,K:K,"=NA")+COUNTIFS($D:$D,"Comp",$G:$G,$G21,K:K,"=NU"),"NA", IF(Q21>3.65,"A", IF(Q21>=3.25,"B+", IF(Q21>2.65,"B", IF(Q21>=2.25,"C+", IF(Q21>1.75,"C", IF(Q21>1.25,"D+", IF(AND(Q21<=1.25,Q21>0),"D", "" ))))))))) -> B | N21: =N22 -> Yes | O21: =IFERROR( (IF($C21="M1", IF(ROUND(AVERAGEIFS(O:O,$G:$G,$G21,$D:$D,"Comp",$O:$O,">0"),1)=ROUND(_xlfn.MINIFS(O:O,$G:$G,$G21,$D:$D,"Comp",$O:$O,">0"),1), AVERAGEIFS(O:O,$G:$G,$G21,$D:$D,"Comp",$O:$O,">0"),_xlfn.MINIFS(O:O,$G:$G,$G21,$D:$D,"Comp",$O:$O,">0")+0.5), AVERAGEIFS(O:O,$G:$G,$G21,$D:$D,"Comp",$O:$O,">0"))), 0) -> 3 | P21: =IF(I21="D",1, IF(I21="D*",1, IF(I21="D+",1.5, IF(I21="C",2, IF(I21="C+",2.5, IF(I21="B",3, IF(I21="B+",3.5, IF(I21="A",4, )))))))) -> 3 | Q21: =IFERROR( (IF($C21="M1", IF(ROUND(AVERAGEIFS(Q:Q,$G:$G,$G21,$D:$D,"Comp",$Q:$Q,">0"),1)=ROUND(_xlfn.MINIFS(Q:Q,$G:$G,$G21,$D:$D,"Comp",$Q:$Q,">0"),1), AVERAGEIFS(Q:Q,$G:$G,$G21,$D:$D,"Comp",$Q:$Q,">0"),_xlfn.MINIFS(Q:Q,$G:$G,$G21,$D:$D,"Comp",$Q:$Q,">0")+0.5), AVERAGEIFS(Q:Q,$G:$G,$G21,$D:$D,"Comp",$Q:$Q,">0"))), 0) -> 3 | R21: 3 | S21: =IFERROR(IF(N21=Profile!$E$250,IF(R21-P21<0,"-",IF(R21-P21>0,"+"," =")),"N.C."),"") -> = | T21: =IF(K21="D",Profile!F276, IF(K21="D+",Profile!F276, IF(K21="D*",Profile!F276, IF(K21="C",Profile!F277, IF(K21="C+",Profile!F278, IF(K21="B",Profile!F278, IF(K21="B+",Profile!F279, IF(K21="A",Profile!F279,"")))))))) -> 3. Sound | U21: =IF(K21="A",Profile!F280, IF(K21="B+",Profile!F280, IF(K21="B",Profile!F280, IF(K21="D+",Profile!F281, IF(K21="D",Profile!F281, IF(K21="D*",Profile!F281, Profile!F282)))))) -> Strength | V21: 0 | W21: 1 | X21: 0 | Y21: =Y22 -> 1
A22: =H3 -> Pefalia | B22: 5.1 | D22: Comp | E22: II | F22: =VLOOKUP(E22,Profile!A:B,2,FALSE) -> II-Transparency of public finances | G22: PI-5 | H22: =IFERROR(VLOOKUP(B22,Profile!A:B,2,FALSE),"") -> 5.1 Budget documentation | I22: B | J22: The budget documents contain seven items of information, including the four basic elements. | K22: B | L22: Budget documentation fulfils all required information benchmarks except (i) Financial assets; (ii) Summary information of fiscal risks; (iii) Explanation of budget implications of new policy initiatives; (iv) Quantification of tax expenditures. | N22: Yes | O22: =IFERROR(IF(TRIM(CLEAN(I22))="A",4)+IF(TRIM(CLEAN(I22))="B+",3.5)+IF(TRIM(CLEAN(I22))="B",3)+IF(TRIM(CLEAN(I22))="C+",2.5)+IF(TRIM(CLEAN(I22))="C",2)+IF(TRIM(CLEAN(I22))="D+",1.5)+IF(TRIM(CLEAN(I22))="D",1)+IF(TRIM(CLEAN(I22))="D*",1)+IF(TRIM(CLEAN(I22))="NU",0)+IF(TRIM(CLEAN(I22))="NA",0),"") -> 3 | P22: =O22 -> 3 | Q22: =IFERROR(IF(TRIM(CLEAN(K22))="A",4)+IF(TRIM(CLEAN(K22))="B+",3.5)+IF(TRIM(CLEAN(K22))="B",3)+IF(TRIM(CLEAN(K22))="C+",2.5)+IF(TRIM(CLEAN(K22))="C",2)+IF(TRIM(CLEAN(K22))="D+",1.5)+IF(TRIM(CLEAN(K22))="D",1)+IF(TRIM(CLEAN(K22))="D*",1)+IF(TRIM(CLEAN(K22))="NU",0)+IF(TRIM(CLEAN(K22))="NA",0),"") -> 3 | R22: =Q22 -> 3 | S22: =IFERROR(IF(N22=Profile!$E$250,IF(R22-P22<0,"-",IF(R22-P22>0,"+"," =")),"N.C."),"") -> = | T22: =IF(K22="D",Profile!F276, IF(K22="D+",Profile!F276, IF(K22="D*",Profile!F276, IF(K22="C",Profile!F277, IF(K22="C+",Profile!F278, IF(K22="B",Profile!F278, IF(K22="B+",Profile!F279, IF(K22="A",Profile!F279,"")))))))) -> 3. Sound | U22: =IF(K22="A",Profile!F280, IF(K22="B+",Profile!F280, IF(K22="B",Profile!F280, IF(K22="D+",Profile!F281, IF(K22="D",Profile!F281, IF(K22="D*",Profile!F281, Profile!F282)))))) -> Strength | V22: 0 | W22: 1 | X22: 0 | Y22: 1
A23: =H3 -> Pefalia | B23: PI-6 | C23: M2 | D23: Indic | E23: II | F23: =VLOOKUP(E23,Profile!A:B,2,FALSE) -> II-Transparency of public finances | G23: PI-6 | H23: =IFERROR(VLOOKUP(B23,Profile!A:B,2,FALSE),"") -> PI-6 Central government operations outside financial reports | I23: =IF(COUNTIFS($D:$D,"Comp",$G:$G,$G23)=COUNTIFS($D:$D,"Comp",$G:$G,$G23,I:I,"=NU"),"NU", IF(COUNTIFS($D:$D,"Comp",$G:$G,$G23)=COUNTIFS($D:$D,"Comp",$G:$G,$G23,I:I,"=NA")+COUNTIFS($D:$D,"Comp",$G:$G,$G23,I:I,"=NU"),"NA", IF(O23>3.65,"A", IF(O23>=3.25,"B+", IF(O23>2.65,"B", IF(O23>=2.25,"C+", IF(O23>1.75,"C", IF(O23>1.25,"D+", IF(AND(O23<=1.25,O23>0),"D", "" ))))))))) -> D | K23: =IF(COUNTIFS($D:$D,"Comp",$G:$G,$G23)=COUNTIFS($D:$D,"Comp",$G:$G,$G23,K:K,"=NU"),"NU", IF(COUNTIFS($D:$D,"Comp",$G:$G,$G23)=COUNTIFS($D:$D,"Comp",$G:$G,$G23,K:K,"=NA")+COUNTIFS($D:$D,"Comp",$G:$G,$G23,K:K,"=NU"),"NA", IF(Q23>3.65,"A", IF(Q23>=3.25,"B+", IF(Q23>2.65,"B", IF(Q23>=2.25,"C+", IF(Q23>1.75,"C", IF(Q23>1.25,"D+", IF(AND(Q23<=1.25,Q23>0),"D", "" ))))))))) -> D+ | N23: =IF(AND(N24=Profile!E250,N25=Profile!E250,N26=Profile!E250),Profile!E250,Profile!E251) -> No | O23: =IFERROR( (IF($C23="M1", IF(ROUND(AVERAGEIFS(O:O,$G:$G,$G23,$D:$D,"Comp",$O:$O,">0"),1)=ROUND(_xlfn.MINIFS(O:O,$G:$G,$G23,$D:$D,"Comp",$O:$O,">0"),1), AVERAGEIFS(O:O,$G:$G,$G23,$D:$D,"Comp",$O:$O,">0"),_xlfn.MINIFS(O:O,$G:$G,$G23,$D:$D,"Comp",$O:$O,">0")+0.5), AVERAGEIFS(O:O,$G:$G,$G23,$D:$D,"Comp",$O:$O,">0"))), 0) -> 1 | P23: =IF(I23="D",1, IF(I23="D*",1, IF(I23="D+",1.5, IF(I23="C",2, IF(I23="C+",2.5, IF(I23="B",3, IF(I23="B+",3.5, IF(I23="A",4, )))))))) -> 1 | Q23: =IFERROR( (IF($C23="M1", IF(ROUND(AVERAGEIFS(Q:Q,$G:$G,$G23,$D:$D,"Comp",$Q:$Q,">0"),1)=ROUND(_xlfn.MINIFS(Q:Q,$G:$G,$G23,$D:$D,"Comp",$Q:$Q,">0"),1), AVERAGEIFS(Q:Q,$G:$G,$G23,$D:$D,"Comp",$Q:$Q,">0"),_xlfn.MINIFS(Q:Q,$G:$G,$G23,$D:$D,"Comp",$Q:$Q,">0")+0.5), AVERAGEIFS(Q:Q,$G:$G,$G23,$D:$D,"Comp",$Q:$Q,">0"))), 0) -> 1.666666667 | R23: 1.5 | S23: =IFERROR(IF(N23=Profile!$E$250,IF(R23-P23<0,"-",IF(R23-P23>0,"+"," =")),"N.C."),"") -> N.C. | T23: =IF(K23="D",Profile!F276, IF(K23="D+",Profile!F276, IF(K23="D*",Profile!F276, IF(K23="C",Profile!F277, IF(K23="C+",Profile!F278, IF(K23="B",Profile!F278, IF(K23="B+",Profile!F279, IF(K23="A",Profile!F279,"")))))))) -> 1. Below basic | U23: =IF(K23="A",Profile!F280, IF(K23="B+",Profile!F280, IF(K23="B",Profile!F280, IF(K23="D+",Profile!F281, IF(K23="D",Profile!F281, IF(K23="D*",Profile!F281, Profile!F282)))))) -> Weakness | V23: 1 | W23: 1 | X23: 0 | Y23: =Y24 -> 3
A24: =H3 -> Pefalia | B24: 6.1 | D24: Comp | E24: II | F24: =VLOOKUP(E24,Profile!A:B,2,FALSE) -> II-Transparency of public finances | G24: PI-6 | H24: =IFERROR(VLOOKUP(B24,Profile!A:B,2,FALSE),"") -> 6.1 Expenditure outside financial reports | I24: D* | J24: The information is incomplete and/or unavailable to rate the component. | K24: D | L24: Because donor funded expenditure is not reported in annual financial statements, more than 10% of budget expenditures are not included in annual financial statements of the Consolidated fund account. | N24: No | O24: =IFERROR(IF(TRIM(CLEAN(I24))="A",4)+IF(TRIM(CLEAN(I24))="B+",3.5)+IF(TRIM(CLEAN(I24))="B",3)+IF(TRIM(CLEAN(I24))="C+",2.5)+IF(TRIM(CLEAN(I24))="C",2)+IF(TRIM(CLEAN(I24))="D+",1.5)+IF(TRIM(CLEAN(I24))="D",1)+IF(TRIM(CLEAN(I24))="D*",1)+IF(TRIM(CLEAN(I24))="NU",0)+IF(TRIM(CLEAN(I24))="NA",0),"") -> 1 | P24: =O24 -> 1 | Q24: =IFERROR(IF(TRIM(CLEAN(K24))="A",4)+IF(TRIM(CLEAN(K24))="B+",3.5)+IF(TRIM(CLEAN(K24))="B",3)+IF(TRIM(CLEAN(K24))="C+",2.5)+IF(TRIM(CLEAN(K24))="C",2)+IF(TRIM(CLEAN(K24))="D+",1.5)+IF(TRIM(CLEAN(K24))="D",1)+IF(TRIM(CLEAN(K24))="D*",1)+IF(TRIM(CLEAN(K24))="NU",0)+IF(TRIM(CLEAN(K24))="NA",0),"") -> 1 | R24: =Q24 -> 1 | S24: =IFERROR(IF(N24=Profile!$E$250,IF(R24-P24<0,"-",IF(R24-P24>0,"+"," =")),"N.C."),"") -> N.C. | T24: =IF(K24="D",Profile!F276, IF(K24="D+",Profile!F276, IF(K24="D*",Profile!F276, IF(K24="C",Profile!F277, IF(K24="C+",Profile!F278, IF(K24="B",Profile!F278, IF(K24="B+",Profile!F279, IF(K24="A",Profile!F279,"")))))))) -> 1. Below basic | U24: =IF(K24="A",Profile!F280, IF(K24="B+",Profile!F280, IF(K24="B",Profile!F280, IF(K24="D+",Profile!F281, IF(K24="D",Profile!F281, IF(K24="D*",Profile!F281, Profile!F282)))))) -> Weakness | V24: 1 | W24: 1 | X24: 0 | Y24: 3
A25: =H3 -> Pefalia | B25: 6.2 | D25: Comp | E25: II | F25: =VLOOKUP(E25,Profile!A:B,2,FALSE) -> II-Transparency of public finances | G25: PI-6 | H25: =IFERROR(VLOOKUP(B25,Profile!A:B,2,FALSE),"") -> 6.2 Revenue outside financial reports | I25: D | J25: Revenues not recorded in central government financial statements exceed 10% of total central government revenues | K25: D | L25: For the reason above, revenue outside government financial reports is more than 10% of total revenue. | N25: Yes | O25: =IFERROR(IF(TRIM(CLEAN(I25))="A",4)+IF(TRIM(CLEAN(I25))="B+",3.5)+IF(TRIM(CLEAN(I25))="B",3)+IF(TRIM(CLEAN(I25))="C+",2.5)+IF(TRIM(CLEAN(I25))="C",2)+IF(TRIM(CLEAN(I25))="D+",1.5)+IF(TRIM(CLEAN(I25))="D",1)+IF(TRIM(CLEAN(I25))="D*",1)+IF(TRIM(CLEAN(I25))="NU",0)+IF(TRIM(CLEAN(I25))="NA",0),"") -> 1 | P25: 1 | Q25: =IFERROR(IF(TRIM(CLEAN(K25))="A",4)+IF(TRIM(CLEAN(K25))="B+",3.5)+IF(TRIM(CLEAN(K25))="B",3)+IF(TRIM(CLEAN(K25))="C+",2.5)+IF(TRIM(CLEAN(K25))="C",2)+IF(TRIM(CLEAN(K25))="D+",1.5)+IF(TRIM(CLEAN(K25))="D",1)+IF(TRIM(CLEAN(K25))="D*",1)+IF(TRIM(CLEAN(K25))="NU",0)+IF(TRIM(CLEAN(K25))="NA",0),"") -> 1 | R25: 1 | S25: =IFERROR(IF(N25=Profile!$E$250,IF(R25-P25<0,"-",IF(R25-P25>0,"+"," =")),"N.C."),"") -> = | T25: =IF(K25="D",Profile!F276, IF(K25="D+",Profile!F276, IF(K25="D*",Profile!F276, IF(K25="C",Profile!F277, IF(K25="C+",Profile!F278, IF(K25="B",Profile!F278, IF(K25="B+",Profile!F279, IF(K25="A",Profile!F279,"")))))))) -> 1. Below basic | U25: =IF(K25="A",Profile!F280, IF(K25="B+",Profile!F280, IF(K25="B",Profile!F280, IF(K25="D+",Profile!F281, IF(K25="D",Profile!F281, IF(K25="D*",Profile!F281, Profile!F282)))))) -> Weakness | V25: 1 | W25: 1 | X25: 0 | Y25: 3
A26: =H3 -> Pefalia | B26: 6.3 | D26: Comp | E26: II | F26: =VLOOKUP(E26,Profile!A:B,2,FALSE) -> II-Transparency of public finances | G26: PI-6 | H26: =IFERROR(VLOOKUP(B26,Profile!A:B,2,FALSE),"") -> 6.3 Financial reports of extrabudgetary units | I26: D | J26: Only some EPAs and similar bodies submit detailed financial statements to MINFI once a year. | K26: B | L26: Because projects expenditure eternally funded are reported annually, detailed financial reports of most of extrabudgetary expenditures are submitted to government. | N26: Yes | O26: =IFERROR(IF(TRIM(CLEAN(I26))="A",4)+IF(TRIM(CLEAN(I26))="B+",3.5)+IF(TRIM(CLEAN(I26))="B",3)+IF(TRIM(CLEAN(I26))="C+",2.5)+IF(TRIM(CLEAN(I26))="C",2)+IF(TRIM(CLEAN(I26))="D+",1.5)+IF(TRIM(CLEAN(I26))="D",1)+IF(TRIM(CLEAN(I26))="D*",1)+IF(TRIM(CLEAN(I26))="NU",0)+IF(TRIM(CLEAN(I26))="NA",0),"") -> 1 | P26: 1 | Q26: =IFERROR(IF(TRIM(CLEAN(K26))="A",4)+IF(TRIM(CLEAN(K26))="B+",3.5)+IF(TRIM(CLEAN(K26))="B",3)+IF(TRIM(CLEAN(K26))="C+",2.5)+IF(TRIM(CLEAN(K26))="C",2)+IF(TRIM(CLEAN(K26))="D+",1.5)+IF(TRIM(CLEAN(K26))="D",1)+IF(TRIM(CLEAN(K26))="D*",1)+IF(TRIM(CLEAN(K26))="NU",0)+IF(TRIM(CLEAN(K26))="NA",0),"") -> 3 | R26: 3 | S26: =IFERROR(IF(N26=Profile!$E$250,IF(R26-P26<0,"-",IF(R26-P26>0,"+"," =")),"N.C."),"") -> + | T26: =IF(K26="D",Profile!F276, IF(K26="D+",Profile!F276, IF(K26="D*",Profile!F276, IF(K26="C",Profile!F277, IF(K26="C+",Profile!F278, IF(K26="B",Profile!F278, IF(K26="B+",Profile!F279, IF(K26="A",Profile!F279,"")))))))) -> 3. Sound | U26: =IF(K26="A",Profile!F280, IF(K26="B+",Profile!F280, IF(K26="B",Profile!F280, IF(K26="D+",Profile!F281, IF(K26="D",Profile!F281, IF(K26="D*",Profile!F281, Profile!F282)))))) -> Strength | V26: 1 | W26: 1 | X26: 0 | Y26: 3
A27: =H3 -> Pefalia | B27: PI-7 | C27: M2 | D27: Indic | E27: II | F27: =VLOOKUP(E27,Profile!A:B,2,FALSE) -> II-Transparency of public finances | G27: PI-7 | H27: =IFERROR(VLOOKUP(B27,Profile!A:B,2,FALSE),"") -> PI-7 Transfers to subnational governments | I27: =IF(COUNTIFS($D:$D,"Comp",$G:$G,$G27)=COUNTIFS($D:$D,"Comp",$G:$G,$G27,I:I,"=NU"),"NU", IF(COUNTIFS($D:$D,"Comp",$G:$G,$G27)=COUNTIFS($D:$D,"Comp",$G:$G,$G27,I:I,"=NA")+COUNTIFS($D:$D,"Comp",$G:$G,$G27,I:I,"=NU"),"NA", IF(O27>3.65,"A", IF(O27>=3.25,"B+", IF(O27>2.65,"B", IF(O27>=2.25,"C+", IF(O27>1.75,"C", IF(O27>1.25,"D+", IF(AND(O27<=1.25,O27>0),"D", "" ))))))))) -> C | K27: =IF(COUNTIFS($D:$D,"Comp",$G:$G,$G27)=COUNTIFS($D:$D,"Comp",$G:$G,$G27,K:K,"=NU"),"NU", IF(COUNTIFS($D:$D,"Comp",$G:$G,$G27)=COUNTIFS($D:$D,"Comp",$G:$G,$G27,K:K,"=NA")+COUNTIFS($D:$D,"Comp",$G:$G,$G27,K:K,"=NU"),"NA", IF(Q27>3.65,"A", IF(Q27>=3.25,"B+", IF(Q27>2.65,"B", IF(Q27>=2.25,"C+", IF(Q27>1.75,"C", IF(Q27>1.25,"D+", IF(AND(Q27<=1.25,Q27>0),"D", "" ))))))))) -> D+ | N27: =IF(AND(N28=Profile!E250,N29=Profile!E250),Profile!E250,Profile!E251) -> Yes | O27: =IFERROR( (IF($C27="M1", IF(ROUND(AVERAGEIFS(O:O,$G:$G,$G27,$D:$D,"Comp",$O:$O,">0"),1)=ROUND(_xlfn.MINIFS(O:O,$G:$G,$G27,$D:$D,"Comp",$O:$O,">0"),1), AVERAGEIFS(O:O,$G:$G,$G27,$D:$D,"Comp",$O:$O,">0"),_xlfn.MINIFS(O:O,$G:$G,$G27,$D:$D,"Comp",$O:$O,">0")+0.5), AVERAGEIFS(O:O,$G:$G,$G27,$D:$D,"Comp",$O:$O,">0"))), 0) -> 2 | P27: =IF(I27="D",1, IF(I27="D*",1, IF(I27="D+",1.5, IF(I27="C",2, IF(I27="C+",2.5, IF(I27="B",3, IF(I27="B+",3.5, IF(I27="A",4, )))))))) -> 2 | Q27: =IFERROR( (IF($C27="M1", IF(ROUND(AVERAGEIFS(Q:Q,$G:$G,$G27,$D:$D,"Comp",$Q:$Q,">0"),1)=ROUND(_xlfn.MINIFS(Q:Q,$G:$G,$G27,$D:$D,"Comp",$Q:$Q,">0"),1), AVERAGEIFS(Q:Q,$G:$G,$G27,$D:$D,"Comp",$Q:$Q,">0"),_xlfn.MINIFS(Q:Q,$G:$G,$G27,$D:$D,"Comp",$Q:$Q,">0")+0.5), AVERAGEIFS(Q:Q,$G:$G,$G27,$D:$D,"Comp",$Q:$Q,">0"))), 0) -> 1.5 | R27: 1.5 | S27: =IFERROR(IF(N27=Profile!$E$250,IF(R27-P27<0,"-",IF(R27-P27>0,"+"," =")),"N.C."),"") -> - | T27: =IF(K27="D",Profile!F276, IF(K27="D+",Profile!F276, IF(K27="D*",Profile!F276, IF(K27="C",Profile!F277, IF(K27="C+",Profile!F278, IF(K27="B",Profile!F278, IF(K27="B+",Profile!F279, IF(K27="A",Profile!F279,"")))))))) -> 1. Below basic | U27: =IF(K27="A",Profile!F280, IF(K27="B+",Profile!F280, IF(K27="B",Profile!F280, IF(K27="D+",Profile!F281, IF(K27="D",Profile!F281, IF(K27="D*",Profile!F281, Profile!F282)))))) -> Weakness | V27: 0 | W27: 1 | X27: 1 | Y27: =Y28 -> 2
A28: =H3 -> Pefalia | B28: 7.1 | D28: Comp | E28: II | F28: =VLOOKUP(E28,Profile!A:B,2,FALSE) -> II-Transparency of public finances | G28: PI-7 | H28: =IFERROR(VLOOKUP(B28,Profile!A:B,2,FALSE),"") -> 7.1 System for allocating transfers | I28: B | J28: Most transfers from central government to CTDs are determined by transparent rules and mechanisms | K28: D | L28: Horizontal allocation of some transfers to Counties and Districts from central government is not determined by transparent, rule-based systems. | N28: Yes | O28: =IFERROR(IF(TRIM(CLEAN(I28))="A",4)+IF(TRIM(CLEAN(I28))="B+",3.5)+IF(TRIM(CLEAN(I28))="B",3)+IF(TRIM(CLEAN(I28))="C+",2.5)+IF(TRIM(CLEAN(I28))="C",2)+IF(TRIM(CLEAN(I28))="D+",1.5)+IF(TRIM(CLEAN(I28))="D",1)+IF(TRIM(CLEAN(I28))="D*",1)+IF(TRIM(CLEAN(I28))="NU",0)+IF(TRIM(CLEAN(I28))="NA",0),"") -> 3 | P28: =O28 -> 3 | Q28: =IFERROR(IF(TRIM(CLEAN(K28))="A",4)+IF(TRIM(CLEAN(K28))="B+",3.5)+IF(TRIM(CLEAN(K28))="B",3)+IF(TRIM(CLEAN(K28))="C+",2.5)+IF(TRIM(CLEAN(K28))="C",2)+IF(TRIM(CLEAN(K28))="D+",1.5)+IF(TRIM(CLEAN(K28))="D",1)+IF(TRIM(CLEAN(K28))="D*",1)+IF(TRIM(CLEAN(K28))="NU",0)+IF(TRIM(CLEAN(K28))="NA",0),"") -> 1 | R28: =Q28 -> 1 | S28: =IFERROR(IF(N28=Profile!$E$250,IF(R28-P28<0,"-",IF(R28-P28>0,"+"," =")),"N.C."),"") -> - | T28: =IF(K28="D",Profile!F276, IF(K28="D+",Profile!F276, IF(K28="D*",Profile!F276, IF(K28="C",Profile!F277, IF(K28="C+",Profile!F278, IF(K28="B",Profile!F278, IF(K28="B+",Profile!F279, IF(K28="A",Profile!F279,"")))))))) -> 1. Below basic | U28: =IF(K28="A",Profile!F280, IF(K28="B+",Profile!F280, IF(K28="B",Profile!F280, IF(K28="D+",Profile!F281, IF(K28="D",Profile!F281, IF(K28="D*",Profile!F281, Profile!F282)))))) -> Weakness | V28: 0 | W28: 1 | X28: 1 | Y28: 2
A29: =H3 -> Pefalia | B29: 7.2 | D29: Comp | E29: II | F29: =VLOOKUP(E29,Profile!A:B,2,FALSE) -> II-Transparency of public finances | G29: PI-7 | H29: =IFERROR(VLOOKUP(B29,Profile!A:B,2,FALSE),"") -> 7.2 Timeliness of information on transfers | I29: D | J29: Budgetary procedures are subject to delays, and information on transfers is not communicated to CTDs before the start of the financial year. | K29: C | L29: Counties and districts receive information on annual transfers from national governments usually when the proposed budget is published on the Ministry of Finance website. | N29: Yes | O29: =IFERROR(IF(TRIM(CLEAN(I29))="A",4)+IF(TRIM(CLEAN(I29))="B+",3.5)+IF(TRIM(CLEAN(I29))="B",3)+IF(TRIM(CLEAN(I29))="C+",2.5)+IF(TRIM(CLEAN(I29))="C",2)+IF(TRIM(CLEAN(I29))="D+",1.5)+IF(TRIM(CLEAN(I29))="D",1)+IF(TRIM(CLEAN(I29))="D*",1)+IF(TRIM(CLEAN(I29))="NU",0)+IF(TRIM(CLEAN(I29))="NA",0),"") -> 1 | P29: 1 | Q29: =IFERROR(IF(TRIM(CLEAN(K29))="A",4)+IF(TRIM(CLEAN(K29))="B+",3.5)+IF(TRIM(CLEAN(K29))="B",3)+IF(TRIM(CLEAN(K29))="C+",2.5)+IF(TRIM(CLEAN(K29))="C",2)+IF(TRIM(CLEAN(K29))="D+",1.5)+IF(TRIM(CLEAN(K29))="D",1)+IF(TRIM(CLEAN(K29))="D*",1)+IF(TRIM(CLEAN(K29))="NU",0)+IF(TRIM(CLEAN(K29))="NA",0),"") -> 2 | R29: 2 | S29: =IFERROR(IF(N29=Profile!$E$250,IF(R29-P29<0,"-",IF(R29-P29>0,"+"," =")),"N.C."),"") -> + | T29: =IF(K29="D",Profile!F276, IF(K29="D+",Profile!F276, IF(K29="D*",Profile!F276, IF(K29="C",Profile!F277, IF(K29="C+",Profile!F278, IF(K29="B",Profile!F278, IF(K29="B+",Profile!F279, IF(K29="A",Profile!F279,"")))))))) -> 2. Basic | U29: =IF(K29="A",Profile!F280, IF(K29="B+",Profile!F280, IF(K29="B",Profile!F280, IF(K29="D+",Profile!F281, IF(K29="D",Profile!F281, IF(K29="D*",Profile!F281, Profile!F282)))))) -> Average | V29: 0 | W29: 1 | X29: 1 | Y29: 2
A30: =H3 -> Pefalia | B30: PI-8 | C30: M2 | D30: Indic | E30: II | F30: =VLOOKUP(E30,Profile!A:B,2,FALSE) -> II-Transparency of public finances | G30: PI-8 | H30: =IFERROR(VLOOKUP(B30,Profile!A:B,2,FALSE),"") -> PI-8 Performance information for service delivery | I30: =IF(COUNTIFS($D:$D,"Comp",$G:$G,$G30)=COUNTIFS($D:$D,"Comp",$G:$G,$G30,I:I,"=NU"),"NU", IF(COUNTIFS($D:$D,"Comp",$G:$G,$G30)=COUNTIFS($D:$D,"Comp",$G:$G,$G30,I:I,"=NA")+COUNTIFS($D:$D,"Comp",$G:$G,$G30,I:I,"=NU"),"NA", IF(O30>3.65,"A", IF(O30>=3.25,"B+", IF(O30>2.65,"B", IF(O30>=2.25,"C+", IF(O30>1.75,"C", IF(O30>1.25,"D+", IF(AND(O30<=1.25,O30>0),"D", "" ))))))))) -> D | K30: =IF(COUNTIFS($D:$D,"Comp",$G:$G,$G30)=COUNTIFS($D:$D,"Comp",$G:$G,$G30,K:K,"=NU"),"NU", IF(COUNTIFS($D:$D,"Comp",$G:$G,$G30)=COUNTIFS($D:$D,"Comp",$G:$G,$G30,K:K,"=NA")+COUNTIFS($D:$D,"Comp",$G:$G,$G30,K:K,"=NU"),"NA", IF(Q30>3.65,"A", IF(Q30>=3.25,"B+", IF(Q30>2.65,"B", IF(Q30>=2.25,"C+", IF(Q30>1.75,"C", IF(Q30>1.25,"D+", IF(AND(Q30<=1.25,Q30>0),"D", "" ))))))))) -> D | N30: =IF(AND(N31=Profile!E250,N32=Profile!E250,N33=Profile!E250,N34=Profile!E250),Profile!E250,Profile!E251) -> Yes | O30: =IFERROR( (IF($C30="M1", IF(ROUND(AVERAGEIFS(O:O,$G:$G,$G30,$D:$D,"Comp",$O:$O,">0"),1)=ROUND(_xlfn.MINIFS(O:O,$G:$G,$G30,$D:$D,"Comp",$O:$O,">0"),1), AVERAGEIFS(O:O,$G:$G,$G30,$D:$D,"Comp",$O:$O,">0"),_xlfn.MINIFS(O:O,$G:$G,$G30,$D:$D,"Comp",$O:$O,">0")+0.5), AVERAGEIFS(O:O,$G:$G,$G30,$D:$D,"Comp",$O:$O,">0"))), 0) -> 1.25 | P30: =IF(I30="D",1, IF(I30="D*",1, IF(I30="D+",1.5, IF(I30="C",2, IF(I30="C+",2.5, IF(I30="B",3, IF(I30="B+",3.5, IF(I30="A",4, )))))))) -> 1 | Q30: =IFERROR( (IF($C30="M1", IF(ROUND(AVERAGEIFS(Q:Q,$G:$G,$G30,$D:$D,"Comp",$Q:$Q,">0"),1)=ROUND(_xlfn.MINIFS(Q:Q,$G:$G,$G30,$D:$D,"Comp",$Q:$Q,">0"),1), AVERAGEIFS(Q:Q,$G:$G,$G30,$D:$D,"Comp",$Q:$Q,">0"),_xlfn.MINIFS(Q:Q,$G:$G,$G30,$D:$D,"Comp",$Q:$Q,">0")+0.5), AVERAGEIFS(Q:Q,$G:$G,$G30,$D:$D,"Comp",$Q:$Q,">0"))), 0) -> 1 | R30: 1 | S30: =IFERROR(IF(N30=Profile!$E$250,IF(R30-P30<0,"-",IF(R30-P30>0,"+"," =")),"N.C."),"") -> = | T30: =IF(K30="D",Profile!F276, IF(K30="D+",Profile!F276, IF(K30="D*",Profile!F276, IF(K30="C",Profile!F277, IF(K30="C+",Profile!F278, IF(K30="B",Profile!F278, IF(K30="B+",Profile!F279, IF(K30="A",Profile!F279,"")))))))) -> 1. Below basic | U30: =IF(K30="A",Profile!F280, IF(K30="B+",Profile!F280, IF(K30="B",Profile!F280, IF(K30="D+",Profile!F281, IF(K30="D",Profile!F281, IF(K30="D*",Profile!F281, Profile!F282)))))) -> Weakness | V30: 0 | W30: 0 | X30: 1 | Y30: =Y31 -> 4
A31: =H3 -> Pefalia | B31: 8.1 | D31: Comp | E31: II | F31: =VLOOKUP(E31,Profile!A:B,2,FALSE) -> II-Transparency of public finances | G31: PI-8 | H31: =IFERROR(VLOOKUP(B31,Profile!A:B,2,FALSE),"") -> 8.1 Performance plans for service delivery | I31: C | J31: Documents setting out the objectives and performance indicators used to assess the results achieved and the products delivered are available for all ministries. These documents are not made public. | K31: D | L31: A framework of performance indicators relating to the outputs or outcomes is published by the Ministries of Education and Health, but they count together for less than 25% of the budget. | N31: Yes | O31: =IFERROR(IF(TRIM(CLEAN(I31))="A",4)+IF(TRIM(CLEAN(I31))="B+",3.5)+IF(TRIM(CLEAN(I31))="B",3)+IF(TRIM(CLEAN(I31))="C+",2.5)+IF(TRIM(CLEAN(I31))="C",2)+IF(TRIM(CLEAN(I31))="D+",1.5)+IF(TRIM(CLEAN(I31))="D",1)+IF(TRIM(CLEAN(I31))="D*",1)+IF(TRIM(CLEAN(I31))="NU",0)+IF(TRIM(CLEAN(I31))="NA",0),"") -> 2 | P31: =O31 -> 2 | Q31: =IFERROR(IF(TRIM(CLEAN(K31))="A",4)+IF(TRIM(CLEAN(K31))="B+",3.5)+IF(TRIM(CLEAN(K31))="B",3)+IF(TRIM(CLEAN(K31))="C+",2.5)+IF(TRIM(CLEAN(K31))="C",2)+IF(TRIM(CLEAN(K31))="D+",1.5)+IF(TRIM(CLEAN(K31))="D",1)+IF(TRIM(CLEAN(K31))="D*",1)+IF(TRIM(CLEAN(K31))="NU",0)+IF(TRIM(CLEAN(K31))="NA",0),"") -> 1 | R31: =Q31 -> 1 | S31: =IFERROR(IF(N31=Profile!$E$250,IF(R31-P31<0,"-",IF(R31-P31>0,"+"," =")),"N.C."),"") -> - | T31: =IF(K31="D",Profile!F276, IF(K31="D+",Profile!F276, IF(K31="D*",Profile!F276, IF(K31="C",Profile!F277, IF(K31="C+",Profile!F278, IF(K31="B",Profile!F278, IF(K31="B+",Profile!F279, IF(K31="A",Profile!F279,"")))))))) -> 1. Below basic | U31: =IF(K31="A",Profile!F280, IF(K31="B+",Profile!F280, IF(K31="B",Profile!F280, IF(K31="D+",Profile!F281, IF(K31="D",Profile!F281, IF(K31="D*",Profile!F281, Profile!F282)))))) -> Weakness | V31: 0 | W31: 0 | X31: 1 | Y31: 4
A32: =H3 -> Pefalia | B32: 8.2 | D32: Comp | E32: II | F32: =VLOOKUP(E32,Profile!A:B,2,FALSE) -> II-Transparency of public finances | G32: PI-8 | H32: =IFERROR(VLOOKUP(B32,Profile!A:B,2,FALSE),"") -> 8.2 Performance achieved for service delivery | I32: D | J32: Annual information on the results of services or products provided is prepared annually by all departments, but is not made public. | K32: D | L32: Ministries and agencies do not use to publish an annual performance report or any comparable report. | N32: Yes | O32: =IFERROR(IF(TRIM(CLEAN(I32))="A",4)+IF(TRIM(CLEAN(I32))="B+",3.5)+IF(TRIM(CLEAN(I32))="B",3)+IF(TRIM(CLEAN(I32))="C+",2.5)+IF(TRIM(CLEAN(I32))="C",2)+IF(TRIM(CLEAN(I32))="D+",1.5)+IF(TRIM(CLEAN(I32))="D",1)+IF(TRIM(CLEAN(I32))="D*",1)+IF(TRIM(CLEAN(I32))="NU",0)+IF(TRIM(CLEAN(I32))="NA",0),"") -> 1 | P32: 1 | Q32: =IFERROR(IF(TRIM(CLEAN(K32))="A",4)+IF(TRIM(CLEAN(K32))="B+",3.5)+IF(TRIM(CLEAN(K32))="B",3)+IF(TRIM(CLEAN(K32))="C+",2.5)+IF(TRIM(CLEAN(K32))="C",2)+IF(TRIM(CLEAN(K32))="D+",1.5)+IF(TRIM(CLEAN(K32))="D",1)+IF(TRIM(CLEAN(K32))="D*",1)+IF(TRIM(CLEAN(K32))="NU",0)+IF(TRIM(CLEAN(K32))="NA",0),"") -> 1 | R32: 1 | S32: =IFERROR(IF(N32=Profile!$E$250,IF(R32-P32<0,"-",IF(R32-P32>0,"+"," =")),"N.C."),"") -> = | T32: =IF(K32="D",Profile!F276, IF(K32="D+",Profile!F276, IF(K32="D*",Profile!F276, IF(K32="C",Profile!F277, IF(K32="C+",Profile!F278, IF(K32="B",Profile!F278, IF(K32="B+",Profile!F279, IF(K32="A",Profile!F279,"")))))))) -> 1. Below basic | U32: =IF(K32="A",Profile!F280, IF(K32="B+",Profile!F280, IF(K32="B",Profile!F280, IF(K32="D+",Profile!F281, IF(K32="D",Profile!F281, IF(K32="D*",Profile!F281, Profile!F282)))))) -> Weakness | V32: 0 | W32: 0 | X32: 1 | Y32: 4
A33: =H3 -> Pefalia | B33: 8.3 | D33: Comp | E33: II | F33: =VLOOKUP(E33,Profile!A:B,2,FALSE) -> II-Transparency of public finances | G33: PI-8 | H33: =IFERROR(VLOOKUP(B33,Profile!A:B,2,FALSE),"") -> 8.3 Resources received by service delivery units | I33: D | J33: No surveys have been carried out over the past three years to provide estimates of the resources received by service delivery units. | K33: D* | L33: No documentation was provided showing that surveys were conducted on estimates of resources received by service delivery units for at least one major department. | N33: Yes | O33: =IFERROR(IF(TRIM(CLEAN(I33))="A",4)+IF(TRIM(CLEAN(I33))="B+",3.5)+IF(TRIM(CLEAN(I33))="B",3)+IF(TRIM(CLEAN(I33))="C+",2.5)+IF(TRIM(CLEAN(I33))="C",2)+IF(TRIM(CLEAN(I33))="D+",1.5)+IF(TRIM(CLEAN(I33))="D",1)+IF(TRIM(CLEAN(I33))="D*",1)+IF(TRIM(CLEAN(I33))="NU",0)+IF(TRIM(CLEAN(I33))="NA",0),"") -> 1 | P33: 1 | Q33: =IFERROR(IF(TRIM(CLEAN(K33))="A",4)+IF(TRIM(CLEAN(K33))="B+",3.5)+IF(TRIM(CLEAN(K33))="B",3)+IF(TRIM(CLEAN(K33))="C+",2.5)+IF(TRIM(CLEAN(K33))="C",2)+IF(TRIM(CLEAN(K33))="D+",1.5)+IF(TRIM(CLEAN(K33))="D",1)+IF(TRIM(CLEAN(K33))="D*",1)+IF(TRIM(CLEAN(K33))="NU",0)+IF(TRIM(CLEAN(K33))="NA",0),"") -> 1 | R33: 1 | S33: =IFERROR(IF(N33=Profile!$E$250,IF(R33-P33<0,"-",IF(R33-P33>0,"+"," =")),"N.C."),"") -> = | T33: =IF(K33="D",Profile!F276, IF(K33="D+",Profile!F276, IF(K33="D*",Profile!F276, IF(K33="C",Profile!F277, IF(K33="C+",Profile!F278, IF(K33="B",Profile!F278, IF(K33="B+",Profile!F279, IF(K33="A",Profile!F279,"")))))))) -> 1. Below basic | U33: =IF(K33="A",Profile!F280, IF(K33="B+",Profile!F280, IF(K33="B",Profile!F280, IF(K33="D+",Profile!F281, IF(K33="D",Profile!F281, IF(K33="D*",Profile!F281, Profile!F282)))))) -> Weakness | V33: 0 | W33: 0 | X33: 1 | Y33: 4
A34: =H3 -> Pefalia | B34: 8.4 | D34: Comp | E34: II | F34: =VLOOKUP(E34,Profile!A:B,2,FALSE) -> II-Transparency of public finances | G34: PI-8 | H34: =IFERROR(VLOOKUP(B34,Profile!A:B,2,FALSE),"") -> 8.4 Performance evaluation for service delivery | I34: D | J34: No evaluation of the performance of the services provided has been carried out and published in the last three financial years. | K34: D | L34: Evaluation of the efficiency or effectiveness of service was carried by the M&E Unit at the Ministry of Finance, but this unit counts for less than 25% of the budget and is not required to publish the results. | N34: Yes | O34: =IFERROR(IF(TRIM(CLEAN(I34))="A",4)+IF(TRIM(CLEAN(I34))="B+",3.5)+IF(TRIM(CLEAN(I34))="B",3)+IF(TRIM(CLEAN(I34))="C+",2.5)+IF(TRIM(CLEAN(I34))="C",2)+IF(TRIM(CLEAN(I34))="D+",1.5)+IF(TRIM(CLEAN(I34))="D",1)+IF(TRIM(CLEAN(I34))="D*",1)+IF(TRIM(CLEAN(I34))="NU",0)+IF(TRIM(CLEAN(I34))="NA",0),"") -> 1 | P34: 1 | Q34: =IFERROR(IF(TRIM(CLEAN(K34))="A",4)+IF(TRIM(CLEAN(K34))="B+",3.5)+IF(TRIM(CLEAN(K34))="B",3)+IF(TRIM(CLEAN(K34))="C+",2.5)+IF(TRIM(CLEAN(K34))="C",2)+IF(TRIM(CLEAN(K34))="D+",1.5)+IF(TRIM(CLEAN(K34))="D",1)+IF(TRIM(CLEAN(K34))="D*",1)+IF(TRIM(CLEAN(K34))="NU",0)+IF(TRIM(CLEAN(K34))="NA",0),"") -> 1 | R34: 1 | S34: =IFERROR(IF(N34=Profile!$E$250,IF(R34-P34<0,"-",IF(R34-P34>0,"+"," =")),"N.C."),"") -> = | T34: =IF(K34="D",Profile!F276, IF(K34="D+",Profile!F276, IF(K34="D*",Profile!F276, IF(K34="C",Profile!F277, IF(K34="C+",Profile!F278, IF(K34="B",Profile!F278, IF(K34="B+",Profile!F279, IF(K34="A",Profile!F279,"")))))))) -> 1. Below basic | U34: =IF(K34="A",Profile!F280, IF(K34="B+",Profile!F280, IF(K34="B",Profile!F280, IF(K34="D+",Profile!F281, IF(K34="D",Profile!F281, IF(K34="D*",Profile!F281, Profile!F282)))))) -> Weakness | V34: 0 | W34: 0 | X34: 1 | Y34: 4
A35: =H3 -> Pefalia | B35: PI-9 | C35: M1 | D35: Indic | E35: II | F35: =VLOOKUP(E35,Profile!A:B,2,FALSE) -> II-Transparency of public finances | G35: PI-9 | H35: =IFERROR(VLOOKUP(B35,Profile!A:B,2,FALSE),"") -> PI-9 Public access to fiscal information | I35: =IF(COUNTIFS($D:$D,"Comp",$G:$G,$G35)=COUNTIFS($D:$D,"Comp",$G:$G,$G35,I:I,"=NU"),"NU", IF(COUNTIFS($D:$D,"Comp",$G:$G,$G35)=COUNTIFS($D:$D,"Comp",$G:$G,$G35,I:I,"=NA")+COUNTIFS($D:$D,"Comp",$G:$G,$G35,I:I,"=NU"),"NA", IF(O35>3.65,"A", IF(O35>=3.25,"B+", IF(O35>2.65,"B", IF(O35>=2.25,"C+", IF(O35>1.75,"C", IF(O35>1.25,"D+", IF(AND(O35<=1.25,O35>0),"D", "" ))))))))) -> D | K35: =IF(COUNTIFS($D:$D,"Comp",$G:$G,$G35)=COUNTIFS($D:$D,"Comp",$G:$G,$G35,K:K,"=NU"),"NU", IF(COUNTIFS($D:$D,"Comp",$G:$G,$G35)=COUNTIFS($D:$D,"Comp",$G:$G,$G35,K:K,"=NA")+COUNTIFS($D:$D,"Comp",$G:$G,$G35,K:K,"=NU"),"NA", IF(Q35>3.65,"A", IF(Q35>=3.25,"B+", IF(Q35>2.65,"B", IF(Q35>=2.25,"C+", IF(Q35>1.75,"C", IF(Q35>1.25,"D+", IF(AND(Q35<=1.25,Q35>0),"D", "" ))))))))) -> D | N35: =N36 -> No | O35: =IFERROR( (IF($C35="M1", IF(ROUND(AVERAGEIFS(O:O,$G:$G,$G35,$D:$D,"Comp",$O:$O,">0"),1)=ROUND(_xlfn.MINIFS(O:O,$G:$G,$G35,$D:$D,"Comp",$O:$O,">0"),1), AVERAGEIFS(O:O,$G:$G,$G35,$D:$D,"Comp",$O:$O,">0"),_xlfn.MINIFS(O:O,$G:$G,$G35,$D:$D,"Comp",$O:$O,">0")+0.5), AVERAGEIFS(O:O,$G:$G,$G35,$D:$D,"Comp",$O:$O,">0"))), 0) -> 1 | P35: =IF(I35="D",1, IF(I35="D*",1, IF(I35="D+",1.5, IF(I35="C",2, IF(I35="C+",2.5, IF(I35="B",3, IF(I35="B+",3.5, IF(I35="A",4, )))))))) -> 1 | Q35: =IFERROR( (IF($C35="M1", IF(ROUND(AVERAGEIFS(Q:Q,$G:$G,$G35,$D:$D,"Comp",$Q:$Q,">0"),1)=ROUND(_xlfn.MINIFS(Q:Q,$G:$G,$G35,$D:$D,"Comp",$Q:$Q,">0"),1), AVERAGEIFS(Q:Q,$G:$G,$G35,$D:$D,"Comp",$Q:$Q,">0"),_xlfn.MINIFS(Q:Q,$G:$G,$G35,$D:$D,"Comp",$Q:$Q,">0")+0.5), AVERAGEIFS(Q:Q,$G:$G,$G35,$D:$D,"Comp",$Q:$Q,">0"))), 0) -> 1 | R35: 1 | S35: =IFERROR(IF(N35=Profile!$E$250,IF(R35-P35<0,"-",IF(R35-P35>0,"+"," =")),"N.C."),"") -> N.C. | T35: =IF(K35="D",Profile!F276, IF(K35="D+",Profile!F276, IF(K35="D*",Profile!F276, IF(K35="C",Profile!F277, IF(K35="C+",Profile!F278, IF(K35="B",Profile!F278, IF(K35="B+",Profile!F279, IF(K35="A",Profile!F279,"")))))))) -> 1. Below basic | U35: =IF(K35="A",Profile!F280, IF(K35="B+",Profile!F280, IF(K35="B",Profile!F280, IF(K35="D+",Profile!F281, IF(K35="D",Profile!F281, IF(K35="D*",Profile!F281, Profile!F282)))))) -> Weakness | V35: 0 | W35: 0 | X35: 1 | Y35: =Y36 -> 1
A36: =H3 -> Pefalia | B36: 9.1 | D36: Comp | E36: II | F36: =VLOOKUP(E36,Profile!A:B,2,FALSE) -> II-Transparency of public finances | G36: PI-9 | H36: =IFERROR(VLOOKUP(B36,Profile!A:B,2,FALSE),"") -> 9.1 Public access to fiscal information | I36: D | J36: The government does not make all four basic elements or additional elements available to the public | K36: D | L36: Only Annual Budget Execution Report and Audit Reports from the General Auditor were timely made available to the public. | N36: No | O36: =IFERROR(IF(TRIM(CLEAN(I36))="A",4)+IF(TRIM(CLEAN(I36))="B+",3.5)+IF(TRIM(CLEAN(I36))="B",3)+IF(TRIM(CLEAN(I36))="C+",2.5)+IF(TRIM(CLEAN(I36))="C",2)+IF(TRIM(CLEAN(I36))="D+",1.5)+IF(TRIM(CLEAN(I36))="D",1)+IF(TRIM(CLEAN(I36))="D*",1)+IF(TRIM(CLEAN(I36))="NU",0)+IF(TRIM(CLEAN(I36))="NA",0),"") -> 1 | P36: =O36 -> 1 | Q36: =IFERROR(IF(TRIM(CLEAN(K36))="A",4)+IF(TRIM(CLEAN(K36))="B+",3.5)+IF(TRIM(CLEAN(K36))="B",3)+IF(TRIM(CLEAN(K36))="C+",2.5)+IF(TRIM(CLEAN(K36))="C",2)+IF(TRIM(CLEAN(K36))="D+",1.5)+IF(TRIM(CLEAN(K36))="D",1)+IF(TRIM(CLEAN(K36))="D*",1)+IF(TRIM(CLEAN(K36))="NU",0)+IF(TRIM(CLEAN(K36))="NA",0),"") -> 1 | R36: =Q36 -> 1 | S36: =IFERROR(IF(N36=Profile!$E$250,IF(R36-P36<0,"-",IF(R36-P36>0,"+"," =")),"N.C."),"") -> N.C. | T36: =IF(K36="D",Profile!F276, IF(K36="D+",Profile!F276, IF(K36="D*",Profile!F276, IF(K36="C",Profile!F277, IF(K36="C+",Profile!F278, IF(K36="B",Profile!F278, IF(K36="B+",Profile!F279, IF(K36="A",Profile!F279,"")))))))) -> 1. Below basic | U36: =IF(K36="A",Profile!F280, IF(K36="B+",Profile!F280, IF(K36="B",Profile!F280, IF(K36="D+",Profile!F281, IF(K36="D",Profile!F281, IF(K36="D*",Profile!F281, Profile!F282)))))) -> Weakness | V36: 0 | W36: 0 | X36: 1 | Y36: 1
A37: =H3 -> Pefalia | B37: III | D37: Pilar | E37: III | F37: =VLOOKUP(E37,Profile!A:B,2,FALSE) -> III-Management of assets and liabilities | H37: =IFERROR(VLOOKUP(B37,Profile!A:B,2,FALSE),"") -> III-Management of assets and liabilities | I37: =IF(COUNTIFS($D:$D,"Indic",$E:$E,$E37)=COUNTIFS($D:$D,"Indic",$E:$E,$E37,$I:$I,"=NU"),"NU", IF(COUNTIFS($D:$D,"Indic",$E:$E,$E37)=COUNTIFS($D:$D,"Indic",$E:$E,C38,$I:$I,"=NA"),"NA", IF(O37>3.65,"A", IF(O37>=3.25,"B+", IF(O37>2.65,"B", IF(O37>=2.25,"C+", IF(O37>1.75,"C", IF(O37>1.25,"D+", IF(AND(O37<=1.25,O37>0),"D", "" ))))))))) -> D | K37: =IF(COUNTIFS($D:$D,"Indic",$E:$E,E37)=COUNTIFS($D:$D,"Indic",$E:$E,E38,$K:$K,"=NU"),"NU", IF(COUNTIFS($D:$D,"Indic",$E:$E,E37)=COUNTIFS($D:$D,"Indic",$E:$E,E38,$K:$K,"=NA"),"NA", IF(Q37>3.65,"A", IF(Q37>=3.25,"B+", IF(Q37>2.65,"B", IF(Q37>=2.25,"C+", IF(Q37>1.75,"C", IF(Q37>1.25,"D+", IF(AND(Q37<=1.25,Q37>0),"D", "" ))))))))) -> C | N37: =IF(COUNTIFS(N38:N54,Profile!$E$250)=17,Profile!$E$250,Profile!$E$251) -> No | O37: =AVERAGEIFS(O:O,$D:$D,"Indic",$E:$E,$E37,O:O,">0") -> 1 | P37: =IF(I37="D",1, IF(I37="D*",1, IF(I37="D+",1.5, IF(I37="C",2, IF(I37="C+",2.5, IF(I37="B",3, IF(I37="B+",3.5, IF(I37="A",4, )))))))) -> 1 | Q37: =AVERAGEIFS(Q:Q,$D:$D,"Indic",$E:$E,$E37,Q:Q,">0") -> 1.9375 | R37: 2 | S37: =IFERROR(IF(N37=Profile!$E$250,IF(R37-P37<0,"-",IF(R37-P37>0,"+"," =")),"N.C."),"") -> N.C. | T37: =IF(K37="D",Profile!F276, IF(K37="D+",Profile!F276, IF(K37="D*",Profile!F276, IF(K37="C",Profile!F277, IF(K37="C+",Profile!F278, IF(K37="B",Profile!F278, IF(K37="B+",Profile!F279, IF(K37="A",Profile!F279,"")))))))) -> 2. Basic | U37: =IF(K37="A",Profile!F280, IF(K37="B+",Profile!F280, IF(K37="B",Profile!F280, IF(K37="D+",Profile!F281, IF(K37="D",Profile!F281, IF(K37="D*",Profile!F281, Profile!F282)))))) -> Average
A38: =H3 -> Pefalia | B38: PI-10 | C38: M2 | D38: Indic | E38: III | F38: =VLOOKUP(E38,Profile!A:B,2,FALSE) -> III-Management of assets and liabilities | G38: PI-10 | H38: =IFERROR(VLOOKUP(B38,Profile!A:B,2,FALSE),"") -> PI-10 Fiscal risk reporting | I38: =IF(COUNTIFS($D:$D,"Comp",$G:$G,$G38)=COUNTIFS($D:$D,"Comp",$G:$G,$G38,I:I,"=NU"),"NU", IF(COUNTIFS($D:$D,"Comp",$G:$G,$G38)=COUNTIFS($D:$D,"Comp",$G:$G,$G38,I:I,"=NA")+COUNTIFS($D:$D,"Comp",$G:$G,$G38,I:I,"=NU"),"NA", IF(O38>3.65,"A", IF(O38>=3.25,"B+", IF(O38>2.65,"B", IF(O38>=2.25,"C+", IF(O38>1.75,"C", IF(O38>1.25,"D+", IF(AND(O38<=1.25,O38>0),"D", "" ))))))))) -> D | K38: =IF(COUNTIFS($D:$D,"Comp",$G:$G,$G38)=COUNTIFS($D:$D,"Comp",$G:$G,$G38,K:K,"=NU"),"NU", IF(COUNTIFS($D:$D,"Comp",$G:$G,$G38)=COUNTIFS($D:$D,"Comp",$G:$G,$G38,K:K,"=NA")+COUNTIFS($D:$D,"Comp",$G:$G,$G38,K:K,"=NU"),"NA", IF(Q38>3.65,"A", IF(Q38>=3.25,"B+", IF(Q38>2.65,"B", IF(Q38>=2.25,"C+", IF(Q38>1.75,"C", IF(Q38>1.25,"D+", IF(AND(Q38<=1.25,Q38>0),"D", "" ))))))))) -> D | N38: =IF(AND(N39=Profile!E250,N40=Profile!E250,N41=Profile!E250),Profile!E250,Profile!E251) -> No | O38: =IFERROR( (IF($C38="M1", IF(ROUND(AVERAGEIFS(O:O,$G:$G,$G38,$D:$D,"Comp",$O:$O,">0"),1)=ROUND(_xlfn.MINIFS(O:O,$G:$G,$G38,$D:$D,"Comp",$O:$O,">0"),1), AVERAGEIFS(O:O,$G:$G,$G38,$D:$D,"Comp",$O:$O,">0"),_xlfn.MINIFS(O:O,$G:$G,$G38,$D:$D,"Comp",$O:$O,">0")+0.5), AVERAGEIFS(O:O,$G:$G,$G38,$D:$D,"Comp",$O:$O,">0"))), 0) -> 1 | P38: =IF(I38="D",1, IF(I38="D*",1, IF(I38="D+",1.5, IF(I38="C",2, IF(I38="C+",2.5, IF(I38="B",3, IF(I38="B+",3.5, IF(I38="A",4, )))))))) -> 1 | Q38: =IFERROR( (IF($C38="M1", IF(ROUND(AVERAGEIFS(Q:Q,$G:$G,$G38,$D:$D,"Comp",$Q:$Q,">0"),1)=ROUND(_xlfn.MINIFS(Q:Q,$G:$G,$G38,$D:$D,"Comp",$Q:$Q,">0"),1), AVERAGEIFS(Q:Q,$G:$G,$G38,$D:$D,"Comp",$Q:$Q,">0"),_xlfn.MINIFS(Q:Q,$G:$G,$G38,$D:$D,"Comp",$Q:$Q,">0")+0.5), AVERAGEIFS(Q:Q,$G:$G,$G38,$D:$D,"Comp",$Q:$Q,">0"))), 0) -> 1 | R38: =IF(K38="D",1, IF(K38="D+",1.5, IF(K38="C",2, IF(K38="C+",2.5, IF(K38="B",3, IF(K38="B+",3.5, IF(K38="A",4, ))))))) -> 1 | S38: =IFERROR(IF(N38=Profile!$E$250,IF(R38-P38<0,"-",IF(R38-P38>0,"+"," =")),"N.C."),"") -> N.C. | T38: =IF(K38="D",Profile!F276, IF(K38="D+",Profile!F276, IF(K38="D*",Profile!F276, IF(K38="C",Profile!F277, IF(K38="C+",Profile!F278, IF(K38="B",Profile!F278, IF(K38="B+",Profile!F279, IF(K38="A",Profile!F279,"")))))))) -> 1. Below basic | U38: =IF(K38="A",Profile!F280, IF(K38="B+",Profile!F280, IF(K38="B",Profile!F280, IF(K38="D+",Profile!F281, IF(K38="D",Profile!F281, IF(K38="D*",Profile!F281, Profile!F282)))))) -> Weakness | V38: 1 | W38: 0 | X38: 0 | Y38: =Y39 -> 3
A39: =H3 -> Pefalia | B39: 10.1 | D39: Comp | E39: III | F39: =VLOOKUP(E39,Profile!A:B,2,FALSE) -> III-Management of assets and liabilities | G39: PI-10 | H39: =IFERROR(VLOOKUP(B39,Profile!A:B,2,FALSE),"") -> 10.1 Monitoring of public corporations | I39: D | J39: At the time of the evaluation, more than a year after the end of the 2015 financial year, public companies had not yet sent their auditor-certified financial statements to the Ministry of Finance. The available data result from a campaign to collect financial statements organized by the DPC and CTR in response to requests expressed by various missions. | K39: D | L39: Most SOEs do not submit their annual reports to the Ministry of finance and development planning. | N39: No | O39: =IFERROR(IF(TRIM(CLEAN(I39))="A",4)+IF(TRIM(CLEAN(I39))="B+",3.5)+IF(TRIM(CLEAN(I39))="B",3)+IF(TRIM(CLEAN(I39))="C+",2.5)+IF(TRIM(CLEAN(I39))="C",2)+IF(TRIM(CLEAN(I39))="D+",1.5)+IF(TRIM(CLEAN(I39))="D",1)+IF(TRIM(CLEAN(I39))="D*",1)+IF(TRIM(CLEAN(I39))="NU",0)+IF(TRIM(CLEAN(I39))="NA",0),"") -> 1 | P39: =O39 -> 1 | Q39: =IFERROR(IF(TRIM(CLEAN(K39))="A",4)+IF(TRIM(CLEAN(K39))="B+",3.5)+IF(TRIM(CLEAN(K39))="B",3)+IF(TRIM(CLEAN(K39))="C+",2.5)+IF(TRIM(CLEAN(K39))="C",2)+IF(TRIM(CLEAN(K39))="D+",1.5)+IF(TRIM(CLEAN(K39))="D",1)+IF(TRIM(CLEAN(K39))="D*",1)+IF(TRIM(CLEAN(K39))="NU",0)+IF(TRIM(CLEAN(K39))="NA",0),"") -> 1 | R39: =Q39 -> 1 | S39: =IFERROR(IF(N39=Profile!$E$250,IF(R39-P39<0,"-",IF(R39-P39>0,"+"," =")),"N.C."),"") -> N.C. | T39: =IF(K39="D",Profile!F276, IF(K39="D+",Profile!F276, IF(K39="D*",Profile!F276, IF(K39="C",Profile!F277, IF(K39="C+",Profile!F278, IF(K39="B",Profile!F278, IF(K39="B+",Profile!F279, IF(K39="A",Profile!F279,"")))))))) -> 1. Below basic | U39: =IF(K39="A",Profile!F280, IF(K39="B+",Profile!F280, IF(K39="B",Profile!F280, IF(K39="D+",Profile!F281, IF(K39="D",Profile!F281, IF(K39="D*",Profile!F281, Profile!F282)))))) -> Weakness | V39: 1 | W39: 0 | X39: 0 | Y39: 3
A40: =H3 -> Pefalia | B40: 10.2 | D40: Comp | E40: III | F40: =VLOOKUP(E40,Profile!A:B,2,FALSE) -> III-Management of assets and liabilities | G40: PI-10 | H40: =IFERROR(VLOOKUP(B40,Profile!A:B,2,FALSE),"") -> 10.2 Monitoring of subnational governments | I40: D | J40: The management accounts of audited and judged CTDs are not published and do not give rise to a consolidated annual report on the financial situation of the CTDs. | K40: D | L40: Annual Reports on the financial position and performance of Counties and Districts are not published timely. | N40: No | O40: =IFERROR(IF(TRIM(CLEAN(I40))="A",4)+IF(TRIM(CLEAN(I40))="B+",3.5)+IF(TRIM(CLEAN(I40))="B",3)+IF(TRIM(CLEAN(I40))="C+",2.5)+IF(TRIM(CLEAN(I40))="C",2)+IF(TRIM(CLEAN(I40))="D+",1.5)+IF(TRIM(CLEAN(I40))="D",1)+IF(TRIM(CLEAN(I40))="D*",1)+IF(TRIM(CLEAN(I40))="NU",0)+IF(TRIM(CLEAN(I40))="NA",0),"") -> 1 | P40: 1 | Q40: =IFERROR(IF(TRIM(CLEAN(K40))="A",4)+IF(TRIM(CLEAN(K40))="B+",3.5)+IF(TRIM(CLEAN(K40))="B",3)+IF(TRIM(CLEAN(K40))="C+",2.5)+IF(TRIM(CLEAN(K40))="C",2)+IF(TRIM(CLEAN(K40))="D+",1.5)+IF(TRIM(CLEAN(K40))="D",1)+IF(TRIM(CLEAN(K40))="D*",1)+IF(TRIM(CLEAN(K40))="NU",0)+IF(TRIM(CLEAN(K40))="NA",0),"") -> 1 | R40: 1 | S40: =IFERROR(IF(N40=Profile!$E$250,IF(R40-P40<0,"-",IF(R40-P40>0,"+"," =")),"N.C."),"") -> N.C. | T40: =IF(K40="D",Profile!F276, IF(K40="D+",Profile!F276, IF(K40="D*",Profile!F276, IF(K40="C",Profile!F277, IF(K40="C+",Profile!F278, IF(K40="B",Profile!F278, IF(K40="B+",Profile!F279, IF(K40="A",Profile!F279,"")))))))) -> 1. Below basic | U40: =IF(K40="A",Profile!F280, IF(K40="B+",Profile!F280, IF(K40="B",Profile!F280, IF(K40="D+",Profile!F281, IF(K40="D",Profile!F281, IF(K40="D*",Profile!F281, Profile!F282)))))) -> Weakness | V40: 1 | W40: 0 | X40: 0 | Y40: 3
A41: =H3 -> Pefalia | B41: 10.3 | D41: Comp | E41: III | F41: =VLOOKUP(E41,Profile!A:B,2,FALSE) -> III-Management of assets and liabilities | G41: PI-10 | H41: =IFERROR(VLOOKUP(B41,Profile!A:B,2,FALSE),"") -> 10.3 Contingent liabilities and other fiscal risks | I41: D | J41: The main components of the State-guaranteed debt that constitutes the significant contingent liability identified are not presented in a document appended to the Settlement Act. | K41: D | L41: Central government entities and agencies do not quantify significant contingent liabilities in their financial reports. | N41: No | O41: =IFERROR(IF(TRIM(CLEAN(I41))="A",4)+IF(TRIM(CLEAN(I41))="B+",3.5)+IF(TRIM(CLEAN(I41))="B",3)+IF(TRIM(CLEAN(I41))="C+",2.5)+IF(TRIM(CLEAN(I41))="C",2)+IF(TRIM(CLEAN(I41))="D+",1.5)+IF(TRIM(CLEAN(I41))="D",1)+IF(TRIM(CLEAN(I41))="D*",1)+IF(TRIM(CLEAN(I41))="NU",0)+IF(TRIM(CLEAN(I41))="NA",0),"") -> 1 | P41: 1 | Q41: =IFERROR(IF(TRIM(CLEAN(K41))="A",4)+IF(TRIM(CLEAN(K41))="B+",3.5)+IF(TRIM(CLEAN(K41))="B",3)+IF(TRIM(CLEAN(K41))="C+",2.5)+IF(TRIM(CLEAN(K41))="C",2)+IF(TRIM(CLEAN(K41))="D+",1.5)+IF(TRIM(CLEAN(K41))="D",1)+IF(TRIM(CLEAN(K41))="D*",1)+IF(TRIM(CLEAN(K41))="NU",0)+IF(TRIM(CLEAN(K41))="NA",0),"") -> 1 | R41: 1 | S41: =IFERROR(IF(N41=Profile!$E$250,IF(R41-P41<0,"-",IF(R41-P41>0,"+"," =")),"N.C."),"") -> N.C. | T41: =IF(K41="D",Profile!F276, IF(K41="D+",Profile!F276, IF(K41="D*",Profile!F276, IF(K41="C",Profile!F277, IF(K41="C+",Profile!F278, IF(K41="B",Profile!F278, IF(K41="B+",Profile!F279, IF(K41="A",Profile!F279,"")))))))) -> 1. Below basic | U41: =IF(K41="A",Profile!F280, IF(K41="B+",Profile!F280, IF(K41="B",Profile!F280, IF(K41="D+",Profile!F281, IF(K41="D",Profile!F281, IF(K41="D*",Profile!F281, Profile!F282)))))) -> Weakness | V41: 1 | W41: 0 | X41: 0 | Y41: 3
A42: =H3 -> Pefalia | B42: PI-11 | C42: M2 | D42: Indic | E42: III | F42: =VLOOKUP(E42,Profile!A:B,2,FALSE) -> III-Management of assets and liabilities | G42: PI-11 | H42: =IFERROR(VLOOKUP(B42,Profile!A:B,2,FALSE),"") -> PI-11 Public investment management | I42: =IF(COUNTIFS($D:$D,"Comp",$G:$G,$G42)=COUNTIFS($D:$D,"Comp",$G:$G,$G42,I:I,"=NU"),"NU", IF(COUNTIFS($D:$D,"Comp",$G:$G,$G42)=COUNTIFS($D:$D,"Comp",$G:$G,$G42,I:I,"=NA")+COUNTIFS($D:$D,"Comp",$G:$G,$G42,I:I,"=NU"),"NA", IF(O42>3.65,"A", IF(O42>=3.25,"B+", IF(O42>2.65,"B", IF(O42>=2.25,"C+", IF(O42>1.75,"C", IF(O42>1.25,"D+", IF(AND(O42<=1.25,O42>0),"D", "" ))))))))) -> D | K42: =IF(COUNTIFS($D:$D,"Comp",$G:$G,$G42)=COUNTIFS($D:$D,"Comp",$G:$G,$G42,K:K,"=NU"),"NU", IF(COUNTIFS($D:$D,"Comp",$G:$G,$G42)=COUNTIFS($D:$D,"Comp",$G:$G,$G42,K:K,"=NA")+COUNTIFS($D:$D,"Comp",$G:$G,$G42,K:K,"=NU"),"NA", IF(Q42>3.65,"A", IF(Q42>=3.25,"B+", IF(Q42>2.65,"B", IF(Q42>=2.25,"C+", IF(Q42>1.75,"C", IF(Q42>1.25,"D+", IF(AND(Q42<=1.25,Q42>0),"D", "" ))))))))) -> D+ | N42: =IF(AND(N43=Profile!E250,N44=Profile!E250,N45=Profile!E250,N46=Profile!E250),Profile!E250,Profile!E251) -> Yes | O42: =IFERROR( (IF($C42="M1", IF(ROUND(AVERAGEIFS(O:O,$G:$G,$G42,$D:$D,"Comp",$O:$O,">0"),1)=ROUND(_xlfn.MINIFS(O:O,$G:$G,$G42,$D:$D,"Comp",$O:$O,">0"),1), AVERAGEIFS(O:O,$G:$G,$G42,$D:$D,"Comp",$O:$O,">0"),_xlfn.MINIFS(O:O,$G:$G,$G42,$D:$D,"Comp",$O:$O,">0")+0.5), AVERAGEIFS(O:O,$G:$G,$G42,$D:$D,"Comp",$O:$O,">0"))), 0) -> 1 | P42: =IF(I42="D",1, IF(I42="D*",1, IF(I42="D+",1.5, IF(I42="C",2, IF(I42="C+",2.5, IF(I42="B",3, IF(I42="B+",3.5, IF(I42="A",4, )))))))) -> 1 | Q42: =IFERROR( (IF($C42="M1", IF(ROUND(AVERAGEIFS(Q:Q,$G:$G,$G42,$D:$D,"Comp",$Q:$Q,">0"),1)=ROUND(_xlfn.MINIFS(Q:Q,$G:$G,$G42,$D:$D,"Comp",$Q:$Q,">0"),1), AVERAGEIFS(Q:Q,$G:$G,$G42,$D:$D,"Comp",$Q:$Q,">0"),_xlfn.MINIFS(Q:Q,$G:$G,$G42,$D:$D,"Comp",$Q:$Q,">0")+0.5), AVERAGEIFS(Q:Q,$G:$G,$G42,$D:$D,"Comp",$Q:$Q,">0"))), 0) -> 1.75 | R42: 1.5 | S42: =IFERROR(IF(N42=Profile!$E$250,IF(R42-P42<0,"-",IF(R42-P42>0,"+"," =")),"N.C."),"") -> + | T42: =IF(K42="D",Profile!F276, IF(K42="D+",Profile!F276, IF(K42="D*",Profile!F276, IF(K42="C",Profile!F277, IF(K42="C+",Profile!F278, IF(K42="B",Profile!F278, IF(K42="B+",Profile!F279, IF(K42="A",Profile!F279,"")))))))) -> 1. Below basic | U42: =IF(K42="A",Profile!F280, IF(K42="B+",Profile!F280, IF(K42="B",Profile!F280, IF(K42="D+",Profile!F281, IF(K42="D",Profile!F281, IF(K42="D*",Profile!F281, Profile!F282)))))) -> Weakness | V42: 1 | W42: 1 | X42: 0 | Y42: =Y43 -> 4
A43: =H3 -> Pefalia | B43: 11.1 | D43: Comp | E43: III | F43: =VLOOKUP(E43,Profile!A:B,2,FALSE) -> III-Management of assets and liabilities | G43: PI-11 | H43: =IFERROR(VLOOKUP(B43,Profile!A:B,2,FALSE),"") -> 11.1 Economic analysis of investment proposals | I43: D* | J43: As it has not been possible to draw up a list of major investment projects and their costs, the main information for rating this component is not available. | K43: B | L43: Economic analyses are conducted to assess most major investment projects. The analyses are reviewed by an entity other than the sponsoring entity. | N43: Yes | O43: =IFERROR(IF(TRIM(CLEAN(I43))="A",4)+IF(TRIM(CLEAN(I43))="B+",3.5)+IF(TRIM(CLEAN(I43))="B",3)+IF(TRIM(CLEAN(I43))="C+",2.5)+IF(TRIM(CLEAN(I43))="C",2)+IF(TRIM(CLEAN(I43))="D+",1.5)+IF(TRIM(CLEAN(I43))="D",1)+IF(TRIM(CLEAN(I43))="D*",1)+IF(TRIM(CLEAN(I43))="NU",0)+IF(TRIM(CLEAN(I43))="NA",0),"") -> 1 | P43: =O43 -> 1 | Q43: =IFERROR(IF(TRIM(CLEAN(K43))="A",4)+IF(TRIM(CLEAN(K43))="B+",3.5)+IF(TRIM(CLEAN(K43))="B",3)+IF(TRIM(CLEAN(K43))="C+",2.5)+IF(TRIM(CLEAN(K43))="C",2)+IF(TRIM(CLEAN(K43))="D+",1.5)+IF(TRIM(CLEAN(K43))="D",1)+IF(TRIM(CLEAN(K43))="D*",1)+IF(TRIM(CLEAN(K43))="NU",0)+IF(TRIM(CLEAN(K43))="NA",0),"") -> 3 | R43: =Q43 -> 3 | S43: =IFERROR(IF(N43=Profile!$E$250,IF(R43-P43<0,"-",IF(R43-P43>0,"+"," =")),"N.C."),"") -> + | T43: =IF(K43="D",Profile!F276, IF(K43="D+",Profile!F276, IF(K43="D*",Profile!F276, IF(K43="C",Profile!F277, IF(K43="C+",Profile!F278, IF(K43="B",Profile!F278, IF(K43="B+",Profile!F279, IF(K43="A",Profile!F279,"")))))))) -> 3. Sound | U43: =IF(K43="A",Profile!F280, IF(K43="B+",Profile!F280, IF(K43="B",Profile!F280, IF(K43="D+",Profile!F281, IF(K43="D",Profile!F281, IF(K43="D*",Profile!F281, Profile!F282)))))) -> Strength | V43: 1 | W43: 1 | X43: 0 | Y43: 4
A44: =H3 -> Pefalia | B44: 11.2 | D44: Comp | E44: III | F44: =VLOOKUP(E44,Profile!A:B,2,FALSE) -> III-Management of assets and liabilities | G44: PI-11 | H44: =IFERROR(VLOOKUP(B44,Profile!A:B,2,FALSE),"") -> 11.2 Investment project selection | I44: D* | J44: As it has not been possible to draw up a list of major investment projects and their costs, the main information for rating this component is not available. | K44: D | L44: As most of the projects are externally financed projects (for which there is no pipeline and central review process), less than 25% of the major investment projects are prioritised by a central entity. | N44: Yes | O44: =IFERROR(IF(TRIM(CLEAN(I44))="A",4)+IF(TRIM(CLEAN(I44))="B+",3.5)+IF(TRIM(CLEAN(I44))="B",3)+IF(TRIM(CLEAN(I44))="C+",2.5)+IF(TRIM(CLEAN(I44))="C",2)+IF(TRIM(CLEAN(I44))="D+",1.5)+IF(TRIM(CLEAN(I44))="D",1)+IF(TRIM(CLEAN(I44))="D*",1)+IF(TRIM(CLEAN(I44))="NU",0)+IF(TRIM(CLEAN(I44))="NA",0),"") -> 1 | P44: 1 | Q44: =IFERROR(IF(TRIM(CLEAN(K44))="A",4)+IF(TRIM(CLEAN(K44))="B+",3.5)+IF(TRIM(CLEAN(K44))="B",3)+IF(TRIM(CLEAN(K44))="C+",2.5)+IF(TRIM(CLEAN(K44))="C",2)+IF(TRIM(CLEAN(K44))="D+",1.5)+IF(TRIM(CLEAN(K44))="D",1)+IF(TRIM(CLEAN(K44))="D*",1)+IF(TRIM(CLEAN(K44))="NU",0)+IF(TRIM(CLEAN(K44))="NA",0),"") -> 1 | R44: 1 | S44: =IFERROR(IF(N44=Profile!$E$250,IF(R44-P44<0,"-",IF(R44-P44>0,"+"," =")),"N.C."),"") -> = | T44: =IF(K44="D",Profile!F276, IF(K44="D+",Profile!F276, IF(K44="D*",Profile!F276, IF(K44="C",Profile!F277, IF(K44="C+",Profile!F278, IF(K44="B",Profile!F278, IF(K44="B+",Profile!F279, IF(K44="A",Profile!F279,"")))))))) -> 1. Below basic | U44: =IF(K44="A",Profile!F280, IF(K44="B+",Profile!F280, IF(K44="B",Profile!F280, IF(K44="D+",Profile!F281, IF(K44="D",Profile!F281, IF(K44="D*",Profile!F281, Profile!F282)))))) -> Weakness | V44: 1 | W44: 1 | X44: 0 | Y44: 4
A45: =H3 -> Pefalia | B45: 11.3 | D45: Comp | E45: III | F45: =VLOOKUP(E45,Profile!A:B,2,FALSE) -> III-Management of assets and liabilities | G45: PI-11 | H45: =IFERROR(VLOOKUP(B45,Profile!A:B,2,FALSE),"") -> 11.3 Investment project costing | I45: D* | J45: As it has not been possible to draw up a list of major investment projects and their costs, the main information for rating this component is not available. | K45: D | L45: Projections of the total capital cost of major investment projects are not included in the budget documents. | N45: Yes | O45: =IFERROR(IF(TRIM(CLEAN(I45))="A",4)+IF(TRIM(CLEAN(I45))="B+",3.5)+IF(TRIM(CLEAN(I45))="B",3)+IF(TRIM(CLEAN(I45))="C+",2.5)+IF(TRIM(CLEAN(I45))="C",2)+IF(TRIM(CLEAN(I45))="D+",1.5)+IF(TRIM(CLEAN(I45))="D",1)+IF(TRIM(CLEAN(I45))="D*",1)+IF(TRIM(CLEAN(I45))="NU",0)+IF(TRIM(CLEAN(I45))="NA",0),"") -> 1 | P45: 1 | Q45: =IFERROR(IF(TRIM(CLEAN(K45))="A",4)+IF(TRIM(CLEAN(K45))="B+",3.5)+IF(TRIM(CLEAN(K45))="B",3)+IF(TRIM(CLEAN(K45))="C+",2.5)+IF(TRIM(CLEAN(K45))="C",2)+IF(TRIM(CLEAN(K45))="D+",1.5)+IF(TRIM(CLEAN(K45))="D",1)+IF(TRIM(CLEAN(K45))="D*",1)+IF(TRIM(CLEAN(K45))="NU",0)+IF(TRIM(CLEAN(K45))="NA",0),"") -> 1 | R45: 1 | S45: =IFERROR(IF(N45=Profile!$E$250,IF(R45-P45<0,"-",IF(R45-P45>0,"+"," =")),"N.C."),"") -> = | T45: =IF(K45="D",Profile!F276, IF(K45="D+",Profile!F276, IF(K45="D*",Profile!F276, IF(K45="C",Profile!F277, IF(K45="C+",Profile!F278, IF(K45="B",Profile!F278, IF(K45="B+",Profile!F279, IF(K45="A",Profile!F279,"")))))))) -> 1. Below basic | U45: =IF(K45="A",Profile!F280, IF(K45="B+",Profile!F280, IF(K45="B",Profile!F280, IF(K45="D+",Profile!F281, IF(K45="D",Profile!F281, IF(K45="D*",Profile!F281, Profile!F282)))))) -> Weakness | V45: 1 | W45: 1 | X45: 0 | Y45: 4
A46: =H3 -> Pefalia | B46: 11.4 | D46: Comp | E46: III | F46: =VLOOKUP(E46,Profile!A:B,2,FALSE) -> III-Management of assets and liabilities | G46: PI-11 | H46: =IFERROR(VLOOKUP(B46,Profile!A:B,2,FALSE),"") -> 11.4 Investment project monitoring | I46: D | J46: The annual report on the physical and financial execution of public investment projects appended to the settlement bill does not distinguish between major and minor projects, and does not cover all central government investments, since it does not include those made by EPAs or under PPP contracts. | K46: C | L46: The total cost and physical progress of major investment projects are monitored by the implementing government unit. Standard procedures and rules for project implementation are in place, but no information on the implementation of major investment projects is published annually. | N46: Yes | O46: =IFERROR(IF(TRIM(CLEAN(I46))="A",4)+IF(TRIM(CLEAN(I46))="B+",3.5)+IF(TRIM(CLEAN(I46))="B",3)+IF(TRIM(CLEAN(I46))="C+",2.5)+IF(TRIM(CLEAN(I46))="C",2)+IF(TRIM(CLEAN(I46))="D+",1.5)+IF(TRIM(CLEAN(I46))="D",1)+IF(TRIM(CLEAN(I46))="D*",1)+IF(TRIM(CLEAN(I46))="NU",0)+IF(TRIM(CLEAN(I46))="NA",0),"") -> 1 | P46: 1 | Q46: =IFERROR(IF(TRIM(CLEAN(K46))="A",4)+IF(TRIM(CLEAN(K46))="B+",3.5)+IF(TRIM(CLEAN(K46))="B",3)+IF(TRIM(CLEAN(K46))="C+",2.5)+IF(TRIM(CLEAN(K46))="C",2)+IF(TRIM(CLEAN(K46))="D+",1.5)+IF(TRIM(CLEAN(K46))="D",1)+IF(TRIM(CLEAN(K46))="D*",1)+IF(TRIM(CLEAN(K46))="NU",0)+IF(TRIM(CLEAN(K46))="NA",0),"") -> 2 | R46: 2 | S46: =IFERROR(IF(N46=Profile!$E$250,IF(R46-P46<0,"-",IF(R46-P46>0,"+"," =")),"N.C."),"") -> + | T46: =IF(K46="D",Profile!F276, IF(K46="D+",Profile!F276, IF(K46="D*",Profile!F276, IF(K46="C",Profile!F277, IF(K46="C+",Profile!F278, IF(K46="B",Profile!F278, IF(K46="B+",Profile!F279, IF(K46="A",Profile!F279,"")))))))) -> 2. Basic | U46: =IF(K46="A",Profile!F280, IF(K46="B+",Profile!F280, IF(K46="B",Profile!F280, IF(K46="D+",Profile!F281, IF(K46="D",Profile!F281, IF(K46="D*",Profile!F281, Profile!F282)))))) -> Average | V46: 1 | W46: 1 | X46: 0 | Y46: 4
A47: =H3 -> Pefalia | B47: PI-12 | C47: M2 | D47: Indic | E47: III | F47: =VLOOKUP(E47,Profile!A:B,2,FALSE) -> III-Management of assets and liabilities | G47: PI-12 | H47: =IFERROR(VLOOKUP(B47,Profile!A:B,2,FALSE),"") -> PI-12 Public asset management | I47: =IF(COUNTIFS($D:$D,"Comp",$G:$G,$G47)=COUNTIFS($D:$D,"Comp",$G:$G,$G47,I:I,"=NU"),"NU", IF(COUNTIFS($D:$D,"Comp",$G:$G,$G47)=COUNTIFS($D:$D,"Comp",$G:$G,$G47,I:I,"=NA")+COUNTIFS($D:$D,"Comp",$G:$G,$G47,I:I,"=NU"),"NA", IF(O47>3.65,"A", IF(O47>=3.25,"B+", IF(O47>2.65,"B", IF(O47>=2.25,"C+", IF(O47>1.75,"C", IF(O47>1.25,"D+", IF(AND(O47<=1.25,O47>0),"D", "" ))))))))) -> D | K47: =IF(COUNTIFS($D:$D,"Comp",$G:$G,$G47)=COUNTIFS($D:$D,"Comp",$G:$G,$G47,K:K,"=NU"),"NU", IF(COUNTIFS($D:$D,"Comp",$G:$G,$G47)=COUNTIFS($D:$D,"Comp",$G:$G,$G47,K:K,"=NA")+COUNTIFS($D:$D,"Comp",$G:$G,$G47,K:K,"=NU"),"NA", IF(Q47>3.65,"A", IF(Q47>=3.25,"B+", IF(Q47>2.65,"B", IF(Q47>=2.25,"C+", IF(Q47>1.75,"C", IF(Q47>1.25,"D+", IF(AND(Q47<=1.25,Q47>0),"D", "" ))))))))) -> D+ | N47: =IF(AND(N48=Profile!E250,N49=Profile!E250,N50=Profile!E250),Profile!E250,Profile!E251) -> Yes | O47: =IFERROR( (IF($C47="M1", IF(ROUND(AVERAGEIFS(O:O,$G:$G,$G47,$D:$D,"Comp",$O:$O,">0"),1)=ROUND(_xlfn.MINIFS(O:O,$G:$G,$G47,$D:$D,"Comp",$O:$O,">0"),1), AVERAGEIFS(O:O,$G:$G,$G47,$D:$D,"Comp",$O:$O,">0"),_xlfn.MINIFS(O:O,$G:$G,$G47,$D:$D,"Comp",$O:$O,">0")+0.5), AVERAGEIFS(O:O,$G:$G,$G47,$D:$D,"Comp",$O:$O,">0"))), 0) -> 1 | P47: =IF(I47="D",1, IF(I47="D*",1, IF(I47="D+",1.5, IF(I47="C",2, IF(I47="C+",2.5, IF(I47="B",3, IF(I47="B+",3.5, IF(I47="A",4, )))))))) -> 1 | Q47: =IFERROR( (IF($C47="M1", IF(ROUND(AVERAGEIFS(Q:Q,$G:$G,$G47,$D:$D,"Comp",$Q:$Q,">0"),1)=ROUND(_xlfn.MINIFS(Q:Q,$G:$G,$G47,$D:$D,"Comp",$Q:$Q,">0"),1), AVERAGEIFS(Q:Q,$G:$G,$G47,$D:$D,"Comp",$Q:$Q,">0"),_xlfn.MINIFS(Q:Q,$G:$G,$G47,$D:$D,"Comp",$Q:$Q,">0")+0.5), AVERAGEIFS(Q:Q,$G:$G,$G47,$D:$D,"Comp",$Q:$Q,">0"))), 0) -> 1.333333333 | R47: 1.5 | S47: =IFERROR(IF(N47=Profile!$E$250,IF(R47-P47<0,"-",IF(R47-P47>0,"+"," =")),"N.C."),"") -> + | T47: =IF(K47="D",Profile!F276, IF(K47="D+",Profile!F276, IF(K47="D*",Profile!F276, IF(K47="C",Profile!F277, IF(K47="C+",Profile!F278, IF(K47="B",Profile!F278, IF(K47="B+",Profile!F279, IF(K47="A",Profile!F279,"")))))))) -> 1. Below basic | U47: =IF(K47="A",Profile!F280, IF(K47="B+",Profile!F280, IF(K47="B",Profile!F280, IF(K47="D+",Profile!F281, IF(K47="D",Profile!F281, IF(K47="D*",Profile!F281, Profile!F282)))))) -> Weakness | V47: 1 | W47: 0 | X47: 0 | Y47: =Y48 -> 3
A48: =H3 -> Pefalia | B48: 12.1 | D48: Comp | E48: III | F48: =VLOOKUP(E48,Profile!A:B,2,FALSE) -> III-Management of assets and liabilities | G48: PI-12 | H48: =IFERROR(VLOOKUP(B48,Profile!A:B,2,FALSE),"") -> 12.1 Financial asset monitoring | I48: D | J48: The State does not keep a register of the various categories of financial assets held by the central government, and information on the performance of financial assets is not published. | K48: D | L48: Insufficient information is generated about non-current assets because of the current use of the cash basis IPSAS. | N48: Yes | O48: =IFERROR(IF(TRIM(CLEAN(I48))="A",4)+IF(TRIM(CLEAN(I48))="B+",3.5)+IF(TRIM(CLEAN(I48))="B",3)+IF(TRIM(CLEAN(I48))="C+",2.5)+IF(TRIM(CLEAN(I48))="C",2)+IF(TRIM(CLEAN(I48))="D+",1.5)+IF(TRIM(CLEAN(I48))="D",1)+IF(TRIM(CLEAN(I48))="D*",1)+IF(TRIM(CLEAN(I48))="NU",0)+IF(TRIM(CLEAN(I48))="NA",0),"") -> 1 | P48: =O48 -> 1 | Q48: =IFERROR(IF(TRIM(CLEAN(K48))="A",4)+IF(TRIM(CLEAN(K48))="B+",3.5)+IF(TRIM(CLEAN(K48))="B",3)+IF(TRIM(CLEAN(K48))="C+",2.5)+IF(TRIM(CLEAN(K48))="C",2)+IF(TRIM(CLEAN(K48))="D+",1.5)+IF(TRIM(CLEAN(K48))="D",1)+IF(TRIM(CLEAN(K48))="D*",1)+IF(TRIM(CLEAN(K48))="NU",0)+IF(TRIM(CLEAN(K48))="NA",0),"") -> 1 | R48: =Q48 -> 1 | S48: =IFERROR(IF(N48=Profile!$E$250,IF(R48-P48<0,"-",IF(R48-P48>0,"+"," =")),"N.C."),"") -> = | T48: =IF(K48="D",Profile!F276, IF(K48="D+",Profile!F276, IF(K48="D*",Profile!F276, IF(K48="C",Profile!F277, IF(K48="C+",Profile!F278, IF(K48="B",Profile!F278, IF(K48="B+",Profile!F279, IF(K48="A",Profile!F279,"")))))))) -> 1. Below basic | U48: =IF(K48="A",Profile!F280, IF(K48="B+",Profile!F280, IF(K48="B",Profile!F280, IF(K48="D+",Profile!F281, IF(K48="D",Profile!F281, IF(K48="D*",Profile!F281, Profile!F282)))))) -> Weakness | V48: 1 | W48: 0 | X48: 0 | Y48: 3
A49: =H3 -> Pefalia | B49: 12.2 | D49: Comp | E49: III | F49: =VLOOKUP(E49,Profile!A:B,2,FALSE) -> III-Management of assets and liabilities | G49: PI-12 | H49: =IFERROR(VLOOKUP(B49,Profile!A:B,2,FALSE),"") -> 12.2 Nonfinancial asset monitoring | I49: D | J49: The subject accounting system currently in use in Cameroon's ministries has a number of shortcomings, which make it impossible to obtain an exhaustive picture of the State's movable and immovable assets. The various prescribed registers are not always kept, or are poorly kept. | K49: D | L49: The government maintains a register of its holdings of fixed assets but does not collect information on their usage and age. | N49: Yes | O49: =IFERROR(IF(TRIM(CLEAN(I49))="A",4)+IF(TRIM(CLEAN(I49))="B+",3.5)+IF(TRIM(CLEAN(I49))="B",3)+IF(TRIM(CLEAN(I49))="C+",2.5)+IF(TRIM(CLEAN(I49))="C",2)+IF(TRIM(CLEAN(I49))="D+",1.5)+IF(TRIM(CLEAN(I49))="D",1)+IF(TRIM(CLEAN(I49))="D*",1)+IF(TRIM(CLEAN(I49))="NU",0)+IF(TRIM(CLEAN(I49))="NA",0),"") -> 1 | P49: 1 | Q49: =IFERROR(IF(TRIM(CLEAN(K49))="A",4)+IF(TRIM(CLEAN(K49))="B+",3.5)+IF(TRIM(CLEAN(K49))="B",3)+IF(TRIM(CLEAN(K49))="C+",2.5)+IF(TRIM(CLEAN(K49))="C",2)+IF(TRIM(CLEAN(K49))="D+",1.5)+IF(TRIM(CLEAN(K49))="D",1)+IF(TRIM(CLEAN(K49))="D*",1)+IF(TRIM(CLEAN(K49))="NU",0)+IF(TRIM(CLEAN(K49))="NA",0),"") -> 1 | R49: 1 | S49: =IFERROR(IF(N49=Profile!$E$250,IF(R49-P49<0,"-",IF(R49-P49>0,"+"," =")),"N.C."),"") -> = | T49: =IF(K49="D",Profile!F276, IF(K49="D+",Profile!F276, IF(K49="D*",Profile!F276, IF(K49="C",Profile!F277, IF(K49="C+",Profile!F278, IF(K49="B",Profile!F278, IF(K49="B+",Profile!F279, IF(K49="A",Profile!F279,"")))))))) -> 1. Below basic | U49: =IF(K49="A",Profile!F280, IF(K49="B+",Profile!F280, IF(K49="B",Profile!F280, IF(K49="D+",Profile!F281, IF(K49="D",Profile!F281, IF(K49="D*",Profile!F281, Profile!F282)))))) -> Weakness | V49: 1 | W49: 0 | X49: 0 | Y49: 3
A50: =H3 -> Pefalia | B50: 12.3 | D50: Comp | E50: III | F50: =VLOOKUP(E50,Profile!A:B,2,FALSE) -> III-Management of assets and liabilities | G50: PI-12 | H50: =IFERROR(VLOOKUP(B50,Profile!A:B,2,FALSE),"") -> 12.3 Transparency of asset disposal | I50: D | J50: Existing legislation on the transfer and disposal of the State's non-financial assets covers only movable assets, and is not always complied with. Reports are not produced, and information on these operations is not included in budget documentation or annual financial statements. | K50: C | L50: Procedures and rules are established for the transfer or disposal of non-financial assets but only partial information on transfers and disposals is included in annual financial reports. | N50: Yes | O50: =IFERROR(IF(TRIM(CLEAN(I50))="A",4)+IF(TRIM(CLEAN(I50))="B+",3.5)+IF(TRIM(CLEAN(I50))="B",3)+IF(TRIM(CLEAN(I50))="C+",2.5)+IF(TRIM(CLEAN(I50))="C",2)+IF(TRIM(CLEAN(I50))="D+",1.5)+IF(TRIM(CLEAN(I50))="D",1)+IF(TRIM(CLEAN(I50))="D*",1)+IF(TRIM(CLEAN(I50))="NU",0)+IF(TRIM(CLEAN(I50))="NA",0),"") -> 1 | P50: 1 | Q50: =IFERROR(IF(TRIM(CLEAN(K50))="A",4)+IF(TRIM(CLEAN(K50))="B+",3.5)+IF(TRIM(CLEAN(K50))="B",3)+IF(TRIM(CLEAN(K50))="C+",2.5)+IF(TRIM(CLEAN(K50))="C",2)+IF(TRIM(CLEAN(K50))="D+",1.5)+IF(TRIM(CLEAN(K50))="D",1)+IF(TRIM(CLEAN(K50))="D*",1)+IF(TRIM(CLEAN(K50))="NU",0)+IF(TRIM(CLEAN(K50))="NA",0),"") -> 2 | R50: 2 | S50: =IFERROR(IF(N50=Profile!$E$250,IF(R50-P50<0,"-",IF(R50-P50>0,"+"," =")),"N.C."),"") -> + | T50: =IF(K50="D",Profile!F276, IF(K50="D+",Profile!F276, IF(K50="D*",Profile!F276, IF(K50="C",Profile!F277, IF(K50="C+",Profile!F278, IF(K50="B",Profile!F278, IF(K50="B+",Profile!F279, IF(K50="A",Profile!F279,"")))))))) -> 2. Basic | U50: =IF(K50="A",Profile!F280, IF(K50="B+",Profile!F280, IF(K50="B",Profile!F280, IF(K50="D+",Profile!F281, IF(K50="D",Profile!F281, IF(K50="D*",Profile!F281, Profile!F282)))))) -> Average | V50: 1 | W50: 0 | X50: 0 | Y50: 3
A51: =H3 -> Pefalia | B51: PI-13 | C51: M2 | D51: Indic | E51: III | F51: =VLOOKUP(E51,Profile!A:B,2,FALSE) -> III-Management of assets and liabilities | G51: PI-13 | H51: =IFERROR(VLOOKUP(B51,Profile!A:B,2,FALSE),"") -> PI-13 Debt management | I51: =IF(COUNTIFS($D:$D,"Comp",$G:$G,$G51)=COUNTIFS($D:$D,"Comp",$G:$G,$G51,I:I,"=NU"),"NU", IF(COUNTIFS($D:$D,"Comp",$G:$G,$G51)=COUNTIFS($D:$D,"Comp",$G:$G,$G51,I:I,"=NA")+COUNTIFS($D:$D,"Comp",$G:$G,$G51,I:I,"=NU"),"NA", IF(O51>3.65,"A", IF(O51>=3.25,"B+", IF(O51>2.65,"B", IF(O51>=2.25,"C+", IF(O51>1.75,"C", IF(O51>1.25,"D+", IF(AND(O51<=1.25,O51>0),"D", "" ))))))))) -> D | K51: D | N51: =IF(AND(N52=Profile!E250,N53=Profile!E250,N54=Profile!E250),Profile!E250,Profile!E251) -> Yes | O51: =IFERROR( (IF($C51="M1", IF(ROUND(AVERAGEIFS(O:O,$G:$G,$G51,$D:$D,"Comp",$O:$O,">0"),1)=ROUND(_xlfn.MINIFS(O:O,$G:$G,$G51,$D:$D,"Comp",$O:$O,">0"),1), AVERAGEIFS(O:O,$G:$G,$G51,$D:$D,"Comp",$O:$O,">0"),_xlfn.MINIFS(O:O,$G:$G,$G51,$D:$D,"Comp",$O:$O,">0")+0.5), AVERAGEIFS(O:O,$G:$G,$G51,$D:$D,"Comp",$O:$O,">0"))), 0) -> 1 | P51: =IF(I51="D",1, IF(I51="D*",1, IF(I51="D+",1.5, IF(I51="C",2, IF(I51="C+",2.5, IF(I51="B",3, IF(I51="B+",3.5, IF(I51="A",4, )))))))) -> 1 | Q51: =IFERROR( (IF($C51="M1", IF(ROUND(AVERAGEIFS(Q:Q,$G:$G,$G51,$D:$D,"Comp",$Q:$Q,">0"),1)=ROUND(_xlfn.MINIFS(Q:Q,$G:$G,$G51,$D:$D,"Comp",$Q:$Q,">0"),1), AVERAGEIFS(Q:Q,$G:$G,$G51,$D:$D,"Comp",$Q:$Q,">0"),_xlfn.MINIFS(Q:Q,$G:$G,$G51,$D:$D,"Comp",$Q:$Q,">0")+0.5), AVERAGEIFS(Q:Q,$G:$G,$G51,$D:$D,"Comp",$Q:$Q,">0"))), 0) -> 3.666666667 | R51: 1 | S51: =IFERROR(IF(N51=Profile!$E$250,IF(R51-P51<0,"-",IF(R51-P51>0,"+"," =")),"N.C."),"") -> = | T51: =IF(K51="D",Profile!F276, IF(K51="D+",Profile!F276, IF(K51="D*",Profile!F276, IF(K51="C",Profile!F277, IF(K51="C+",Profile!F278, IF(K51="B",Profile!F278, IF(K51="B+",Profile!F279, IF(K51="A",Profile!F279,"")))))))) -> 1. Below basic | U51: =IF(K51="A",Profile!F280, IF(K51="B+",Profile!F280, IF(K51="B",Profile!F280, IF(K51="D+",Profile!F281, IF(K51="D",Profile!F281, IF(K51="D*",Profile!F281, Profile!F282)))))) -> Weakness | V51: 1 | W51: 0 | X51: 0 | Y51: =Y52 -> 3
A52: =H3 -> Pefalia | B52: 13.1 | D52: Comp | E52: III | F52: =VLOOKUP(E52,Profile!A:B,2,FALSE) -> III-Management of assets and liabilities | G52: PI-13 | H52: =IFERROR(VLOOKUP(B52,Profile!A:B,2,FALSE),"") -> 13.1 Recording and reporting of debt and guarantees | I52: D | J52: Data on external public debt managed by CAA is exhaustive, regularly updated and reconciled with lenders on an annual basis. Data on domestic public debt is not exhaustive, as unstructured domestic debt has not yet been stabilized. The quarterly public debt conjuncture notes are not produced regularly and do not contain information on guaranteed debt. The CAA's public debt database and the various reports it produces do not cover the entire central public administration, as public establishments and the CNPS are not taken into account. | K52: B | L52: Domestic and foreign debt and guaranteed debt records are complete and updated monthly. Data are reconciled quarterly, but not monthly. Comprehensive statistical reports are produced quarterly and annually. | N52: Yes | O52: =IFERROR(IF(TRIM(CLEAN(I52))="A",4)+IF(TRIM(CLEAN(I52))="B+",3.5)+IF(TRIM(CLEAN(I52))="B",3)+IF(TRIM(CLEAN(I52))="C+",2.5)+IF(TRIM(CLEAN(I52))="C",2)+IF(TRIM(CLEAN(I52))="D+",1.5)+IF(TRIM(CLEAN(I52))="D",1)+IF(TRIM(CLEAN(I52))="D*",1)+IF(TRIM(CLEAN(I52))="NU",0)+IF(TRIM(CLEAN(I52))="NA",0),"") -> 1 | P52: =O52 -> 1 | Q52: =IFERROR(IF(TRIM(CLEAN(K52))="A",4)+IF(TRIM(CLEAN(K52))="B+",3.5)+IF(TRIM(CLEAN(K52))="B",3)+IF(TRIM(CLEAN(K52))="C+",2.5)+IF(TRIM(CLEAN(K52))="C",2)+IF(TRIM(CLEAN(K52))="D+",1.5)+IF(TRIM(CLEAN(K52))="D",1)+IF(TRIM(CLEAN(K52))="D*",1)+IF(TRIM(CLEAN(K52))="NU",0)+IF(TRIM(CLEAN(K52))="NA",0),"") -> 3 | R52: =Q52 -> 3 | S52: =IFERROR(IF(N52=Profile!$E$250,IF(R52-P52<0,"-",IF(R52-P52>0,"+"," =")),"N.C."),"") -> + | T52: =IF(K52="D",Profile!F276, IF(K52="D+",Profile!F276, IF(K52="D*",Profile!F276, IF(K52="C",Profile!F277, IF(K52="C+",Profile!F278, IF(K52="B",Profile!F278, IF(K52="B+",Profile!F279, IF(K52="A",Profile!F279,"")))))))) -> 3. Sound | U52: =IF(K52="A",Profile!F280, IF(K52="B+",Profile!F280, IF(K52="B",Profile!F280, IF(K52="D+",Profile!F281, IF(K52="D",Profile!F281, IF(K52="D*",Profile!F281, Profile!F282)))))) -> Strength | V52: 1 | W52: 0 | X52: 0 | Y52: 3
A53: =H3 -> Pefalia | B53: 13.2 | D53: Comp | E53: III | F53: =VLOOKUP(E53,Profile!A:B,2,FALSE) -> III-Management of assets and liabilities | G53: PI-13 | H53: =IFERROR(VLOOKUP(B53,Profile!A:B,2,FALSE),"") -> 13.2 Approval of debt and guarantees | I53: D | J53: Cameroon does not have a legal framework that precisely defines and delimits the powers to contract external and internal loans, or to issue state guarantees. The public debt policy is well defined in the public debt strategy document that has accompanied the finance bill since 2010. Similarly, the procedures to be followed for borrowing and issuing guarantees are defined in regulatory texts, and borrowing and guarantee ceilings are set each year by the Finance Act. | K53: A | L53: Central government's contracting of loans and issuance of guarantees are made against transparent criteria and fiscal targets, and always approved by the Minister of Finance. | N53: Yes | O53: =IFERROR(IF(TRIM(CLEAN(I53))="A",4)+IF(TRIM(CLEAN(I53))="B+",3.5)+IF(TRIM(CLEAN(I53))="B",3)+IF(TRIM(CLEAN(I53))="C+",2.5)+IF(TRIM(CLEAN(I53))="C",2)+IF(TRIM(CLEAN(I53))="D+",1.5)+IF(TRIM(CLEAN(I53))="D",1)+IF(TRIM(CLEAN(I53))="D*",1)+IF(TRIM(CLEAN(I53))="NU",0)+IF(TRIM(CLEAN(I53))="NA",0),"") -> 1 | P53: 1 | Q53: =IFERROR(IF(TRIM(CLEAN(K53))="A",4)+IF(TRIM(CLEAN(K53))="B+",3.5)+IF(TRIM(CLEAN(K53))="B",3)+IF(TRIM(CLEAN(K53))="C+",2.5)+IF(TRIM(CLEAN(K53))="C",2)+IF(TRIM(CLEAN(K53))="D+",1.5)+IF(TRIM(CLEAN(K53))="D",1)+IF(TRIM(CLEAN(K53))="D*",1)+IF(TRIM(CLEAN(K53))="NU",0)+IF(TRIM(CLEAN(K53))="NA",0),"") -> 4 | R53: 4 | S53: =IFERROR(IF(N53=Profile!$E$250,IF(R53-P53<0,"-",IF(R53-P53>0,"+"," =")),"N.C."),"") -> + | T53: =IF(K53="D",Profile!F276, IF(K53="D+",Profile!F276, IF(K53="D*",Profile!F276, IF(K53="C",Profile!F277, IF(K53="C+",Profile!F278, IF(K53="B",Profile!F278, IF(K53="B+",Profile!F279, IF(K53="A",Profile!F279,"")))))))) -> 4. High | U53: =IF(K53="A",Profile!F280, IF(K53="B+",Profile!F280, IF(K53="B",Profile!F280, IF(K53="D+",Profile!F281, IF(K53="D",Profile!F281, IF(K53="D*",Profile!F281, Profile!F282)))))) -> Strength | V53: 1 | W53: 0 | X53: 0 | Y53: 3
A54: =H3 -> Pefalia | B54: 13.3 | D54: Comp | E54: III | F54: =VLOOKUP(E54,Profile!A:B,2,FALSE) -> III-Management of assets and liabilities | G54: PI-13 | H54: =IFERROR(VLOOKUP(B54,Profile!A:B,2,FALSE),"") -> 13.3 Debt management strategy | I54: D | J54: Since 2010, Cameroon has been drawing up a three-year public debt and debt management strategy, which includes targets for indicators relating to interest rate , refinancing and exchange rate risks. But | K54: A | L54: A Debt Sustainability Analysis (DSA), with a horizon of at least three years, is prepared by the IMF and the World Bank under the Extended Credit Facility and publicly reported. Annual reporting against debt management objectives is provided to the legislature. The government’s annual plan for borrowing is consistent with the approved strategy. | N54: Yes | O54: =IFERROR(IF(TRIM(CLEAN(I54))="A",4)+IF(TRIM(CLEAN(I54))="B+",3.5)+IF(TRIM(CLEAN(I54))="B",3)+IF(TRIM(CLEAN(I54))="C+",2.5)+IF(TRIM(CLEAN(I54))="C",2)+IF(TRIM(CLEAN(I54))="D+",1.5)+IF(TRIM(CLEAN(I54))="D",1)+IF(TRIM(CLEAN(I54))="D*",1)+IF(TRIM(CLEAN(I54))="NU",0)+IF(TRIM(CLEAN(I54))="NA",0),"") -> 1 | P54: 1 | Q54: =IFERROR(IF(TRIM(CLEAN(K54))="A",4)+IF(TRIM(CLEAN(K54))="B+",3.5)+IF(TRIM(CLEAN(K54))="B",3)+IF(TRIM(CLEAN(K54))="C+",2.5)+IF(TRIM(CLEAN(K54))="C",2)+IF(TRIM(CLEAN(K54))="D+",1.5)+IF(TRIM(CLEAN(K54))="D",1)+IF(TRIM(CLEAN(K54))="D*",1)+IF(TRIM(CLEAN(K54))="NU",0)+IF(TRIM(CLEAN(K54))="NA",0),"") -> 4 | R54: 4 | S54: =IFERROR(IF(N54=Profile!$E$250,IF(R54-P54<0,"-",IF(R54-P54>0,"+"," =")),"N.C."),"") -> + | T54: =IF(K54="D",Profile!F276, IF(K54="D+",Profile!F276, IF(K54="D*",Profile!F276, IF(K54="C",Profile!F277, IF(K54="C+",Profile!F278, IF(K54="B",Profile!F278, IF(K54="B+",Profile!F279, IF(K54="A",Profile!F279,"")))))))) -> 4. High | U54: =IF(K54="A",Profile!F280, IF(K54="B+",Profile!F280, IF(K54="B",Profile!F280, IF(K54="D+",Profile!F281, IF(K54="D",Profile!F281, IF(K54="D*",Profile!F281, Profile!F282)))))) -> Strength | V54: 1 | W54: 0 | X54: 0 | Y54: 3
A55: =H3 -> Pefalia | B55: IV | D55: Pilar | E55: IV | F55: =VLOOKUP(E55,Profile!A:B,2,FALSE) -> IV-Policy-based fiscal strategy and budgeting | H55: =IFERROR(VLOOKUP(B55,Profile!A:B,2,FALSE),"") -> IV-Policy-based fiscal strategy and budgeting | I55: =IF(COUNTIFS($D:$D,"Indic",$E:$E,$E55)=COUNTIFS($D:$D,"Indic",$E:$E,$E55,$I:$I,"=NU"),"NU", IF(COUNTIFS($D:$D,"Indic",$E:$E,$E55)=COUNTIFS($D:$D,"Indic",$E:$E,C56,$I:$I,"=NA"),"NA", IF(O55>3.65,"A", IF(O55>=3.25,"B+", IF(O55>2.65,"B", IF(O55>=2.25,"C+", IF(O55>1.75,"C", IF(O55>1.25,"D+", IF(AND(O55<=1.25,O55>0),"D", "" ))))))))) -> D+ | K55: =IF(COUNTIFS($D:$D,"Indic",$E:$E,E55)=COUNTIFS($D:$D,"Indic",$E:$E,E56,$K:$K,"=NU"),"NU", IF(COUNTIFS($D:$D,"Indic",$E:$E,E55)=COUNTIFS($D:$D,"Indic",$E:$E,E56,$K:$K,"=NA"),"NA", IF(Q55>3.65,"A", IF(Q55>=3.25,"B+", IF(Q55>2.65,"B", IF(Q55>=2.25,"C+", IF(Q55>1.75,"C", IF(Q55>1.25,"D+", IF(AND(Q55<=1.25,Q55>0),"D", "" ))))))))) -> C | N55: =IF(COUNTIFS(N56:N77,Profile!$E$250)=22,Profile!$E$250,Profile!$E$251) -> No | O55: =AVERAGEIFS(O:O,$D:$D,"Indic",$E:$E,$E55,O:O,">0") -> 1.616666667 | P55: =IF(I55="D",1, IF(I55="D*",1, IF(I55="D+",1.5, IF(I55="C",2, IF(I55="C+",2.5, IF(I55="B",3, IF(I55="B+",3.5, IF(I55="A",4, )))))))) -> 1.5 | Q55: =AVERAGEIFS(Q:Q,$D:$D,"Indic",$E:$E,$E55,Q:Q,">0") -> 2.116666667 | R55: 2 | S55: =IFERROR(IF(N55=Profile!$E$250,IF(R55-P55<0,"-",IF(R55-P55>0,"+"," =")),"N.C."),"") -> N.C. | T55: =IF(K55="D",Profile!F276, IF(K55="D+",Profile!F276, IF(K55="D*",Profile!F276, IF(K55="C",Profile!F277, IF(K55="C+",Profile!F278, IF(K55="B",Profile!F278, IF(K55="B+",Profile!F279, IF(K55="A",Profile!F279,"")))))))) -> 2. Basic | U55: =IF(K55="A",Profile!F280, IF(K55="B+",Profile!F280, IF(K55="B",Profile!F280, IF(K55="D+",Profile!F281, IF(K55="D",Profile!F281, IF(K55="D*",Profile!F281, Profile!F282)))))) -> Average
A56: =H3 -> Pefalia | B56: PI-14 | C56: M2 | D56: Indic | E56: IV | F56: =VLOOKUP(E56,Profile!A:B,2,FALSE) -> IV-Policy-based fiscal strategy and budgeting | G56: PI-14 | H56: =IFERROR(VLOOKUP(B56,Profile!A:B,2,FALSE),"") -> PI-14 Macroeconomic and fiscal forecasting | I56: =IF(COUNTIFS($D:$D,"Comp",$G:$G,$G56)=COUNTIFS($D:$D,"Comp",$G:$G,$G56,I:I,"=NU"),"NU", IF(COUNTIFS($D:$D,"Comp",$G:$G,$G56)=COUNTIFS($D:$D,"Comp",$G:$G,$G56,I:I,"=NA")+COUNTIFS($D:$D,"Comp",$G:$G,$G56,I:I,"=NU"),"NA", IF(O56>3.65,"A", IF(O56>=3.25,"B+", IF(O56>2.65,"B", IF(O56>=2.25,"C+", IF(O56>1.75,"C", IF(O56>1.25,"D+", IF(AND(O56<=1.25,O56>0),"D", "" ))))))))) -> D+ | K56: =IF(COUNTIFS($D:$D,"Comp",$G:$G,$G56)=COUNTIFS($D:$D,"Comp",$G:$G,$G56,K:K,"=NU"),"NU", IF(COUNTIFS($D:$D,"Comp",$G:$G,$G56)=COUNTIFS($D:$D,"Comp",$G:$G,$G56,K:K,"=NA")+COUNTIFS($D:$D,"Comp",$G:$G,$G56,K:K,"=NU"),"NA", IF(Q56>3.65,"A", IF(Q56>=3.25,"B+", IF(Q56>2.65,"B", IF(Q56>=2.25,"C+", IF(Q56>1.75,"C", IF(Q56>1.25,"D+", IF(AND(Q56<=1.25,Q56>0),"D", "" ))))))))) -> B | N56: =IF(AND(N57=Profile!E250,N58=Profile!E250,N59=Profile!E250),Profile!E250,Profile!E251) -> Yes | O56: =IFERROR( (IF($C56="M1", IF(ROUND(AVERAGEIFS(O:O,$G:$G,$G56,$D:$D,"Comp",$O:$O,">0"),1)=ROUND(_xlfn.MINIFS(O:O,$G:$G,$G56,$D:$D,"Comp",$O:$O,">0"),1), AVERAGEIFS(O:O,$G:$G,$G56,$D:$D,"Comp",$O:$O,">0"),_xlfn.MINIFS(O:O,$G:$G,$G56,$D:$D,"Comp",$O:$O,">0")+0.5), AVERAGEIFS(O:O,$G:$G,$G56,$D:$D,"Comp",$O:$O,">0"))), 0) -> 1.666666667 | P56: =IF(I56="D",1, IF(I56="D*",1, IF(I56="D+",1.5, IF(I56="C",2, IF(I56="C+",2.5, IF(I56="B",3, IF(I56="B+",3.5, IF(I56="A",4, )))))))) -> 1.5 | Q56: =IFERROR( (IF($C56="M1", IF(ROUND(AVERAGEIFS(Q:Q,$G:$G,$G56,$D:$D,"Comp",$Q:$Q,">0"),1)=ROUND(_xlfn.MINIFS(Q:Q,$G:$G,$G56,$D:$D,"Comp",$Q:$Q,">0"),1), AVERAGEIFS(Q:Q,$G:$G,$G56,$D:$D,"Comp",$Q:$Q,">0"),_xlfn.MINIFS(Q:Q,$G:$G,$G56,$D:$D,"Comp",$Q:$Q,">0")+0.5), AVERAGEIFS(Q:Q,$G:$G,$G56,$D:$D,"Comp",$Q:$Q,">0"))), 0) -> 2.666666667 | R56: =IF(K56="D",1, IF(K56="D+",1.5, IF(K56="C",2, IF(K56="C+",2.5, IF(K56="B",3, IF(K56="B+",3.5, IF(K56="A",4, ))))))) -> 3 | S56: =IFERROR(IF(N56=Profile!$E$250,IF(R56-P56<0,"-",IF(R56-P56>0,"+"," =")),"N.C."),"") -> + | T56: =IF(K56="D",Profile!F276, IF(K56="D+",Profile!F276, IF(K56="D*",Profile!F276, IF(K56="C",Profile!F277, IF(K56="C+",Profile!F278, IF(K56="B",Profile!F278, IF(K56="B+",Profile!F279, IF(K56="A",Profile!F279,"")))))))) -> 3. Sound | U56: =IF(K56="A",Profile!F280, IF(K56="B+",Profile!F280, IF(K56="B",Profile!F280, IF(K56="D+",Profile!F281, IF(K56="D",Profile!F281, IF(K56="D*",Profile!F281, Profile!F282)))))) -> Strength | V56: 1 | W56: 0 | X56: 0 | Y56: =Y57 -> 3
A57: =H3 -> Pefalia | B57: 14.1 | D57: Comp | E57: IV | F57: =VLOOKUP(E57,Profile!A:B,2,FALSE) -> IV-Policy-based fiscal strategy and budgeting | G57: PI-14 | H57: =IFERROR(VLOOKUP(B57,Profile!A:B,2,FALSE),"") -> 14.1 Macroeconomic forecasts | I57: D | J57: Forecasts for certain macroeconomic indicators are presented for the fiscal year and two subsequent years. For other indicators, forecasts are presented for fiscal year N+1 only. | K57: B | L57: The Ministry of Finance prepares medium-term forecasts of key macroeconomic indicators, which are included in the budget documentation submitted to the legislature. However, the projections are not reviewed by an external entity. | N57: Yes | O57: =IFERROR(IF(TRIM(CLEAN(I57))="A",4)+IF(TRIM(CLEAN(I57))="B+",3.5)+IF(TRIM(CLEAN(I57))="B",3)+IF(TRIM(CLEAN(I57))="C+",2.5)+IF(TRIM(CLEAN(I57))="C",2)+IF(TRIM(CLEAN(I57))="D+",1.5)+IF(TRIM(CLEAN(I57))="D",1)+IF(TRIM(CLEAN(I57))="D*",1)+IF(TRIM(CLEAN(I57))="NU",0)+IF(TRIM(CLEAN(I57))="NA",0),"") -> 1 | P57: =O57 -> 1 | Q57: =IFERROR(IF(TRIM(CLEAN(K57))="A",4)+IF(TRIM(CLEAN(K57))="B+",3.5)+IF(TRIM(CLEAN(K57))="B",3)+IF(TRIM(CLEAN(K57))="C+",2.5)+IF(TRIM(CLEAN(K57))="C",2)+IF(TRIM(CLEAN(K57))="D+",1.5)+IF(TRIM(CLEAN(K57))="D",1)+IF(TRIM(CLEAN(K57))="D*",1)+IF(TRIM(CLEAN(K57))="NU",0)+IF(TRIM(CLEAN(K57))="NA",0),"") -> 3 | R57: =Q57 -> 3 | S57: =IFERROR(IF(N57=Profile!$E$250,IF(R57-P57<0,"-",IF(R57-P57>0,"+"," =")),"N.C."),"") -> + | T57: =IF(K57="D",Profile!F276, IF(K57="D+",Profile!F276, IF(K57="D*",Profile!F276, IF(K57="C",Profile!F277, IF(K57="C+",Profile!F278, IF(K57="B",Profile!F278, IF(K57="B+",Profile!F279, IF(K57="A",Profile!F279,"")))))))) -> 3. Sound | U57: =IF(K57="A",Profile!F280, IF(K57="B+",Profile!F280, IF(K57="B",Profile!F280, IF(K57="D+",Profile!F281, IF(K57="D",Profile!F281, IF(K57="D*",Profile!F281, Profile!F282)))))) -> Strength | V57: 1 | W57: 0 | X57: 0 | Y57: 3
A58: =H3 -> Pefalia | B58: 14.2 | D58: Comp | E58: IV | F58: =VLOOKUP(E58,Profile!A:B,2,FALSE) -> IV-Policy-based fiscal strategy and budgeting | G58: PI-14 | H58: =IFERROR(VLOOKUP(B58,Profile!A:B,2,FALSE),"") -> 14.2 Fiscal forecasts | I58: B | J58: Forecasts of the main budget aggregates for fiscal years T+1 to T+3 are presented, together with the assumptions for their evolution, in the budget documents sent to Parliament for examination and vote. | K58: B | L58: The government prepares medium-term forecasts of the main fiscal indicators, including revenues, aggregate expenditure, and budget balance. These forecasts, together with the underlying assumptions, are included in the budget documentation submitted to the legislature. | N58: Yes | O58: =IFERROR(IF(TRIM(CLEAN(I58))="A",4)+IF(TRIM(CLEAN(I58))="B+",3.5)+IF(TRIM(CLEAN(I58))="B",3)+IF(TRIM(CLEAN(I58))="C+",2.5)+IF(TRIM(CLEAN(I58))="C",2)+IF(TRIM(CLEAN(I58))="D+",1.5)+IF(TRIM(CLEAN(I58))="D",1)+IF(TRIM(CLEAN(I58))="D*",1)+IF(TRIM(CLEAN(I58))="NU",0)+IF(TRIM(CLEAN(I58))="NA",0),"") -> 3 | P58: 3 | Q58: =IFERROR(IF(TRIM(CLEAN(K58))="A",4)+IF(TRIM(CLEAN(K58))="B+",3.5)+IF(TRIM(CLEAN(K58))="B",3)+IF(TRIM(CLEAN(K58))="C+",2.5)+IF(TRIM(CLEAN(K58))="C",2)+IF(TRIM(CLEAN(K58))="D+",1.5)+IF(TRIM(CLEAN(K58))="D",1)+IF(TRIM(CLEAN(K58))="D*",1)+IF(TRIM(CLEAN(K58))="NU",0)+IF(TRIM(CLEAN(K58))="NA",0),"") -> 3 | R58: 3 | S58: =IFERROR(IF(N58=Profile!$E$250,IF(R58-P58<0,"-",IF(R58-P58>0,"+"," =")),"N.C."),"") -> = | T58: =IF(K58="D",Profile!F276, IF(K58="D+",Profile!F276, IF(K58="D*",Profile!F276, IF(K58="C",Profile!F277, IF(K58="C+",Profile!F278, IF(K58="B",Profile!F278, IF(K58="B+",Profile!F279, IF(K58="A",Profile!F279,"")))))))) -> 3. Sound | U58: =IF(K58="A",Profile!F280, IF(K58="B+",Profile!F280, IF(K58="B",Profile!F280, IF(K58="D+",Profile!F281, IF(K58="D",Profile!F281, IF(K58="D*",Profile!F281, Profile!F282)))))) -> Strength | V58: 1 | W58: 0 | X58: 0 | Y58: 3
A59: =H3 -> Pefalia | B59: 14.3 | D59: Comp | E59: IV | F59: =VLOOKUP(E59,Profile!A:B,2,FALSE) -> IV-Policy-based fiscal strategy and budgeting | G59: PI-14 | H59: =IFERROR(VLOOKUP(B59,Profile!A:B,2,FALSE),"") -> 14.3 Macrofiscal sensitivity analysis | I59: D | J59: Macroeconomic and budget forecasts do not include qualitative assessments of the impact of different macroeconomic assumptions | K59: C | L59: The government prepares, for internal use, a range of fiscal forecast scenarios based on alternative macroeconomic assumptions, but the budget documents do not include discussion of forecast sensitivities. | N59: Yes | O59: =IFERROR(IF(TRIM(CLEAN(I59))="A",4)+IF(TRIM(CLEAN(I59))="B+",3.5)+IF(TRIM(CLEAN(I59))="B",3)+IF(TRIM(CLEAN(I59))="C+",2.5)+IF(TRIM(CLEAN(I59))="C",2)+IF(TRIM(CLEAN(I59))="D+",1.5)+IF(TRIM(CLEAN(I59))="D",1)+IF(TRIM(CLEAN(I59))="D*",1)+IF(TRIM(CLEAN(I59))="NU",0)+IF(TRIM(CLEAN(I59))="NA",0),"") -> 1 | P59: 1 | Q59: =IFERROR(IF(TRIM(CLEAN(K59))="A",4)+IF(TRIM(CLEAN(K59))="B+",3.5)+IF(TRIM(CLEAN(K59))="B",3)+IF(TRIM(CLEAN(K59))="C+",2.5)+IF(TRIM(CLEAN(K59))="C",2)+IF(TRIM(CLEAN(K59))="D+",1.5)+IF(TRIM(CLEAN(K59))="D",1)+IF(TRIM(CLEAN(K59))="D*",1)+IF(TRIM(CLEAN(K59))="NU",0)+IF(TRIM(CLEAN(K59))="NA",0),"") -> 2 | R59: 2 | S59: =IFERROR(IF(N59=Profile!$E$250,IF(R59-P59<0,"-",IF(R59-P59>0,"+"," =")),"N.C."),"") -> + | T59: =IF(K59="D",Profile!F276, IF(K59="D+",Profile!F276, IF(K59="D*",Profile!F276, IF(K59="C",Profile!F277, IF(K59="C+",Profile!F278, IF(K59="B",Profile!F278, IF(K59="B+",Profile!F279, IF(K59="A",Profile!F279,"")))))))) -> 2. Basic | U59: =IF(K59="A",Profile!F280, IF(K59="B+",Profile!F280, IF(K59="B",Profile!F280, IF(K59="D+",Profile!F281, IF(K59="D",Profile!F281, IF(K59="D*",Profile!F281, Profile!F282)))))) -> Average | V59: 1 | W59: 0 | X59: 0 | Y59: 3
A60: =H3 -> Pefalia | B60: PI-15 | C60: M2 | D60: Indic | E60: IV | F60: =VLOOKUP(E60,Profile!A:B,2,FALSE) -> IV-Policy-based fiscal strategy and budgeting | G60: PI-15 | H60: =IFERROR(VLOOKUP(B60,Profile!A:B,2,FALSE),"") -> PI-15 Fiscal strategy | I60: =IF(COUNTIFS($D:$D,"Comp",$G:$G,$G60)=COUNTIFS($D:$D,"Comp",$G:$G,$G60,I:I,"=NU"),"NU", IF(COUNTIFS($D:$D,"Comp",$G:$G,$G60)=COUNTIFS($D:$D,"Comp",$G:$G,$G60,I:I,"=NA")+COUNTIFS($D:$D,"Comp",$G:$G,$G60,I:I,"=NU"),"NA", IF(O60>3.65,"A", IF(O60>=3.25,"B+", IF(O60>2.65,"B", IF(O60>=2.25,"C+", IF(O60>1.75,"C", IF(O60>1.25,"D+", IF(AND(O60<=1.25,O60>0),"D", "" ))))))))) -> D+ | K60: =IF(COUNTIFS($D:$D,"Comp",$G:$G,$G60)=COUNTIFS($D:$D,"Comp",$G:$G,$G60,K:K,"=NU"),"NU", IF(COUNTIFS($D:$D,"Comp",$G:$G,$G60)=COUNTIFS($D:$D,"Comp",$G:$G,$G60,K:K,"=NA")+COUNTIFS($D:$D,"Comp",$G:$G,$G60,K:K,"=NU"),"NA", IF(Q60>3.65,"A", IF(Q60>=3.25,"B+", IF(Q60>2.65,"B", IF(Q60>=2.25,"C+", IF(Q60>1.75,"C", IF(Q60>1.25,"D+", IF(AND(Q60<=1.25,Q60>0),"D", "" ))))))))) -> C+ | N60: =IF(AND(N61=Profile!E250,N62=Profile!E250,N63=Profile!E250),Profile!E250,Profile!E251) -> No | O60: =IFERROR( (IF($C60="M1", IF(ROUND(AVERAGEIFS(O:O,$G:$G,$G60,$D:$D,"Comp",$O:$O,">0"),1)=ROUND(_xlfn.MINIFS(O:O,$G:$G,$G60,$D:$D,"Comp",$O:$O,">0"),1), AVERAGEIFS(O:O,$G:$G,$G60,$D:$D,"Comp",$O:$O,">0"),_xlfn.MINIFS(O:O,$G:$G,$G60,$D:$D,"Comp",$O:$O,">0")+0.5), AVERAGEIFS(O:O,$G:$G,$G60,$D:$D,"Comp",$O:$O,">0"))), 0) -> 1.333333333 | P60: =IF(I60="D",1, IF(I60="D*",1, IF(I60="D+",1.5, IF(I60="C",2, IF(I60="C+",2.5, IF(I60="B",3, IF(I60="B+",3.5, IF(I60="A",4, )))))))) -> 1.5 | Q60: =IFERROR( (IF($C60="M1", IF(ROUND(AVERAGEIFS(Q:Q,$G:$G,$G60,$D:$D,"Comp",$Q:$Q,">0"),1)=ROUND(_xlfn.MINIFS(Q:Q,$G:$G,$G60,$D:$D,"Comp",$Q:$Q,">0"),1), AVERAGEIFS(Q:Q,$G:$G,$G60,$D:$D,"Comp",$Q:$Q,">0"),_xlfn.MINIFS(Q:Q,$G:$G,$G60,$D:$D,"Comp",$Q:$Q,">0")+0.5), AVERAGEIFS(Q:Q,$G:$G,$G60,$D:$D,"Comp",$Q:$Q,">0"))), 0) -> 2.333333333 | R60: 2.5 | S60: =IFERROR(IF(N60=Profile!$E$250,IF(R60-P60<0,"-",IF(R60-P60>0,"+"," =")),"N.C."),"") -> N.C. | T60: =IF(K60="D",Profile!F276, IF(K60="D+",Profile!F276, IF(K60="D*",Profile!F276, IF(K60="C",Profile!F277, IF(K60="C+",Profile!F278, IF(K60="B",Profile!F278, IF(K60="B+",Profile!F279, IF(K60="A",Profile!F279,"")))))))) -> 3. Sound | U60: =IF(K60="A",Profile!F280, IF(K60="B+",Profile!F280, IF(K60="B",Profile!F280, IF(K60="D+",Profile!F281, IF(K60="D",Profile!F281, IF(K60="D*",Profile!F281, Profile!F282)))))) -> Average | V60: 1 | W60: 1 | X60: 0 | Y60: =Y61 -> 3
A61: =H3 -> Pefalia | B61: 15.1 | D61: Comp | E61: IV | F61: =VLOOKUP(E61,Profile!A:B,2,FALSE) -> IV-Policy-based fiscal strategy and budgeting | G61: PI-15 | H61: =IFERROR(VLOOKUP(B61,Profile!A:B,2,FALSE),"") -> 15.1 Fiscal impact of policy proposals | I61: D | J61: Head office does not prepare estimates of the budgetary impact of all proposed changes to revenue and expenditure policy for the financial year. | K61: C | L61: The Ministry of Finance prepare estimates of the fiscal impact of all proposed changes in revenue and expenditure policy for the next fiscal year. | N61: Yes | O61: =IFERROR(IF(TRIM(CLEAN(I61))="A",4)+IF(TRIM(CLEAN(I61))="B+",3.5)+IF(TRIM(CLEAN(I61))="B",3)+IF(TRIM(CLEAN(I61))="C+",2.5)+IF(TRIM(CLEAN(I61))="C",2)+IF(TRIM(CLEAN(I61))="D+",1.5)+IF(TRIM(CLEAN(I61))="D",1)+IF(TRIM(CLEAN(I61))="D*",1)+IF(TRIM(CLEAN(I61))="NU",0)+IF(TRIM(CLEAN(I61))="NA",0),"") -> 1 | P61: =O61 -> 1 | Q61: =IFERROR(IF(TRIM(CLEAN(K61))="A",4)+IF(TRIM(CLEAN(K61))="B+",3.5)+IF(TRIM(CLEAN(K61))="B",3)+IF(TRIM(CLEAN(K61))="C+",2.5)+IF(TRIM(CLEAN(K61))="C",2)+IF(TRIM(CLEAN(K61))="D+",1.5)+IF(TRIM(CLEAN(K61))="D",1)+IF(TRIM(CLEAN(K61))="D*",1)+IF(TRIM(CLEAN(K61))="NU",0)+IF(TRIM(CLEAN(K61))="NA",0),"") -> 2 | R61: =Q61 -> 2 | S61: =IFERROR(IF(N61=Profile!$E$250,IF(R61-P61<0,"-",IF(R61-P61>0,"+"," =")),"N.C."),"") -> + | T61: =IF(K61="D",Profile!F276, IF(K61="D+",Profile!F276, IF(K61="D*",Profile!F276, IF(K61="C",Profile!F277, IF(K61="C+",Profile!F278, IF(K61="B",Profile!F278, IF(K61="B+",Profile!F279, IF(K61="A",Profile!F279,"")))))))) -> 2. Basic | U61: =IF(K61="A",Profile!F280, IF(K61="B+",Profile!F280, IF(K61="B",Profile!F280, IF(K61="D+",Profile!F281, IF(K61="D",Profile!F281, IF(K61="D*",Profile!F281, Profile!F282)))))) -> Average | V61: 1 | W61: 1 | X61: 0 | Y61: 3
A62: =H3 -> Pefalia | B62: 15.2 | D62: Comp | E62: IV | F62: =VLOOKUP(E62,Profile!A:B,2,FALSE) -> IV-Policy-based fiscal strategy and budgeting | G62: PI-15 | H62: =IFERROR(VLOOKUP(B62,Profile!A:B,2,FALSE),"") -> 15.2 Fiscal strategy adoption | I62: C | J62: Central government has prepared a current budget strategy for its own use, including qualitative and quantitative budget policy objectives. The budget strategy is not presented to Parliament for discussion and vote. | K62: B | L62: The government has adopted, along with the last budget submitted to the legislature, a medium-term fiscal strategy, including quantitative or qualitative fiscal objectives. | N62: No | O62: =IFERROR(IF(TRIM(CLEAN(I62))="A",4)+IF(TRIM(CLEAN(I62))="B+",3.5)+IF(TRIM(CLEAN(I62))="B",3)+IF(TRIM(CLEAN(I62))="C+",2.5)+IF(TRIM(CLEAN(I62))="C",2)+IF(TRIM(CLEAN(I62))="D+",1.5)+IF(TRIM(CLEAN(I62))="D",1)+IF(TRIM(CLEAN(I62))="D*",1)+IF(TRIM(CLEAN(I62))="NU",0)+IF(TRIM(CLEAN(I62))="NA",0),"") -> 2 | P62: 2 | Q62: =IFERROR(IF(TRIM(CLEAN(K62))="A",4)+IF(TRIM(CLEAN(K62))="B+",3.5)+IF(TRIM(CLEAN(K62))="B",3)+IF(TRIM(CLEAN(K62))="C+",2.5)+IF(TRIM(CLEAN(K62))="C",2)+IF(TRIM(CLEAN(K62))="D+",1.5)+IF(TRIM(CLEAN(K62))="D",1)+IF(TRIM(CLEAN(K62))="D*",1)+IF(TRIM(CLEAN(K62))="NU",0)+IF(TRIM(CLEAN(K62))="NA",0),"") -> 3 | R62: 3 | S62: =IFERROR(IF(N62=Profile!$E$250,IF(R62-P62<0,"-",IF(R62-P62>0,"+"," =")),"N.C."),"") -> N.C. | T62: =IF(K62="D",Profile!F276, IF(K62="D+",Profile!F276, IF(K62="D*",Profile!F276, IF(K62="C",Profile!F277, IF(K62="C+",Profile!F278, IF(K62="B",Profile!F278, IF(K62="B+",Profile!F279, IF(K62="A",Profile!F279,"")))))))) -> 3. Sound | U62: =IF(K62="A",Profile!F280, IF(K62="B+",Profile!F280, IF(K62="B",Profile!F280, IF(K62="D+",Profile!F281, IF(K62="D",Profile!F281, IF(K62="D*",Profile!F281, Profile!F282)))))) -> Strength | V62: 1 | W62: 1 | X62: 0 | Y62: 3
A63: =H3 -> Pefalia | B63: 15.3 | D63: Comp | E63: IV | F63: =VLOOKUP(E63,Profile!A:B,2,FALSE) -> IV-Policy-based fiscal strategy and budgeting | G63: PI-15 | H63: =IFERROR(VLOOKUP(B63,Profile!A:B,2,FALSE),"") -> 15.3 Reporting on fiscal outcomes | I63: D | J63: The head office does not prepare reports on progress towards budget targets. | K63: C | L63: The government has prepared an internal report on the progress made against its fiscal strategy, but it was not submitted to the legislature. | N63: Yes | O63: =IFERROR(IF(TRIM(CLEAN(I63))="A",4)+IF(TRIM(CLEAN(I63))="B+",3.5)+IF(TRIM(CLEAN(I63))="B",3)+IF(TRIM(CLEAN(I63))="C+",2.5)+IF(TRIM(CLEAN(I63))="C",2)+IF(TRIM(CLEAN(I63))="D+",1.5)+IF(TRIM(CLEAN(I63))="D",1)+IF(TRIM(CLEAN(I63))="D*",1)+IF(TRIM(CLEAN(I63))="NU",0)+IF(TRIM(CLEAN(I63))="NA",0),"") -> 1 | P63: 1 | Q63: =IFERROR(IF(TRIM(CLEAN(K63))="A",4)+IF(TRIM(CLEAN(K63))="B+",3.5)+IF(TRIM(CLEAN(K63))="B",3)+IF(TRIM(CLEAN(K63))="C+",2.5)+IF(TRIM(CLEAN(K63))="C",2)+IF(TRIM(CLEAN(K63))="D+",1.5)+IF(TRIM(CLEAN(K63))="D",1)+IF(TRIM(CLEAN(K63))="D*",1)+IF(TRIM(CLEAN(K63))="NU",0)+IF(TRIM(CLEAN(K63))="NA",0),"") -> 2 | R63: 2 | S63: =IFERROR(IF(N63=Profile!$E$250,IF(R63-P63<0,"-",IF(R63-P63>0,"+"," =")),"N.C."),"") -> + | T63: =IF(K63="D",Profile!F276, IF(K63="D+",Profile!F276, IF(K63="D*",Profile!F276, IF(K63="C",Profile!F277, IF(K63="C+",Profile!F278, IF(K63="B",Profile!F278, IF(K63="B+",Profile!F279, IF(K63="A",Profile!F279,"")))))))) -> 2. Basic | U63: =IF(K63="A",Profile!F280, IF(K63="B+",Profile!F280, IF(K63="B",Profile!F280, IF(K63="D+",Profile!F281, IF(K63="D",Profile!F281, IF(K63="D*",Profile!F281, Profile!F282)))))) -> Average | V63: 1 | W63: 1 | X63: 0 | Y63: 3
A64: =H3 -> Pefalia | B64: PI-16 | C64: M2 | D64: Indic | E64: IV | F64: =VLOOKUP(E64,Profile!A:B,2,FALSE) -> IV-Policy-based fiscal strategy and budgeting | G64: PI-16 | H64: =IFERROR(VLOOKUP(B64,Profile!A:B,2,FALSE),"") -> PI-16 Medium term perspective in expenditure budgeting | I64: =IF(COUNTIFS($D:$D,"Comp",$G:$G,$G64)=COUNTIFS($D:$D,"Comp",$G:$G,$G64,I:I,"=NU"),"NU", IF(COUNTIFS($D:$D,"Comp",$G:$G,$G64)=COUNTIFS($D:$D,"Comp",$G:$G,$G64,I:I,"=NA")+COUNTIFS($D:$D,"Comp",$G:$G,$G64,I:I,"=NU"),"NA", IF(O64>3.65,"A", IF(O64>=3.25,"B+", IF(O64>2.65,"B", IF(O64>=2.25,"C+", IF(O64>1.75,"C", IF(O64>1.25,"D+", IF(AND(O64<=1.25,O64>0),"D", "" ))))))))) -> D | K64: =IF(COUNTIFS($D:$D,"Comp",$G:$G,$G64)=COUNTIFS($D:$D,"Comp",$G:$G,$G64,K:K,"=NU"),"NU", IF(COUNTIFS($D:$D,"Comp",$G:$G,$G64)=COUNTIFS($D:$D,"Comp",$G:$G,$G64,K:K,"=NA")+COUNTIFS($D:$D,"Comp",$G:$G,$G64,K:K,"=NU"),"NA", IF(Q64>3.65,"A", IF(Q64>=3.25,"B+", IF(Q64>2.65,"B", IF(Q64>=2.25,"C+", IF(Q64>1.75,"C", IF(Q64>1.25,"D+", IF(AND(Q64<=1.25,Q64>0),"D", "" ))))))))) -> D+ | N64: =IF(AND(N65=Profile!E250,N66=Profile!E250,N67=Profile!E250,N68=Profile!E250),Profile!E250,Profile!E251) -> Yes | O64: =IFERROR( (IF($C64="M1", IF(ROUND(AVERAGEIFS(O:O,$G:$G,$G64,$D:$D,"Comp",$O:$O,">0"),1)=ROUND(_xlfn.MINIFS(O:O,$G:$G,$G64,$D:$D,"Comp",$O:$O,">0"),1), AVERAGEIFS(O:O,$G:$G,$G64,$D:$D,"Comp",$O:$O,">0"),_xlfn.MINIFS(O:O,$G:$G,$G64,$D:$D,"Comp",$O:$O,">0")+0.5), AVERAGEIFS(O:O,$G:$G,$G64,$D:$D,"Comp",$O:$O,">0"))), 0) -> 1.25 | P64: =IF(I64="D",1, IF(I64="D*",1, IF(I64="D+",1.5, IF(I64="C",2, IF(I64="C+",2.5, IF(I64="B",3, IF(I64="B+",3.5, IF(I64="A",4, )))))))) -> 1 | Q64: =IFERROR( (IF($C64="M1", IF(ROUND(AVERAGEIFS(Q:Q,$G:$G,$G64,$D:$D,"Comp",$Q:$Q,">0"),1)=ROUND(_xlfn.MINIFS(Q:Q,$G:$G,$G64,$D:$D,"Comp",$Q:$Q,">0"),1), AVERAGEIFS(Q:Q,$G:$G,$G64,$D:$D,"Comp",$Q:$Q,">0"),_xlfn.MINIFS(Q:Q,$G:$G,$G64,$D:$D,"Comp",$Q:$Q,">0")+0.5), AVERAGEIFS(Q:Q,$G:$G,$G64,$D:$D,"Comp",$Q:$Q,">0"))), 0) -> 1.75 | R64: 1.5 | S64: =IFERROR(IF(N64=Profile!$E$250,IF(R64-P64<0,"-",IF(R64-P64>0,"+"," =")),"N.C."),"") -> + | T64: =IF(K64="D",Profile!F276, IF(K64="D+",Profile!F276, IF(K64="D*",Profile!F276, IF(K64="C",Profile!F277, IF(K64="C+",Profile!F278, IF(K64="B",Profile!F278, IF(K64="B+",Profile!F279, IF(K64="A",Profile!F279,"")))))))) -> 1. Below basic | U64: =IF(K64="A",Profile!F280, IF(K64="B+",Profile!F280, IF(K64="B",Profile!F280, IF(K64="D+",Profile!F281, IF(K64="D",Profile!F281, IF(K64="D*",Profile!F281, Profile!F282)))))) -> Weakness | V64: 1 | W64: 1 | X64: 1 | Y64: =Y65 -> 4
A65: =H3 -> Pefalia | B65: 16.1 | D65: Comp | E65: IV | F65: =VLOOKUP(E65,Profile!A:B,2,FALSE) -> IV-Policy-based fiscal strategy and budgeting | G65: PI-16 | H65: =IFERROR(VLOOKUP(B65,Profile!A:B,2,FALSE),"") -> 16.1 Medium-term expenditure estimates | I65: D | J65: The annual budget presents expenditure forecasts for the fiscal year only, according to administrative and economic classification. | K65: A | L65: The annual budget presents estimate of expenditures for the budget year and the two following fiscal years by administrative and economic classification. | N65: Yes | O65: =IFERROR(IF(TRIM(CLEAN(I65))="A",4)+IF(TRIM(CLEAN(I65))="B+",3.5)+IF(TRIM(CLEAN(I65))="B",3)+IF(TRIM(CLEAN(I65))="C+",2.5)+IF(TRIM(CLEAN(I65))="C",2)+IF(TRIM(CLEAN(I65))="D+",1.5)+IF(TRIM(CLEAN(I65))="D",1)+IF(TRIM(CLEAN(I65))="D*",1)+IF(TRIM(CLEAN(I65))="NU",0)+IF(TRIM(CLEAN(I65))="NA",0),"") -> 1 | P65: =O65 -> 1 | Q65: =IFERROR(IF(TRIM(CLEAN(K65))="A",4)+IF(TRIM(CLEAN(K65))="B+",3.5)+IF(TRIM(CLEAN(K65))="B",3)+IF(TRIM(CLEAN(K65))="C+",2.5)+IF(TRIM(CLEAN(K65))="C",2)+IF(TRIM(CLEAN(K65))="D+",1.5)+IF(TRIM(CLEAN(K65))="D",1)+IF(TRIM(CLEAN(K65))="D*",1)+IF(TRIM(CLEAN(K65))="NU",0)+IF(TRIM(CLEAN(K65))="NA",0),"") -> 4 | R65: =Q65 -> 4 | S65: =IFERROR(IF(N65=Profile!$E$250,IF(R65-P65<0,"-",IF(R65-P65>0,"+"," =")),"N.C."),"") -> + | T65: =IF(K65="D",Profile!F276, IF(K65="D+",Profile!F276, IF(K65="D*",Profile!F276, IF(K65="C",Profile!F277, IF(K65="C+",Profile!F278, IF(K65="B",Profile!F278, IF(K65="B+",Profile!F279, IF(K65="A",Profile!F279,"")))))))) -> 4. High | U65: =IF(K65="A",Profile!F280, IF(K65="B+",Profile!F280, IF(K65="B",Profile!F280, IF(K65="D+",Profile!F281, IF(K65="D",Profile!F281, IF(K65="D*",Profile!F281, Profile!F282)))))) -> Strength | V65: 1 | W65: 1 | X65: 1 | Y65: 4
A66: =H3 -> Pefalia | B66: 16.2 | D66: Comp | E66: IV | F66: =VLOOKUP(E66,Profile!A:B,2,FALSE) -> IV-Policy-based fiscal strategy and budgeting | G66: PI-16 | H66: =IFERROR(VLOOKUP(B66,Profile!A:B,2,FALSE),"") -> 16.2 Medium-term expenditure ceilings | I66: D | J66: The expenditure ceilings contained in the MTEFs are approved and notified to the sectoral ministries so that they can prepare their sectoral MTEFs. These ceilings are not approved at the political level. | K66: D | L66: The budget circular does not contain medium-term expenditure ceilings. Besides, multi-year appropriations are not permitted yet. | N66: Yes | O66: =IFERROR(IF(TRIM(CLEAN(I66))="A",4)+IF(TRIM(CLEAN(I66))="B+",3.5)+IF(TRIM(CLEAN(I66))="B",3)+IF(TRIM(CLEAN(I66))="C+",2.5)+IF(TRIM(CLEAN(I66))="C",2)+IF(TRIM(CLEAN(I66))="D+",1.5)+IF(TRIM(CLEAN(I66))="D",1)+IF(TRIM(CLEAN(I66))="D*",1)+IF(TRIM(CLEAN(I66))="NU",0)+IF(TRIM(CLEAN(I66))="NA",0),"") -> 1 | P66: 1 | Q66: =IFERROR(IF(TRIM(CLEAN(K66))="A",4)+IF(TRIM(CLEAN(K66))="B+",3.5)+IF(TRIM(CLEAN(K66))="B",3)+IF(TRIM(CLEAN(K66))="C+",2.5)+IF(TRIM(CLEAN(K66))="C",2)+IF(TRIM(CLEAN(K66))="D+",1.5)+IF(TRIM(CLEAN(K66))="D",1)+IF(TRIM(CLEAN(K66))="D*",1)+IF(TRIM(CLEAN(K66))="NU",0)+IF(TRIM(CLEAN(K66))="NA",0),"") -> 1 | R66: 1 | S66: =IFERROR(IF(N66=Profile!$E$250,IF(R66-P66<0,"-",IF(R66-P66>0,"+"," =")),"N.C."),"") -> = | T66: =IF(K66="D",Profile!F276, IF(K66="D+",Profile!F276, IF(K66="D*",Profile!F276, IF(K66="C",Profile!F277, IF(K66="C+",Profile!F278, IF(K66="B",Profile!F278, IF(K66="B+",Profile!F279, IF(K66="A",Profile!F279,"")))))))) -> 1. Below basic | U66: =IF(K66="A",Profile!F280, IF(K66="B+",Profile!F280, IF(K66="B",Profile!F280, IF(K66="D+",Profile!F281, IF(K66="D",Profile!F281, IF(K66="D*",Profile!F281, Profile!F282)))))) -> Weakness | V66: 1 | W66: 1 | X66: 1 | Y66: 4
A67: =H3 -> Pefalia | B67: 16.3 | D67: Comp | E67: IV | F67: =VLOOKUP(E67,Profile!A:B,2,FALSE) -> IV-Policy-based fiscal strategy and budgeting | G67: PI-16 | H67: =IFERROR(VLOOKUP(B67,Profile!A:B,2,FALSE),"") -> 16.3 Alignment of strategic plans and medium-term budgets | I67: C | J67: Strategies are prepared for certain ministries, and the annual budget proposals of these ministries are aligned with the strategies adopted. | K67: D | L67: Sector strategies have been prepared for some sectors, but they do not present substantially complete costing of investments and recurrent expenditure. Budget proposals are not aligned with estimates presented in the strategic plans. | N67: Yes | O67: =IFERROR(IF(TRIM(CLEAN(I67))="A",4)+IF(TRIM(CLEAN(I67))="B+",3.5)+IF(TRIM(CLEAN(I67))="B",3)+IF(TRIM(CLEAN(I67))="C+",2.5)+IF(TRIM(CLEAN(I67))="C",2)+IF(TRIM(CLEAN(I67))="D+",1.5)+IF(TRIM(CLEAN(I67))="D",1)+IF(TRIM(CLEAN(I67))="D*",1)+IF(TRIM(CLEAN(I67))="NU",0)+IF(TRIM(CLEAN(I67))="NA",0),"") -> 2 | P67: 2 | Q67: =IFERROR(IF(TRIM(CLEAN(K67))="A",4)+IF(TRIM(CLEAN(K67))="B+",3.5)+IF(TRIM(CLEAN(K67))="B",3)+IF(TRIM(CLEAN(K67))="C+",2.5)+IF(TRIM(CLEAN(K67))="C",2)+IF(TRIM(CLEAN(K67))="D+",1.5)+IF(TRIM(CLEAN(K67))="D",1)+IF(TRIM(CLEAN(K67))="D*",1)+IF(TRIM(CLEAN(K67))="NU",0)+IF(TRIM(CLEAN(K67))="NA",0),"") -> 1 | R67: 1 | S67: =IFERROR(IF(N67=Profile!$E$250,IF(R67-P67<0,"-",IF(R67-P67>0,"+"," =")),"N.C."),"") -> - | T67: =IF(K67="D",Profile!F276, IF(K67="D+",Profile!F276, IF(K67="D*",Profile!F276, IF(K67="C",Profile!F277, IF(K67="C+",Profile!F278, IF(K67="B",Profile!F278, IF(K67="B+",Profile!F279, IF(K67="A",Profile!F279,"")))))))) -> 1. Below basic | U67: =IF(K67="A",Profile!F280, IF(K67="B+",Profile!F280, IF(K67="B",Profile!F280, IF(K67="D+",Profile!F281, IF(K67="D",Profile!F281, IF(K67="D*",Profile!F281, Profile!F282)))))) -> Weakness | V67: 1 | W67: 1 | X67: 1 | Y67: 4
A68: =H3 -> Pefalia | B68: 16.4 | D68: Comp | E68: IV | F68: =VLOOKUP(E68,Profile!A:B,2,FALSE) -> IV-Policy-based fiscal strategy and budgeting | G68: PI-16 | H68: =IFERROR(VLOOKUP(B68,Profile!A:B,2,FALSE),"") -> 16.4 Consistency of budgets with previous year’s estimates | I68: D | J68: The annual budgets provide no explanation of the previous year's estimates as shown in the previous MTEFs. | K68: D | L68: Budget documents do not provide explanation of changes to expenditure estimates between the second year of the previous medium-term budget and the first year of the current medium-term budget. | N68: Yes | O68: =IFERROR(IF(TRIM(CLEAN(I68))="A",4)+IF(TRIM(CLEAN(I68))="B+",3.5)+IF(TRIM(CLEAN(I68))="B",3)+IF(TRIM(CLEAN(I68))="C+",2.5)+IF(TRIM(CLEAN(I68))="C",2)+IF(TRIM(CLEAN(I68))="D+",1.5)+IF(TRIM(CLEAN(I68))="D",1)+IF(TRIM(CLEAN(I68))="D*",1)+IF(TRIM(CLEAN(I68))="NU",0)+IF(TRIM(CLEAN(I68))="NA",0),"") -> 1 | P68: 1 | Q68: =IFERROR(IF(TRIM(CLEAN(K68))="A",4)+IF(TRIM(CLEAN(K68))="B+",3.5)+IF(TRIM(CLEAN(K68))="B",3)+IF(TRIM(CLEAN(K68))="C+",2.5)+IF(TRIM(CLEAN(K68))="C",2)+IF(TRIM(CLEAN(K68))="D+",1.5)+IF(TRIM(CLEAN(K68))="D",1)+IF(TRIM(CLEAN(K68))="D*",1)+IF(TRIM(CLEAN(K68))="NU",0)+IF(TRIM(CLEAN(K68))="NA",0),"") -> 1 | R68: 1 | S68: =IFERROR(IF(N68=Profile!$E$250,IF(R68-P68<0,"-",IF(R68-P68>0,"+"," =")),"N.C."),"") -> = | T68: =IF(K68="D",Profile!F276, IF(K68="D+",Profile!F276, IF(K68="D*",Profile!F276, IF(K68="C",Profile!F277, IF(K68="C+",Profile!F278, IF(K68="B",Profile!F278, IF(K68="B+",Profile!F279, IF(K68="A",Profile!F279,"")))))))) -> 1. Below basic | U68: =IF(K68="A",Profile!F280, IF(K68="B+",Profile!F280, IF(K68="B",Profile!F280, IF(K68="D+",Profile!F281, IF(K68="D",Profile!F281, IF(K68="D*",Profile!F281, Profile!F282)))))) -> Weakness | V68: 1 | W68: 1 | X68: 1 | Y68: 4
A69: =H3 -> Pefalia | B69: PI-17 | C69: M2 | D69: Indic | E69: IV | F69: =VLOOKUP(E69,Profile!A:B,2,FALSE) -> IV-Policy-based fiscal strategy and budgeting | G69: PI-17 | H69: =IFERROR(VLOOKUP(B69,Profile!A:B,2,FALSE),"") -> PI-17 Budget preparation process | I69: =IF(COUNTIFS($D:$D,"Comp",$G:$G,$G69)=COUNTIFS($D:$D,"Comp",$G:$G,$G69,I:I,"=NU"),"NU", IF(COUNTIFS($D:$D,"Comp",$G:$G,$G69)=COUNTIFS($D:$D,"Comp",$G:$G,$G69,I:I,"=NA")+COUNTIFS($D:$D,"Comp",$G:$G,$G69,I:I,"=NU"),"NA", IF(O69>3.65,"A", IF(O69>=3.25,"B+", IF(O69>2.65,"B", IF(O69>=2.25,"C+", IF(O69>1.75,"C", IF(O69>1.25,"D+", IF(AND(O69<=1.25,O69>0),"D", "" ))))))))) -> D+ | K69: =IF(COUNTIFS($D:$D,"Comp",$G:$G,$G69)=COUNTIFS($D:$D,"Comp",$G:$G,$G69,K:K,"=NU"),"NU", IF(COUNTIFS($D:$D,"Comp",$G:$G,$G69)=COUNTIFS($D:$D,"Comp",$G:$G,$G69,K:K,"=NA")+COUNTIFS($D:$D,"Comp",$G:$G,$G69,K:K,"=NU"),"NA", IF(Q69>3.65,"A", IF(Q69>=3.25,"B+", IF(Q69>2.65,"B", IF(Q69>=2.25,"C+", IF(Q69>1.75,"C", IF(Q69>1.25,"D+", IF(AND(Q69<=1.25,Q69>0),"D", "" ))))))))) -> D+ | N69: =IF(AND(N70=Profile!E250,N71=Profile!E250,N72=Profile!E250),Profile!E250,Profile!E251) -> Yes | O69: =IFERROR( (IF($C69="M1", IF(ROUND(AVERAGEIFS(O:O,$G:$G,$G69,$D:$D,"Comp",$O:$O,">0"),1)=ROUND(_xlfn.MINIFS(O:O,$G:$G,$G69,$D:$D,"Comp",$O:$O,">0"),1), AVERAGEIFS(O:O,$G:$G,$G69,$D:$D,"Comp",$O:$O,">0"),_xlfn.MINIFS(O:O,$G:$G,$G69,$D:$D,"Comp",$O:$O,">0")+0.5), AVERAGEIFS(O:O,$G:$G,$G69,$D:$D,"Comp",$O:$O,">0"))), 0) -> 1.333333333 | P69: =IF(I69="D",1, IF(I69="D*",1, IF(I69="D+",1.5, IF(I69="C",2, IF(I69="C+",2.5, IF(I69="B",3, IF(I69="B+",3.5, IF(I69="A",4, )))))))) -> 1.5 | Q69: =IFERROR( (IF($C69="M1", IF(ROUND(AVERAGEIFS(Q:Q,$G:$G,$G69,$D:$D,"Comp",$Q:$Q,">0"),1)=ROUND(_xlfn.MINIFS(Q:Q,$G:$G,$G69,$D:$D,"Comp",$Q:$Q,">0"),1), AVERAGEIFS(Q:Q,$G:$G,$G69,$D:$D,"Comp",$Q:$Q,">0"),_xlfn.MINIFS(Q:Q,$G:$G,$G69,$D:$D,"Comp",$Q:$Q,">0")+0.5), AVERAGEIFS(Q:Q,$G:$G,$G69,$D:$D,"Comp",$Q:$Q,">0"))), 0) -> 1.333333333 | R69: 1.5 | S69: =IFERROR(IF(N69=Profile!$E$250,IF(R69-P69<0,"-",IF(R69-P69>0,"+"," =")),"N.C."),"") -> = | T69: =IF(K69="D",Profile!F276, IF(K69="D+",Profile!F276, IF(K69="D*",Profile!F276, IF(K69="C",Profile!F277, IF(K69="C+",Profile!F278, IF(K69="B",Profile!F278, IF(K69="B+",Profile!F279, IF(K69="A",Profile!F279,"")))))))) -> 1. Below basic | U69: =IF(K69="A",Profile!F280, IF(K69="B+",Profile!F280, IF(K69="B",Profile!F280, IF(K69="D+",Profile!F281, IF(K69="D",Profile!F281, IF(K69="D*",Profile!F281, Profile!F282)))))) -> Weakness | V69: 0 | W69: 1 | X69: 0 | Y69: =Y70 -> 3
A70: =H3 -> Pefalia | B70: 17.1 | D70: Comp | E70: IV | F70: =VLOOKUP(E70,Profile!A:B,2,FALSE) -> IV-Policy-based fiscal strategy and budgeting | G70: PI-17 | H70: =IFERROR(VLOOKUP(B70,Profile!A:B,2,FALSE),"") -> 17.1 Budget calendar | I70: C | J70: There is a timetable for budget preparation. The current procedure gives sector ministries two weeks to prepare their detailed estimates. The majority of ministries manage to prepare their estimates within the two-week period. | K70: D | L70: A budget calendar exits, but practically MACs did not have enough time to complete detailed estimates timely. | N70: Yes | O70: =IFERROR(IF(TRIM(CLEAN(I70))="A",4)+IF(TRIM(CLEAN(I70))="B+",3.5)+IF(TRIM(CLEAN(I70))="B",3)+IF(TRIM(CLEAN(I70))="C+",2.5)+IF(TRIM(CLEAN(I70))="C",2)+IF(TRIM(CLEAN(I70))="D+",1.5)+IF(TRIM(CLEAN(I70))="D",1)+IF(TRIM(CLEAN(I70))="D*",1)+IF(TRIM(CLEAN(I70))="NU",0)+IF(TRIM(CLEAN(I70))="NA",0),"") -> 2 | P70: =O70 -> 2 | Q70: =IFERROR(IF(TRIM(CLEAN(K70))="A",4)+IF(TRIM(CLEAN(K70))="B+",3.5)+IF(TRIM(CLEAN(K70))="B",3)+IF(TRIM(CLEAN(K70))="C+",2.5)+IF(TRIM(CLEAN(K70))="C",2)+IF(TRIM(CLEAN(K70))="D+",1.5)+IF(TRIM(CLEAN(K70))="D",1)+IF(TRIM(CLEAN(K70))="D*",1)+IF(TRIM(CLEAN(K70))="NU",0)+IF(TRIM(CLEAN(K70))="NA",0),"") -> 1 | R70: =Q70 -> 1 | S70: =IFERROR(IF(N70=Profile!$E$250,IF(R70-P70<0,"-",IF(R70-P70>0,"+"," =")),"N.C."),"") -> - | T70: =IF(K70="D",Profile!F276, IF(K70="D+",Profile!F276, IF(K70="D*",Profile!F276, IF(K70="C",Profile!F277, IF(K70="C+",Profile!F278, IF(K70="B",Profile!F278, IF(K70="B+",Profile!F279, IF(K70="A",Profile!F279,"")))))))) -> 1. Below basic | U70: =IF(K70="A",Profile!F280, IF(K70="B+",Profile!F280, IF(K70="B",Profile!F280, IF(K70="D+",Profile!F281, IF(K70="D",Profile!F281, IF(K70="D*",Profile!F281, Profile!F282)))))) -> Weakness | V70: 0 | W70: 1 | X70: 0 | Y70: 3
A71: =H3 -> Pefalia | B71: 17.2 | D71: Comp | E71: IV | F71: =VLOOKUP(E71,Profile!A:B,2,FALSE) -> IV-Policy-based fiscal strategy and budgeting | G71: PI-17 | H71: =IFERROR(VLOOKUP(B71,Profile!A:B,2,FALSE),"") -> 17.2 Guidance on budget preparation | I71: D | J71: Two clear, comprehensive budget circulars are sent to budget units, setting out total budget expenditure for the entire financial year. Sectoral ministers are not involved in the preparation of directives, nor in setting spending ceilings. Detailed estimates are not reviewed and approved by the Council of Ministers. | K71: D | L71: A budget circular is issued to budgetary units, but it does not include ceilings for administrative or functional areas. | N71: Yes | O71: =IFERROR(IF(TRIM(CLEAN(I71))="A",4)+IF(TRIM(CLEAN(I71))="B+",3.5)+IF(TRIM(CLEAN(I71))="B",3)+IF(TRIM(CLEAN(I71))="C+",2.5)+IF(TRIM(CLEAN(I71))="C",2)+IF(TRIM(CLEAN(I71))="D+",1.5)+IF(TRIM(CLEAN(I71))="D",1)+IF(TRIM(CLEAN(I71))="D*",1)+IF(TRIM(CLEAN(I71))="NU",0)+IF(TRIM(CLEAN(I71))="NA",0),"") -> 1 | P71: 1 | Q71: =IFERROR(IF(TRIM(CLEAN(K71))="A",4)+IF(TRIM(CLEAN(K71))="B+",3.5)+IF(TRIM(CLEAN(K71))="B",3)+IF(TRIM(CLEAN(K71))="C+",2.5)+IF(TRIM(CLEAN(K71))="C",2)+IF(TRIM(CLEAN(K71))="D+",1.5)+IF(TRIM(CLEAN(K71))="D",1)+IF(TRIM(CLEAN(K71))="D*",1)+IF(TRIM(CLEAN(K71))="NU",0)+IF(TRIM(CLEAN(K71))="NA",0),"") -> 1 | R71: 1 | S71: =IFERROR(IF(N71=Profile!$E$250,IF(R71-P71<0,"-",IF(R71-P71>0,"+"," =")),"N.C."),"") -> = | T71: =IF(K71="D",Profile!F276, IF(K71="D+",Profile!F276, IF(K71="D*",Profile!F276, IF(K71="C",Profile!F277, IF(K71="C+",Profile!F278, IF(K71="B",Profile!F278, IF(K71="B+",Profile!F279, IF(K71="A",Profile!F279,"")))))))) -> 1. Below basic | U71: =IF(K71="A",Profile!F280, IF(K71="B+",Profile!F280, IF(K71="B",Profile!F280, IF(K71="D+",Profile!F281, IF(K71="D",Profile!F281, IF(K71="D*",Profile!F281, Profile!F282)))))) -> Weakness | V71: 0 | W71: 1 | X71: 0 | Y71: 3
A72: =H3 -> Pefalia | B72: 17.3 | D72: Comp | E72: IV | F72: =VLOOKUP(E72,Profile!A:B,2,FALSE) -> IV-Policy-based fiscal strategy and budgeting | G72: PI-17 | H72: =IFERROR(VLOOKUP(B72,Profile!A:B,2,FALSE),"") -> 17.3 Budget submission to the legislature | I72: D* | J72: The submission dates for the 2015, 2016 and 2017 FMPs are not yet known. | K72: C | L72: The executive has submitted the annual budget proposal to the legislature at least one month before the start of the fiscal year in all the last three years. | N72: Yes | O72: =IFERROR(IF(TRIM(CLEAN(I72))="A",4)+IF(TRIM(CLEAN(I72))="B+",3.5)+IF(TRIM(CLEAN(I72))="B",3)+IF(TRIM(CLEAN(I72))="C+",2.5)+IF(TRIM(CLEAN(I72))="C",2)+IF(TRIM(CLEAN(I72))="D+",1.5)+IF(TRIM(CLEAN(I72))="D",1)+IF(TRIM(CLEAN(I72))="D*",1)+IF(TRIM(CLEAN(I72))="NU",0)+IF(TRIM(CLEAN(I72))="NA",0),"") -> 1 | P72: 1 | Q72: =IFERROR(IF(TRIM(CLEAN(K72))="A",4)+IF(TRIM(CLEAN(K72))="B+",3.5)+IF(TRIM(CLEAN(K72))="B",3)+IF(TRIM(CLEAN(K72))="C+",2.5)+IF(TRIM(CLEAN(K72))="C",2)+IF(TRIM(CLEAN(K72))="D+",1.5)+IF(TRIM(CLEAN(K72))="D",1)+IF(TRIM(CLEAN(K72))="D*",1)+IF(TRIM(CLEAN(K72))="NU",0)+IF(TRIM(CLEAN(K72))="NA",0),"") -> 2 | R72: 2 | S72: =IFERROR(IF(N72=Profile!$E$250,IF(R72-P72<0,"-",IF(R72-P72>0,"+"," =")),"N.C."),"") -> + | T72: =IF(K72="D",Profile!F276, IF(K72="D+",Profile!F276, IF(K72="D*",Profile!F276, IF(K72="C",Profile!F277, IF(K72="C+",Profile!F278, IF(K72="B",Profile!F278, IF(K72="B+",Profile!F279, IF(K72="A",Profile!F279,"")))))))) -> 2. Basic | U72: =IF(K72="A",Profile!F280, IF(K72="B+",Profile!F280, IF(K72="B",Profile!F280, IF(K72="D+",Profile!F281, IF(K72="D",Profile!F281, IF(K72="D*",Profile!F281, Profile!F282)))))) -> Average | V72: 0 | W72: 1 | X72: 0 | Y72: 3
A73: =H3 -> Pefalia | B73: PI-18 | C73: M1 | D73: Indic | E73: IV | F73: =VLOOKUP(E73,Profile!A:B,2,FALSE) -> IV-Policy-based fiscal strategy and budgeting | G73: PI-18 | H73: =IFERROR(VLOOKUP(B73,Profile!A:B,2,FALSE),"") -> PI-18 Legislative scrutiny of budgets | I73: =IF(COUNTIFS($D:$D,"Comp",$G:$G,$G73)=COUNTIFS($D:$D,"Comp",$G:$G,$G73,I:I,"=NU"),"NU", IF(COUNTIFS($D:$D,"Comp",$G:$G,$G73)=COUNTIFS($D:$D,"Comp",$G:$G,$G73,I:I,"=NA")+COUNTIFS($D:$D,"Comp",$G:$G,$G73,I:I,"=NU"),"NA", IF(O73>3.65,"A", IF(O73>=3.25,"B+", IF(O73>2.65,"B", IF(O73>=2.25,"C+", IF(O73>1.75,"C", IF(O73>1.25,"D+", IF(AND(O73<=1.25,O73>0),"D", "" ))))))))) -> C+ | K73: =IF(COUNTIFS($D:$D,"Comp",$G:$G,$G73)=COUNTIFS($D:$D,"Comp",$G:$G,$G73,K:K,"=NU"),"NU", IF(COUNTIFS($D:$D,"Comp",$G:$G,$G73)=COUNTIFS($D:$D,"Comp",$G:$G,$G73,K:K,"=NA")+COUNTIFS($D:$D,"Comp",$G:$G,$G73,K:K,"=NU"),"NA", IF(Q73>3.65,"A", IF(Q73>=3.25,"B+", IF(Q73>2.65,"B", IF(Q73>=2.25,"C+", IF(Q73>1.75,"C", IF(Q73>1.25,"D+", IF(AND(Q73<=1.25,Q73>0),"D", "" ))))))))) -> C+ | N73: =IF(AND(N74=Profile!E250,N75=Profile!E250,N76=Profile!E250,N77=Profile!E250),Profile!E250,Profile!E251) -> Yes | O73: =IFERROR( (IF($C73="M1", IF(ROUND(AVERAGEIFS(O:O,$G:$G,$G73,$D:$D,"Comp",$O:$O,">0"),1)=ROUND(_xlfn.MINIFS(O:O,$G:$G,$G73,$D:$D,"Comp",$O:$O,">0"),1), AVERAGEIFS(O:O,$G:$G,$G73,$D:$D,"Comp",$O:$O,">0"),_xlfn.MINIFS(O:O,$G:$G,$G73,$D:$D,"Comp",$O:$O,">0")+0.5), AVERAGEIFS(O:O,$G:$G,$G73,$D:$D,"Comp",$O:$O,">0"))), 0) -> 2.5 | P73: =IF(I73="D",1, IF(I73="D*",1, IF(I73="D+",1.5, IF(I73="C",2, IF(I73="C+",2.5, IF(I73="B",3, IF(I73="B+",3.5, IF(I73="A",4, )))))))) -> 2.5 | Q73: =IFERROR( (IF($C73="M1", IF(ROUND(AVERAGEIFS(Q:Q,$G:$G,$G73,$D:$D,"Comp",$Q:$Q,">0"),1)=ROUND(_xlfn.MINIFS(Q:Q,$G:$G,$G73,$D:$D,"Comp",$Q:$Q,">0"),1), AVERAGEIFS(Q:Q,$G:$G,$G73,$D:$D,"Comp",$Q:$Q,">0"),_xlfn.MINIFS(Q:Q,$G:$G,$G73,$D:$D,"Comp",$Q:$Q,">0")+0.5), AVERAGEIFS(Q:Q,$G:$G,$G73,$D:$D,"Comp",$Q:$Q,">0"))), 0) -> 2.5 | R73: 2.5 | S73: =IFERROR(IF(N73=Profile!$E$250,IF(R73-P73<0,"-",IF(R73-P73>0,"+"," =")),"N.C."),"") -> = | T73: =IF(K73="D",Profile!F276, IF(K73="D+",Profile!F276, IF(K73="D*",Profile!F276, IF(K73="C",Profile!F277, IF(K73="C+",Profile!F278, IF(K73="B",Profile!F278, IF(K73="B+",Profile!F279, IF(K73="A",Profile!F279,"")))))))) -> 3. Sound | U73: =IF(K73="A",Profile!F280, IF(K73="B+",Profile!F280, IF(K73="B",Profile!F280, IF(K73="D+",Profile!F281, IF(K73="D",Profile!F281, IF(K73="D*",Profile!F281, Profile!F282)))))) -> Average | V73: 0 | W73: 1 | X73: 0 | Y73: =Y74 -> 4
A74: =H3 -> Pefalia | B74: 18.1 | D74: Comp | E74: IV | F74: =VLOOKUP(E74,Profile!A:B,2,FALSE) -> IV-Policy-based fiscal strategy and budgeting | G74: PI-18 | H74: =IFERROR(VLOOKUP(B74,Profile!A:B,2,FALSE),"") -> 18.1 Scope of budget scrutiny | I74: B | J74: Parliament's scrutiny covers macroeconomic aggregates for the coming year and detailed expenditure and revenue figures. | K74: B | L74: The legislature’s review covers fiscal policies and aggregates for the coming year, as well as detailed estimates of expenditure and revenue. However, they do not cover medium-term details of expenditure and revenue. | N74: Yes | O74: =IFERROR(IF(TRIM(CLEAN(I74))="A",4)+IF(TRIM(CLEAN(I74))="B+",3.5)+IF(TRIM(CLEAN(I74))="B",3)+IF(TRIM(CLEAN(I74))="C+",2.5)+IF(TRIM(CLEAN(I74))="C",2)+IF(TRIM(CLEAN(I74))="D+",1.5)+IF(TRIM(CLEAN(I74))="D",1)+IF(TRIM(CLEAN(I74))="D*",1)+IF(TRIM(CLEAN(I74))="NU",0)+IF(TRIM(CLEAN(I74))="NA",0),"") -> 3 | P74: =O74 -> 3 | Q74: =IFERROR(IF(TRIM(CLEAN(K74))="A",4)+IF(TRIM(CLEAN(K74))="B+",3.5)+IF(TRIM(CLEAN(K74))="B",3)+IF(TRIM(CLEAN(K74))="C+",2.5)+IF(TRIM(CLEAN(K74))="C",2)+IF(TRIM(CLEAN(K74))="D+",1.5)+IF(TRIM(CLEAN(K74))="D",1)+IF(TRIM(CLEAN(K74))="D*",1)+IF(TRIM(CLEAN(K74))="NU",0)+IF(TRIM(CLEAN(K74))="NA",0),"") -> 3 | R74: =Q74 -> 3 | S74: =IFERROR(IF(N74=Profile!$E$250,IF(R74-P74<0,"-",IF(R74-P74>0,"+"," =")),"N.C."),"") -> = | T74: =IF(K74="D",Profile!F276, IF(K74="D+",Profile!F276, IF(K74="D*",Profile!F276, IF(K74="C",Profile!F277, IF(K74="C+",Profile!F278, IF(K74="B",Profile!F278, IF(K74="B+",Profile!F279, IF(K74="A",Profile!F279,"")))))))) -> 3. Sound | U74: =IF(K74="A",Profile!F280, IF(K74="B+",Profile!F280, IF(K74="B",Profile!F280, IF(K74="D+",Profile!F281, IF(K74="D",Profile!F281, IF(K74="D*",Profile!F281, Profile!F282)))))) -> Strength | V74: 0 | W74: 1 | X74: 0 | Y74: 4
A75: =H3 -> Pefalia | B75: 18.2 | D75: Comp | E75: IV | F75: =VLOOKUP(E75,Profile!A:B,2,FALSE) -> IV-Policy-based fiscal strategy and budgeting | G75: PI-18 | H75: =IFERROR(VLOOKUP(B75,Profile!A:B,2,FALSE),"") -> 18.2 Legislative procedures for budget scrutiny | I75: B | J75: Budget review procedures are legally defined and applied. They cover internal organization, negotiation and amendment procedures. | K75: B | L75: Legislator procedures include internal legislative committees, technical support and negotiation procedures, but public consultations are not yet in place. | N75: Yes | O75: =IFERROR(IF(TRIM(CLEAN(I75))="A",4)+IF(TRIM(CLEAN(I75))="B+",3.5)+IF(TRIM(CLEAN(I75))="B",3)+IF(TRIM(CLEAN(I75))="C+",2.5)+IF(TRIM(CLEAN(I75))="C",2)+IF(TRIM(CLEAN(I75))="D+",1.5)+IF(TRIM(CLEAN(I75))="D",1)+IF(TRIM(CLEAN(I75))="D*",1)+IF(TRIM(CLEAN(I75))="NU",0)+IF(TRIM(CLEAN(I75))="NA",0),"") -> 3 | P75: 3 | Q75: =IFERROR(IF(TRIM(CLEAN(K75))="A",4)+IF(TRIM(CLEAN(K75))="B+",3.5)+IF(TRIM(CLEAN(K75))="B",3)+IF(TRIM(CLEAN(K75))="C+",2.5)+IF(TRIM(CLEAN(K75))="C",2)+IF(TRIM(CLEAN(K75))="D+",1.5)+IF(TRIM(CLEAN(K75))="D",1)+IF(TRIM(CLEAN(K75))="D*",1)+IF(TRIM(CLEAN(K75))="NU",0)+IF(TRIM(CLEAN(K75))="NA",0),"") -> 3 | R75: 3 | S75: =IFERROR(IF(N75=Profile!$E$250,IF(R75-P75<0,"-",IF(R75-P75>0,"+"," =")),"N.C."),"") -> = | T75: =IF(K75="D",Profile!F276, IF(K75="D+",Profile!F276, IF(K75="D*",Profile!F276, IF(K75="C",Profile!F277, IF(K75="C+",Profile!F278, IF(K75="B",Profile!F278, IF(K75="B+",Profile!F279, IF(K75="A",Profile!F279,"")))))))) -> 3. Sound | U75: =IF(K75="A",Profile!F280, IF(K75="B+",Profile!F280, IF(K75="B",Profile!F280, IF(K75="D+",Profile!F281, IF(K75="D",Profile!F281, IF(K75="D*",Profile!F281, Profile!F282)))))) -> Strength | V75: 0 | W75: 1 | X75: 0 | Y75: 4
A76: =H3 -> Pefalia | B76: 18.3 | D76: Comp | E76: IV | F76: =VLOOKUP(E76,Profile!A:B,2,FALSE) -> IV-Policy-based fiscal strategy and budgeting | G76: PI-18 | H76: =IFERROR(VLOOKUP(B76,Profile!A:B,2,FALSE),"") -> 18.3 Timing of budget approval | I76: A | J76: The legislature has approved the annual budget before the start of the fiscal year for each of the previous three years | K76: C | L76: The legislature has approved the annual budget within one month of the start of the year in two of the last three fiscal years. | N76: Yes | O76: =IFERROR(IF(TRIM(CLEAN(I76))="A",4)+IF(TRIM(CLEAN(I76))="B+",3.5)+IF(TRIM(CLEAN(I76))="B",3)+IF(TRIM(CLEAN(I76))="C+",2.5)+IF(TRIM(CLEAN(I76))="C",2)+IF(TRIM(CLEAN(I76))="D+",1.5)+IF(TRIM(CLEAN(I76))="D",1)+IF(TRIM(CLEAN(I76))="D*",1)+IF(TRIM(CLEAN(I76))="NU",0)+IF(TRIM(CLEAN(I76))="NA",0),"") -> 4 | P76: 4 | Q76: =IFERROR(IF(TRIM(CLEAN(K76))="A",4)+IF(TRIM(CLEAN(K76))="B+",3.5)+IF(TRIM(CLEAN(K76))="B",3)+IF(TRIM(CLEAN(K76))="C+",2.5)+IF(TRIM(CLEAN(K76))="C",2)+IF(TRIM(CLEAN(K76))="D+",1.5)+IF(TRIM(CLEAN(K76))="D",1)+IF(TRIM(CLEAN(K76))="D*",1)+IF(TRIM(CLEAN(K76))="NU",0)+IF(TRIM(CLEAN(K76))="NA",0),"") -> 2 | R76: 2 | S76: =IFERROR(IF(N76=Profile!$E$250,IF(R76-P76<0,"-",IF(R76-P76>0,"+"," =")),"N.C."),"") -> - | T76: =IF(K76="D",Profile!F276, IF(K76="D+",Profile!F276, IF(K76="D*",Profile!F276, IF(K76="C",Profile!F277, IF(K76="C+",Profile!F278, IF(K76="B",Profile!F278, IF(K76="B+",Profile!F279, IF(K76="A",Profile!F279,"")))))))) -> 2. Basic | U76: =IF(K76="A",Profile!F280, IF(K76="B+",Profile!F280, IF(K76="B",Profile!F280, IF(K76="D+",Profile!F281, IF(K76="D",Profile!F281, IF(K76="D*",Profile!F281, Profile!F282)))))) -> Average | V76: 0 | W76: 1 | X76: 0 | Y76: 4
A77: =H3 -> Pefalia | B77: 18.4 | D77: Comp | E77: IV | F77: =VLOOKUP(E77,Profile!A:B,2,FALSE) -> IV-Policy-based fiscal strategy and budgeting | G77: PI-18 | H77: =IFERROR(VLOOKUP(B77,Profile!A:B,2,FALSE),"") -> 18.4 Rules for budget adjustment by the executive | I77: C | J77: There are clear rules for budget adjustments during the year. These rules can authorize an increase in total expenditure and revenue. | K77: C | L77: Clear rules exist for in-year budget changes by the executive, but they allow for significant administrative reallocations. Moreover, it is not clear that they are followed in most cases. | N77: Yes | O77: =IFERROR(IF(TRIM(CLEAN(I77))="A",4)+IF(TRIM(CLEAN(I77))="B+",3.5)+IF(TRIM(CLEAN(I77))="B",3)+IF(TRIM(CLEAN(I77))="C+",2.5)+IF(TRIM(CLEAN(I77))="C",2)+IF(TRIM(CLEAN(I77))="D+",1.5)+IF(TRIM(CLEAN(I77))="D",1)+IF(TRIM(CLEAN(I77))="D*",1)+IF(TRIM(CLEAN(I77))="NU",0)+IF(TRIM(CLEAN(I77))="NA",0),"") -> 2 | P77: 2 | Q77: =IFERROR(IF(TRIM(CLEAN(K77))="A",4)+IF(TRIM(CLEAN(K77))="B+",3.5)+IF(TRIM(CLEAN(K77))="B",3)+IF(TRIM(CLEAN(K77))="C+",2.5)+IF(TRIM(CLEAN(K77))="C",2)+IF(TRIM(CLEAN(K77))="D+",1.5)+IF(TRIM(CLEAN(K77))="D",1)+IF(TRIM(CLEAN(K77))="D*",1)+IF(TRIM(CLEAN(K77))="NU",0)+IF(TRIM(CLEAN(K77))="NA",0),"") -> 2 | R77: 2 | S77: =IFERROR(IF(N77=Profile!$E$250,IF(R77-P77<0,"-",IF(R77-P77>0,"+"," =")),"N.C."),"") -> = | T77: =IF(K77="D",Profile!F276, IF(K77="D+",Profile!F276, IF(K77="D*",Profile!F276, IF(K77="C",Profile!F277, IF(K77="C+",Profile!F278, IF(K77="B",Profile!F278, IF(K77="B+",Profile!F279, IF(K77="A",Profile!F279,"")))))))) -> 2. Basic | U77: =IF(K77="A",Profile!F280, IF(K77="B+",Profile!F280, IF(K77="B",Profile!F280, IF(K77="D+",Profile!F281, IF(K77="D",Profile!F281, IF(K77="D*",Profile!F281, Profile!F282)))))) -> Average | V77: 0 | W77: 1 | X77: 0 | Y77: 4
A78: =H3 -> Pefalia | B78: V | D78: Pilar | E78: V | F78: =VLOOKUP(E78,Profile!A:B,2,FALSE) -> V-Predictability and control in budget execution | H78: =IFERROR(VLOOKUP(B78,Profile!A:B,2,FALSE),"") -> V-Predictability and control in budget execution | I78: =IF(COUNTIFS($D:$D,"Indic",$E:$E,$E78)=COUNTIFS($D:$D,"Indic",$E:$E,$E78,$I:$I,"=NU"),"NU", IF(COUNTIFS($D:$D,"Indic",$E:$E,$E78)=COUNTIFS($D:$D,"Indic",$E:$E,C79,$I:$I,"=NA"),"NA", IF(O78>3.65,"A", IF(O78>=3.25,"B+", IF(O78>2.65,"B", IF(O78>=2.25,"C+", IF(O78>1.75,"C", IF(O78>1.25,"D+", IF(AND(O78<=1.25,O78>0),"D", "" ))))))))) -> C | K78: =IF(COUNTIFS($D:$D,"Indic",$E:$E,E78)=COUNTIFS($D:$D,"Indic",$E:$E,E79,$K:$K,"=NU"),"NU", IF(COUNTIFS($D:$D,"Indic",$E:$E,E78)=COUNTIFS($D:$D,"Indic",$E:$E,E79,$K:$K,"=NA"),"NA", IF(Q78>3.65,"A", IF(Q78>=3.25,"B+", IF(Q78>2.65,"B", IF(Q78>=2.25,"C+", IF(Q78>1.75,"C", IF(Q78>1.25,"D+", IF(AND(Q78<=1.25,Q78>0),"D", "" ))))))))) -> C | N78: =IF(COUNTIFS(N79:N114,Profile!$E$250)=36,Profile!$E$250,Profile!$E$251) -> No | O78: =AVERAGEIFS(O:O,$D:$D,"Indic",$E:$E,$E78,O:O,">0") -> 1.854166667 | P78: =IF(I78="D",1, IF(I78="D*",1, IF(I78="D+",1.5, IF(I78="C",2, IF(I78="C+",2.5, IF(I78="B",3, IF(I78="B+",3.5, IF(I78="A",4, )))))))) -> 2 | Q78: =AVERAGEIFS(Q:Q,$D:$D,"Indic",$E:$E,$E78,Q:Q,">0") -> 1.864583333 | R78: 2 | S78: =IFERROR(IF(N78=Profile!$E$250,IF(R78-P78<0,"-",IF(R78-P78>0,"+"," =")),"N.C."),"") -> N.C. | T78: =IF(K78="D",Profile!F276, IF(K78="D+",Profile!F276, IF(K78="D*",Profile!F276, IF(K78="C",Profile!F277, IF(K78="C+",Profile!F278, IF(K78="B",Profile!F278, IF(K78="B+",Profile!F279, IF(K78="A",Profile!F279,"")))))))) -> 2. Basic | U78: =IF(K78="A",Profile!F280, IF(K78="B+",Profile!F280, IF(K78="B",Profile!F280, IF(K78="D+",Profile!F281, IF(K78="D",Profile!F281, IF(K78="D*",Profile!F281, Profile!F282)))))) -> Average
A79: =H3 -> Pefalia | B79: PI-19 | C79: M2 | D79: Indic | E79: V | F79: =VLOOKUP(E79,Profile!A:B,2,FALSE) -> V-Predictability and control in budget execution | G79: PI-19 | H79: =IFERROR(VLOOKUP(B79,Profile!A:B,2,FALSE),"") -> PI-19 Revenue administration | I79: =IF(COUNTIFS($D:$D,"Comp",$G:$G,$G79)=COUNTIFS($D:$D,"Comp",$G:$G,$G79,I:I,"=NU"),"NU", IF(COUNTIFS($D:$D,"Comp",$G:$G,$G79)=COUNTIFS($D:$D,"Comp",$G:$G,$G79,I:I,"=NA")+COUNTIFS($D:$D,"Comp",$G:$G,$G79,I:I,"=NU"),"NA", IF(O79>3.65,"A", IF(O79>=3.25,"B+", IF(O79>2.65,"B", IF(O79>=2.25,"C+", IF(O79>1.75,"C", IF(O79>1.25,"D+", IF(AND(O79<=1.25,O79>0),"D", "" ))))))))) -> D+ | K79: =IF(COUNTIFS($D:$D,"Comp",$G:$G,$G79)=COUNTIFS($D:$D,"Comp",$G:$G,$G79,K:K,"=NU"),"NU", IF(COUNTIFS($D:$D,"Comp",$G:$G,$G79)=COUNTIFS($D:$D,"Comp",$G:$G,$G79,K:K,"=NA")+COUNTIFS($D:$D,"Comp",$G:$G,$G79,K:K,"=NU"),"NA", IF(Q79>3.65,"A", IF(Q79>=3.25,"B+", IF(Q79>2.65,"B", IF(Q79>=2.25,"C+", IF(Q79>1.75,"C", IF(Q79>1.25,"D+", IF(AND(Q79<=1.25,Q79>0),"D", "" ))))))))) -> C+ | N79: =IF(AND(N80=Profile!E250,N81=Profile!E250,N82=Profile!E250,N83=Profile!E250),Profile!E250,Profile!E251) -> No | O79: =IFERROR( (IF($C79="M1", IF(ROUND(AVERAGEIFS(O:O,$G:$G,$G79,$D:$D,"Comp",$O:$O,">0"),1)=ROUND(_xlfn.MINIFS(O:O,$G:$G,$G79,$D:$D,"Comp",$O:$O,">0"),1), AVERAGEIFS(O:O,$G:$G,$G79,$D:$D,"Comp",$O:$O,">0"),_xlfn.MINIFS(O:O,$G:$G,$G79,$D:$D,"Comp",$O:$O,">0")+0.5), AVERAGEIFS(O:O,$G:$G,$G79,$D:$D,"Comp",$O:$O,">0"))), 0) -> 1.75 | P79: =IF(I79="D",1, IF(I79="D*",1, IF(I79="D+",1.5, IF(I79="C",2, IF(I79="C+",2.5, IF(I79="B",3, IF(I79="B+",3.5, IF(I79="A",4, )))))))) -> 1.5 | Q79: =IFERROR( (IF($C79="M1", IF(ROUND(AVERAGEIFS(Q:Q,$G:$G,$G79,$D:$D,"Comp",$Q:$Q,">0"),1)=ROUND(_xlfn.MINIFS(Q:Q,$G:$G,$G79,$D:$D,"Comp",$Q:$Q,">0"),1), AVERAGEIFS(Q:Q,$G:$G,$G79,$D:$D,"Comp",$Q:$Q,">0"),_xlfn.MINIFS(Q:Q,$G:$G,$G79,$D:$D,"Comp",$Q:$Q,">0")+0.5), AVERAGEIFS(Q:Q,$G:$G,$G79,$D:$D,"Comp",$Q:$Q,">0"))), 0) -> 2.5 | R79: =IF(K79="D",1, IF(K79="D+",1.5, IF(K79="C",2, IF(K79="C+",2.5, IF(K79="B",3, IF(K79="B+",3.5, IF(K79="A",4, ))))))) -> 2.5 | S79: =IFERROR(IF(N79=Profile!$E$250,IF(R79-P79<0,"-",IF(R79-P79>0,"+"," =")),"N.C."),"") -> N.C. | T79: =IF(K79="D",Profile!F276, IF(K79="D+",Profile!F276, IF(K79="D*",Profile!F276, IF(K79="C",Profile!F277, IF(K79="C+",Profile!F278, IF(K79="B",Profile!F278, IF(K79="B+",Profile!F279, IF(K79="A",Profile!F279,"")))))))) -> 3. Sound | U79: =IF(K79="A",Profile!F280, IF(K79="B+",Profile!F280, IF(K79="B",Profile!F280, IF(K79="D+",Profile!F281, IF(K79="D",Profile!F281, IF(K79="D*",Profile!F281, Profile!F282)))))) -> Average | V79: 0 | W79: 1 | X79: 1 | Y79: =Y80 -> 4
A80: =H3 -> Pefalia | B80: 19.1 | D80: Comp | E80: V | F80: =VLOOKUP(E80,Profile!A:B,2,FALSE) -> V-Predictability and control in budget execution | G80: PI-19 | H80: =IFERROR(VLOOKUP(B80,Profile!A:B,2,FALSE),"") -> 19.1 Rights and obligations for revenue measures | I80: A | J80: The DGI and DGD account for more than 80% of state budget revenues. Texts on tax and customs obligations are available on their websites. They also provide technical information sheets on the main taxes and duties, their declaration and collection procedures, and the conditions and procedures for contesting and appealing them. The DGI and DGD also organize direct information for certain categories of taxpayers (seminars; e-mails). | K80: A | L80: The Pefalian Revenue Authority (LRA) provides easy access and up-to-date information on taxpayers' obligations and rights, including appeal processes and procedures. | N80: No | O80: =IFERROR(IF(TRIM(CLEAN(I80))="A",4)+IF(TRIM(CLEAN(I80))="B+",3.5)+IF(TRIM(CLEAN(I80))="B",3)+IF(TRIM(CLEAN(I80))="C+",2.5)+IF(TRIM(CLEAN(I80))="C",2)+IF(TRIM(CLEAN(I80))="D+",1.5)+IF(TRIM(CLEAN(I80))="D",1)+IF(TRIM(CLEAN(I80))="D*",1)+IF(TRIM(CLEAN(I80))="NU",0)+IF(TRIM(CLEAN(I80))="NA",0),"") -> 4 | P80: =O80 -> 4 | Q80: =IFERROR(IF(TRIM(CLEAN(K80))="A",4)+IF(TRIM(CLEAN(K80))="B+",3.5)+IF(TRIM(CLEAN(K80))="B",3)+IF(TRIM(CLEAN(K80))="C+",2.5)+IF(TRIM(CLEAN(K80))="C",2)+IF(TRIM(CLEAN(K80))="D+",1.5)+IF(TRIM(CLEAN(K80))="D",1)+IF(TRIM(CLEAN(K80))="D*",1)+IF(TRIM(CLEAN(K80))="NU",0)+IF(TRIM(CLEAN(K80))="NA",0),"") -> 4 | R80: =Q80 -> 4 | S80: =IFERROR(IF(N80=Profile!$E$250,IF(R80-P80<0,"-",IF(R80-P80>0,"+"," =")),"N.C."),"") -> N.C. | T80: =IF(K80="D",Profile!F276, IF(K80="D+",Profile!F276, IF(K80="D*",Profile!F276, IF(K80="C",Profile!F277, IF(K80="C+",Profile!F278, IF(K80="B",Profile!F278, IF(K80="B+",Profile!F279, IF(K80="A",Profile!F279,"")))))))) -> 4. High | U80: =IF(K80="A",Profile!F280, IF(K80="B+",Profile!F280, IF(K80="B",Profile!F280, IF(K80="D+",Profile!F281, IF(K80="D",Profile!F281, IF(K80="D*",Profile!F281, Profile!F282)))))) -> Strength | V80: 0 | W80: 1 | X80: 1 | Y80: 4
A81: =H3 -> Pefalia | B81: 19.2 | D81: Comp | E81: V | F81: =VLOOKUP(E81,Profile!A:B,2,FALSE) -> V-Predictability and control in budget execution | G81: PI-19 | H81: =IFERROR(VLOOKUP(B81,Profile!A:B,2,FALSE),"") -> 19.2 Revenue risk management | I81: D | J81: The DGI and DGD do not yet systematically apply established methods, i.e. defined and documented, to assess risks and plan controls on this basis. The DGI and DGD do not yet have the capacity to assess risks, produce risk maps and establish investigation programs based on these tools. | K81: B | L81: LRA uses a structured and systematic approach for assessing and prioritising compliance risks for the majority of revenue streams. | N81: Yes | O81: =IFERROR(IF(TRIM(CLEAN(I81))="A",4)+IF(TRIM(CLEAN(I81))="B+",3.5)+IF(TRIM(CLEAN(I81))="B",3)+IF(TRIM(CLEAN(I81))="C+",2.5)+IF(TRIM(CLEAN(I81))="C",2)+IF(TRIM(CLEAN(I81))="D+",1.5)+IF(TRIM(CLEAN(I81))="D",1)+IF(TRIM(CLEAN(I81))="D*",1)+IF(TRIM(CLEAN(I81))="NU",0)+IF(TRIM(CLEAN(I81))="NA",0),"") -> 1 | P81: 1 | Q81: =IFERROR(IF(TRIM(CLEAN(K81))="A",4)+IF(TRIM(CLEAN(K81))="B+",3.5)+IF(TRIM(CLEAN(K81))="B",3)+IF(TRIM(CLEAN(K81))="C+",2.5)+IF(TRIM(CLEAN(K81))="C",2)+IF(TRIM(CLEAN(K81))="D+",1.5)+IF(TRIM(CLEAN(K81))="D",1)+IF(TRIM(CLEAN(K81))="D*",1)+IF(TRIM(CLEAN(K81))="NU",0)+IF(TRIM(CLEAN(K81))="NA",0),"") -> 3 | R81: 3 | S81: =IFERROR(IF(N81=Profile!$E$250,IF(R81-P81<0,"-",IF(R81-P81>0,"+"," =")),"N.C."),"") -> + | T81: =IF(K81="D",Profile!F276, IF(K81="D+",Profile!F276, IF(K81="D*",Profile!F276, IF(K81="C",Profile!F277, IF(K81="C+",Profile!F278, IF(K81="B",Profile!F278, IF(K81="B+",Profile!F279, IF(K81="A",Profile!F279,"")))))))) -> 3. Sound | U81: =IF(K81="A",Profile!F280, IF(K81="B+",Profile!F280, IF(K81="B",Profile!F280, IF(K81="D+",Profile!F281, IF(K81="D",Profile!F281, IF(K81="D*",Profile!F281, Profile!F282)))))) -> Strength | V81: 0 | W81: 1 | X81: 1 | Y81: 4
A82: =H3 -> Pefalia | B82: 19.3 | D82: Comp | E82: V | F82: =VLOOKUP(E82,Profile!A:B,2,FALSE) -> V-Predictability and control in budget execution | G82: PI-19 | H82: =IFERROR(VLOOKUP(B82,Profile!A:B,2,FALSE),"") -> 19.3 Revenue audit and investigation | I82: D | J82: In 2016, the DGI improved the organization of its survey programming and follow-up. The completion rate for surveys programmed by the DGI was low in 2016 (29%). For the two departments combined, the completion rate for scheduled surveys does not exceed 50%. | K82: C | L82: Entities collecting most government revenue undertake audits and fraud investigations using a compliance improvement plan. However, less than 75% of planned audits were completed. | N82: Yes | O82: =IFERROR(IF(TRIM(CLEAN(I82))="A",4)+IF(TRIM(CLEAN(I82))="B+",3.5)+IF(TRIM(CLEAN(I82))="B",3)+IF(TRIM(CLEAN(I82))="C+",2.5)+IF(TRIM(CLEAN(I82))="C",2)+IF(TRIM(CLEAN(I82))="D+",1.5)+IF(TRIM(CLEAN(I82))="D",1)+IF(TRIM(CLEAN(I82))="D*",1)+IF(TRIM(CLEAN(I82))="NU",0)+IF(TRIM(CLEAN(I82))="NA",0),"") -> 1 | P82: 1 | Q82: =IFERROR(IF(TRIM(CLEAN(K82))="A",4)+IF(TRIM(CLEAN(K82))="B+",3.5)+IF(TRIM(CLEAN(K82))="B",3)+IF(TRIM(CLEAN(K82))="C+",2.5)+IF(TRIM(CLEAN(K82))="C",2)+IF(TRIM(CLEAN(K82))="D+",1.5)+IF(TRIM(CLEAN(K82))="D",1)+IF(TRIM(CLEAN(K82))="D*",1)+IF(TRIM(CLEAN(K82))="NU",0)+IF(TRIM(CLEAN(K82))="NA",0),"") -> 2 | R82: 2 | S82: =IFERROR(IF(N82=Profile!$E$250,IF(R82-P82<0,"-",IF(R82-P82>0,"+"," =")),"N.C."),"") -> + | T82: =IF(K82="D",Profile!F276, IF(K82="D+",Profile!F276, IF(K82="D*",Profile!F276, IF(K82="C",Profile!F277, IF(K82="C+",Profile!F278, IF(K82="B",Profile!F278, IF(K82="B+",Profile!F279, IF(K82="A",Profile!F279,"")))))))) -> 2. Basic | U82: =IF(K82="A",Profile!F280, IF(K82="B+",Profile!F280, IF(K82="B",Profile!F280, IF(K82="D+",Profile!F281, IF(K82="D",Profile!F281, IF(K82="D*",Profile!F281, Profile!F282)))))) -> Average | V82: 0 | W82: 1 | X82: 1 | Y82: 4
A83: =H3 -> Pefalia | B83: 19.4 | D83: Comp | E83: V | F83: =VLOOKUP(E83,Profile!A:B,2,FALSE) -> V-Predictability and control in budget execution | G83: PI-19 | H83: =IFERROR(VLOOKUP(B83,Profile!A:B,2,FALSE),"") -> 19.4 Revenue arrears monitoring | I83: D | J83: Arrears at the end of 2016 represent 43.6% of the year's revenue, 95% of pre-2016 arrears and 885% of new 2016 arrears. | K83: D | L83: The stock of revenue arrears at the end of the last completed fiscal year was below 10 percent of the total revenue collection for the year but the revenue arrears older than 12 months was more than 75% of total revenue arrears. | N83: Yes | O83: =IFERROR(IF(TRIM(CLEAN(I83))="A",4)+IF(TRIM(CLEAN(I83))="B+",3.5)+IF(TRIM(CLEAN(I83))="B",3)+IF(TRIM(CLEAN(I83))="C+",2.5)+IF(TRIM(CLEAN(I83))="C",2)+IF(TRIM(CLEAN(I83))="D+",1.5)+IF(TRIM(CLEAN(I83))="D",1)+IF(TRIM(CLEAN(I83))="D*",1)+IF(TRIM(CLEAN(I83))="NU",0)+IF(TRIM(CLEAN(I83))="NA",0),"") -> 1 | P83: 1 | Q83: =IFERROR(IF(TRIM(CLEAN(K83))="A",4)+IF(TRIM(CLEAN(K83))="B+",3.5)+IF(TRIM(CLEAN(K83))="B",3)+IF(TRIM(CLEAN(K83))="C+",2.5)+IF(TRIM(CLEAN(K83))="C",2)+IF(TRIM(CLEAN(K83))="D+",1.5)+IF(TRIM(CLEAN(K83))="D",1)+IF(TRIM(CLEAN(K83))="D*",1)+IF(TRIM(CLEAN(K83))="NU",0)+IF(TRIM(CLEAN(K83))="NA",0),"") -> 1 | R83: 1 | S83: =IFERROR(IF(N83=Profile!$E$250,IF(R83-P83<0,"-",IF(R83-P83>0,"+"," =")),"N.C."),"") -> = | T83: =IF(K83="D",Profile!F276, IF(K83="D+",Profile!F276, IF(K83="D*",Profile!F276, IF(K83="C",Profile!F277, IF(K83="C+",Profile!F278, IF(K83="B",Profile!F278, IF(K83="B+",Profile!F279, IF(K83="A",Profile!F279,"")))))))) -> 1. Below basic | U83: =IF(K83="A",Profile!F280, IF(K83="B+",Profile!F280, IF(K83="B",Profile!F280, IF(K83="D+",Profile!F281, IF(K83="D",Profile!F281, IF(K83="D*",Profile!F281, Profile!F282)))))) -> Weakness | V83: 0 | W83: 1 | X83: 1 | Y83: 4
A84: =H3 -> Pefalia | B84: PI-20 | C84: M1 | D84: Indic | E84: V | F84: =VLOOKUP(E84,Profile!A:B,2,FALSE) -> V-Predictability and control in budget execution | G84: PI-20 | H84: =IFERROR(VLOOKUP(B84,Profile!A:B,2,FALSE),"") -> PI-20 Accounting for revenue | I84: =IF(COUNTIFS($D:$D,"Comp",$G:$G,$G84)=COUNTIFS($D:$D,"Comp",$G:$G,$G84,I:I,"=NU"),"NU", IF(COUNTIFS($D:$D,"Comp",$G:$G,$G84)=COUNTIFS($D:$D,"Comp",$G:$G,$G84,I:I,"=NA")+COUNTIFS($D:$D,"Comp",$G:$G,$G84,I:I,"=NU"),"NA", IF(O84>3.65,"A", IF(O84>=3.25,"B+", IF(O84>2.65,"B", IF(O84>=2.25,"C+", IF(O84>1.75,"C", IF(O84>1.25,"D+", IF(AND(O84<=1.25,O84>0),"D", "" ))))))))) -> B+ | K84: =IF(COUNTIFS($D:$D,"Comp",$G:$G,$G84)=COUNTIFS($D:$D,"Comp",$G:$G,$G84,K:K,"=NU"),"NU", IF(COUNTIFS($D:$D,"Comp",$G:$G,$G84)=COUNTIFS($D:$D,"Comp",$G:$G,$G84,K:K,"=NA")+COUNTIFS($D:$D,"Comp",$G:$G,$G84,K:K,"=NU"),"NA", IF(Q84>3.65,"A", IF(Q84>=3.25,"B+", IF(Q84>2.65,"B", IF(Q84>=2.25,"C+", IF(Q84>1.75,"C", IF(Q84>1.25,"D+", IF(AND(Q84<=1.25,Q84>0),"D", "" ))))))))) -> D+ | N84: =IF(AND(N85=Profile!E250,N86=Profile!E250,N87=Profile!E250),Profile!E250,Profile!E251) -> Yes | O84: =IFERROR( (IF($C84="M1", IF(ROUND(AVERAGEIFS(O:O,$G:$G,$G84,$D:$D,"Comp",$O:$O,">0"),1)=ROUND(_xlfn.MINIFS(O:O,$G:$G,$G84,$D:$D,"Comp",$O:$O,">0"),1), AVERAGEIFS(O:O,$G:$G,$G84,$D:$D,"Comp",$O:$O,">0"),_xlfn.MINIFS(O:O,$G:$G,$G84,$D:$D,"Comp",$O:$O,">0")+0.5), AVERAGEIFS(O:O,$G:$G,$G84,$D:$D,"Comp",$O:$O,">0"))), 0) -> 3.5 | P84: =IF(I84="D",1, IF(I84="D*",1, IF(I84="D+",1.5, IF(I84="C",2, IF(I84="C+",2.5, IF(I84="B",3, IF(I84="B+",3.5, IF(I84="A",4, )))))))) -> 3.5 | Q84: =IFERROR( (IF($C84="M1", IF(ROUND(AVERAGEIFS(Q:Q,$G:$G,$G84,$D:$D,"Comp",$Q:$Q,">0"),1)=ROUND(_xlfn.MINIFS(Q:Q,$G:$G,$G84,$D:$D,"Comp",$Q:$Q,">0"),1), AVERAGEIFS(Q:Q,$G:$G,$G84,$D:$D,"Comp",$Q:$Q,">0"),_xlfn.MINIFS(Q:Q,$G:$G,$G84,$D:$D,"Comp",$Q:$Q,">0")+0.5), AVERAGEIFS(Q:Q,$G:$G,$G84,$D:$D,"Comp",$Q:$Q,">0"))), 0) -> 1.5 | R84: 1.5 | S84: =IFERROR(IF(N84=Profile!$E$250,IF(R84-P84<0,"-",IF(R84-P84>0,"+"," =")),"N.C."),"") -> - | T84: =IF(K84="D",Profile!F276, IF(K84="D+",Profile!F276, IF(K84="D*",Profile!F276, IF(K84="C",Profile!F277, IF(K84="C+",Profile!F278, IF(K84="B",Profile!F278, IF(K84="B+",Profile!F279, IF(K84="A",Profile!F279,"")))))))) -> 1. Below basic | U84: =IF(K84="A",Profile!F280, IF(K84="B+",Profile!F280, IF(K84="B",Profile!F280, IF(K84="D+",Profile!F281, IF(K84="D",Profile!F281, IF(K84="D*",Profile!F281, Profile!F282)))))) -> Weakness | V84: 0 | W84: 1 | X84: 1 | Y84: =Y85 -> 3
A85: =H3 -> Pefalia | B85: 20.1 | D85: Comp | E85: V | F85: =VLOOKUP(E85,Profile!A:B,2,FALSE) -> V-Predictability and control in budget execution | G85: PI-20 | H85: =IFERROR(VLOOKUP(B85,Profile!A:B,2,FALSE),"") -> 20.1 Information on revenue collections | I85: B | J85: By the 10th of each month at the latest, the Treasury's central departments receive from the regions all the accounting balances of the general treasuries, including details of revenue by type of tax. The system for exchanging information on revenues collected does not include revenues entrusted to SNH (nearly 12% of total revenues in 2016). | K85: A | L85: Pefalia Revenue Authority (LRA) obtains weekly data from entities collecting all central government revenue. This information is broken down by revenue type and is consolidated into a report. | N85: Yes | O85: =IFERROR(IF(TRIM(CLEAN(I85))="A",4)+IF(TRIM(CLEAN(I85))="B+",3.5)+IF(TRIM(CLEAN(I85))="B",3)+IF(TRIM(CLEAN(I85))="C+",2.5)+IF(TRIM(CLEAN(I85))="C",2)+IF(TRIM(CLEAN(I85))="D+",1.5)+IF(TRIM(CLEAN(I85))="D",1)+IF(TRIM(CLEAN(I85))="D*",1)+IF(TRIM(CLEAN(I85))="NU",0)+IF(TRIM(CLEAN(I85))="NA",0),"") -> 3 | P85: =O85 -> 3 | Q85: =IFERROR(IF(TRIM(CLEAN(K85))="A",4)+IF(TRIM(CLEAN(K85))="B+",3.5)+IF(TRIM(CLEAN(K85))="B",3)+IF(TRIM(CLEAN(K85))="C+",2.5)+IF(TRIM(CLEAN(K85))="C",2)+IF(TRIM(CLEAN(K85))="D+",1.5)+IF(TRIM(CLEAN(K85))="D",1)+IF(TRIM(CLEAN(K85))="D*",1)+IF(TRIM(CLEAN(K85))="NU",0)+IF(TRIM(CLEAN(K85))="NA",0),"") -> 4 | R85: =Q85 -> 4 | S85: =IFERROR(IF(N85=Profile!$E$250,IF(R85-P85<0,"-",IF(R85-P85>0,"+"," =")),"N.C."),"") -> + | T85: =IF(K85="D",Profile!F276, IF(K85="D+",Profile!F276, IF(K85="D*",Profile!F276, IF(K85="C",Profile!F277, IF(K85="C+",Profile!F278, IF(K85="B",Profile!F278, IF(K85="B+",Profile!F279, IF(K85="A",Profile!F279,"")))))))) -> 4. High | U85: =IF(K85="A",Profile!F280, IF(K85="B+",Profile!F280, IF(K85="B",Profile!F280, IF(K85="D+",Profile!F281, IF(K85="D",Profile!F281, IF(K85="D*",Profile!F281, Profile!F282)))))) -> Strength | V85: 0 | W85: 1 | X85: 1 | Y85: 3
A86: =H3 -> Pefalia | B86: 20.2 | D86: Comp | E86: V | F86: =VLOOKUP(E86,Profile!A:B,2,FALSE) -> V-Predictability and control in budget execution | G86: PI-20 | H86: =IFERROR(VLOOKUP(B86,Profile!A:B,2,FALSE),"") -> 20.2 Transfer of revenue collections | I86: A | J86: With the exception of cash payments, which account for a very small proportion, tax and duty payments are made via banks, transferred to Treasury accounts in real time or the next day using the Systac and Sygma systems, and entered in the Treasury accounts within the same timeframe. | K86: A | L86: All tax revenue is paid directly into the Consolidated Fund Account or transfers to the Treasury are made daily. | N86: Yes | O86: =IFERROR(IF(TRIM(CLEAN(I86))="A",4)+IF(TRIM(CLEAN(I86))="B+",3.5)+IF(TRIM(CLEAN(I86))="B",3)+IF(TRIM(CLEAN(I86))="C+",2.5)+IF(TRIM(CLEAN(I86))="C",2)+IF(TRIM(CLEAN(I86))="D+",1.5)+IF(TRIM(CLEAN(I86))="D",1)+IF(TRIM(CLEAN(I86))="D*",1)+IF(TRIM(CLEAN(I86))="NU",0)+IF(TRIM(CLEAN(I86))="NA",0),"") -> 4 | P86: 4 | Q86: =IFERROR(IF(TRIM(CLEAN(K86))="A",4)+IF(TRIM(CLEAN(K86))="B+",3.5)+IF(TRIM(CLEAN(K86))="B",3)+IF(TRIM(CLEAN(K86))="C+",2.5)+IF(TRIM(CLEAN(K86))="C",2)+IF(TRIM(CLEAN(K86))="D+",1.5)+IF(TRIM(CLEAN(K86))="D",1)+IF(TRIM(CLEAN(K86))="D*",1)+IF(TRIM(CLEAN(K86))="NU",0)+IF(TRIM(CLEAN(K86))="NA",0),"") -> 4 | R86: 4 | S86: =IFERROR(IF(N86=Profile!$E$250,IF(R86-P86<0,"-",IF(R86-P86>0,"+"," =")),"N.C."),"") -> = | T86: =IF(K86="D",Profile!F276, IF(K86="D+",Profile!F276, IF(K86="D*",Profile!F276, IF(K86="C",Profile!F277, IF(K86="C+",Profile!F278, IF(K86="B",Profile!F278, IF(K86="B+",Profile!F279, IF(K86="A",Profile!F279,"")))))))) -> 4. High | U86: =IF(K86="A",Profile!F280, IF(K86="B+",Profile!F280, IF(K86="B",Profile!F280, IF(K86="D+",Profile!F281, IF(K86="D",Profile!F281, IF(K86="D*",Profile!F281, Profile!F282)))))) -> Strength | V86: 0 | W86: 1 | X86: 1 | Y86: 3
A87: =H3 -> Pefalia | B87: 20.3 | D87: Comp | E87: V | F87: =VLOOKUP(E87,Profile!A:B,2,FALSE) -> V-Predictability and control in budget execution | G87: PI-20 | H87: =IFERROR(VLOOKUP(B87,Profile!A:B,2,FALSE),"") -> 20.3 Revenue accounts reconciliation | I87: A | J87: Reconciliations between Treasury administration departments and revenue agencies are carried out every month, before the 10th of the following month at regional level and before the 20th of the month at central level. Reconciliations are complete. | K87: D | L87: Pefalian Revenue Authority (LRA) does not prepare a consolidated Revenue Accounts Reconciliation. | N87: Yes | O87: =IFERROR(IF(TRIM(CLEAN(I87))="A",4)+IF(TRIM(CLEAN(I87))="B+",3.5)+IF(TRIM(CLEAN(I87))="B",3)+IF(TRIM(CLEAN(I87))="C+",2.5)+IF(TRIM(CLEAN(I87))="C",2)+IF(TRIM(CLEAN(I87))="D+",1.5)+IF(TRIM(CLEAN(I87))="D",1)+IF(TRIM(CLEAN(I87))="D*",1)+IF(TRIM(CLEAN(I87))="NU",0)+IF(TRIM(CLEAN(I87))="NA",0),"") -> 4 | P87: 4 | Q87: =IFERROR(IF(TRIM(CLEAN(K87))="A",4)+IF(TRIM(CLEAN(K87))="B+",3.5)+IF(TRIM(CLEAN(K87))="B",3)+IF(TRIM(CLEAN(K87))="C+",2.5)+IF(TRIM(CLEAN(K87))="C",2)+IF(TRIM(CLEAN(K87))="D+",1.5)+IF(TRIM(CLEAN(K87))="D",1)+IF(TRIM(CLEAN(K87))="D*",1)+IF(TRIM(CLEAN(K87))="NU",0)+IF(TRIM(CLEAN(K87))="NA",0),"") -> 1 | R87: 1 | S87: =IFERROR(IF(N87=Profile!$E$250,IF(R87-P87<0,"-",IF(R87-P87>0,"+"," =")),"N.C."),"") -> - | T87: =IF(K87="D",Profile!F276, IF(K87="D+",Profile!F276, IF(K87="D*",Profile!F276, IF(K87="C",Profile!F277, IF(K87="C+",Profile!F278, IF(K87="B",Profile!F278, IF(K87="B+",Profile!F279, IF(K87="A",Profile!F279,"")))))))) -> 1. Below basic | U87: =IF(K87="A",Profile!F280, IF(K87="B+",Profile!F280, IF(K87="B",Profile!F280, IF(K87="D+",Profile!F281, IF(K87="D",Profile!F281, IF(K87="D*",Profile!F281, Profile!F282)))))) -> Weakness | V87: 0 | W87: 1 | X87: 1 | Y87: 3
A88: =H3 -> Pefalia | B88: PI-21 | C88: M2 | D88: Indic | E88: V | F88: =VLOOKUP(E88,Profile!A:B,2,FALSE) -> V-Predictability and control in budget execution | G88: PI-21 | H88: =IFERROR(VLOOKUP(B88,Profile!A:B,2,FALSE),"") -> PI-21 Predictability of in_year resource allocation | I88: =IF(COUNTIFS($D:$D,"Comp",$G:$G,$G88)=COUNTIFS($D:$D,"Comp",$G:$G,$G88,I:I,"=NU"),"NU", IF(COUNTIFS($D:$D,"Comp",$G:$G,$G88)=COUNTIFS($D:$D,"Comp",$G:$G,$G88,I:I,"=NA")+COUNTIFS($D:$D,"Comp",$G:$G,$G88,I:I,"=NU"),"NA", IF(O88>3.65,"A", IF(O88>=3.25,"B+", IF(O88>2.65,"B", IF(O88>=2.25,"C+", IF(O88>1.75,"C", IF(O88>1.25,"D+", IF(AND(O88<=1.25,O88>0),"D", "" ))))))))) -> C | K88: =IF(COUNTIFS($D:$D,"Comp",$G:$G,$G88)=COUNTIFS($D:$D,"Comp",$G:$G,$G88,K:K,"=NU"),"NU", IF(COUNTIFS($D:$D,"Comp",$G:$G,$G88)=COUNTIFS($D:$D,"Comp",$G:$G,$G88,K:K,"=NA")+COUNTIFS($D:$D,"Comp",$G:$G,$G88,K:K,"=NU"),"NA", IF(Q88>3.65,"A", IF(Q88>=3.25,"B+", IF(Q88>2.65,"B", IF(Q88>=2.25,"C+", IF(Q88>1.75,"C", IF(Q88>1.25,"D+", IF(AND(Q88<=1.25,Q88>0),"D", "" ))))))))) -> B | N88: =IF(AND(N89=Profile!E250,N90=Profile!E250,N91=Profile!E250,N92=Profile!E250),Profile!E250,Profile!E251) -> Yes | O88: =IFERROR( (IF($C88="M1", IF(ROUND(AVERAGEIFS(O:O,$G:$G,$G88,$D:$D,"Comp",$O:$O,">0"),1)=ROUND(_xlfn.MINIFS(O:O,$G:$G,$G88,$D:$D,"Comp",$O:$O,">0"),1), AVERAGEIFS(O:O,$G:$G,$G88,$D:$D,"Comp",$O:$O,">0"),_xlfn.MINIFS(O:O,$G:$G,$G88,$D:$D,"Comp",$O:$O,">0")+0.5), AVERAGEIFS(O:O,$G:$G,$G88,$D:$D,"Comp",$O:$O,">0"))), 0) -> 2 | P88: =IF(I88="D",1, IF(I88="D*",1, IF(I88="D+",1.5, IF(I88="C",2, IF(I88="C+",2.5, IF(I88="B",3, IF(I88="B+",3.5, IF(I88="A",4, )))))))) -> 2 | Q88: =IFERROR( (IF($C88="M1", IF(ROUND(AVERAGEIFS(Q:Q,$G:$G,$G88,$D:$D,"Comp",$Q:$Q,">0"),1)=ROUND(_xlfn.MINIFS(Q:Q,$G:$G,$G88,$D:$D,"Comp",$Q:$Q,">0"),1), AVERAGEIFS(Q:Q,$G:$G,$G88,$D:$D,"Comp",$Q:$Q,">0"),_xlfn.MINIFS(Q:Q,$G:$G,$G88,$D:$D,"Comp",$Q:$Q,">0")+0.5), AVERAGEIFS(Q:Q,$G:$G,$G88,$D:$D,"Comp",$Q:$Q,">0"))), 0) -> 3 | R88: 3 | S88: =IFERROR(IF(N88=Profile!$E$250,IF(R88-P88<0,"-",IF(R88-P88>0,"+"," =")),"N.C."),"") -> + | T88: =IF(K88="D",Profile!F276, IF(K88="D+",Profile!F276, IF(K88="D*",Profile!F276, IF(K88="C",Profile!F277, IF(K88="C+",Profile!F278, IF(K88="B",Profile!F278, IF(K88="B+",Profile!F279, IF(K88="A",Profile!F279,"")))))))) -> 3. Sound | U88: =IF(K88="A",Profile!F280, IF(K88="B+",Profile!F280, IF(K88="B",Profile!F280, IF(K88="D+",Profile!F281, IF(K88="D",Profile!F281, IF(K88="D*",Profile!F281, Profile!F282)))))) -> Strength | V88: 1 | W88: 0 | X88: 1 | Y88: =Y89 -> 4
A89: =H3 -> Pefalia | B89: 21.1 | D89: Comp | E89: V | F89: =VLOOKUP(E89,Profile!A:B,2,FALSE) -> V-Predictability and control in budget execution | G89: PI-21 | H89: =IFERROR(VLOOKUP(B89,Profile!A:B,2,FALSE),"") -> 21.1 Consolidation of cash balances | I89: D | J89: The Treasury consolidates all cash balances on its network accounts on a monthly basis. Deposits held by central government entities in commercial banks are not monitored or consolidated by the Treasury. Taking these deposits into account, the cash consolidated each month by the Treasury represents between 50% and 70% of total liquid assets. | K89: A | L89: Bank and cash balances are consolidated daily into the TSA. However, extra-budgetary funds remain outside the arrangement. | N89: Yes | O89: =IFERROR(IF(TRIM(CLEAN(I89))="A",4)+IF(TRIM(CLEAN(I89))="B+",3.5)+IF(TRIM(CLEAN(I89))="B",3)+IF(TRIM(CLEAN(I89))="C+",2.5)+IF(TRIM(CLEAN(I89))="C",2)+IF(TRIM(CLEAN(I89))="D+",1.5)+IF(TRIM(CLEAN(I89))="D",1)+IF(TRIM(CLEAN(I89))="D*",1)+IF(TRIM(CLEAN(I89))="NU",0)+IF(TRIM(CLEAN(I89))="NA",0),"") -> 1 | P89: =O89 -> 1 | Q89: =IFERROR(IF(TRIM(CLEAN(K89))="A",4)+IF(TRIM(CLEAN(K89))="B+",3.5)+IF(TRIM(CLEAN(K89))="B",3)+IF(TRIM(CLEAN(K89))="C+",2.5)+IF(TRIM(CLEAN(K89))="C",2)+IF(TRIM(CLEAN(K89))="D+",1.5)+IF(TRIM(CLEAN(K89))="D",1)+IF(TRIM(CLEAN(K89))="D*",1)+IF(TRIM(CLEAN(K89))="NU",0)+IF(TRIM(CLEAN(K89))="NA",0),"") -> 4 | R89: =Q89 -> 4 | S89: =IFERROR(IF(N89=Profile!$E$250,IF(R89-P89<0,"-",IF(R89-P89>0,"+"," =")),"N.C."),"") -> + | T89: =IF(K89="D",Profile!F276, IF(K89="D+",Profile!F276, IF(K89="D*",Profile!F276, IF(K89="C",Profile!F277, IF(K89="C+",Profile!F278, IF(K89="B",Profile!F278, IF(K89="B+",Profile!F279, IF(K89="A",Profile!F279,"")))))))) -> 4. High | U89: =IF(K89="A",Profile!F280, IF(K89="B+",Profile!F280, IF(K89="B",Profile!F280, IF(K89="D+",Profile!F281, IF(K89="D",Profile!F281, IF(K89="D*",Profile!F281, Profile!F282)))))) -> Strength | V89: 1 | W89: 0 | X89: 1 | Y89: 4
A90: =H3 -> Pefalia | B90: 21.2 | D90: Comp | E90: V | F90: =VLOOKUP(E90,Profile!A:B,2,FALSE) -> V-Predictability and control in budget execution | G90: PI-21 | H90: =IFERROR(VLOOKUP(B90,Profile!A:B,2,FALSE),"") -> 21.2 Cash forecasting and monitoring | I90: A | J90: The Treasury Department draws up a monthly cash flow plan and updates it each month on the basis of actual income and expenditure. However, the capacity of the cash management framework is limited, as is the usefulness of cash flow plans, due to inadequate forecasting capabilities and procedures for cash in advance, release of funds and direct intervention . | K90: A | L90: A cash flow forecast is prepared for the fiscal year and is updated monthly based on actual cash inflows and outflows. | N90: Yes | O90: =IFERROR(IF(TRIM(CLEAN(I90))="A",4)+IF(TRIM(CLEAN(I90))="B+",3.5)+IF(TRIM(CLEAN(I90))="B",3)+IF(TRIM(CLEAN(I90))="C+",2.5)+IF(TRIM(CLEAN(I90))="C",2)+IF(TRIM(CLEAN(I90))="D+",1.5)+IF(TRIM(CLEAN(I90))="D",1)+IF(TRIM(CLEAN(I90))="D*",1)+IF(TRIM(CLEAN(I90))="NU",0)+IF(TRIM(CLEAN(I90))="NA",0),"") -> 4 | P90: 4 | Q90: =IFERROR(IF(TRIM(CLEAN(K90))="A",4)+IF(TRIM(CLEAN(K90))="B+",3.5)+IF(TRIM(CLEAN(K90))="B",3)+IF(TRIM(CLEAN(K90))="C+",2.5)+IF(TRIM(CLEAN(K90))="C",2)+IF(TRIM(CLEAN(K90))="D+",1.5)+IF(TRIM(CLEAN(K90))="D",1)+IF(TRIM(CLEAN(K90))="D*",1)+IF(TRIM(CLEAN(K90))="NU",0)+IF(TRIM(CLEAN(K90))="NA",0),"") -> 4 | R90: 4 | S90: =IFERROR(IF(N90=Profile!$E$250,IF(R90-P90<0,"-",IF(R90-P90>0,"+"," =")),"N.C."),"") -> = | T90: =IF(K90="D",Profile!F276, IF(K90="D+",Profile!F276, IF(K90="D*",Profile!F276, IF(K90="C",Profile!F277, IF(K90="C+",Profile!F278, IF(K90="B",Profile!F278, IF(K90="B+",Profile!F279, IF(K90="A",Profile!F279,"")))))))) -> 4. High | U90: =IF(K90="A",Profile!F280, IF(K90="B+",Profile!F280, IF(K90="B",Profile!F280, IF(K90="D+",Profile!F281, IF(K90="D",Profile!F281, IF(K90="D*",Profile!F281, Profile!F282)))))) -> Strength | V90: 1 | W90: 0 | X90: 1 | Y90: 4
A91: =H3 -> Pefalia | B91: 21.3 | D91: Comp | E91: V | F91: =VLOOKUP(E91,Profile!A:B,2,FALSE) -> V-Predictability and control in budget execution | G91: PI-21 | H91: =IFERROR(VLOOKUP(B91,Profile!A:B,2,FALSE),"") -> 21.3 Information on commitment ceilings | I91: D | J91: In practice, ministries do not have reliable information on commitment ceilings. | K91: C | L91: Spending entities are provided reliable information on resources available for commitments only one month in advance. | N91: Yes | O91: =IFERROR(IF(TRIM(CLEAN(I91))="A",4)+IF(TRIM(CLEAN(I91))="B+",3.5)+IF(TRIM(CLEAN(I91))="B",3)+IF(TRIM(CLEAN(I91))="C+",2.5)+IF(TRIM(CLEAN(I91))="C",2)+IF(TRIM(CLEAN(I91))="D+",1.5)+IF(TRIM(CLEAN(I91))="D",1)+IF(TRIM(CLEAN(I91))="D*",1)+IF(TRIM(CLEAN(I91))="NU",0)+IF(TRIM(CLEAN(I91))="NA",0),"") -> 1 | P91: 1 | Q91: =IFERROR(IF(TRIM(CLEAN(K91))="A",4)+IF(TRIM(CLEAN(K91))="B+",3.5)+IF(TRIM(CLEAN(K91))="B",3)+IF(TRIM(CLEAN(K91))="C+",2.5)+IF(TRIM(CLEAN(K91))="C",2)+IF(TRIM(CLEAN(K91))="D+",1.5)+IF(TRIM(CLEAN(K91))="D",1)+IF(TRIM(CLEAN(K91))="D*",1)+IF(TRIM(CLEAN(K91))="NU",0)+IF(TRIM(CLEAN(K91))="NA",0),"") -> 2 | R91: 2 | S91: =IFERROR(IF(N91=Profile!$E$250,IF(R91-P91<0,"-",IF(R91-P91>0,"+"," =")),"N.C."),"") -> + | T91: =IF(K91="D",Profile!F276, IF(K91="D+",Profile!F276, IF(K91="D*",Profile!F276, IF(K91="C",Profile!F277, IF(K91="C+",Profile!F278, IF(K91="B",Profile!F278, IF(K91="B+",Profile!F279, IF(K91="A",Profile!F279,"")))))))) -> 2. Basic | U91: =IF(K91="A",Profile!F280, IF(K91="B+",Profile!F280, IF(K91="B",Profile!F280, IF(K91="D+",Profile!F281, IF(K91="D",Profile!F281, IF(K91="D*",Profile!F281, Profile!F282)))))) -> Average | V91: 1 | W91: 0 | X91: 1 | Y91: 4
A92: =H3 -> Pefalia | B92: 21.4 | D92: Comp | E92: V | F92: =VLOOKUP(E92,Profile!A:B,2,FALSE) -> V-Predictability and control in budget execution | G92: PI-21 | H92: =IFERROR(VLOOKUP(B92,Profile!A:B,2,FALSE),"") -> 21.4 Significance of in-year budget adjustments | I92: C | J92: Credit transfers are frequent and transparent. Credits earmarked under the precautionary blocking procedure and direct intervention expenditure are non-transparent reallocations of resources. | K92: C | L92: Significant in-year adjustments are frequent. They are done in a transparent, but not predictable way. | N92: Yes | O92: =IFERROR(IF(TRIM(CLEAN(I92))="A",4)+IF(TRIM(CLEAN(I92))="B+",3.5)+IF(TRIM(CLEAN(I92))="B",3)+IF(TRIM(CLEAN(I92))="C+",2.5)+IF(TRIM(CLEAN(I92))="C",2)+IF(TRIM(CLEAN(I92))="D+",1.5)+IF(TRIM(CLEAN(I92))="D",1)+IF(TRIM(CLEAN(I92))="D*",1)+IF(TRIM(CLEAN(I92))="NU",0)+IF(TRIM(CLEAN(I92))="NA",0),"") -> 2 | P92: 2 | Q92: =IFERROR(IF(TRIM(CLEAN(K92))="A",4)+IF(TRIM(CLEAN(K92))="B+",3.5)+IF(TRIM(CLEAN(K92))="B",3)+IF(TRIM(CLEAN(K92))="C+",2.5)+IF(TRIM(CLEAN(K92))="C",2)+IF(TRIM(CLEAN(K92))="D+",1.5)+IF(TRIM(CLEAN(K92))="D",1)+IF(TRIM(CLEAN(K92))="D*",1)+IF(TRIM(CLEAN(K92))="NU",0)+IF(TRIM(CLEAN(K92))="NA",0),"") -> 2 | R92: 2 | S92: =IFERROR(IF(N92=Profile!$E$250,IF(R92-P92<0,"-",IF(R92-P92>0,"+"," =")),"N.C."),"") -> = | T92: =IF(K92="D",Profile!F276, IF(K92="D+",Profile!F276, IF(K92="D*",Profile!F276, IF(K92="C",Profile!F277, IF(K92="C+",Profile!F278, IF(K92="B",Profile!F278, IF(K92="B+",Profile!F279, IF(K92="A",Profile!F279,"")))))))) -> 2. Basic | U92: =IF(K92="A",Profile!F280, IF(K92="B+",Profile!F280, IF(K92="B",Profile!F280, IF(K92="D+",Profile!F281, IF(K92="D",Profile!F281, IF(K92="D*",Profile!F281, Profile!F282)))))) -> Average | V92: 1 | W92: 0 | X92: 1 | Y92: 4
A93: =H3 -> Pefalia | B93: PI-22 | C93: M1 | D93: Indic | E93: V | F93: =VLOOKUP(E93,Profile!A:B,2,FALSE) -> V-Predictability and control in budget execution | G93: PI-22 | H93: =IFERROR(VLOOKUP(B93,Profile!A:B,2,FALSE),"") -> PI-22 Expenditure arrears | I93: =IF(COUNTIFS($D:$D,"Comp",$G:$G,$G93)=COUNTIFS($D:$D,"Comp",$G:$G,$G93,I:I,"=NU"),"NU", IF(COUNTIFS($D:$D,"Comp",$G:$G,$G93)=COUNTIFS($D:$D,"Comp",$G:$G,$G93,I:I,"=NA")+COUNTIFS($D:$D,"Comp",$G:$G,$G93,I:I,"=NU"),"NA", IF(O93>3.65,"A", IF(O93>=3.25,"B+", IF(O93>2.65,"B", IF(O93>=2.25,"C+", IF(O93>1.75,"C", IF(O93>1.25,"D+", IF(AND(O93<=1.25,O93>0),"D", "" ))))))))) -> D | K93: =IF(COUNTIFS($D:$D,"Comp",$G:$G,$G93)=COUNTIFS($D:$D,"Comp",$G:$G,$G93,K:K,"=NU"),"NU", IF(COUNTIFS($D:$D,"Comp",$G:$G,$G93)=COUNTIFS($D:$D,"Comp",$G:$G,$G93,K:K,"=NA")+COUNTIFS($D:$D,"Comp",$G:$G,$G93,K:K,"=NU"),"NA", IF(Q93>3.65,"A", IF(Q93>=3.25,"B+", IF(Q93>2.65,"B", IF(Q93>=2.25,"C+", IF(Q93>1.75,"C", IF(Q93>1.25,"D+", IF(AND(Q93<=1.25,Q93>0),"D", "" ))))))))) -> D | N93: =IF(AND(N94=Profile!E250,N95=Profile!E250),Profile!E250,Profile!E251) -> Yes | O93: =IFERROR( (IF($C93="M1", IF(ROUND(AVERAGEIFS(O:O,$G:$G,$G93,$D:$D,"Comp",$O:$O,">0"),1)=ROUND(_xlfn.MINIFS(O:O,$G:$G,$G93,$D:$D,"Comp",$O:$O,">0"),1), AVERAGEIFS(O:O,$G:$G,$G93,$D:$D,"Comp",$O:$O,">0"),_xlfn.MINIFS(O:O,$G:$G,$G93,$D:$D,"Comp",$O:$O,">0")+0.5), AVERAGEIFS(O:O,$G:$G,$G93,$D:$D,"Comp",$O:$O,">0"))), 0) -> 1 | P93: =IF(I93="D",1, IF(I93="D*",1, IF(I93="D+",1.5, IF(I93="C",2, IF(I93="C+",2.5, IF(I93="B",3, IF(I93="B+",3.5, IF(I93="A",4, )))))))) -> 1 | Q93: =IFERROR( (IF($C93="M1", IF(ROUND(AVERAGEIFS(Q:Q,$G:$G,$G93,$D:$D,"Comp",$Q:$Q,">0"),1)=ROUND(_xlfn.MINIFS(Q:Q,$G:$G,$G93,$D:$D,"Comp",$Q:$Q,">0"),1), AVERAGEIFS(Q:Q,$G:$G,$G93,$D:$D,"Comp",$Q:$Q,">0"),_xlfn.MINIFS(Q:Q,$G:$G,$G93,$D:$D,"Comp",$Q:$Q,">0")+0.5), AVERAGEIFS(Q:Q,$G:$G,$G93,$D:$D,"Comp",$Q:$Q,">0"))), 0) -> 1 | R93: 1 | S93: =IFERROR(IF(N93=Profile!$E$250,IF(R93-P93<0,"-",IF(R93-P93>0,"+"," =")),"N.C."),"") -> = | T93: =IF(K93="D",Profile!F276, IF(K93="D+",Profile!F276, IF(K93="D*",Profile!F276, IF(K93="C",Profile!F277, IF(K93="C+",Profile!F278, IF(K93="B",Profile!F278, IF(K93="B+",Profile!F279, IF(K93="A",Profile!F279,"")))))))) -> 1. Below basic | U93: =IF(K93="A",Profile!F280, IF(K93="B+",Profile!F280, IF(K93="B",Profile!F280, IF(K93="D+",Profile!F281, IF(K93="D",Profile!F281, IF(K93="D*",Profile!F281, Profile!F282)))))) -> Weakness | V93: 1 | W93: 0 | X93: 0 | Y93: =Y94 -> 2
A94: =H3 -> Pefalia | B94: 22.1 | D94: Comp | E94: V | F94: =VLOOKUP(E94,Profile!A:B,2,FALSE) -> V-Predictability and control in budget execution | G94: PI-22 | H94: =IFERROR(VLOOKUP(B94,Profile!A:B,2,FALSE),"") -> 22.1 Stock of expenditure arrears | I94: D* | J94: Payment arrears exist and their amounts are significant (over 6% of total annual expenditure). However, the data available does not allow us to determine the level at which they fall in relation to the thresholds defined for the indicator's rating. | K94: D* | L94: The stock of expenditure arrears to suppliers was more than 50% of total. Information about the other types of arrears was not available. | N94: Yes | O94: =IFERROR(IF(TRIM(CLEAN(I94))="A",4)+IF(TRIM(CLEAN(I94))="B+",3.5)+IF(TRIM(CLEAN(I94))="B",3)+IF(TRIM(CLEAN(I94))="C+",2.5)+IF(TRIM(CLEAN(I94))="C",2)+IF(TRIM(CLEAN(I94))="D+",1.5)+IF(TRIM(CLEAN(I94))="D",1)+IF(TRIM(CLEAN(I94))="D*",1)+IF(TRIM(CLEAN(I94))="NU",0)+IF(TRIM(CLEAN(I94))="NA",0),"") -> 1 | P94: =O94 -> 1 | Q94: =IFERROR(IF(TRIM(CLEAN(K94))="A",4)+IF(TRIM(CLEAN(K94))="B+",3.5)+IF(TRIM(CLEAN(K94))="B",3)+IF(TRIM(CLEAN(K94))="C+",2.5)+IF(TRIM(CLEAN(K94))="C",2)+IF(TRIM(CLEAN(K94))="D+",1.5)+IF(TRIM(CLEAN(K94))="D",1)+IF(TRIM(CLEAN(K94))="D*",1)+IF(TRIM(CLEAN(K94))="NU",0)+IF(TRIM(CLEAN(K94))="NA",0),"") -> 1 | R94: =Q94 -> 1 | S94: =IFERROR(IF(N94=Profile!$E$250,IF(R94-P94<0,"-",IF(R94-P94>0,"+"," =")),"N.C."),"") -> = | T94: =IF(K94="D",Profile!F276, IF(K94="D+",Profile!F276, IF(K94="D*",Profile!F276, IF(K94="C",Profile!F277, IF(K94="C+",Profile!F278, IF(K94="B",Profile!F278, IF(K94="B+",Profile!F279, IF(K94="A",Profile!F279,"")))))))) -> 1. Below basic | U94: =IF(K94="A",Profile!F280, IF(K94="B+",Profile!F280, IF(K94="B",Profile!F280, IF(K94="D+",Profile!F281, IF(K94="D",Profile!F281, IF(K94="D*",Profile!F281, Profile!F282)))))) -> Weakness | V94: 1 | W94: 0 | X94: 0 | Y94: 2
A95: =H3 -> Pefalia | B95: 22.2 | D95: Comp | E95: V | F95: =VLOOKUP(E95,Profile!A:B,2,FALSE) -> V-Predictability and control in budget execution | G95: PI-22 | H95: =IFERROR(VLOOKUP(B95,Profile!A:B,2,FALSE),"") -> 22.2 Expenditure arrears monitoring | I95: D | J95: Minfi departments do not regularly produce, either during or at the end of the year, a complete statement of payment arrears. | K95: D* | L95: Data on the stock and composition of expenditure arrears is produced when annual financial statements are prepared. The monitoring is not done for all types of arrears. | N95: Yes | O95: =IFERROR(IF(TRIM(CLEAN(I95))="A",4)+IF(TRIM(CLEAN(I95))="B+",3.5)+IF(TRIM(CLEAN(I95))="B",3)+IF(TRIM(CLEAN(I95))="C+",2.5)+IF(TRIM(CLEAN(I95))="C",2)+IF(TRIM(CLEAN(I95))="D+",1.5)+IF(TRIM(CLEAN(I95))="D",1)+IF(TRIM(CLEAN(I95))="D*",1)+IF(TRIM(CLEAN(I95))="NU",0)+IF(TRIM(CLEAN(I95))="NA",0),"") -> 1 | P95: 1 | Q95: =IFERROR(IF(TRIM(CLEAN(K95))="A",4)+IF(TRIM(CLEAN(K95))="B+",3.5)+IF(TRIM(CLEAN(K95))="B",3)+IF(TRIM(CLEAN(K95))="C+",2.5)+IF(TRIM(CLEAN(K95))="C",2)+IF(TRIM(CLEAN(K95))="D+",1.5)+IF(TRIM(CLEAN(K95))="D",1)+IF(TRIM(CLEAN(K95))="D*",1)+IF(TRIM(CLEAN(K95))="NU",0)+IF(TRIM(CLEAN(K95))="NA",0),"") -> 1 | R95: 1 | S95: =IFERROR(IF(N95=Profile!$E$250,IF(R95-P95<0,"-",IF(R95-P95>0,"+"," =")),"N.C."),"") -> = | T95: =IF(K95="D",Profile!F276, IF(K95="D+",Profile!F276, IF(K95="D*",Profile!F276, IF(K95="C",Profile!F277, IF(K95="C+",Profile!F278, IF(K95="B",Profile!F278, IF(K95="B+",Profile!F279, IF(K95="A",Profile!F279,"")))))))) -> 1. Below basic | U95: =IF(K95="A",Profile!F280, IF(K95="B+",Profile!F280, IF(K95="B",Profile!F280, IF(K95="D+",Profile!F281, IF(K95="D",Profile!F281, IF(K95="D*",Profile!F281, Profile!F282)))))) -> Weakness | V95: 1 | W95: 0 | X95: 0 | Y95: 2
A96: =H3 -> Pefalia | B96: PI-23 | C96: M1 | D96: Indic | E96: V | F96: =VLOOKUP(E96,Profile!A:B,2,FALSE) -> V-Predictability and control in budget execution | G96: PI-23 | H96: =IFERROR(VLOOKUP(B96,Profile!A:B,2,FALSE),"") -> PI-23 Payroll controls | I96: =IF(COUNTIFS($D:$D,"Comp",$G:$G,$G96)=COUNTIFS($D:$D,"Comp",$G:$G,$G96,I:I,"=NU"),"NU", IF(COUNTIFS($D:$D,"Comp",$G:$G,$G96)=COUNTIFS($D:$D,"Comp",$G:$G,$G96,I:I,"=NA")+COUNTIFS($D:$D,"Comp",$G:$G,$G96,I:I,"=NU"),"NA", IF(O96>3.65,"A", IF(O96>=3.25,"B+", IF(O96>2.65,"B", IF(O96>=2.25,"C+", IF(O96>1.75,"C", IF(O96>1.25,"D+", IF(AND(O96<=1.25,O96>0),"D", "" ))))))))) -> D+ | K96: =IF(COUNTIFS($D:$D,"Comp",$G:$G,$G96)=COUNTIFS($D:$D,"Comp",$G:$G,$G96,K:K,"=NU"),"NU", IF(COUNTIFS($D:$D,"Comp",$G:$G,$G96)=COUNTIFS($D:$D,"Comp",$G:$G,$G96,K:K,"=NA")+COUNTIFS($D:$D,"Comp",$G:$G,$G96,K:K,"=NU"),"NA", IF(Q96>3.65,"A", IF(Q96>=3.25,"B+", IF(Q96>2.65,"B", IF(Q96>=2.25,"C+", IF(Q96>1.75,"C", IF(Q96>1.25,"D+", IF(AND(Q96<=1.25,Q96>0),"D", "" ))))))))) -> D+ | N96: =IF(AND(N97=Profile!E250,N98=Profile!E250,N99=Profile!E250,N100=Profile!E250),Profile!E250,Profile!E251) -> Yes | O96: =IFERROR( (IF($C96="M1", IF(ROUND(AVERAGEIFS(O:O,$G:$G,$G96,$D:$D,"Comp",$O:$O,">0"),1)=ROUND(_xlfn.MINIFS(O:O,$G:$G,$G96,$D:$D,"Comp",$O:$O,">0"),1), AVERAGEIFS(O:O,$G:$G,$G96,$D:$D,"Comp",$O:$O,">0"),_xlfn.MINIFS(O:O,$G:$G,$G96,$D:$D,"Comp",$O:$O,">0")+0.5), AVERAGEIFS(O:O,$G:$G,$G96,$D:$D,"Comp",$O:$O,">0"))), 0) -> 1.5 | P96: =IF(I96="D",1, IF(I96="D*",1, IF(I96="D+",1.5, IF(I96="C",2, IF(I96="C+",2.5, IF(I96="B",3, IF(I96="B+",3.5, IF(I96="A",4, )))))))) -> 1.5 | Q96: =IFERROR( (IF($C96="M1", IF(ROUND(AVERAGEIFS(Q:Q,$G:$G,$G96,$D:$D,"Comp",$Q:$Q,">0"),1)=ROUND(_xlfn.MINIFS(Q:Q,$G:$G,$G96,$D:$D,"Comp",$Q:$Q,">0"),1), AVERAGEIFS(Q:Q,$G:$G,$G96,$D:$D,"Comp",$Q:$Q,">0"),_xlfn.MINIFS(Q:Q,$G:$G,$G96,$D:$D,"Comp",$Q:$Q,">0")+0.5), AVERAGEIFS(Q:Q,$G:$G,$G96,$D:$D,"Comp",$Q:$Q,">0"))), 0) -> 1.5 | R96: 1.5 | S96: =IFERROR(IF(N96=Profile!$E$250,IF(R96-P96<0,"-",IF(R96-P96>0,"+"," =")),"N.C."),"") -> = | T96: =IF(K96="D",Profile!F276, IF(K96="D+",Profile!F276, IF(K96="D*",Profile!F276, IF(K96="C",Profile!F277, IF(K96="C+",Profile!F278, IF(K96="B",Profile!F278, IF(K96="B+",Profile!F279, IF(K96="A",Profile!F279,"")))))))) -> 1. Below basic | U96: =IF(K96="A",Profile!F280, IF(K96="B+",Profile!F280, IF(K96="B",Profile!F280, IF(K96="D+",Profile!F281, IF(K96="D",Profile!F281, IF(K96="D*",Profile!F281, Profile!F282)))))) -> Weakness | V96: 0 | W96: 0 | X96: 1 | Y96: =Y97 -> 4
A97: =H3 -> Pefalia | B97: 23.1 | D97: Comp | E97: V | F97: =VLOOKUP(E97,Profile!A:B,2,FALSE) -> V-Predictability and control in budget execution | G97: PI-23 | H97: =IFERROR(VLOOKUP(B97,Profile!A:B,2,FALSE),"") -> 23.1 Integration of payroll and personnel records | I97: D | J97: SIGIPES personnel files and ANTILOPE payroll records are not integrated. Recruitment, promotion and advancement are not based on a duly-approved staffing table or job list, or checked against budget allocations. | K97: D* | L97: Approved staff list, personnel database, and payroll are not directly linked. Staff hiring and promotion is controlled by a list of approved staff positions. All changes made to personnel records are reconciled manually against the previous month’s payroll data, but monthly reconciliation data was not provided. | N97: Yes | O97: =IFERROR(IF(TRIM(CLEAN(I97))="A",4)+IF(TRIM(CLEAN(I97))="B+",3.5)+IF(TRIM(CLEAN(I97))="B",3)+IF(TRIM(CLEAN(I97))="C+",2.5)+IF(TRIM(CLEAN(I97))="C",2)+IF(TRIM(CLEAN(I97))="D+",1.5)+IF(TRIM(CLEAN(I97))="D",1)+IF(TRIM(CLEAN(I97))="D*",1)+IF(TRIM(CLEAN(I97))="NU",0)+IF(TRIM(CLEAN(I97))="NA",0),"") -> 1 | P97: =O97 -> 1 | Q97: =IFERROR(IF(TRIM(CLEAN(K97))="A",4)+IF(TRIM(CLEAN(K97))="B+",3.5)+IF(TRIM(CLEAN(K97))="B",3)+IF(TRIM(CLEAN(K97))="C+",2.5)+IF(TRIM(CLEAN(K97))="C",2)+IF(TRIM(CLEAN(K97))="D+",1.5)+IF(TRIM(CLEAN(K97))="D",1)+IF(TRIM(CLEAN(K97))="D*",1)+IF(TRIM(CLEAN(K97))="NU",0)+IF(TRIM(CLEAN(K97))="NA",0),"") -> 1 | R97: =Q97 -> 1 | S97: =IFERROR(IF(N97=Profile!$E$250,IF(R97-P97<0,"-",IF(R97-P97>0,"+"," =")),"N.C."),"") -> = | T97: =IF(K97="D",Profile!F276, IF(K97="D+",Profile!F276, IF(K97="D*",Profile!F276, IF(K97="C",Profile!F277, IF(K97="C+",Profile!F278, IF(K97="B",Profile!F278, IF(K97="B+",Profile!F279, IF(K97="A",Profile!F279,"")))))))) -> 1. Below basic | U97: =IF(K97="A",Profile!F280, IF(K97="B+",Profile!F280, IF(K97="B",Profile!F280, IF(K97="D+",Profile!F281, IF(K97="D",Profile!F281, IF(K97="D*",Profile!F281, Profile!F282)))))) -> Weakness | V97: 0 | W97: 0 | X97: 1 | Y97: 4
A98: =H3 -> Pefalia | B98: 23.2 | D98: Comp | E98: V | F98: =VLOOKUP(E98,Profile!A:B,2,FALSE) -> V-Predictability and control in budget execution | G98: PI-23 | H98: =IFERROR(VLOOKUP(B98,Profile!A:B,2,FALSE),"") -> 23.2 Management of payroll changes | I98: D | J98: The frequency with which changes to the personnel file and payroll are taken into account is not predefined. These modifications take place over relatively long periods (up to 4 years) and give rise to salary reminders, which in 2015 amounted to 10.81% of total payroll. | K98: D* | L98: Changes to the personnel records and payroll are usually updated monthly, but no information was provided on personnel records and payroll updates. | N98: Yes | O98: =IFERROR(IF(TRIM(CLEAN(I98))="A",4)+IF(TRIM(CLEAN(I98))="B+",3.5)+IF(TRIM(CLEAN(I98))="B",3)+IF(TRIM(CLEAN(I98))="C+",2.5)+IF(TRIM(CLEAN(I98))="C",2)+IF(TRIM(CLEAN(I98))="D+",1.5)+IF(TRIM(CLEAN(I98))="D",1)+IF(TRIM(CLEAN(I98))="D*",1)+IF(TRIM(CLEAN(I98))="NU",0)+IF(TRIM(CLEAN(I98))="NA",0),"") -> 1 | P98: 1 | Q98: =IFERROR(IF(TRIM(CLEAN(K98))="A",4)+IF(TRIM(CLEAN(K98))="B+",3.5)+IF(TRIM(CLEAN(K98))="B",3)+IF(TRIM(CLEAN(K98))="C+",2.5)+IF(TRIM(CLEAN(K98))="C",2)+IF(TRIM(CLEAN(K98))="D+",1.5)+IF(TRIM(CLEAN(K98))="D",1)+IF(TRIM(CLEAN(K98))="D*",1)+IF(TRIM(CLEAN(K98))="NU",0)+IF(TRIM(CLEAN(K98))="NA",0),"") -> 1 | R98: 1 | S98: =IFERROR(IF(N98=Profile!$E$250,IF(R98-P98<0,"-",IF(R98-P98>0,"+"," =")),"N.C."),"") -> = | T98: =IF(K98="D",Profile!F276, IF(K98="D+",Profile!F276, IF(K98="D*",Profile!F276, IF(K98="C",Profile!F277, IF(K98="C+",Profile!F278, IF(K98="B",Profile!F278, IF(K98="B+",Profile!F279, IF(K98="A",Profile!F279,"")))))))) -> 1. Below basic | U98: =IF(K98="A",Profile!F280, IF(K98="B+",Profile!F280, IF(K98="B",Profile!F280, IF(K98="D+",Profile!F281, IF(K98="D",Profile!F281, IF(K98="D*",Profile!F281, Profile!F282)))))) -> Weakness | V98: 0 | W98: 0 | X98: 1 | Y98: 4
A99: =H3 -> Pefalia | B99: 23.3 | D99: Comp | E99: V | F99: =VLOOKUP(E99,Profile!A:B,2,FALSE) -> V-Predictability and control in budget execution | G99: PI-23 | H99: =IFERROR(VLOOKUP(B99,Profile!A:B,2,FALSE),"") -> 23.3 Internal control of payroll | I99: D | J99: Numerous pay chain controls are in place, but the errors in liquidation and/or undue payment of wages reported by audit missions are indicative of their ineffectiveness. The current system does not ensure the integrity of payroll data | K99: C | L99: Sufficient controls exist but only to ensure integrity of the payroll data of greatest importance. Contractors were still not part of the payroll at the time of the assessment. | N99: Yes | O99: =IFERROR(IF(TRIM(CLEAN(I99))="A",4)+IF(TRIM(CLEAN(I99))="B+",3.5)+IF(TRIM(CLEAN(I99))="B",3)+IF(TRIM(CLEAN(I99))="C+",2.5)+IF(TRIM(CLEAN(I99))="C",2)+IF(TRIM(CLEAN(I99))="D+",1.5)+IF(TRIM(CLEAN(I99))="D",1)+IF(TRIM(CLEAN(I99))="D*",1)+IF(TRIM(CLEAN(I99))="NU",0)+IF(TRIM(CLEAN(I99))="NA",0),"") -> 1 | P99: 1 | Q99: =IFERROR(IF(TRIM(CLEAN(K99))="A",4)+IF(TRIM(CLEAN(K99))="B+",3.5)+IF(TRIM(CLEAN(K99))="B",3)+IF(TRIM(CLEAN(K99))="C+",2.5)+IF(TRIM(CLEAN(K99))="C",2)+IF(TRIM(CLEAN(K99))="D+",1.5)+IF(TRIM(CLEAN(K99))="D",1)+IF(TRIM(CLEAN(K99))="D*",1)+IF(TRIM(CLEAN(K99))="NU",0)+IF(TRIM(CLEAN(K99))="NA",0),"") -> 2 | R99: 2 | S99: =IFERROR(IF(N99=Profile!$E$250,IF(R99-P99<0,"-",IF(R99-P99>0,"+"," =")),"N.C."),"") -> + | T99: =IF(K99="D",Profile!F276, IF(K99="D+",Profile!F276, IF(K99="D*",Profile!F276, IF(K99="C",Profile!F277, IF(K99="C+",Profile!F278, IF(K99="B",Profile!F278, IF(K99="B+",Profile!F279, IF(K99="A",Profile!F279,"")))))))) -> 2. Basic | U99: =IF(K99="A",Profile!F280, IF(K99="B+",Profile!F280, IF(K99="B",Profile!F280, IF(K99="D+",Profile!F281, IF(K99="D",Profile!F281, IF(K99="D*",Profile!F281, Profile!F282)))))) -> Average | V99: 0 | W99: 0 | X99: 1 | Y99: 4
A100: =H3 -> Pefalia | B100: 23.4 | D100: Comp | E100: V | F100: =VLOOKUP(E100,Profile!A:B,2,FALSE) -> V-Predictability and control in budget execution | G100: PI-23 | H100: =IFERROR(VLOOKUP(B100,Profile!A:B,2,FALSE),"") -> 23.4 Payroll audit | I100: C | J100: A general personnel census of all central public administration entities has not been organized in the last three years. However, in 2016, MINFI carried out audits of personnel management and pay processing structures in fifteen ministries. These audits covered the fiscal years 2011 to 2015 | K100: C | L100: Partial payroll audits or staff surveys have been undertaken within the last three completed fiscal years. General auditor undertook payroll audit in 2019. | N100: Yes | O100: =IFERROR(IF(TRIM(CLEAN(I100))="A",4)+IF(TRIM(CLEAN(I100))="B+",3.5)+IF(TRIM(CLEAN(I100))="B",3)+IF(TRIM(CLEAN(I100))="C+",2.5)+IF(TRIM(CLEAN(I100))="C",2)+IF(TRIM(CLEAN(I100))="D+",1.5)+IF(TRIM(CLEAN(I100))="D",1)+IF(TRIM(CLEAN(I100))="D*",1)+IF(TRIM(CLEAN(I100))="NU",0)+IF(TRIM(CLEAN(I100))="NA",0),"") -> 2 | P100: 2 | Q100: =IFERROR(IF(TRIM(CLEAN(K100))="A",4)+IF(TRIM(CLEAN(K100))="B+",3.5)+IF(TRIM(CLEAN(K100))="B",3)+IF(TRIM(CLEAN(K100))="C+",2.5)+IF(TRIM(CLEAN(K100))="C",2)+IF(TRIM(CLEAN(K100))="D+",1.5)+IF(TRIM(CLEAN(K100))="D",1)+IF(TRIM(CLEAN(K100))="D*",1)+IF(TRIM(CLEAN(K100))="NU",0)+IF(TRIM(CLEAN(K100))="NA",0),"") -> 2 | R100: 2 | S100: =IFERROR(IF(N100=Profile!$E$250,IF(R100-P100<0,"-",IF(R100-P100>0,"+"," =")),"N.C."),"") -> = | T100: =IF(K100="D",Profile!F276, IF(K100="D+",Profile!F276, IF(K100="D*",Profile!F276, IF(K100="C",Profile!F277, IF(K100="C+",Profile!F278, IF(K100="B",Profile!F278, IF(K100="B+",Profile!F279, IF(K100="A",Profile!F279,"")))))))) -> 2. Basic | U100: =IF(K100="A",Profile!F280, IF(K100="B+",Profile!F280, IF(K100="B",Profile!F280, IF(K100="D+",Profile!F281, IF(K100="D",Profile!F281, IF(K100="D*",Profile!F281, Profile!F282)))))) -> Average | V100: 0 | W100: 0 | X100: 1 | Y100: 4
A101: =H3 -> Pefalia | B101: PI-24 | C101: M2 | D101: Indic | E101: V | F101: =VLOOKUP(E101,Profile!A:B,2,FALSE) -> V-Predictability and control in budget execution | G101: PI-24 | H101: =IFERROR(VLOOKUP(B101,Profile!A:B,2,FALSE),"") -> PI-24 Procurement management | I101: =IF(COUNTIFS($D:$D,"Comp",$G:$G,$G101)=COUNTIFS($D:$D,"Comp",$G:$G,$G101,I:I,"=NU"),"NU", IF(COUNTIFS($D:$D,"Comp",$G:$G,$G101)=COUNTIFS($D:$D,"Comp",$G:$G,$G101,I:I,"=NA")+COUNTIFS($D:$D,"Comp",$G:$G,$G101,I:I,"=NU"),"NA", IF(O101>3.65,"A", IF(O101>=3.25,"B+", IF(O101>2.65,"B", IF(O101>=2.25,"C+", IF(O101>1.75,"C", IF(O101>1.25,"D+", IF(AND(O101<=1.25,O101>0),"D", "" ))))))))) -> D+ | K101: =IF(COUNTIFS($D:$D,"Comp",$G:$G,$G101)=COUNTIFS($D:$D,"Comp",$G:$G,$G101,K:K,"=NU"),"NU", IF(COUNTIFS($D:$D,"Comp",$G:$G,$G101)=COUNTIFS($D:$D,"Comp",$G:$G,$G101,K:K,"=NA")+COUNTIFS($D:$D,"Comp",$G:$G,$G101,K:K,"=NU"),"NA", IF(Q101>3.65,"A", IF(Q101>=3.25,"B+", IF(Q101>2.65,"B", IF(Q101>=2.25,"C+", IF(Q101>1.75,"C", IF(Q101>1.25,"D+", IF(AND(Q101<=1.25,Q101>0),"D", "" ))))))))) -> D | N101: =IF(AND(N102=Profile!E250,N103=Profile!E250,N104=Profile!E250,N105=Profile!E250),Profile!E250,Profile!E251) -> Yes | O101: =IFERROR( (IF($C101="M1", IF(ROUND(AVERAGEIFS(O:O,$G:$G,$G101,$D:$D,"Comp",$O:$O,">0"),1)=ROUND(_xlfn.MINIFS(O:O,$G:$G,$G101,$D:$D,"Comp",$O:$O,">0"),1), AVERAGEIFS(O:O,$G:$G,$G101,$D:$D,"Comp",$O:$O,">0"),_xlfn.MINIFS(O:O,$G:$G,$G101,$D:$D,"Comp",$O:$O,">0")+0.5), AVERAGEIFS(O:O,$G:$G,$G101,$D:$D,"Comp",$O:$O,">0"))), 0) -> 1.75 | P101: =IF(I101="D",1, IF(I101="D*",1, IF(I101="D+",1.5, IF(I101="C",2, IF(I101="C+",2.5, IF(I101="B",3, IF(I101="B+",3.5, IF(I101="A",4, )))))))) -> 1.5 | Q101: =IFERROR( (IF($C101="M1", IF(ROUND(AVERAGEIFS(Q:Q,$G:$G,$G101,$D:$D,"Comp",$Q:$Q,">0"),1)=ROUND(_xlfn.MINIFS(Q:Q,$G:$G,$G101,$D:$D,"Comp",$Q:$Q,">0"),1), AVERAGEIFS(Q:Q,$G:$G,$G101,$D:$D,"Comp",$Q:$Q,">0"),_xlfn.MINIFS(Q:Q,$G:$G,$G101,$D:$D,"Comp",$Q:$Q,">0")+0.5), AVERAGEIFS(Q:Q,$G:$G,$G101,$D:$D,"Comp",$Q:$Q,">0"))), 0) -> 1.25 | R101: 1 | S101: =IFERROR(IF(N101=Profile!$E$250,IF(R101-P101<0,"-",IF(R101-P101>0,"+"," =")),"N.C."),"") -> - | T101: =IF(K101="D",Profile!F276, IF(K101="D+",Profile!F276, IF(K101="D*",Profile!F276, IF(K101="C",Profile!F277, IF(K101="C+",Profile!F278, IF(K101="B",Profile!F278, IF(K101="B+",Profile!F279, IF(K101="A",Profile!F279,"")))))))) -> 1. Below basic | U101: =IF(K101="A",Profile!F280, IF(K101="B+",Profile!F280, IF(K101="B",Profile!F280, IF(K101="D+",Profile!F281, IF(K101="D",Profile!F281, IF(K101="D*",Profile!F281, Profile!F282)))))) -> Weakness | V101: 0 | W101: 0 | X101: 1 | Y101: =Y102 -> 4
A102: =H3 -> Pefalia | B102: 24.1 | D102: Comp | E102: V | F102: =VLOOKUP(E102,Profile!A:B,2,FALSE) -> V-Predictability and control in budget execution | G102: PI-24 | H102: =IFERROR(VLOOKUP(B102,Profile!A:B,2,FALSE),"") -> 24.1 Procurement monitoring | I102: D | J102: Minmap does not have a public procurement database. ARMP currently manages statistical data for the purposes of periodic evaluation of procurement methods, but does not have all the useful, up-to-date data required to evaluate the programming and monitoring of contracts. It has launched a data bank project, which is currently being finalized. The database is not yet operational. | K102: D | L102: Databases on procurements are maintained only through the prior review mechanism, which represents less than the majority procurement methods for goods, services and works. | N102: Yes | O102: =IFERROR(IF(TRIM(CLEAN(I102))="A",4)+IF(TRIM(CLEAN(I102))="B+",3.5)+IF(TRIM(CLEAN(I102))="B",3)+IF(TRIM(CLEAN(I102))="C+",2.5)+IF(TRIM(CLEAN(I102))="C",2)+IF(TRIM(CLEAN(I102))="D+",1.5)+IF(TRIM(CLEAN(I102))="D",1)+IF(TRIM(CLEAN(I102))="D*",1)+IF(TRIM(CLEAN(I102))="NU",0)+IF(TRIM(CLEAN(I102))="NA",0),"") -> 1 | P102: =O102 -> 1 | Q102: =IFERROR(IF(TRIM(CLEAN(K102))="A",4)+IF(TRIM(CLEAN(K102))="B+",3.5)+IF(TRIM(CLEAN(K102))="B",3)+IF(TRIM(CLEAN(K102))="C+",2.5)+IF(TRIM(CLEAN(K102))="C",2)+IF(TRIM(CLEAN(K102))="D+",1.5)+IF(TRIM(CLEAN(K102))="D",1)+IF(TRIM(CLEAN(K102))="D*",1)+IF(TRIM(CLEAN(K102))="NU",0)+IF(TRIM(CLEAN(K102))="NA",0),"") -> 1 | R102: =Q102 -> 1 | S102: =IFERROR(IF(N102=Profile!$E$250,IF(R102-P102<0,"-",IF(R102-P102>0,"+"," =")),"N.C."),"") -> = | T102: =IF(K102="D",Profile!F276, IF(K102="D+",Profile!F276, IF(K102="D*",Profile!F276, IF(K102="C",Profile!F277, IF(K102="C+",Profile!F278, IF(K102="B",Profile!F278, IF(K102="B+",Profile!F279, IF(K102="A",Profile!F279,"")))))))) -> 1. Below basic | U102: =IF(K102="A",Profile!F280, IF(K102="B+",Profile!F280, IF(K102="B",Profile!F280, IF(K102="D+",Profile!F281, IF(K102="D",Profile!F281, IF(K102="D*",Profile!F281, Profile!F282)))))) -> Weakness | V102: 0 | W102: 0 | X102: 1 | Y102: 4
A103: =H3 -> Pefalia | B103: 24.2 | D103: Comp | E103: V | F103: =VLOOKUP(E103,Profile!A:B,2,FALSE) -> V-Predictability and control in budget execution | G103: PI-24 | H103: =IFERROR(VLOOKUP(B103,Profile!A:B,2,FALSE),"") -> 24.2 Procurement methods | I103: B | J103: Contracts awarded on a competitive basis represent 77.9% of the total value of contracts. | K103: D | L103: The total value of contracts awarded through competitive methods represented much less than 60% of total value of contracts in FY 2018/19. | N103: Yes | O103: =IFERROR(IF(TRIM(CLEAN(I103))="A",4)+IF(TRIM(CLEAN(I103))="B+",3.5)+IF(TRIM(CLEAN(I103))="B",3)+IF(TRIM(CLEAN(I103))="C+",2.5)+IF(TRIM(CLEAN(I103))="C",2)+IF(TRIM(CLEAN(I103))="D+",1.5)+IF(TRIM(CLEAN(I103))="D",1)+IF(TRIM(CLEAN(I103))="D*",1)+IF(TRIM(CLEAN(I103))="NU",0)+IF(TRIM(CLEAN(I103))="NA",0),"") -> 3 | P103: 3 | Q103: =IFERROR(IF(TRIM(CLEAN(K103))="A",4)+IF(TRIM(CLEAN(K103))="B+",3.5)+IF(TRIM(CLEAN(K103))="B",3)+IF(TRIM(CLEAN(K103))="C+",2.5)+IF(TRIM(CLEAN(K103))="C",2)+IF(TRIM(CLEAN(K103))="D+",1.5)+IF(TRIM(CLEAN(K103))="D",1)+IF(TRIM(CLEAN(K103))="D*",1)+IF(TRIM(CLEAN(K103))="NU",0)+IF(TRIM(CLEAN(K103))="NA",0),"") -> 1 | R103: 1 | S103: =IFERROR(IF(N103=Profile!$E$250,IF(R103-P103<0,"-",IF(R103-P103>0,"+"," =")),"N.C."),"") -> - | T103: =IF(K103="D",Profile!F276, IF(K103="D+",Profile!F276, IF(K103="D*",Profile!F276, IF(K103="C",Profile!F277, IF(K103="C+",Profile!F278, IF(K103="B",Profile!F278, IF(K103="B+",Profile!F279, IF(K103="A",Profile!F279,"")))))))) -> 1. Below basic | U103: =IF(K103="A",Profile!F280, IF(K103="B+",Profile!F280, IF(K103="B",Profile!F280, IF(K103="D+",Profile!F281, IF(K103="D",Profile!F281, IF(K103="D*",Profile!F281, Profile!F282)))))) -> Weakness | V103: 0 | W103: 0 | X103: 1 | Y103: 4
A104: =H3 -> Pefalia | B104: 24.3 | D104: Comp | E104: V | F104: =VLOOKUP(E104,Profile!A:B,2,FALSE) -> V-Predictability and control in budget execution | G104: PI-24 | H104: =IFERROR(VLOOKUP(B104,Profile!A:B,2,FALSE),"") -> 24.3 Public access to procurement information | I104: C | J104: The public has access to three of the six items of information required. | K104: D | L104: Legal and regulatory framework for procurement, Government procurement plans, bidding opportunities, and contract awards are made available to the public. However, they represent less than the majority of procurement operations. | N104: Yes | O104: =IFERROR(IF(TRIM(CLEAN(I104))="A",4)+IF(TRIM(CLEAN(I104))="B+",3.5)+IF(TRIM(CLEAN(I104))="B",3)+IF(TRIM(CLEAN(I104))="C+",2.5)+IF(TRIM(CLEAN(I104))="C",2)+IF(TRIM(CLEAN(I104))="D+",1.5)+IF(TRIM(CLEAN(I104))="D",1)+IF(TRIM(CLEAN(I104))="D*",1)+IF(TRIM(CLEAN(I104))="NU",0)+IF(TRIM(CLEAN(I104))="NA",0),"") -> 2 | P104: 2 | Q104: =IFERROR(IF(TRIM(CLEAN(K104))="A",4)+IF(TRIM(CLEAN(K104))="B+",3.5)+IF(TRIM(CLEAN(K104))="B",3)+IF(TRIM(CLEAN(K104))="C+",2.5)+IF(TRIM(CLEAN(K104))="C",2)+IF(TRIM(CLEAN(K104))="D+",1.5)+IF(TRIM(CLEAN(K104))="D",1)+IF(TRIM(CLEAN(K104))="D*",1)+IF(TRIM(CLEAN(K104))="NU",0)+IF(TRIM(CLEAN(K104))="NA",0),"") -> 1 | R104: 1 | S104: =IFERROR(IF(N104=Profile!$E$250,IF(R104-P104<0,"-",IF(R104-P104>0,"+"," =")),"N.C."),"") -> - | T104: =IF(K104="D",Profile!F276, IF(K104="D+",Profile!F276, IF(K104="D*",Profile!F276, IF(K104="C",Profile!F277, IF(K104="C+",Profile!F278, IF(K104="B",Profile!F278, IF(K104="B+",Profile!F279, IF(K104="A",Profile!F279,"")))))))) -> 1. Below basic | U104: =IF(K104="A",Profile!F280, IF(K104="B+",Profile!F280, IF(K104="B",Profile!F280, IF(K104="D+",Profile!F281, IF(K104="D",Profile!F281, IF(K104="D*",Profile!F281, Profile!F282)))))) -> Weakness | V104: 0 | W104: 0 | X104: 1 | Y104: 4
A105: =H3 -> Pefalia | B105: 24.4 | D105: Comp | E105: V | F105: =VLOOKUP(E105,Profile!A:B,2,FALSE) -> V-Predictability and control in budget execution | G105: PI-24 | H105: =IFERROR(VLOOKUP(B105,Profile!A:B,2,FALSE),"") -> 24.4 Procurement complaints management | I105: D | J105: The absence of an independent body to examine administrative appeals and complaints means that the current system does not meet any of the required criteria. | K105: C | L105: The procurement complaints system in Pefalia meets only 3 benchmarking criteria. Criteria 4) exercises the authority to suspend the procurement process ; 5) issues decisions timely; 6) issues decisions that are binding on every party, are not met. | N105: Yes | O105: =IFERROR(IF(TRIM(CLEAN(I105))="A",4)+IF(TRIM(CLEAN(I105))="B+",3.5)+IF(TRIM(CLEAN(I105))="B",3)+IF(TRIM(CLEAN(I105))="C+",2.5)+IF(TRIM(CLEAN(I105))="C",2)+IF(TRIM(CLEAN(I105))="D+",1.5)+IF(TRIM(CLEAN(I105))="D",1)+IF(TRIM(CLEAN(I105))="D*",1)+IF(TRIM(CLEAN(I105))="NU",0)+IF(TRIM(CLEAN(I105))="NA",0),"") -> 1 | P105: 1 | Q105: =IFERROR(IF(TRIM(CLEAN(K105))="A",4)+IF(TRIM(CLEAN(K105))="B+",3.5)+IF(TRIM(CLEAN(K105))="B",3)+IF(TRIM(CLEAN(K105))="C+",2.5)+IF(TRIM(CLEAN(K105))="C",2)+IF(TRIM(CLEAN(K105))="D+",1.5)+IF(TRIM(CLEAN(K105))="D",1)+IF(TRIM(CLEAN(K105))="D*",1)+IF(TRIM(CLEAN(K105))="NU",0)+IF(TRIM(CLEAN(K105))="NA",0),"") -> 2 | R105: 2 | S105: =IFERROR(IF(N105=Profile!$E$250,IF(R105-P105<0,"-",IF(R105-P105>0,"+"," =")),"N.C."),"") -> + | T105: =IF(K105="D",Profile!F276, IF(K105="D+",Profile!F276, IF(K105="D*",Profile!F276, IF(K105="C",Profile!F277, IF(K105="C+",Profile!F278, IF(K105="B",Profile!F278, IF(K105="B+",Profile!F279, IF(K105="A",Profile!F279,"")))))))) -> 2. Basic | U105: =IF(K105="A",Profile!F280, IF(K105="B+",Profile!F280, IF(K105="B",Profile!F280, IF(K105="D+",Profile!F281, IF(K105="D",Profile!F281, IF(K105="D*",Profile!F281, Profile!F282)))))) -> Average | V105: 0 | W105: 0 | X105: 1 | Y105: 4
A106: =H3 -> Pefalia | B106: PI-25 | C106: M2 | D106: Indic | E106: V | F106: =VLOOKUP(E106,Profile!A:B,2,FALSE) -> V-Predictability and control in budget execution | G106: PI-25 | H106: =IFERROR(VLOOKUP(B106,Profile!A:B,2,FALSE),"") -> PI-25 Internal controls on nonsalary expenditure | I106: =IF(COUNTIFS($D:$D,"Comp",$G:$G,$G106)=COUNTIFS($D:$D,"Comp",$G:$G,$G106,I:I,"=NU"),"NU", IF(COUNTIFS($D:$D,"Comp",$G:$G,$G106)=COUNTIFS($D:$D,"Comp",$G:$G,$G106,I:I,"=NA")+COUNTIFS($D:$D,"Comp",$G:$G,$G106,I:I,"=NU"),"NA", IF(O106>3.65,"A", IF(O106>=3.25,"B+", IF(O106>2.65,"B", IF(O106>=2.25,"C+", IF(O106>1.75,"C", IF(O106>1.25,"D+", IF(AND(O106<=1.25,O106>0),"D", "" ))))))))) -> C+ | K106: =IF(COUNTIFS($D:$D,"Comp",$G:$G,$G106)=COUNTIFS($D:$D,"Comp",$G:$G,$G106,K:K,"=NU"),"NU", IF(COUNTIFS($D:$D,"Comp",$G:$G,$G106)=COUNTIFS($D:$D,"Comp",$G:$G,$G106,K:K,"=NA")+COUNTIFS($D:$D,"Comp",$G:$G,$G106,K:K,"=NU"),"NA", IF(Q106>3.65,"A", IF(Q106>=3.25,"B+", IF(Q106>2.65,"B", IF(Q106>=2.25,"C+", IF(Q106>1.75,"C", IF(Q106>1.25,"D+", IF(AND(Q106<=1.25,Q106>0),"D", "" ))))))))) -> B | N106: =IF(AND(N107=Profile!E250,N108=Profile!E250,N109=Profile!E250),Profile!E250,Profile!E251) -> Yes | O106: =IFERROR( (IF($C106="M1", IF(ROUND(AVERAGEIFS(O:O,$G:$G,$G106,$D:$D,"Comp",$O:$O,">0"),1)=ROUND(_xlfn.MINIFS(O:O,$G:$G,$G106,$D:$D,"Comp",$O:$O,">0"),1), AVERAGEIFS(O:O,$G:$G,$G106,$D:$D,"Comp",$O:$O,">0"),_xlfn.MINIFS(O:O,$G:$G,$G106,$D:$D,"Comp",$O:$O,">0")+0.5), AVERAGEIFS(O:O,$G:$G,$G106,$D:$D,"Comp",$O:$O,">0"))), 0) -> 2.333333333 | P106: =IF(I106="D",1, IF(I106="D*",1, IF(I106="D+",1.5, IF(I106="C",2, IF(I106="C+",2.5, IF(I106="B",3, IF(I106="B+",3.5, IF(I106="A",4, )))))))) -> 2.5 | Q106: =IFERROR( (IF($C106="M1", IF(ROUND(AVERAGEIFS(Q:Q,$G:$G,$G106,$D:$D,"Comp",$Q:$Q,">0"),1)=ROUND(_xlfn.MINIFS(Q:Q,$G:$G,$G106,$D:$D,"Comp",$Q:$Q,">0"),1), AVERAGEIFS(Q:Q,$G:$G,$G106,$D:$D,"Comp",$Q:$Q,">0"),_xlfn.MINIFS(Q:Q,$G:$G,$G106,$D:$D,"Comp",$Q:$Q,">0")+0.5), AVERAGEIFS(Q:Q,$G:$G,$G106,$D:$D,"Comp",$Q:$Q,">0"))), 0) -> 2.666666667 | R106: 3 | S106: =IFERROR(IF(N106=Profile!$E$250,IF(R106-P106<0,"-",IF(R106-P106>0,"+"," =")),"N.C."),"") -> + | T106: =IF(K106="D",Profile!F276, IF(K106="D+",Profile!F276, IF(K106="D*",Profile!F276, IF(K106="C",Profile!F277, IF(K106="C+",Profile!F278, IF(K106="B",Profile!F278, IF(K106="B+",Profile!F279, IF(K106="A",Profile!F279,"")))))))) -> 3. Sound | U106: =IF(K106="A",Profile!F280, IF(K106="B+",Profile!F280, IF(K106="B",Profile!F280, IF(K106="D+",Profile!F281, IF(K106="D",Profile!F281, IF(K106="D*",Profile!F281, Profile!F282)))))) -> Strength | V106: 1 | W106: 0 | X106: 1 | Y106: =Y107 -> 3
A107: =H3 -> Pefalia | B107: 25.1 | D107: Comp | E107: V | F107: =VLOOKUP(E107,Profile!A:B,2,FALSE) -> V-Predictability and control in budget execution | G107: PI-25 | H107: =IFERROR(VLOOKUP(B107,Profile!A:B,2,FALSE),"") -> 25.1 Segregation of duties | I107: A | J107: The separation of tasks relating to the execution of the main expenditure operations of the State and EPAs is well ensured, and the responsibilities of the main players (authorizing officers, accountants, financial controllers and ministry inspectorates) clearly defined by the legal framework for public finance and the texts governing the organization and operation of ministries and constitutional institutions. | K107: A | L107: Appropriate segregation of duties is prescribed through the entire expenditure process. Responsibilities are clearly laid down. | N107: Yes | O107: =IFERROR(IF(TRIM(CLEAN(I107))="A",4)+IF(TRIM(CLEAN(I107))="B+",3.5)+IF(TRIM(CLEAN(I107))="B",3)+IF(TRIM(CLEAN(I107))="C+",2.5)+IF(TRIM(CLEAN(I107))="C",2)+IF(TRIM(CLEAN(I107))="D+",1.5)+IF(TRIM(CLEAN(I107))="D",1)+IF(TRIM(CLEAN(I107))="D*",1)+IF(TRIM(CLEAN(I107))="NU",0)+IF(TRIM(CLEAN(I107))="NA",0),"") -> 4 | P107: =O107 -> 4 | Q107: =IFERROR(IF(TRIM(CLEAN(K107))="A",4)+IF(TRIM(CLEAN(K107))="B+",3.5)+IF(TRIM(CLEAN(K107))="B",3)+IF(TRIM(CLEAN(K107))="C+",2.5)+IF(TRIM(CLEAN(K107))="C",2)+IF(TRIM(CLEAN(K107))="D+",1.5)+IF(TRIM(CLEAN(K107))="D",1)+IF(TRIM(CLEAN(K107))="D*",1)+IF(TRIM(CLEAN(K107))="NU",0)+IF(TRIM(CLEAN(K107))="NA",0),"") -> 4 | R107: =Q107 -> 4 | S107: =IFERROR(IF(N107=Profile!$E$250,IF(R107-P107<0,"-",IF(R107-P107>0,"+"," =")),"N.C."),"") -> = | T107: =IF(K107="D",Profile!F276, IF(K107="D+",Profile!F276, IF(K107="D*",Profile!F276, IF(K107="C",Profile!F277, IF(K107="C+",Profile!F278, IF(K107="B",Profile!F278, IF(K107="B+",Profile!F279, IF(K107="A",Profile!F279,"")))))))) -> 4. High | U107: =IF(K107="A",Profile!F280, IF(K107="B+",Profile!F280, IF(K107="B",Profile!F280, IF(K107="D+",Profile!F281, IF(K107="D",Profile!F281, IF(K107="D*",Profile!F281, Profile!F282)))))) -> Strength | V107: 1 | W107: 0 | X107: 1 | Y107: 3
A108: =H3 -> Pefalia | B108: 25.2 | D108: Comp | E108: V | F108: =VLOOKUP(E108,Profile!A:B,2,FALSE) -> V-Predictability and control in budget execution | G108: PI-25 | H108: =IFERROR(VLOOKUP(B108,Profile!A:B,2,FALSE),"") -> 25.2 Effectiveness of expenditure commitment controls | I108: C | J108: Control of non-salary expenditure commitments is based on budget allocations. A mechanism for controlling commitments against cash flow projections is not in place. The commitment control system does not cover all expenses , and is not fully effective. | K108: C | L108: Expenditure commitment controls are in place and limit commitments to projected cash availability and approved budget allocations but the coverage does not cover more than 75% of budget expenditure in value. | N108: Yes | O108: =IFERROR(IF(TRIM(CLEAN(I108))="A",4)+IF(TRIM(CLEAN(I108))="B+",3.5)+IF(TRIM(CLEAN(I108))="B",3)+IF(TRIM(CLEAN(I108))="C+",2.5)+IF(TRIM(CLEAN(I108))="C",2)+IF(TRIM(CLEAN(I108))="D+",1.5)+IF(TRIM(CLEAN(I108))="D",1)+IF(TRIM(CLEAN(I108))="D*",1)+IF(TRIM(CLEAN(I108))="NU",0)+IF(TRIM(CLEAN(I108))="NA",0),"") -> 2 | P108: 2 | Q108: =IFERROR(IF(TRIM(CLEAN(K108))="A",4)+IF(TRIM(CLEAN(K108))="B+",3.5)+IF(TRIM(CLEAN(K108))="B",3)+IF(TRIM(CLEAN(K108))="C+",2.5)+IF(TRIM(CLEAN(K108))="C",2)+IF(TRIM(CLEAN(K108))="D+",1.5)+IF(TRIM(CLEAN(K108))="D",1)+IF(TRIM(CLEAN(K108))="D*",1)+IF(TRIM(CLEAN(K108))="NU",0)+IF(TRIM(CLEAN(K108))="NA",0),"") -> 2 | R108: 2 | S108: =IFERROR(IF(N108=Profile!$E$250,IF(R108-P108<0,"-",IF(R108-P108>0,"+"," =")),"N.C."),"") -> = | T108: =IF(K108="D",Profile!F276, IF(K108="D+",Profile!F276, IF(K108="D*",Profile!F276, IF(K108="C",Profile!F277, IF(K108="C+",Profile!F278, IF(K108="B",Profile!F278, IF(K108="B+",Profile!F279, IF(K108="A",Profile!F279,"")))))))) -> 2. Basic | U108: =IF(K108="A",Profile!F280, IF(K108="B+",Profile!F280, IF(K108="B",Profile!F280, IF(K108="D+",Profile!F281, IF(K108="D",Profile!F281, IF(K108="D*",Profile!F281, Profile!F282)))))) -> Average | V108: 1 | W108: 0 | X108: 1 | Y108: 3
A109: =H3 -> Pefalia | B109: 25.3 | D109: Comp | E109: V | F109: =VLOOKUP(E109,Profile!A:B,2,FALSE) -> V-Predictability and control in budget execution | G109: PI-25 | H109: =IFERROR(VLOOKUP(B109,Profile!A:B,2,FALSE),"") -> 25.3 Compliance with payment controls | I109: D* | J109: Derogatory procedures for releasing funds and cash advances are provided for in current legislation, but non-salary expenses incurred under these procedures do not comply with all the established rules. Information on expenses paid under these procedures is not available. The SNH's intervention mechanism is not provided for in the texts in force, and the expenses paid by the SNH are not provided for in the State budget, but integrated into PROBMIS after the event as a regularization. | K109: C | L109: The majority payments are compliant with regular payment procedures and the majority of exceptions are properly authorised and justified. | N109: Yes | O109: =IFERROR(IF(TRIM(CLEAN(I109))="A",4)+IF(TRIM(CLEAN(I109))="B+",3.5)+IF(TRIM(CLEAN(I109))="B",3)+IF(TRIM(CLEAN(I109))="C+",2.5)+IF(TRIM(CLEAN(I109))="C",2)+IF(TRIM(CLEAN(I109))="D+",1.5)+IF(TRIM(CLEAN(I109))="D",1)+IF(TRIM(CLEAN(I109))="D*",1)+IF(TRIM(CLEAN(I109))="NU",0)+IF(TRIM(CLEAN(I109))="NA",0),"") -> 1 | P109: 1 | Q109: =IFERROR(IF(TRIM(CLEAN(K109))="A",4)+IF(TRIM(CLEAN(K109))="B+",3.5)+IF(TRIM(CLEAN(K109))="B",3)+IF(TRIM(CLEAN(K109))="C+",2.5)+IF(TRIM(CLEAN(K109))="C",2)+IF(TRIM(CLEAN(K109))="D+",1.5)+IF(TRIM(CLEAN(K109))="D",1)+IF(TRIM(CLEAN(K109))="D*",1)+IF(TRIM(CLEAN(K109))="NU",0)+IF(TRIM(CLEAN(K109))="NA",0),"") -> 2 | R109: 2 | S109: =IFERROR(IF(N109=Profile!$E$250,IF(R109-P109<0,"-",IF(R109-P109>0,"+"," =")),"N.C."),"") -> + | T109: =IF(K109="D",Profile!F276, IF(K109="D+",Profile!F276, IF(K109="D*",Profile!F276, IF(K109="C",Profile!F277, IF(K109="C+",Profile!F278, IF(K109="B",Profile!F278, IF(K109="B+",Profile!F279, IF(K109="A",Profile!F279,"")))))))) -> 2. Basic | U109: =IF(K109="A",Profile!F280, IF(K109="B+",Profile!F280, IF(K109="B",Profile!F280, IF(K109="D+",Profile!F281, IF(K109="D",Profile!F281, IF(K109="D*",Profile!F281, Profile!F282)))))) -> Average | V109: 1 | W109: 0 | X109: 1 | Y109: 3
A110: =H3 -> Pefalia | B110: PI-26 | C110: M1 | D110: Indic | E110: V | F110: =VLOOKUP(E110,Profile!A:B,2,FALSE) -> V-Predictability and control in budget execution | G110: PI-26 | H110: =IFERROR(VLOOKUP(B110,Profile!A:B,2,FALSE),"") -> PI-26 Internal audit | I110: =IF(COUNTIFS($D:$D,"Comp",$G:$G,$G110)=COUNTIFS($D:$D,"Comp",$G:$G,$G110,I:I,"=NU"),"NU", IF(COUNTIFS($D:$D,"Comp",$G:$G,$G110)=COUNTIFS($D:$D,"Comp",$G:$G,$G110,I:I,"=NA")+COUNTIFS($D:$D,"Comp",$G:$G,$G110,I:I,"=NU"),"NA", IF(O110>3.65,"A", IF(O110>=3.25,"B+", IF(O110>2.65,"B", IF(O110>=2.25,"C+", IF(O110>1.75,"C", IF(O110>1.25,"D+", IF(AND(O110<=1.25,O110>0),"D", "" ))))))))) -> D | K110: =IF(COUNTIFS($D:$D,"Comp",$G:$G,$G110)=COUNTIFS($D:$D,"Comp",$G:$G,$G110,K:K,"=NU"),"NU", IF(COUNTIFS($D:$D,"Comp",$G:$G,$G110)=COUNTIFS($D:$D,"Comp",$G:$G,$G110,K:K,"=NA")+COUNTIFS($D:$D,"Comp",$G:$G,$G110,K:K,"=NU"),"NA", IF(Q110>3.65,"A", IF(Q110>=3.25,"B+", IF(Q110>2.65,"B", IF(Q110>=2.25,"C+", IF(Q110>1.75,"C", IF(Q110>1.25,"D+", IF(AND(Q110<=1.25,Q110>0),"D", "" ))))))))) -> D+ | N110: =IF(AND(N111=Profile!E250,N112=Profile!E250,N113=Profile!E250,N114=Profile!E250),Profile!E250,Profile!E251) -> Yes | O110: =IFERROR( (IF($C110="M1", IF(ROUND(AVERAGEIFS(O:O,$G:$G,$G110,$D:$D,"Comp",$O:$O,">0"),1)=ROUND(_xlfn.MINIFS(O:O,$G:$G,$G110,$D:$D,"Comp",$O:$O,">0"),1), AVERAGEIFS(O:O,$G:$G,$G110,$D:$D,"Comp",$O:$O,">0"),_xlfn.MINIFS(O:O,$G:$G,$G110,$D:$D,"Comp",$O:$O,">0")+0.5), AVERAGEIFS(O:O,$G:$G,$G110,$D:$D,"Comp",$O:$O,">0"))), 0) -> 1 | P110: =IF(I110="D",1, IF(I110="D*",1, IF(I110="D+",1.5, IF(I110="C",2, IF(I110="C+",2.5, IF(I110="B",3, IF(I110="B+",3.5, IF(I110="A",4, )))))))) -> 1 | Q110: =IFERROR( (IF($C110="M1", IF(ROUND(AVERAGEIFS(Q:Q,$G:$G,$G110,$D:$D,"Comp",$Q:$Q,">0"),1)=ROUND(_xlfn.MINIFS(Q:Q,$G:$G,$G110,$D:$D,"Comp",$Q:$Q,">0"),1), AVERAGEIFS(Q:Q,$G:$G,$G110,$D:$D,"Comp",$Q:$Q,">0"),_xlfn.MINIFS(Q:Q,$G:$G,$G110,$D:$D,"Comp",$Q:$Q,">0")+0.5), AVERAGEIFS(Q:Q,$G:$G,$G110,$D:$D,"Comp",$Q:$Q,">0"))), 0) -> 1.5 | R110: 1.5 | S110: =IFERROR(IF(N110=Profile!$E$250,IF(R110-P110<0,"-",IF(R110-P110>0,"+"," =")),"N.C."),"") -> + | T110: =IF(K110="D",Profile!F276, IF(K110="D+",Profile!F276, IF(K110="D*",Profile!F276, IF(K110="C",Profile!F277, IF(K110="C+",Profile!F278, IF(K110="B",Profile!F278, IF(K110="B+",Profile!F279, IF(K110="A",Profile!F279,"")))))))) -> 1. Below basic | U110: =IF(K110="A",Profile!F280, IF(K110="B+",Profile!F280, IF(K110="B",Profile!F280, IF(K110="D+",Profile!F281, IF(K110="D",Profile!F281, IF(K110="D*",Profile!F281, Profile!F282)))))) -> Weakness | V110: 0 | W110: 0 | X110: 1 | Y110: =Y111 -> 4
A111: =H3 -> Pefalia | B111: 26.1 | D111: Comp | E111: V | F111: =VLOOKUP(E111,Profile!A:B,2,FALSE) -> V-Predictability and control in budget execution | G111: PI-26 | H111: =IFERROR(VLOOKUP(B111,Profile!A:B,2,FALSE),"") -> 26.1 Coverage of internal audit | I111: D | J111: Institutions with internal audit prerogatives focus their activities on controls, including a priori controls. They carry out very few audits of organizations and systems. | K111: B | L111: Internal audit is operational for central government entities representing more than 75% of budgeted expenditures and for government entities collecting more than 90% budgeted revenue. | N111: Yes | O111: =IFERROR(IF(TRIM(CLEAN(I111))="A",4)+IF(TRIM(CLEAN(I111))="B+",3.5)+IF(TRIM(CLEAN(I111))="B",3)+IF(TRIM(CLEAN(I111))="C+",2.5)+IF(TRIM(CLEAN(I111))="C",2)+IF(TRIM(CLEAN(I111))="D+",1.5)+IF(TRIM(CLEAN(I111))="D",1)+IF(TRIM(CLEAN(I111))="D*",1)+IF(TRIM(CLEAN(I111))="NU",0)+IF(TRIM(CLEAN(I111))="NA",0),"") -> 1 | P111: =O111 -> 1 | Q111: =IFERROR(IF(TRIM(CLEAN(K111))="A",4)+IF(TRIM(CLEAN(K111))="B+",3.5)+IF(TRIM(CLEAN(K111))="B",3)+IF(TRIM(CLEAN(K111))="C+",2.5)+IF(TRIM(CLEAN(K111))="C",2)+IF(TRIM(CLEAN(K111))="D+",1.5)+IF(TRIM(CLEAN(K111))="D",1)+IF(TRIM(CLEAN(K111))="D*",1)+IF(TRIM(CLEAN(K111))="NU",0)+IF(TRIM(CLEAN(K111))="NA",0),"") -> 3 | R111: =Q111 -> 3 | S111: =IFERROR(IF(N111=Profile!$E$250,IF(R111-P111<0,"-",IF(R111-P111>0,"+"," =")),"N.C."),"") -> + | T111: =IF(K111="D",Profile!F276, IF(K111="D+",Profile!F276, IF(K111="D*",Profile!F276, IF(K111="C",Profile!F277, IF(K111="C+",Profile!F278, IF(K111="B",Profile!F278, IF(K111="B+",Profile!F279, IF(K111="A",Profile!F279,"")))))))) -> 3. Sound | U111: =IF(K111="A",Profile!F280, IF(K111="B+",Profile!F280, IF(K111="B",Profile!F280, IF(K111="D+",Profile!F281, IF(K111="D",Profile!F281, IF(K111="D*",Profile!F281, Profile!F282)))))) -> Strength | V111: 0 | W111: 0 | X111: 1 | Y111: 4
A112: =H3 -> Pefalia | B112: 26.2 | D112: Comp | E112: V | F112: =VLOOKUP(E112,Profile!A:B,2,FALSE) -> V-Predictability and control in budget execution | G112: PI-26 | H112: =IFERROR(VLOOKUP(B112,Profile!A:B,2,FALSE),"") -> 26.2 Nature of audits and standards applied | I112: D* | J112: The absence of data does not allow us to rate this component. | K112: B | L112: Internal audit activities are focused on evaluations of the adequacy and effectiveness of internal controls, as well as on financial compliance. However, internal audits and related controls and inspections only partially meet the professional standards of internal auditing. | N112: Yes | O112: =IFERROR(IF(TRIM(CLEAN(I112))="A",4)+IF(TRIM(CLEAN(I112))="B+",3.5)+IF(TRIM(CLEAN(I112))="B",3)+IF(TRIM(CLEAN(I112))="C+",2.5)+IF(TRIM(CLEAN(I112))="C",2)+IF(TRIM(CLEAN(I112))="D+",1.5)+IF(TRIM(CLEAN(I112))="D",1)+IF(TRIM(CLEAN(I112))="D*",1)+IF(TRIM(CLEAN(I112))="NU",0)+IF(TRIM(CLEAN(I112))="NA",0),"") -> 1 | P112: 1 | Q112: =IFERROR(IF(TRIM(CLEAN(K112))="A",4)+IF(TRIM(CLEAN(K112))="B+",3.5)+IF(TRIM(CLEAN(K112))="B",3)+IF(TRIM(CLEAN(K112))="C+",2.5)+IF(TRIM(CLEAN(K112))="C",2)+IF(TRIM(CLEAN(K112))="D+",1.5)+IF(TRIM(CLEAN(K112))="D",1)+IF(TRIM(CLEAN(K112))="D*",1)+IF(TRIM(CLEAN(K112))="NU",0)+IF(TRIM(CLEAN(K112))="NA",0),"") -> 3 | R112: 3 | S112: =IFERROR(IF(N112=Profile!$E$250,IF(R112-P112<0,"-",IF(R112-P112>0,"+"," =")),"N.C."),"") -> + | T112: =IF(K112="D",Profile!F276, IF(K112="D+",Profile!F276, IF(K112="D*",Profile!F276, IF(K112="C",Profile!F277, IF(K112="C+",Profile!F278, IF(K112="B",Profile!F278, IF(K112="B+",Profile!F279, IF(K112="A",Profile!F279,"")))))))) -> 3. Sound | U112: =IF(K112="A",Profile!F280, IF(K112="B+",Profile!F280, IF(K112="B",Profile!F280, IF(K112="D+",Profile!F281, IF(K112="D",Profile!F281, IF(K112="D*",Profile!F281, Profile!F282)))))) -> Strength | V112: 0 | W112: 0 | X112: 1 | Y112: 4
A113: =H3 -> Pefalia | B113: 26.3 | D113: Comp | E113: V | F113: =VLOOKUP(E113,Profile!A:B,2,FALSE) -> V-Predictability and control in budget execution | G113: PI-26 | H113: =IFERROR(VLOOKUP(B113,Profile!A:B,2,FALSE),"") -> 26.3 Implementation of internal audits and reporting | I113: D* | J113: The absence of data does not allow us to rate this component. | K113: D* | L113: Annual audit programs exist but not enough information was provided to check the percentage of programmed audits being completed for the FY 2018/19. | N113: Yes | O113: =IFERROR(IF(TRIM(CLEAN(I113))="A",4)+IF(TRIM(CLEAN(I113))="B+",3.5)+IF(TRIM(CLEAN(I113))="B",3)+IF(TRIM(CLEAN(I113))="C+",2.5)+IF(TRIM(CLEAN(I113))="C",2)+IF(TRIM(CLEAN(I113))="D+",1.5)+IF(TRIM(CLEAN(I113))="D",1)+IF(TRIM(CLEAN(I113))="D*",1)+IF(TRIM(CLEAN(I113))="NU",0)+IF(TRIM(CLEAN(I113))="NA",0),"") -> 1 | P113: 1 | Q113: =IFERROR(IF(TRIM(CLEAN(K113))="A",4)+IF(TRIM(CLEAN(K113))="B+",3.5)+IF(TRIM(CLEAN(K113))="B",3)+IF(TRIM(CLEAN(K113))="C+",2.5)+IF(TRIM(CLEAN(K113))="C",2)+IF(TRIM(CLEAN(K113))="D+",1.5)+IF(TRIM(CLEAN(K113))="D",1)+IF(TRIM(CLEAN(K113))="D*",1)+IF(TRIM(CLEAN(K113))="NU",0)+IF(TRIM(CLEAN(K113))="NA",0),"") -> 1 | R113: 1 | S113: =IFERROR(IF(N113=Profile!$E$250,IF(R113-P113<0,"-",IF(R113-P113>0,"+"," =")),"N.C."),"") -> = | T113: =IF(K113="D",Profile!F276, IF(K113="D+",Profile!F276, IF(K113="D*",Profile!F276, IF(K113="C",Profile!F277, IF(K113="C+",Profile!F278, IF(K113="B",Profile!F278, IF(K113="B+",Profile!F279, IF(K113="A",Profile!F279,"")))))))) -> 1. Below basic | U113: =IF(K113="A",Profile!F280, IF(K113="B+",Profile!F280, IF(K113="B",Profile!F280, IF(K113="D+",Profile!F281, IF(K113="D",Profile!F281, IF(K113="D*",Profile!F281, Profile!F282)))))) -> Weakness | V113: 0 | W113: 0 | X113: 1 | Y113: 4
A114: =H3 -> Pefalia | B114: 26.4 | D114: Comp | E114: V | F114: =VLOOKUP(E114,Profile!A:B,2,FALSE) -> V-Predictability and control in budget execution | G114: PI-26 | H114: =IFERROR(VLOOKUP(B114,Profile!A:B,2,FALSE),"") -> 26.4 Response to internal audits | I114: D* | J114: Ditto | K114: D* | L114: There is no evidence that management gives a partial response to audit recommendations. | N114: Yes | O114: =IFERROR(IF(TRIM(CLEAN(I114))="A",4)+IF(TRIM(CLEAN(I114))="B+",3.5)+IF(TRIM(CLEAN(I114))="B",3)+IF(TRIM(CLEAN(I114))="C+",2.5)+IF(TRIM(CLEAN(I114))="C",2)+IF(TRIM(CLEAN(I114))="D+",1.5)+IF(TRIM(CLEAN(I114))="D",1)+IF(TRIM(CLEAN(I114))="D*",1)+IF(TRIM(CLEAN(I114))="NU",0)+IF(TRIM(CLEAN(I114))="NA",0),"") -> 1 | P114: 1 | Q114: =IFERROR(IF(TRIM(CLEAN(K114))="A",4)+IF(TRIM(CLEAN(K114))="B+",3.5)+IF(TRIM(CLEAN(K114))="B",3)+IF(TRIM(CLEAN(K114))="C+",2.5)+IF(TRIM(CLEAN(K114))="C",2)+IF(TRIM(CLEAN(K114))="D+",1.5)+IF(TRIM(CLEAN(K114))="D",1)+IF(TRIM(CLEAN(K114))="D*",1)+IF(TRIM(CLEAN(K114))="NU",0)+IF(TRIM(CLEAN(K114))="NA",0),"") -> 1 | R114: 1 | S114: =IFERROR(IF(N114=Profile!$E$250,IF(R114-P114<0,"-",IF(R114-P114>0,"+"," =")),"N.C."),"") -> = | T114: =IF(K114="D",Profile!F276, IF(K114="D+",Profile!F276, IF(K114="D*",Profile!F276, IF(K114="C",Profile!F277, IF(K114="C+",Profile!F278, IF(K114="B",Profile!F278, IF(K114="B+",Profile!F279, IF(K114="A",Profile!F279,"")))))))) -> 1. Below basic | U114: =IF(K114="A",Profile!F280, IF(K114="B+",Profile!F280, IF(K114="B",Profile!F280, IF(K114="D+",Profile!F281, IF(K114="D",Profile!F281, IF(K114="D*",Profile!F281, Profile!F282)))))) -> Weakness | V114: 0 | W114: 0 | X114: 1 | Y114: 4
A115: =H3 -> Pefalia | B115: VI | D115: Pilar | E115: VI | F115: =VLOOKUP(E115,Profile!A:B,2,FALSE) -> VI-Accounting and reporting | H115: =IFERROR(VLOOKUP(B115,Profile!A:B,2,FALSE),"") -> VI-Accounting and reporting | I115: =IF(COUNTIFS($D:$D,"Indic",$E:$E,$E115)=COUNTIFS($D:$D,"Indic",$E:$E,$E115,$I:$I,"=NU"),"NU", IF(COUNTIFS($D:$D,"Indic",$E:$E,$E115)=COUNTIFS($D:$D,"Indic",$E:$E,C116,$I:$I,"=NA"),"NA", IF(O115>3.65,"A", IF(O115>=3.25,"B+", IF(O115>2.65,"B", IF(O115>=2.25,"C+", IF(O115>1.75,"C", IF(O115>1.25,"D+", IF(AND(O115<=1.25,O115>0),"D", "" ))))))))) -> D+ | K115: =IF(COUNTIFS($D:$D,"Indic",$E:$E,E115)=COUNTIFS($D:$D,"Indic",$E:$E,E116,$K:$K,"=NU"),"NU", IF(COUNTIFS($D:$D,"Indic",$E:$E,E115)=COUNTIFS($D:$D,"Indic",$E:$E,E116,$K:$K,"=NA"),"NA", IF(Q115>3.65,"A", IF(Q115>=3.25,"B+", IF(Q115>2.65,"B", IF(Q115>=2.25,"C+", IF(Q115>1.75,"C", IF(Q115>1.25,"D+", IF(AND(Q115<=1.25,Q115>0),"D", "" ))))))))) -> D+ | N115: =IF(COUNTIFS(N116:N128,Profile!$E$250)=13,Profile!$E$250,Profile!$E$251) -> No | O115: =AVERAGEIFS(O:O,$D:$D,"Indic",$E:$E,$E115,O:O,">0") -> 1.75 | P115: =IF(I115="D",1, IF(I115="D*",1, IF(I115="D+",1.5, IF(I115="C",2, IF(I115="C+",2.5, IF(I115="B",3, IF(I115="B+",3.5, IF(I115="A",4, )))))))) -> 1.5 | Q115: =AVERAGEIFS(Q:Q,$D:$D,"Indic",$E:$E,$E115,Q:Q,">0") -> 1.5 | R115: 1.5 | S115: =IFERROR(IF(N115=Profile!$E$250,IF(R115-P115<0,"-",IF(R115-P115>0,"+"," =")),"N.C."),"") -> N.C. | T115: =IF(K115="D",Profile!F276, IF(K115="D+",Profile!F276, IF(K115="D*",Profile!F276, IF(K115="C",Profile!F277, IF(K115="C+",Profile!F278, IF(K115="B",Profile!F278, IF(K115="B+",Profile!F279, IF(K115="A",Profile!F279,"")))))))) -> 1. Below basic | U115: =IF(K115="A",Profile!F280, IF(K115="B+",Profile!F280, IF(K115="B",Profile!F280, IF(K115="D+",Profile!F281, IF(K115="D",Profile!F281, IF(K115="D*",Profile!F281, Profile!F282)))))) -> Weakness
A116: =H3 -> Pefalia | B116: PI-27 | C116: M2 | D116: Indic | E116: VI | F116: =VLOOKUP(E116,Profile!A:B,2,FALSE) -> VI-Accounting and reporting | G116: PI-27 | H116: =IFERROR(VLOOKUP(B116,Profile!A:B,2,FALSE),"") -> PI-27 Financial data integrity | I116: =IF(COUNTIFS($D:$D,"Comp",$G:$G,$G116)=COUNTIFS($D:$D,"Comp",$G:$G,$G116,I:I,"=NU"),"NU", IF(COUNTIFS($D:$D,"Comp",$G:$G,$G116)=COUNTIFS($D:$D,"Comp",$G:$G,$G116,I:I,"=NA")+COUNTIFS($D:$D,"Comp",$G:$G,$G116,I:I,"=NU"),"NA", IF(O116>3.65,"A", IF(O116>=3.25,"B+", IF(O116>2.65,"B", IF(O116>=2.25,"C+", IF(O116>1.75,"C", IF(O116>1.25,"D+", IF(AND(O116<=1.25,O116>0),"D", "" ))))))))) -> C+ | K116: =IF(COUNTIFS($D:$D,"Comp",$G:$G,$G116)=COUNTIFS($D:$D,"Comp",$G:$G,$G116,K:K,"=NU"),"NU", IF(COUNTIFS($D:$D,"Comp",$G:$G,$G116)=COUNTIFS($D:$D,"Comp",$G:$G,$G116,K:K,"=NA")+COUNTIFS($D:$D,"Comp",$G:$G,$G116,K:K,"=NU"),"NA", IF(Q116>3.65,"A", IF(Q116>=3.25,"B+", IF(Q116>2.65,"B", IF(Q116>=2.25,"C+", IF(Q116>1.75,"C", IF(Q116>1.25,"D+", IF(AND(Q116<=1.25,Q116>0),"D", "" ))))))))) -> D+ | N116: =IF(AND(N117=Profile!E250,N118=Profile!E250,N119=Profile!E250,N120=Profile!E250),Profile!E250,Profile!E251) -> No | O116: =IFERROR( (IF($C116="M1", IF(ROUND(AVERAGEIFS(O:O,$G:$G,$G116,$D:$D,"Comp",$O:$O,">0"),1)=ROUND(_xlfn.MINIFS(O:O,$G:$G,$G116,$D:$D,"Comp",$O:$O,">0"),1), AVERAGEIFS(O:O,$G:$G,$G116,$D:$D,"Comp",$O:$O,">0"),_xlfn.MINIFS(O:O,$G:$G,$G116,$D:$D,"Comp",$O:$O,">0")+0.5), AVERAGEIFS(O:O,$G:$G,$G116,$D:$D,"Comp",$O:$O,">0"))), 0) -> 2.25 | P116: =IF(I116="D",1, IF(I116="D*",1, IF(I116="D+",1.5, IF(I116="C",2, IF(I116="C+",2.5, IF(I116="B",3, IF(I116="B+",3.5, IF(I116="A",4, )))))))) -> 2.5 | Q116: =IFERROR( (IF($C116="M1", IF(ROUND(AVERAGEIFS(Q:Q,$G:$G,$G116,$D:$D,"Comp",$Q:$Q,">0"),1)=ROUND(_xlfn.MINIFS(Q:Q,$G:$G,$G116,$D:$D,"Comp",$Q:$Q,">0"),1), AVERAGEIFS(Q:Q,$G:$G,$G116,$D:$D,"Comp",$Q:$Q,">0"),_xlfn.MINIFS(Q:Q,$G:$G,$G116,$D:$D,"Comp",$Q:$Q,">0")+0.5), AVERAGEIFS(Q:Q,$G:$G,$G116,$D:$D,"Comp",$Q:$Q,">0"))), 0) -> 1.5 | R116: =IF(K116="D",1, IF(K116="D+",1.5, IF(K116="C",2, IF(K116="C+",2.5, IF(K116="B",3, IF(K116="B+",3.5, IF(K116="A",4, ))))))) -> 1.5 | S116: =IFERROR(IF(N116=Profile!$E$250,IF(R116-P116<0,"-",IF(R116-P116>0,"+"," =")),"N.C."),"") -> N.C. | T116: =IF(K116="D",Profile!F276, IF(K116="D+",Profile!F276, IF(K116="D*",Profile!F276, IF(K116="C",Profile!F277, IF(K116="C+",Profile!F278, IF(K116="B",Profile!F278, IF(K116="B+",Profile!F279, IF(K116="A",Profile!F279,"")))))))) -> 1. Below basic | U116: =IF(K116="A",Profile!F280, IF(K116="B+",Profile!F280, IF(K116="B",Profile!F280, IF(K116="D+",Profile!F281, IF(K116="D",Profile!F281, IF(K116="D*",Profile!F281, Profile!F282)))))) -> Weakness | V116: 0 | W116: 0 | X116: 1 | Y116: =Y117 -> 4
A117: =H3 -> Pefalia | B117: 27.1 | D117: Comp | E117: VI | F117: =VLOOKUP(E117,Profile!A:B,2,FALSE) -> VI-Accounting and reporting | G117: PI-27 | H117: =IFERROR(VLOOKUP(B117,Profile!A:B,2,FALSE),"") -> 27.1 Bank account reconciliation | I117: D | J117: Treasury network accounts are reconciled with the Central Bank and commercial banks on a monthly basis, before the 20th of the month following the period in question. There are some central government extra-budgetary accounts with commercial banks. These accounts and those of externally financed projects are not monitored by the Treasury and are not reconciled. | K117: D | L117: Bank reconciliations are not prepared. | N117: No | O117: =IFERROR(IF(TRIM(CLEAN(I117))="A",4)+IF(TRIM(CLEAN(I117))="B+",3.5)+IF(TRIM(CLEAN(I117))="B",3)+IF(TRIM(CLEAN(I117))="C+",2.5)+IF(TRIM(CLEAN(I117))="C",2)+IF(TRIM(CLEAN(I117))="D+",1.5)+IF(TRIM(CLEAN(I117))="D",1)+IF(TRIM(CLEAN(I117))="D*",1)+IF(TRIM(CLEAN(I117))="NU",0)+IF(TRIM(CLEAN(I117))="NA",0),"") -> 1 | P117: =O117 -> 1 | Q117: =IFERROR(IF(TRIM(CLEAN(K117))="A",4)+IF(TRIM(CLEAN(K117))="B+",3.5)+IF(TRIM(CLEAN(K117))="B",3)+IF(TRIM(CLEAN(K117))="C+",2.5)+IF(TRIM(CLEAN(K117))="C",2)+IF(TRIM(CLEAN(K117))="D+",1.5)+IF(TRIM(CLEAN(K117))="D",1)+IF(TRIM(CLEAN(K117))="D*",1)+IF(TRIM(CLEAN(K117))="NU",0)+IF(TRIM(CLEAN(K117))="NA",0),"") -> 1 | R117: =Q117 -> 1 | S117: =IFERROR(IF(N117=Profile!$E$250,IF(R117-P117<0,"-",IF(R117-P117>0,"+"," =")),"N.C."),"") -> N.C. | T117: =IF(K117="D",Profile!F276, IF(K117="D+",Profile!F276, IF(K117="D*",Profile!F276, IF(K117="C",Profile!F277, IF(K117="C+",Profile!F278, IF(K117="B",Profile!F278, IF(K117="B+",Profile!F279, IF(K117="A",Profile!F279,"")))))))) -> 1. Below basic | U117: =IF(K117="A",Profile!F280, IF(K117="B+",Profile!F280, IF(K117="B",Profile!F280, IF(K117="D+",Profile!F281, IF(K117="D",Profile!F281, IF(K117="D*",Profile!F281, Profile!F282)))))) -> Weakness | V117: 0 | W117: 0 | X117: 1 | Y117: 4
A118: =H3 -> Pefalia | B118: 27.2 | D118: Comp | E118: VI | F118: =VLOOKUP(E118,Profile!A:B,2,FALSE) -> VI-Accounting and reporting | G118: PI-27 | H118: =IFERROR(VLOOKUP(B118,Profile!A:B,2,FALSE),"") -> 27.2 Suspense accounts | I118: A | J118: Suspense account reconciliations are carried out each month, when the trial balance is validated. At the end of the financial year and during the supplementary period, the suspense accounts are cleared, except for the following expenses | K118: NA | L118: the Government uses cash accounting and has not set up a system for monitoring suspense accounts on an extra-accounting basis. | N118: Yes | O118: =IFERROR(IF(TRIM(CLEAN(I118))="A",4)+IF(TRIM(CLEAN(I118))="B+",3.5)+IF(TRIM(CLEAN(I118))="B",3)+IF(TRIM(CLEAN(I118))="C+",2.5)+IF(TRIM(CLEAN(I118))="C",2)+IF(TRIM(CLEAN(I118))="D+",1.5)+IF(TRIM(CLEAN(I118))="D",1)+IF(TRIM(CLEAN(I118))="D*",1)+IF(TRIM(CLEAN(I118))="NU",0)+IF(TRIM(CLEAN(I118))="NA",0),"") -> 4 | P118: 4 | Q118: =IFERROR(IF(TRIM(CLEAN(K118))="A",4)+IF(TRIM(CLEAN(K118))="B+",3.5)+IF(TRIM(CLEAN(K118))="B",3)+IF(TRIM(CLEAN(K118))="C+",2.5)+IF(TRIM(CLEAN(K118))="C",2)+IF(TRIM(CLEAN(K118))="D+",1.5)+IF(TRIM(CLEAN(K118))="D",1)+IF(TRIM(CLEAN(K118))="D*",1)+IF(TRIM(CLEAN(K118))="NU",0)+IF(TRIM(CLEAN(K118))="NA",0),"") -> 0 | R118: 0 | S118: =IFERROR(IF(N118=Profile!$E$250,IF(R118-P118<0,"-",IF(R118-P118>0,"+"," =")),"N.C."),"") -> - | T118: =IF(K118="D",Profile!F276, IF(K118="D+",Profile!F276, IF(K118="D*",Profile!F276, IF(K118="C",Profile!F277, IF(K118="C+",Profile!F278, IF(K118="B",Profile!F278, IF(K118="B+",Profile!F279, IF(K118="A",Profile!F279,"")))))))) ->  | U118: =IF(K118="A",Profile!F280, IF(K118="B+",Profile!F280, IF(K118="B",Profile!F280, IF(K118="D+",Profile!F281, IF(K118="D",Profile!F281, IF(K118="D*",Profile!F281, Profile!F282)))))) -> Average | V118: 0 | W118: 0 | X118: 1 | Y118: 4
A119: =H3 -> Pefalia | B119: 27.3 | D119: Comp | E119: VI | F119: =VLOOKUP(E119,Profile!A:B,2,FALSE) -> VI-Accounting and reporting | G119: PI-27 | H119: =IFERROR(VLOOKUP(B119,Profile!A:B,2,FALSE),"") -> 27.3 Advance accounts | I119: D | J119: Treasury departments have no procedures for monitoring and settling advances to suppliers in connection with public procurement contracts. Advance and cash advance funds are not reconciled or cleared at year-end. | K119: NA | L119: Reconciliation of advance accounts does not generally take place, even annually. | N119: Yes | O119: =IFERROR(IF(TRIM(CLEAN(I119))="A",4)+IF(TRIM(CLEAN(I119))="B+",3.5)+IF(TRIM(CLEAN(I119))="B",3)+IF(TRIM(CLEAN(I119))="C+",2.5)+IF(TRIM(CLEAN(I119))="C",2)+IF(TRIM(CLEAN(I119))="D+",1.5)+IF(TRIM(CLEAN(I119))="D",1)+IF(TRIM(CLEAN(I119))="D*",1)+IF(TRIM(CLEAN(I119))="NU",0)+IF(TRIM(CLEAN(I119))="NA",0),"") -> 1 | P119: 1 | Q119: =IFERROR(IF(TRIM(CLEAN(K119))="A",4)+IF(TRIM(CLEAN(K119))="B+",3.5)+IF(TRIM(CLEAN(K119))="B",3)+IF(TRIM(CLEAN(K119))="C+",2.5)+IF(TRIM(CLEAN(K119))="C",2)+IF(TRIM(CLEAN(K119))="D+",1.5)+IF(TRIM(CLEAN(K119))="D",1)+IF(TRIM(CLEAN(K119))="D*",1)+IF(TRIM(CLEAN(K119))="NU",0)+IF(TRIM(CLEAN(K119))="NA",0),"") -> 0 | R119: 0 | S119: =IFERROR(IF(N119=Profile!$E$250,IF(R119-P119<0,"-",IF(R119-P119>0,"+"," =")),"N.C."),"") -> - | T119: =IF(K119="D",Profile!F276, IF(K119="D+",Profile!F276, IF(K119="D*",Profile!F276, IF(K119="C",Profile!F277, IF(K119="C+",Profile!F278, IF(K119="B",Profile!F278, IF(K119="B+",Profile!F279, IF(K119="A",Profile!F279,"")))))))) ->  | U119: =IF(K119="A",Profile!F280, IF(K119="B+",Profile!F280, IF(K119="B",Profile!F280, IF(K119="D+",Profile!F281, IF(K119="D",Profile!F281, IF(K119="D*",Profile!F281, Profile!F282)))))) -> Average | V119: 0 | W119: 0 | X119: 1 | Y119: 4
A120: =H3 -> Pefalia | B120: 27.4 | D120: Comp | E120: VI | F120: =VLOOKUP(E120,Profile!A:B,2,FALSE) -> VI-Accounting and reporting | G120: PI-27 | H120: =IFERROR(VLOOKUP(B120,Profile!A:B,2,FALSE),"") -> 27.4 Financial data integrity processes | I120: B | J120: Systems for securing and tracking access to accounting information systems are in place and operating effectively. There is no financial information audit body. | K120: C | L120: Access and changes to records is restricted and recorded, but not all operations result in an audit trail. | N120: Yes | O120: =IFERROR(IF(TRIM(CLEAN(I120))="A",4)+IF(TRIM(CLEAN(I120))="B+",3.5)+IF(TRIM(CLEAN(I120))="B",3)+IF(TRIM(CLEAN(I120))="C+",2.5)+IF(TRIM(CLEAN(I120))="C",2)+IF(TRIM(CLEAN(I120))="D+",1.5)+IF(TRIM(CLEAN(I120))="D",1)+IF(TRIM(CLEAN(I120))="D*",1)+IF(TRIM(CLEAN(I120))="NU",0)+IF(TRIM(CLEAN(I120))="NA",0),"") -> 3 | P120: 3 | Q120: =IFERROR(IF(TRIM(CLEAN(K120))="A",4)+IF(TRIM(CLEAN(K120))="B+",3.5)+IF(TRIM(CLEAN(K120))="B",3)+IF(TRIM(CLEAN(K120))="C+",2.5)+IF(TRIM(CLEAN(K120))="C",2)+IF(TRIM(CLEAN(K120))="D+",1.5)+IF(TRIM(CLEAN(K120))="D",1)+IF(TRIM(CLEAN(K120))="D*",1)+IF(TRIM(CLEAN(K120))="NU",0)+IF(TRIM(CLEAN(K120))="NA",0),"") -> 2 | R120: 2 | S120: =IFERROR(IF(N120=Profile!$E$250,IF(R120-P120<0,"-",IF(R120-P120>0,"+"," =")),"N.C."),"") -> - | T120: =IF(K120="D",Profile!F276, IF(K120="D+",Profile!F276, IF(K120="D*",Profile!F276, IF(K120="C",Profile!F277, IF(K120="C+",Profile!F278, IF(K120="B",Profile!F278, IF(K120="B+",Profile!F279, IF(K120="A",Profile!F279,"")))))))) -> 2. Basic | U120: =IF(K120="A",Profile!F280, IF(K120="B+",Profile!F280, IF(K120="B",Profile!F280, IF(K120="D+",Profile!F281, IF(K120="D",Profile!F281, IF(K120="D*",Profile!F281, Profile!F282)))))) -> Average | V120: 0 | W120: 0 | X120: 1 | Y120: 4
A121: =H3 -> Pefalia | B121: PI-28 | C121: M1 | D121: Indic | E121: VI | F121: =VLOOKUP(E121,Profile!A:B,2,FALSE) -> VI-Accounting and reporting | G121: PI-28 | H121: =IFERROR(VLOOKUP(B121,Profile!A:B,2,FALSE),"") -> PI-28 In_year budget reports | I121: =IF(COUNTIFS($D:$D,"Comp",$G:$G,$G121)=COUNTIFS($D:$D,"Comp",$G:$G,$G121,I:I,"=NU"),"NU", IF(COUNTIFS($D:$D,"Comp",$G:$G,$G121)=COUNTIFS($D:$D,"Comp",$G:$G,$G121,I:I,"=NA")+COUNTIFS($D:$D,"Comp",$G:$G,$G121,I:I,"=NU"),"NA", IF(O121>3.65,"A", IF(O121>=3.25,"B+", IF(O121>2.65,"B", IF(O121>=2.25,"C+", IF(O121>1.75,"C", IF(O121>1.25,"D+", IF(AND(O121<=1.25,O121>0),"D", "" ))))))))) -> D | K121: =IF(COUNTIFS($D:$D,"Comp",$G:$G,$G121)=COUNTIFS($D:$D,"Comp",$G:$G,$G121,K:K,"=NU"),"NU", IF(COUNTIFS($D:$D,"Comp",$G:$G,$G121)=COUNTIFS($D:$D,"Comp",$G:$G,$G121,K:K,"=NA")+COUNTIFS($D:$D,"Comp",$G:$G,$G121,K:K,"=NU"),"NA", IF(Q121>3.65,"A", IF(Q121>=3.25,"B+", IF(Q121>2.65,"B", IF(Q121>=2.25,"C+", IF(Q121>1.75,"C", IF(Q121>1.25,"D+", IF(AND(Q121<=1.25,Q121>0),"D", "" ))))))))) -> D+ | N121: =IF(AND(N122=Profile!E250,N123=Profile!E250,N124=Profile!E250),Profile!E250,Profile!E251) -> Yes | O121: =IFERROR( (IF($C121="M1", IF(ROUND(AVERAGEIFS(O:O,$G:$G,$G121,$D:$D,"Comp",$O:$O,">0"),1)=ROUND(_xlfn.MINIFS(O:O,$G:$G,$G121,$D:$D,"Comp",$O:$O,">0"),1), AVERAGEIFS(O:O,$G:$G,$G121,$D:$D,"Comp",$O:$O,">0"),_xlfn.MINIFS(O:O,$G:$G,$G121,$D:$D,"Comp",$O:$O,">0")+0.5), AVERAGEIFS(O:O,$G:$G,$G121,$D:$D,"Comp",$O:$O,">0"))), 0) -> 1 | P121: =IF(I121="D",1, IF(I121="D*",1, IF(I121="D+",1.5, IF(I121="C",2, IF(I121="C+",2.5, IF(I121="B",3, IF(I121="B+",3.5, IF(I121="A",4, )))))))) -> 1 | Q121: =IFERROR( (IF($C121="M1", IF(ROUND(AVERAGEIFS(Q:Q,$G:$G,$G121,$D:$D,"Comp",$Q:$Q,">0"),1)=ROUND(_xlfn.MINIFS(Q:Q,$G:$G,$G121,$D:$D,"Comp",$Q:$Q,">0"),1), AVERAGEIFS(Q:Q,$G:$G,$G121,$D:$D,"Comp",$Q:$Q,">0"),_xlfn.MINIFS(Q:Q,$G:$G,$G121,$D:$D,"Comp",$Q:$Q,">0")+0.5), AVERAGEIFS(Q:Q,$G:$G,$G121,$D:$D,"Comp",$Q:$Q,">0"))), 0) -> 1.5 | R121: 1.5 | S121: =IFERROR(IF(N121=Profile!$E$250,IF(R121-P121<0,"-",IF(R121-P121>0,"+"," =")),"N.C."),"") -> + | T121: =IF(K121="D",Profile!F276, IF(K121="D+",Profile!F276, IF(K121="D*",Profile!F276, IF(K121="C",Profile!F277, IF(K121="C+",Profile!F278, IF(K121="B",Profile!F278, IF(K121="B+",Profile!F279, IF(K121="A",Profile!F279,"")))))))) -> 1. Below basic | U121: =IF(K121="A",Profile!F280, IF(K121="B+",Profile!F280, IF(K121="B",Profile!F280, IF(K121="D+",Profile!F281, IF(K121="D",Profile!F281, IF(K121="D*",Profile!F281, Profile!F282)))))) -> Weakness | V121: 1 | W121: 1 | X121: 1 | Y121: =Y122 -> 3
A122: =H3 -> Pefalia | B122: 28.1 | D122: Comp | E122: VI | F122: =VLOOKUP(E122,Profile!A:B,2,FALSE) -> VI-Accounting and reporting | G122: PI-28 | H122: =IFERROR(VLOOKUP(B122,Profile!A:B,2,FALSE),"") -> 28.1 Coverage and comparability of reports | I122: D | J122: The budget reports produced during the year by the DGB present budget execution according to economic, geographical and administrative classifications, in the same format as the State budget, but only cover expenditure operations. | K122: C | L122: Classification allows comparison to budget with partial aggregation. Expenditure is covered at both commitment and payment stages. Expenditure made from transfers to deconcentrated units is not included in the reports. | N122: Yes | O122: =IFERROR(IF(TRIM(CLEAN(I122))="A",4)+IF(TRIM(CLEAN(I122))="B+",3.5)+IF(TRIM(CLEAN(I122))="B",3)+IF(TRIM(CLEAN(I122))="C+",2.5)+IF(TRIM(CLEAN(I122))="C",2)+IF(TRIM(CLEAN(I122))="D+",1.5)+IF(TRIM(CLEAN(I122))="D",1)+IF(TRIM(CLEAN(I122))="D*",1)+IF(TRIM(CLEAN(I122))="NU",0)+IF(TRIM(CLEAN(I122))="NA",0),"") -> 1 | P122: =O122 -> 1 | Q122: =IFERROR(IF(TRIM(CLEAN(K122))="A",4)+IF(TRIM(CLEAN(K122))="B+",3.5)+IF(TRIM(CLEAN(K122))="B",3)+IF(TRIM(CLEAN(K122))="C+",2.5)+IF(TRIM(CLEAN(K122))="C",2)+IF(TRIM(CLEAN(K122))="D+",1.5)+IF(TRIM(CLEAN(K122))="D",1)+IF(TRIM(CLEAN(K122))="D*",1)+IF(TRIM(CLEAN(K122))="NU",0)+IF(TRIM(CLEAN(K122))="NA",0),"") -> 2 | R122: =Q122 -> 2 | S122: =IFERROR(IF(N122=Profile!$E$250,IF(R122-P122<0,"-",IF(R122-P122>0,"+"," =")),"N.C."),"") -> + | T122: =IF(K122="D",Profile!F276, IF(K122="D+",Profile!F276, IF(K122="D*",Profile!F276, IF(K122="C",Profile!F277, IF(K122="C+",Profile!F278, IF(K122="B",Profile!F278, IF(K122="B+",Profile!F279, IF(K122="A",Profile!F279,"")))))))) -> 2. Basic | U122: =IF(K122="A",Profile!F280, IF(K122="B+",Profile!F280, IF(K122="B",Profile!F280, IF(K122="D+",Profile!F281, IF(K122="D",Profile!F281, IF(K122="D*",Profile!F281, Profile!F282)))))) -> Average | V122: 1 | W122: 1 | X122: 1 | Y122: 3
A123: =H3 -> Pefalia | B123: 28.2 | D123: Comp | E123: VI | F123: =VLOOKUP(E123,Profile!A:B,2,FALSE) -> VI-Accounting and reporting | G123: PI-28 | H123: =IFERROR(VLOOKUP(B123,Profile!A:B,2,FALSE),"") -> 28.2 Timing of in-year budget reports | I123: D | J123: Budget execution reports should be produced every six months, but this frequency is not respected. | K123: D | L123: Budget execution reports are prepared quarterly but are not issued timely. | N123: Yes | O123: =IFERROR(IF(TRIM(CLEAN(I123))="A",4)+IF(TRIM(CLEAN(I123))="B+",3.5)+IF(TRIM(CLEAN(I123))="B",3)+IF(TRIM(CLEAN(I123))="C+",2.5)+IF(TRIM(CLEAN(I123))="C",2)+IF(TRIM(CLEAN(I123))="D+",1.5)+IF(TRIM(CLEAN(I123))="D",1)+IF(TRIM(CLEAN(I123))="D*",1)+IF(TRIM(CLEAN(I123))="NU",0)+IF(TRIM(CLEAN(I123))="NA",0),"") -> 1 | P123: 1 | Q123: =IFERROR(IF(TRIM(CLEAN(K123))="A",4)+IF(TRIM(CLEAN(K123))="B+",3.5)+IF(TRIM(CLEAN(K123))="B",3)+IF(TRIM(CLEAN(K123))="C+",2.5)+IF(TRIM(CLEAN(K123))="C",2)+IF(TRIM(CLEAN(K123))="D+",1.5)+IF(TRIM(CLEAN(K123))="D",1)+IF(TRIM(CLEAN(K123))="D*",1)+IF(TRIM(CLEAN(K123))="NU",0)+IF(TRIM(CLEAN(K123))="NA",0),"") -> 1 | R123: 1 | S123: =IFERROR(IF(N123=Profile!$E$250,IF(R123-P123<0,"-",IF(R123-P123>0,"+"," =")),"N.C."),"") -> = | T123: =IF(K123="D",Profile!F276, IF(K123="D+",Profile!F276, IF(K123="D*",Profile!F276, IF(K123="C",Profile!F277, IF(K123="C+",Profile!F278, IF(K123="B",Profile!F278, IF(K123="B+",Profile!F279, IF(K123="A",Profile!F279,"")))))))) -> 1. Below basic | U123: =IF(K123="A",Profile!F280, IF(K123="B+",Profile!F280, IF(K123="B",Profile!F280, IF(K123="D+",Profile!F281, IF(K123="D",Profile!F281, IF(K123="D*",Profile!F281, Profile!F282)))))) -> Weakness | V123: 1 | W123: 1 | X123: 1 | Y123: 3
A124: =H3 -> Pefalia | B124: 28.3 | D124: Comp | E124: VI | F124: =VLOOKUP(E124,Profile!A:B,2,FALSE) -> VI-Accounting and reporting | G124: PI-28 | H124: =IFERROR(VLOOKUP(B124,Profile!A:B,2,FALSE),"") -> 28.3 Accuracy of in-year budget reports | I124: D | J124: There are significant concerns about data accuracy. The budget reports produced present expenditure execution at all stages of the administrative phase (commitment, liquidation and authorization), but not payment data. | K124: C | L124: Expenditure is captured in quarterly reports at the payment stage. There may be concerns regarding data accuracy, which are not highlighted in the reports. An analysis of the budget execution is provided on a half-yearly basis. | N124: Yes | O124: =IFERROR(IF(TRIM(CLEAN(I124))="A",4)+IF(TRIM(CLEAN(I124))="B+",3.5)+IF(TRIM(CLEAN(I124))="B",3)+IF(TRIM(CLEAN(I124))="C+",2.5)+IF(TRIM(CLEAN(I124))="C",2)+IF(TRIM(CLEAN(I124))="D+",1.5)+IF(TRIM(CLEAN(I124))="D",1)+IF(TRIM(CLEAN(I124))="D*",1)+IF(TRIM(CLEAN(I124))="NU",0)+IF(TRIM(CLEAN(I124))="NA",0),"") -> 1 | P124: 1 | Q124: =IFERROR(IF(TRIM(CLEAN(K124))="A",4)+IF(TRIM(CLEAN(K124))="B+",3.5)+IF(TRIM(CLEAN(K124))="B",3)+IF(TRIM(CLEAN(K124))="C+",2.5)+IF(TRIM(CLEAN(K124))="C",2)+IF(TRIM(CLEAN(K124))="D+",1.5)+IF(TRIM(CLEAN(K124))="D",1)+IF(TRIM(CLEAN(K124))="D*",1)+IF(TRIM(CLEAN(K124))="NU",0)+IF(TRIM(CLEAN(K124))="NA",0),"") -> 2 | R124: 2 | S124: =IFERROR(IF(N124=Profile!$E$250,IF(R124-P124<0,"-",IF(R124-P124>0,"+"," =")),"N.C."),"") -> + | T124: =IF(K124="D",Profile!F276, IF(K124="D+",Profile!F276, IF(K124="D*",Profile!F276, IF(K124="C",Profile!F277, IF(K124="C+",Profile!F278, IF(K124="B",Profile!F278, IF(K124="B+",Profile!F279, IF(K124="A",Profile!F279,"")))))))) -> 2. Basic | U124: =IF(K124="A",Profile!F280, IF(K124="B+",Profile!F280, IF(K124="B",Profile!F280, IF(K124="D+",Profile!F281, IF(K124="D",Profile!F281, IF(K124="D*",Profile!F281, Profile!F282)))))) -> Average | V124: 1 | W124: 1 | X124: 1 | Y124: 3
A125: =H3 -> Pefalia | B125: PI-29 | C125: M1 | D125: Indic | E125: VI | F125: =VLOOKUP(E125,Profile!A:B,2,FALSE) -> VI-Accounting and reporting | G125: PI-29 | H125: =IFERROR(VLOOKUP(B125,Profile!A:B,2,FALSE),"") -> PI-29 Annual financial reports | I125: =IF(COUNTIFS($D:$D,"Comp",$G:$G,$G125)=COUNTIFS($D:$D,"Comp",$G:$G,$G125,I:I,"=NU"),"NU", IF(COUNTIFS($D:$D,"Comp",$G:$G,$G125)=COUNTIFS($D:$D,"Comp",$G:$G,$G125,I:I,"=NA")+COUNTIFS($D:$D,"Comp",$G:$G,$G125,I:I,"=NU"),"NA", IF(O125>3.65,"A", IF(O125>=3.25,"B+", IF(O125>2.65,"B", IF(O125>=2.25,"C+", IF(O125>1.75,"C", IF(O125>1.25,"D+", IF(AND(O125<=1.25,O125>0),"D", "" ))))))))) -> C | K125: =IF(COUNTIFS($D:$D,"Comp",$G:$G,$G125)=COUNTIFS($D:$D,"Comp",$G:$G,$G125,K:K,"=NU"),"NU", IF(COUNTIFS($D:$D,"Comp",$G:$G,$G125)=COUNTIFS($D:$D,"Comp",$G:$G,$G125,K:K,"=NA")+COUNTIFS($D:$D,"Comp",$G:$G,$G125,K:K,"=NU"),"NA", IF(Q125>3.65,"A", IF(Q125>=3.25,"B+", IF(Q125>2.65,"B", IF(Q125>=2.25,"C+", IF(Q125>1.75,"C", IF(Q125>1.25,"D+", IF(AND(Q125<=1.25,Q125>0),"D", "" ))))))))) -> D+ | N125: =IF(AND(N126=Profile!E250,N127=Profile!E250,N128=Profile!E250),Profile!E250,Profile!E251) -> Yes | O125: =IFERROR( (IF($C125="M1", IF(ROUND(AVERAGEIFS(O:O,$G:$G,$G125,$D:$D,"Comp",$O:$O,">0"),1)=ROUND(_xlfn.MINIFS(O:O,$G:$G,$G125,$D:$D,"Comp",$O:$O,">0"),1), AVERAGEIFS(O:O,$G:$G,$G125,$D:$D,"Comp",$O:$O,">0"),_xlfn.MINIFS(O:O,$G:$G,$G125,$D:$D,"Comp",$O:$O,">0")+0.5), AVERAGEIFS(O:O,$G:$G,$G125,$D:$D,"Comp",$O:$O,">0"))), 0) -> 2 | P125: =IF(I125="D",1, IF(I125="D*",1, IF(I125="D+",1.5, IF(I125="C",2, IF(I125="C+",2.5, IF(I125="B",3, IF(I125="B+",3.5, IF(I125="A",4, )))))))) -> 2 | Q125: =IFERROR( (IF($C125="M1", IF(ROUND(AVERAGEIFS(Q:Q,$G:$G,$G125,$D:$D,"Comp",$Q:$Q,">0"),1)=ROUND(_xlfn.MINIFS(Q:Q,$G:$G,$G125,$D:$D,"Comp",$Q:$Q,">0"),1), AVERAGEIFS(Q:Q,$G:$G,$G125,$D:$D,"Comp",$Q:$Q,">0"),_xlfn.MINIFS(Q:Q,$G:$G,$G125,$D:$D,"Comp",$Q:$Q,">0")+0.5), AVERAGEIFS(Q:Q,$G:$G,$G125,$D:$D,"Comp",$Q:$Q,">0"))), 0) -> 1.5 | R125: 1.5 | S125: =IFERROR(IF(N125=Profile!$E$250,IF(R125-P125<0,"-",IF(R125-P125>0,"+"," =")),"N.C."),"") -> - | T125: =IF(K125="D",Profile!F276, IF(K125="D+",Profile!F276, IF(K125="D*",Profile!F276, IF(K125="C",Profile!F277, IF(K125="C+",Profile!F278, IF(K125="B",Profile!F278, IF(K125="B+",Profile!F279, IF(K125="A",Profile!F279,"")))))))) -> 1. Below basic | U125: =IF(K125="A",Profile!F280, IF(K125="B+",Profile!F280, IF(K125="B",Profile!F280, IF(K125="D+",Profile!F281, IF(K125="D",Profile!F281, IF(K125="D*",Profile!F281, Profile!F282)))))) -> Weakness | V125: 0 | W125: 0 | X125: 1 | Y125: =Y126 -> 3
A126: =H3 -> Pefalia | B126: 29.1 | D126: Comp | E126: VI | F126: =VLOOKUP(E126,Profile!A:B,2,FALSE) -> VI-Accounting and reporting | G126: PI-29 | H126: =IFERROR(VLOOKUP(B126,Profile!A:B,2,FALSE),"") -> 29.1 Completeness of annual financial reports | I126: C | J126: The State Settlement Act and General Account are prepared annually, and present and compare actual revenues and expenditure by major economic category, as well as cash balances. | K126: C | L126: A statement on the Consolidated Fund is prepared annually. Information on revenue, expenditure and bank account balances are not complete, but the omissions are not significant. | N126: Yes | O126: =IFERROR(IF(TRIM(CLEAN(I126))="A",4)+IF(TRIM(CLEAN(I126))="B+",3.5)+IF(TRIM(CLEAN(I126))="B",3)+IF(TRIM(CLEAN(I126))="C+",2.5)+IF(TRIM(CLEAN(I126))="C",2)+IF(TRIM(CLEAN(I126))="D+",1.5)+IF(TRIM(CLEAN(I126))="D",1)+IF(TRIM(CLEAN(I126))="D*",1)+IF(TRIM(CLEAN(I126))="NU",0)+IF(TRIM(CLEAN(I126))="NA",0),"") -> 2 | P126: =O126 -> 2 | Q126: =IFERROR(IF(TRIM(CLEAN(K126))="A",4)+IF(TRIM(CLEAN(K126))="B+",3.5)+IF(TRIM(CLEAN(K126))="B",3)+IF(TRIM(CLEAN(K126))="C+",2.5)+IF(TRIM(CLEAN(K126))="C",2)+IF(TRIM(CLEAN(K126))="D+",1.5)+IF(TRIM(CLEAN(K126))="D",1)+IF(TRIM(CLEAN(K126))="D*",1)+IF(TRIM(CLEAN(K126))="NU",0)+IF(TRIM(CLEAN(K126))="NA",0),"") -> 2 | R126: =Q126 -> 2 | S126: =IFERROR(IF(N126=Profile!$E$250,IF(R126-P126<0,"-",IF(R126-P126>0,"+"," =")),"N.C."),"") -> = | T126: =IF(K126="D",Profile!F276, IF(K126="D+",Profile!F276, IF(K126="D*",Profile!F276, IF(K126="C",Profile!F277, IF(K126="C+",Profile!F278, IF(K126="B",Profile!F278, IF(K126="B+",Profile!F279, IF(K126="A",Profile!F279,"")))))))) -> 2. Basic | U126: =IF(K126="A",Profile!F280, IF(K126="B+",Profile!F280, IF(K126="B",Profile!F280, IF(K126="D+",Profile!F281, IF(K126="D",Profile!F281, IF(K126="D*",Profile!F281, Profile!F282)))))) -> Average | V126: 0 | W126: 0 | X126: 1 | Y126: 3
A127: =H3 -> Pefalia | B127: 29.2 | D127: Comp | E127: VI | F127: =VLOOKUP(E127,Profile!A:B,2,FALSE) -> VI-Accounting and reporting | G127: PI-29 | H127: =IFERROR(VLOOKUP(B127,Profile!A:B,2,FALSE),"") -> 29.2 Submission of reports for external audit | I127: C | J127: The Settlement Bill, the General State Account and the other appendices relating to the 2015 financial year were sent to the Chamber of Accounts on September 29, 2016, i.e. within nine (9) months of the end of the 2015 financial year. | K127: D | L127: Unaudited financial statements of the Consolidated Fund account for the FY 2018/19 were published within six months by the Office of the Comptroller General to the General Auditor. However, the report was not complete and was not completed within 9 months after the end of the fiscal year. | N127: Yes | O127: =IFERROR(IF(TRIM(CLEAN(I127))="A",4)+IF(TRIM(CLEAN(I127))="B+",3.5)+IF(TRIM(CLEAN(I127))="B",3)+IF(TRIM(CLEAN(I127))="C+",2.5)+IF(TRIM(CLEAN(I127))="C",2)+IF(TRIM(CLEAN(I127))="D+",1.5)+IF(TRIM(CLEAN(I127))="D",1)+IF(TRIM(CLEAN(I127))="D*",1)+IF(TRIM(CLEAN(I127))="NU",0)+IF(TRIM(CLEAN(I127))="NA",0),"") -> 2 | P127: 2 | Q127: =IFERROR(IF(TRIM(CLEAN(K127))="A",4)+IF(TRIM(CLEAN(K127))="B+",3.5)+IF(TRIM(CLEAN(K127))="B",3)+IF(TRIM(CLEAN(K127))="C+",2.5)+IF(TRIM(CLEAN(K127))="C",2)+IF(TRIM(CLEAN(K127))="D+",1.5)+IF(TRIM(CLEAN(K127))="D",1)+IF(TRIM(CLEAN(K127))="D*",1)+IF(TRIM(CLEAN(K127))="NU",0)+IF(TRIM(CLEAN(K127))="NA",0),"") -> 1 | R127: 1 | S127: =IFERROR(IF(N127=Profile!$E$250,IF(R127-P127<0,"-",IF(R127-P127>0,"+"," =")),"N.C."),"") -> - | T127: =IF(K127="D",Profile!F276, IF(K127="D+",Profile!F276, IF(K127="D*",Profile!F276, IF(K127="C",Profile!F277, IF(K127="C+",Profile!F278, IF(K127="B",Profile!F278, IF(K127="B+",Profile!F279, IF(K127="A",Profile!F279,"")))))))) -> 1. Below basic | U127: =IF(K127="A",Profile!F280, IF(K127="B+",Profile!F280, IF(K127="B",Profile!F280, IF(K127="D+",Profile!F281, IF(K127="D",Profile!F281, IF(K127="D*",Profile!F281, Profile!F282)))))) -> Weakness | V127: 0 | W127: 0 | X127: 1 | Y127: 3
A128: =H3 -> Pefalia | B128: 29.3 | D128: Comp | E128: VI | F128: =VLOOKUP(E128,Profile!A:B,2,FALSE) -> VI-Accounting and reporting | G128: PI-29 | H128: =IFERROR(VLOOKUP(B128,Profile!A:B,2,FALSE),"") -> 29.3 Accounting standards | I128: C | J128: The structure of the general government account complies with the requirements of the LRFE, the RGCP and the CEMAC directive, and makes it possible to monitor the consistency of the CGE over time. CGE documentation refers to these texts, which are also made public. | K128: C | L128: Statements are presented in consistent format over time, but General auditor’s reports often mention that they are not prepared in accordance with International Public Sector Accounting Standards (IPSAS) cash basis. Variations between international and national standards are not disclosed in AFS. | N128: Yes | O128: =IFERROR(IF(TRIM(CLEAN(I128))="A",4)+IF(TRIM(CLEAN(I128))="B+",3.5)+IF(TRIM(CLEAN(I128))="B",3)+IF(TRIM(CLEAN(I128))="C+",2.5)+IF(TRIM(CLEAN(I128))="C",2)+IF(TRIM(CLEAN(I128))="D+",1.5)+IF(TRIM(CLEAN(I128))="D",1)+IF(TRIM(CLEAN(I128))="D*",1)+IF(TRIM(CLEAN(I128))="NU",0)+IF(TRIM(CLEAN(I128))="NA",0),"") -> 2 | P128: 2 | Q128: =IFERROR(IF(TRIM(CLEAN(K128))="A",4)+IF(TRIM(CLEAN(K128))="B+",3.5)+IF(TRIM(CLEAN(K128))="B",3)+IF(TRIM(CLEAN(K128))="C+",2.5)+IF(TRIM(CLEAN(K128))="C",2)+IF(TRIM(CLEAN(K128))="D+",1.5)+IF(TRIM(CLEAN(K128))="D",1)+IF(TRIM(CLEAN(K128))="D*",1)+IF(TRIM(CLEAN(K128))="NU",0)+IF(TRIM(CLEAN(K128))="NA",0),"") -> 2 | R128: 2 | S128: =IFERROR(IF(N128=Profile!$E$250,IF(R128-P128<0,"-",IF(R128-P128>0,"+"," =")),"N.C."),"") -> = | T128: =IF(K128="D",Profile!F276, IF(K128="D+",Profile!F276, IF(K128="D*",Profile!F276, IF(K128="C",Profile!F277, IF(K128="C+",Profile!F278, IF(K128="B",Profile!F278, IF(K128="B+",Profile!F279, IF(K128="A",Profile!F279,"")))))))) -> 2. Basic | U128: =IF(K128="A",Profile!F280, IF(K128="B+",Profile!F280, IF(K128="B",Profile!F280, IF(K128="D+",Profile!F281, IF(K128="D",Profile!F281, IF(K128="D*",Profile!F281, Profile!F282)))))) -> Average | V128: 0 | W128: 0 | X128: 1 | Y128: 3
A129: =H3 -> Pefalia | B129: VII | D129: Pilar | E129: VII | F129: =VLOOKUP(E129,Profile!A:B,2,FALSE) -> VII-External scrutiny and audit | H129: =IFERROR(VLOOKUP(B129,Profile!A:B,2,FALSE),"") -> VII-External scrutiny and audit | I129: =IF(COUNTIFS($D:$D,"Indic",$E:$E,$E129)=COUNTIFS($D:$D,"Indic",$E:$E,$E129,$I:$I,"=NU"),"NU", IF(COUNTIFS($D:$D,"Indic",$E:$E,$E129)=COUNTIFS($D:$D,"Indic",$E:$E,C130,$I:$I,"=NA"),"NA", IF(O129>3.65,"A", IF(O129>=3.25,"B+", IF(O129>2.65,"B", IF(O129>=2.25,"C+", IF(O129>1.75,"C", IF(O129>1.25,"D+", IF(AND(O129<=1.25,O129>0),"D", "" ))))))))) -> C | K129: =IF(COUNTIFS($D:$D,"Indic",$E:$E,E129)=COUNTIFS($D:$D,"Indic",$E:$E,E130,$K:$K,"=NU"),"NU", IF(COUNTIFS($D:$D,"Indic",$E:$E,E129)=COUNTIFS($D:$D,"Indic",$E:$E,E130,$K:$K,"=NA"),"NA", IF(Q129>3.65,"A", IF(Q129>=3.25,"B+", IF(Q129>2.65,"B", IF(Q129>=2.25,"C+", IF(Q129>1.75,"C", IF(Q129>1.25,"D+", IF(AND(Q129<=1.25,Q129>0),"D", "" ))))))))) -> D | N129: =IF(COUNTIFS(N130:N139,Profile!$E$250)=10,Profile!$E$250,Profile!$E$251) -> Yes | O129: =AVERAGEIFS(O:O,$D:$D,"Indic",$E:$E,$E129,O:O,">0") -> 1.875 | P129: =IF(I129="D",1, IF(I129="D*",1, IF(I129="D+",1.5, IF(I129="C",2, IF(I129="C+",2.5, IF(I129="B",3, IF(I129="B+",3.5, IF(I129="A",4, )))))))) -> 2 | Q129: =AVERAGEIFS(Q:Q,$D:$D,"Indic",$E:$E,$E129,Q:Q,">0") -> 1.25 | R129: 1 | S129: =IFERROR(IF(N129=Profile!$E$250,IF(R129-P129<0,"-",IF(R129-P129>0,"+"," =")),"N.C."),"") -> - | T129: =IF(K129="D",Profile!F276, IF(K129="D+",Profile!F276, IF(K129="D*",Profile!F276, IF(K129="C",Profile!F277, IF(K129="C+",Profile!F278, IF(K129="B",Profile!F278, IF(K129="B+",Profile!F279, IF(K129="A",Profile!F279,"")))))))) -> 1. Below basic | U129: =IF(K129="A",Profile!F280, IF(K129="B+",Profile!F280, IF(K129="B",Profile!F280, IF(K129="D+",Profile!F281, IF(K129="D",Profile!F281, IF(K129="D*",Profile!F281, Profile!F282)))))) -> Weakness
A130: =H3 -> Pefalia | B130: PI-30 | C130: M1 | D130: Indic | E130: VII | F130: =VLOOKUP(E130,Profile!A:B,2,FALSE) -> VII-External scrutiny and audit | G130: PI-30 | H130: =IFERROR(VLOOKUP(B130,Profile!A:B,2,FALSE),"") -> PI-30 External audit | I130: =IF(COUNTIFS($D:$D,"Comp",$G:$G,$G130)=COUNTIFS($D:$D,"Comp",$G:$G,$G130,I:I,"=NU"),"NU", IF(COUNTIFS($D:$D,"Comp",$G:$G,$G130)=COUNTIFS($D:$D,"Comp",$G:$G,$G130,I:I,"=NA")+COUNTIFS($D:$D,"Comp",$G:$G,$G130,I:I,"=NU"),"NA", IF(O130>3.65,"A", IF(O130>=3.25,"B+", IF(O130>2.65,"B", IF(O130>=2.25,"C+", IF(O130>1.75,"C", IF(O130>1.25,"D+", IF(AND(O130<=1.25,O130>0),"D", "" ))))))))) -> D+ | K130: =IF(COUNTIFS($D:$D,"Comp",$G:$G,$G130)=COUNTIFS($D:$D,"Comp",$G:$G,$G130,K:K,"=NU"),"NU", IF(COUNTIFS($D:$D,"Comp",$G:$G,$G130)=COUNTIFS($D:$D,"Comp",$G:$G,$G130,K:K,"=NA")+COUNTIFS($D:$D,"Comp",$G:$G,$G130,K:K,"=NU"),"NA", IF(Q130>3.65,"A", IF(Q130>=3.25,"B+", IF(Q130>2.65,"B", IF(Q130>=2.25,"C+", IF(Q130>1.75,"C", IF(Q130>1.25,"D+", IF(AND(Q130<=1.25,Q130>0),"D", "" ))))))))) -> D+ | N130: =IF(AND(N131=Profile!E250,N132=Profile!E250,N133=Profile!E250,N134=Profile!E250),Profile!E250,Profile!E251) -> Yes | O130: =IFERROR( (IF($C130="M1", IF(ROUND(AVERAGEIFS(O:O,$G:$G,$G130,$D:$D,"Comp",$O:$O,">0"),1)=ROUND(_xlfn.MINIFS(O:O,$G:$G,$G130,$D:$D,"Comp",$O:$O,">0"),1), AVERAGEIFS(O:O,$G:$G,$G130,$D:$D,"Comp",$O:$O,">0"),_xlfn.MINIFS(O:O,$G:$G,$G130,$D:$D,"Comp",$O:$O,">0")+0.5), AVERAGEIFS(O:O,$G:$G,$G130,$D:$D,"Comp",$O:$O,">0"))), 0) -> 1.5 | P130: =IF(I130="D",1, IF(I130="D*",1, IF(I130="D+",1.5, IF(I130="C",2, IF(I130="C+",2.5, IF(I130="B",3, IF(I130="B+",3.5, IF(I130="A",4, )))))))) -> 1.5 | Q130: =IFERROR( (IF($C130="M1", IF(ROUND(AVERAGEIFS(Q:Q,$G:$G,$G130,$D:$D,"Comp",$Q:$Q,">0"),1)=ROUND(_xlfn.MINIFS(Q:Q,$G:$G,$G130,$D:$D,"Comp",$Q:$Q,">0"),1), AVERAGEIFS(Q:Q,$G:$G,$G130,$D:$D,"Comp",$Q:$Q,">0"),_xlfn.MINIFS(Q:Q,$G:$G,$G130,$D:$D,"Comp",$Q:$Q,">0")+0.5), AVERAGEIFS(Q:Q,$G:$G,$G130,$D:$D,"Comp",$Q:$Q,">0"))), 0) -> 1.5 | R130: 1.5 | S130: =IFERROR(IF(N130=Profile!$E$250,IF(R130-P130<0,"-",IF(R130-P130>0,"+"," =")),"N.C."),"") -> = | T130: =IF(K130="D",Profile!F276, IF(K130="D+",Profile!F276, IF(K130="D*",Profile!F276, IF(K130="C",Profile!F277, IF(K130="C+",Profile!F278, IF(K130="B",Profile!F278, IF(K130="B+",Profile!F279, IF(K130="A",Profile!F279,"")))))))) -> 1. Below basic | U130: =IF(K130="A",Profile!F280, IF(K130="B+",Profile!F280, IF(K130="B",Profile!F280, IF(K130="D+",Profile!F281, IF(K130="D",Profile!F281, IF(K130="D*",Profile!F281, Profile!F282)))))) -> Weakness | V130: 0 | W130: 0 | X130: 1 | Y130: =Y131 -> 4
A131: =H3 -> Pefalia | B131: 30.1 | D131: Comp | E131: VII | F131: =VLOOKUP(E131,Profile!A:B,2,FALSE) -> VII-External scrutiny and audit | G131: PI-30 | H131: =IFERROR(VLOOKUP(B131,Profile!A:B,2,FALSE),"") -> 30.1 Audit coverage and standards | I131: D* | J131: Every year, the Chambre des Comptes examines the financial reports of the State and some of the extra-budgetary entities. Due to the lack of data, it is not possible to determine what entities that do not submit their accounts represent, in terms of revenue or expenditure and in relation to central government as a whole. | K131: B | L131: Financial reports of central government entities representing more than 75% total expenditures and revenues have been audited national auditing standards. The audits have highlighted relevant material issues. | N131: Yes | O131: =IFERROR(IF(TRIM(CLEAN(I131))="A",4)+IF(TRIM(CLEAN(I131))="B+",3.5)+IF(TRIM(CLEAN(I131))="B",3)+IF(TRIM(CLEAN(I131))="C+",2.5)+IF(TRIM(CLEAN(I131))="C",2)+IF(TRIM(CLEAN(I131))="D+",1.5)+IF(TRIM(CLEAN(I131))="D",1)+IF(TRIM(CLEAN(I131))="D*",1)+IF(TRIM(CLEAN(I131))="NU",0)+IF(TRIM(CLEAN(I131))="NA",0),"") -> 1 | P131: =O131 -> 1 | Q131: =IFERROR(IF(TRIM(CLEAN(K131))="A",4)+IF(TRIM(CLEAN(K131))="B+",3.5)+IF(TRIM(CLEAN(K131))="B",3)+IF(TRIM(CLEAN(K131))="C+",2.5)+IF(TRIM(CLEAN(K131))="C",2)+IF(TRIM(CLEAN(K131))="D+",1.5)+IF(TRIM(CLEAN(K131))="D",1)+IF(TRIM(CLEAN(K131))="D*",1)+IF(TRIM(CLEAN(K131))="NU",0)+IF(TRIM(CLEAN(K131))="NA",0),"") -> 3 | R131: =Q131 -> 3 | S131: =IFERROR(IF(N131=Profile!$E$250,IF(R131-P131<0,"-",IF(R131-P131>0,"+"," =")),"N.C."),"") -> + | T131: =IF(K131="D",Profile!F276, IF(K131="D+",Profile!F276, IF(K131="D*",Profile!F276, IF(K131="C",Profile!F277, IF(K131="C+",Profile!F278, IF(K131="B",Profile!F278, IF(K131="B+",Profile!F279, IF(K131="A",Profile!F279,"")))))))) -> 3. Sound | U131: =IF(K131="A",Profile!F280, IF(K131="B+",Profile!F280, IF(K131="B",Profile!F280, IF(K131="D+",Profile!F281, IF(K131="D",Profile!F281, IF(K131="D*",Profile!F281, Profile!F282)))))) -> Strength | V131: 0 | W131: 0 | X131: 1 | Y131: 4
A132: =H3 -> Pefalia | B132: 30.2 | D132: Comp | E132: VII | F132: =VLOOKUP(E132,Profile!A:B,2,FALSE) -> VII-External scrutiny and audit | G132: PI-30 | H132: =IFERROR(VLOOKUP(B132,Profile!A:B,2,FALSE),"") -> 30.2 Submission of audit reports to the legislature | I132: A | J132: The reports received by the Audit Office for the last three financial years were examined and forwarded to Parliament within five weeks of receipt. | K132: D | L132: General auditor reports on financial statements were submitted to the legislature more than nine months from the date of receipt by General auditor of AFS from the Government. | N132: Yes | O132: =IFERROR(IF(TRIM(CLEAN(I132))="A",4)+IF(TRIM(CLEAN(I132))="B+",3.5)+IF(TRIM(CLEAN(I132))="B",3)+IF(TRIM(CLEAN(I132))="C+",2.5)+IF(TRIM(CLEAN(I132))="C",2)+IF(TRIM(CLEAN(I132))="D+",1.5)+IF(TRIM(CLEAN(I132))="D",1)+IF(TRIM(CLEAN(I132))="D*",1)+IF(TRIM(CLEAN(I132))="NU",0)+IF(TRIM(CLEAN(I132))="NA",0),"") -> 4 | P132: 4 | Q132: =IFERROR(IF(TRIM(CLEAN(K132))="A",4)+IF(TRIM(CLEAN(K132))="B+",3.5)+IF(TRIM(CLEAN(K132))="B",3)+IF(TRIM(CLEAN(K132))="C+",2.5)+IF(TRIM(CLEAN(K132))="C",2)+IF(TRIM(CLEAN(K132))="D+",1.5)+IF(TRIM(CLEAN(K132))="D",1)+IF(TRIM(CLEAN(K132))="D*",1)+IF(TRIM(CLEAN(K132))="NU",0)+IF(TRIM(CLEAN(K132))="NA",0),"") -> 1 | R132: 1 | S132: =IFERROR(IF(N132=Profile!$E$250,IF(R132-P132<0,"-",IF(R132-P132>0,"+"," =")),"N.C."),"") -> - | T132: =IF(K132="D",Profile!F276, IF(K132="D+",Profile!F276, IF(K132="D*",Profile!F276, IF(K132="C",Profile!F277, IF(K132="C+",Profile!F278, IF(K132="B",Profile!F278, IF(K132="B+",Profile!F279, IF(K132="A",Profile!F279,"")))))))) -> 1. Below basic | U132: =IF(K132="A",Profile!F280, IF(K132="B+",Profile!F280, IF(K132="B",Profile!F280, IF(K132="D+",Profile!F281, IF(K132="D",Profile!F281, IF(K132="D*",Profile!F281, Profile!F282)))))) -> Weakness | V132: 0 | W132: 0 | X132: 1 | Y132: 4
A133: =H3 -> Pefalia | B133: 30.3 | D133: Comp | E133: VII | F133: =VLOOKUP(E133,Profile!A:B,2,FALSE) -> VII-External scrutiny and audit | G133: PI-30 | H133: =IFERROR(VLOOKUP(B133,Profile!A:B,2,FALSE),"") -> 30.3 External audit follow-up | I133: D | J133: There is no formal framework or follow-up to recommendations. The Chamber often repeats the same recommendations. | K133: C | L133: A formal response is usually provided by the audited entity, but it is often not clearly complete and/or timely. | N133: Yes | O133: =IFERROR(IF(TRIM(CLEAN(I133))="A",4)+IF(TRIM(CLEAN(I133))="B+",3.5)+IF(TRIM(CLEAN(I133))="B",3)+IF(TRIM(CLEAN(I133))="C+",2.5)+IF(TRIM(CLEAN(I133))="C",2)+IF(TRIM(CLEAN(I133))="D+",1.5)+IF(TRIM(CLEAN(I133))="D",1)+IF(TRIM(CLEAN(I133))="D*",1)+IF(TRIM(CLEAN(I133))="NU",0)+IF(TRIM(CLEAN(I133))="NA",0),"") -> 1 | P133: 1 | Q133: =IFERROR(IF(TRIM(CLEAN(K133))="A",4)+IF(TRIM(CLEAN(K133))="B+",3.5)+IF(TRIM(CLEAN(K133))="B",3)+IF(TRIM(CLEAN(K133))="C+",2.5)+IF(TRIM(CLEAN(K133))="C",2)+IF(TRIM(CLEAN(K133))="D+",1.5)+IF(TRIM(CLEAN(K133))="D",1)+IF(TRIM(CLEAN(K133))="D*",1)+IF(TRIM(CLEAN(K133))="NU",0)+IF(TRIM(CLEAN(K133))="NA",0),"") -> 2 | R133: 2 | S133: =IFERROR(IF(N133=Profile!$E$250,IF(R133-P133<0,"-",IF(R133-P133>0,"+"," =")),"N.C."),"") -> + | T133: =IF(K133="D",Profile!F276, IF(K133="D+",Profile!F276, IF(K133="D*",Profile!F276, IF(K133="C",Profile!F277, IF(K133="C+",Profile!F278, IF(K133="B",Profile!F278, IF(K133="B+",Profile!F279, IF(K133="A",Profile!F279,"")))))))) -> 2. Basic | U133: =IF(K133="A",Profile!F280, IF(K133="B+",Profile!F280, IF(K133="B",Profile!F280, IF(K133="D+",Profile!F281, IF(K133="D",Profile!F281, IF(K133="D*",Profile!F281, Profile!F282)))))) -> Average | V133: 0 | W133: 0 | X133: 1 | Y133: 4
A134: =H3 -> Pefalia | B134: 30.4 | D134: Comp | E134: VII | F134: =VLOOKUP(E134,Profile!A:B,2,FALSE) -> VII-External scrutiny and audit | G134: PI-30 | H134: =IFERROR(VLOOKUP(B134,Profile!A:B,2,FALSE),"") -> 30.4 Supreme Audit Institution independence | I134: D | J134: The texts do not guarantee the independence of the Chambre des Comptes. | K134: D | L134: The General auditor operates independently from the executive with respect to the procedures for appointment and removal of the Auditor General. However, Ministry of Finance has significant influence on the release of General auditor’s budget. Besides, the General auditor had difficulties to obtain the requested documents and information in a timely manner. | N134: Yes | O134: =IFERROR(IF(TRIM(CLEAN(I134))="A",4)+IF(TRIM(CLEAN(I134))="B+",3.5)+IF(TRIM(CLEAN(I134))="B",3)+IF(TRIM(CLEAN(I134))="C+",2.5)+IF(TRIM(CLEAN(I134))="C",2)+IF(TRIM(CLEAN(I134))="D+",1.5)+IF(TRIM(CLEAN(I134))="D",1)+IF(TRIM(CLEAN(I134))="D*",1)+IF(TRIM(CLEAN(I134))="NU",0)+IF(TRIM(CLEAN(I134))="NA",0),"") -> 1 | P134: 1 | Q134: =IFERROR(IF(TRIM(CLEAN(K134))="A",4)+IF(TRIM(CLEAN(K134))="B+",3.5)+IF(TRIM(CLEAN(K134))="B",3)+IF(TRIM(CLEAN(K134))="C+",2.5)+IF(TRIM(CLEAN(K134))="C",2)+IF(TRIM(CLEAN(K134))="D+",1.5)+IF(TRIM(CLEAN(K134))="D",1)+IF(TRIM(CLEAN(K134))="D*",1)+IF(TRIM(CLEAN(K134))="NU",0)+IF(TRIM(CLEAN(K134))="NA",0),"") -> 1 | R134: 1 | S134: =IFERROR(IF(N134=Profile!$E$250,IF(R134-P134<0,"-",IF(R134-P134>0,"+"," =")),"N.C."),"") -> = | T134: =IF(K134="D",Profile!F276, IF(K134="D+",Profile!F276, IF(K134="D*",Profile!F276, IF(K134="C",Profile!F277, IF(K134="C+",Profile!F278, IF(K134="B",Profile!F278, IF(K134="B+",Profile!F279, IF(K134="A",Profile!F279,"")))))))) -> 1. Below basic | U134: =IF(K134="A",Profile!F280, IF(K134="B+",Profile!F280, IF(K134="B",Profile!F280, IF(K134="D+",Profile!F281, IF(K134="D",Profile!F281, IF(K134="D*",Profile!F281, Profile!F282)))))) -> Weakness | V134: 0 | W134: 0 | X134: 1 | Y134: 4
A135: =H3 -> Pefalia | B135: PI-31 | C135: M2 | D135: Indic | E135: VII | F135: =VLOOKUP(E135,Profile!A:B,2,FALSE) -> VII-External scrutiny and audit | G135: PI-31 | H135: =IFERROR(VLOOKUP(B135,Profile!A:B,2,FALSE),"") -> PI-31 Legislative scrutiny of audit reports | I135: =IF(COUNTIFS($D:$D,"Comp",$G:$G,$G135)=COUNTIFS($D:$D,"Comp",$G:$G,$G135,I:I,"=NU"),"NU", IF(COUNTIFS($D:$D,"Comp",$G:$G,$G135)=COUNTIFS($D:$D,"Comp",$G:$G,$G135,I:I,"=NA")+COUNTIFS($D:$D,"Comp",$G:$G,$G135,I:I,"=NU"),"NA", IF(O135>3.65,"A", IF(O135>=3.25,"B+", IF(O135>2.65,"B", IF(O135>=2.25,"C+", IF(O135>1.75,"C", IF(O135>1.25,"D+", IF(AND(O135<=1.25,O135>0),"D", "" ))))))))) -> C+ | K135: =IF(COUNTIFS($D:$D,"Comp",$G:$G,$G135)=COUNTIFS($D:$D,"Comp",$G:$G,$G135,K:K,"=NU"),"NU", IF(COUNTIFS($D:$D,"Comp",$G:$G,$G135)=COUNTIFS($D:$D,"Comp",$G:$G,$G135,K:K,"=NA")+COUNTIFS($D:$D,"Comp",$G:$G,$G135,K:K,"=NU"),"NA", IF(Q135>3.65,"A", IF(Q135>=3.25,"B+", IF(Q135>2.65,"B", IF(Q135>=2.25,"C+", IF(Q135>1.75,"C", IF(Q135>1.25,"D+", IF(AND(Q135<=1.25,Q135>0),"D", "" ))))))))) -> D | N135: =IF(AND(N136=Profile!E250,N137=Profile!E250,N138=Profile!E250,N139=Profile!E250),Profile!E250,Profile!E251) -> Yes | O135: =IFERROR( (IF($C135="M1", IF(ROUND(AVERAGEIFS(O:O,$G:$G,$G135,$D:$D,"Comp",$O:$O,">0"),1)=ROUND(_xlfn.MINIFS(O:O,$G:$G,$G135,$D:$D,"Comp",$O:$O,">0"),1), AVERAGEIFS(O:O,$G:$G,$G135,$D:$D,"Comp",$O:$O,">0"),_xlfn.MINIFS(O:O,$G:$G,$G135,$D:$D,"Comp",$O:$O,">0")+0.5), AVERAGEIFS(O:O,$G:$G,$G135,$D:$D,"Comp",$O:$O,">0"))), 0) -> 2.25 | P135: =IF(I135="D",1, IF(I135="D*",1, IF(I135="D+",1.5, IF(I135="C",2, IF(I135="C+",2.5, IF(I135="B",3, IF(I135="B+",3.5, IF(I135="A",4, )))))))) -> 2.5 | Q135: =IFERROR( (IF($C135="M1", IF(ROUND(AVERAGEIFS(Q:Q,$G:$G,$G135,$D:$D,"Comp",$Q:$Q,">0"),1)=ROUND(_xlfn.MINIFS(Q:Q,$G:$G,$G135,$D:$D,"Comp",$Q:$Q,">0"),1), AVERAGEIFS(Q:Q,$G:$G,$G135,$D:$D,"Comp",$Q:$Q,">0"),_xlfn.MINIFS(Q:Q,$G:$G,$G135,$D:$D,"Comp",$Q:$Q,">0")+0.5), AVERAGEIFS(Q:Q,$G:$G,$G135,$D:$D,"Comp",$Q:$Q,">0"))), 0) -> 1 | R135: =IF(K135="D",1, IF(K135="D+",1.5, IF(K135="C",2, IF(K135="C+",2.5, IF(K135="B",3, IF(K135="B+",3.5, IF(K135="A",4, ))))))) -> 1 | S135: =IFERROR(IF(N135=Profile!$E$250,IF(R135-P135<0,"-",IF(R135-P135>0,"+"," =")),"N.C."),"") -> - | T135: =IF(K135="D",Profile!F276, IF(K135="D+",Profile!F276, IF(K135="D*",Profile!F276, IF(K135="C",Profile!F277, IF(K135="C+",Profile!F278, IF(K135="B",Profile!F278, IF(K135="B+",Profile!F279, IF(K135="A",Profile!F279,"")))))))) -> 1. Below basic | U135: =IF(K135="A",Profile!F280, IF(K135="B+",Profile!F280, IF(K135="B",Profile!F280, IF(K135="D+",Profile!F281, IF(K135="D",Profile!F281, IF(K135="D*",Profile!F281, Profile!F282)))))) -> Weakness | V135: 0 | W135: 0 | X135: 1 | Y135: =Y136 -> 4
A136: =H3 -> Pefalia | B136: 31.1 | D136: Comp | E136: VII | F136: =VLOOKUP(E136,Profile!A:B,2,FALSE) -> VII-External scrutiny and audit | G136: PI-31 | H136: =IFERROR(VLOOKUP(B136,Profile!A:B,2,FALSE),"") -> 31.1 Timing of audit report scrutiny | I136: A | J136: Parliament's examination of the draft bills of settlement and the report of the Chambre des Comptes for fiscal years 2013, 2014 and 2015 was completed in less than three months for each of these years. | K136: D | L136: Examination of audit reports by the legislature is taking generally more than 12 months to complete. | N136: Yes | O136: =IFERROR(IF(TRIM(CLEAN(I136))="A",4)+IF(TRIM(CLEAN(I136))="B+",3.5)+IF(TRIM(CLEAN(I136))="B",3)+IF(TRIM(CLEAN(I136))="C+",2.5)+IF(TRIM(CLEAN(I136))="C",2)+IF(TRIM(CLEAN(I136))="D+",1.5)+IF(TRIM(CLEAN(I136))="D",1)+IF(TRIM(CLEAN(I136))="D*",1)+IF(TRIM(CLEAN(I136))="NU",0)+IF(TRIM(CLEAN(I136))="NA",0),"") -> 4 | P136: =O136 -> 4 | Q136: =IFERROR(IF(TRIM(CLEAN(K136))="A",4)+IF(TRIM(CLEAN(K136))="B+",3.5)+IF(TRIM(CLEAN(K136))="B",3)+IF(TRIM(CLEAN(K136))="C+",2.5)+IF(TRIM(CLEAN(K136))="C",2)+IF(TRIM(CLEAN(K136))="D+",1.5)+IF(TRIM(CLEAN(K136))="D",1)+IF(TRIM(CLEAN(K136))="D*",1)+IF(TRIM(CLEAN(K136))="NU",0)+IF(TRIM(CLEAN(K136))="NA",0),"") -> 1 | R136: =Q136 -> 1 | S136: =IFERROR(IF(N136=Profile!$E$250,IF(R136-P136<0,"-",IF(R136-P136>0,"+"," =")),"N.C."),"") -> - | T136: =IF(K136="D",Profile!F276, IF(K136="D+",Profile!F276, IF(K136="D*",Profile!F276, IF(K136="C",Profile!F277, IF(K136="C+",Profile!F278, IF(K136="B",Profile!F278, IF(K136="B+",Profile!F279, IF(K136="A",Profile!F279,"")))))))) -> 1. Below basic | U136: =IF(K136="A",Profile!F280, IF(K136="B+",Profile!F280, IF(K136="B",Profile!F280, IF(K136="D+",Profile!F281, IF(K136="D",Profile!F281, IF(K136="D*",Profile!F281, Profile!F282)))))) -> Weakness | V136: 0 | W136: 0 | X136: 1 | Y136: 4
A137: =H3 -> Pefalia | B137: 31.2 | D137: Comp | E137: VII | F137: =VLOOKUP(E137,Profile!A:B,2,FALSE) -> VII-External scrutiny and audit | G137: PI-31 | H137: =IFERROR(VLOOKUP(B137,Profile!A:B,2,FALSE),"") -> 31.2 Hearings on audit findings | I137: D | J137: In-depth hearings on the main conclusions of the Audit Office's report are not held. Representatives of the Audit Office are not invited to explain the institution's observations and conclusions to Parliament. | K137: D | L137: The PAC conducted public hearings on various special audit reports, but they did not refer to key findings of the General auditor audit reports. | N137: Yes | O137: =IFERROR(IF(TRIM(CLEAN(I137))="A",4)+IF(TRIM(CLEAN(I137))="B+",3.5)+IF(TRIM(CLEAN(I137))="B",3)+IF(TRIM(CLEAN(I137))="C+",2.5)+IF(TRIM(CLEAN(I137))="C",2)+IF(TRIM(CLEAN(I137))="D+",1.5)+IF(TRIM(CLEAN(I137))="D",1)+IF(TRIM(CLEAN(I137))="D*",1)+IF(TRIM(CLEAN(I137))="NU",0)+IF(TRIM(CLEAN(I137))="NA",0),"") -> 1 | P137: 1 | Q137: =IFERROR(IF(TRIM(CLEAN(K137))="A",4)+IF(TRIM(CLEAN(K137))="B+",3.5)+IF(TRIM(CLEAN(K137))="B",3)+IF(TRIM(CLEAN(K137))="C+",2.5)+IF(TRIM(CLEAN(K137))="C",2)+IF(TRIM(CLEAN(K137))="D+",1.5)+IF(TRIM(CLEAN(K137))="D",1)+IF(TRIM(CLEAN(K137))="D*",1)+IF(TRIM(CLEAN(K137))="NU",0)+IF(TRIM(CLEAN(K137))="NA",0),"") -> 1 | R137: 1 | S137: =IFERROR(IF(N137=Profile!$E$250,IF(R137-P137<0,"-",IF(R137-P137>0,"+"," =")),"N.C."),"") -> = | T137: =IF(K137="D",Profile!F276, IF(K137="D+",Profile!F276, IF(K137="D*",Profile!F276, IF(K137="C",Profile!F277, IF(K137="C+",Profile!F278, IF(K137="B",Profile!F278, IF(K137="B+",Profile!F279, IF(K137="A",Profile!F279,"")))))))) -> 1. Below basic | U137: =IF(K137="A",Profile!F280, IF(K137="B+",Profile!F280, IF(K137="B",Profile!F280, IF(K137="D+",Profile!F281, IF(K137="D",Profile!F281, IF(K137="D*",Profile!F281, Profile!F282)))))) -> Weakness | V137: 0 | W137: 0 | X137: 1 | Y137: 4
A138: =H3 -> Pefalia | B138: 31.3 | D138: Comp | E138: VII | F138: =VLOOKUP(E138,Profile!A:B,2,FALSE) -> VII-External scrutiny and audit | G138: PI-31 | H138: =IFERROR(VLOOKUP(B138,Profile!A:B,2,FALSE),"") -> 31.3 Recommendations on audit by the legislature | I138: B | J138: After examining the draft settlement law and the report of the Audit Office, Parliament makes recommendations to the Government, and reports on their implementation when examining the draft settlement law for the following year. | K138: D | L138: The legislature provides some recommendations on actions to be implemented by the executive, but the PAC does not have a specific follow-up system and these recommendations are not specifically linked to those made by the General auditor on AFS. | N138: Yes | O138: =IFERROR(IF(TRIM(CLEAN(I138))="A",4)+IF(TRIM(CLEAN(I138))="B+",3.5)+IF(TRIM(CLEAN(I138))="B",3)+IF(TRIM(CLEAN(I138))="C+",2.5)+IF(TRIM(CLEAN(I138))="C",2)+IF(TRIM(CLEAN(I138))="D+",1.5)+IF(TRIM(CLEAN(I138))="D",1)+IF(TRIM(CLEAN(I138))="D*",1)+IF(TRIM(CLEAN(I138))="NU",0)+IF(TRIM(CLEAN(I138))="NA",0),"") -> 3 | P138: 3 | Q138: =IFERROR(IF(TRIM(CLEAN(K138))="A",4)+IF(TRIM(CLEAN(K138))="B+",3.5)+IF(TRIM(CLEAN(K138))="B",3)+IF(TRIM(CLEAN(K138))="C+",2.5)+IF(TRIM(CLEAN(K138))="C",2)+IF(TRIM(CLEAN(K138))="D+",1.5)+IF(TRIM(CLEAN(K138))="D",1)+IF(TRIM(CLEAN(K138))="D*",1)+IF(TRIM(CLEAN(K138))="NU",0)+IF(TRIM(CLEAN(K138))="NA",0),"") -> 1 | R138: 1 | S138: =IFERROR(IF(N138=Profile!$E$250,IF(R138-P138<0,"-",IF(R138-P138>0,"+"," =")),"N.C."),"") -> - | T138: =IF(K138="D",Profile!F276, IF(K138="D+",Profile!F276, IF(K138="D*",Profile!F276, IF(K138="C",Profile!F277, IF(K138="C+",Profile!F278, IF(K138="B",Profile!F278, IF(K138="B+",Profile!F279, IF(K138="A",Profile!F279,"")))))))) -> 1. Below basic | U138: =IF(K138="A",Profile!F280, IF(K138="B+",Profile!F280, IF(K138="B",Profile!F280, IF(K138="D+",Profile!F281, IF(K138="D",Profile!F281, IF(K138="D*",Profile!F281, Profile!F282)))))) -> Weakness | V138: 0 | W138: 0 | X138: 1 | Y138: 4
A139: =H3 -> Pefalia | B139: 31.4 | D139: Comp | E139: VII | F139: =VLOOKUP(E139,Profile!A:B,2,FALSE) -> VII-External scrutiny and audit | G139: PI-31 | H139: =IFERROR(VLOOKUP(B139,Profile!A:B,2,FALSE),"") -> 31.4 Transparency of legislative scrutiny of audit reports | I139: D | J139: Parliamentary plenary sessions devoted to examining and voting on the Settlement Act are open to the public, but committee reports are not published. | K139: D | L139: Reports of the Public Accounts Committee are not published on any official website or other means easily accessible to the public. | N139: Yes | O139: =IFERROR(IF(TRIM(CLEAN(I139))="A",4)+IF(TRIM(CLEAN(I139))="B+",3.5)+IF(TRIM(CLEAN(I139))="B",3)+IF(TRIM(CLEAN(I139))="C+",2.5)+IF(TRIM(CLEAN(I139))="C",2)+IF(TRIM(CLEAN(I139))="D+",1.5)+IF(TRIM(CLEAN(I139))="D",1)+IF(TRIM(CLEAN(I139))="D*",1)+IF(TRIM(CLEAN(I139))="NU",0)+IF(TRIM(CLEAN(I139))="NA",0),"") -> 1 | P139: 1 | Q139: =IFERROR(IF(TRIM(CLEAN(K139))="A",4)+IF(TRIM(CLEAN(K139))="B+",3.5)+IF(TRIM(CLEAN(K139))="B",3)+IF(TRIM(CLEAN(K139))="C+",2.5)+IF(TRIM(CLEAN(K139))="C",2)+IF(TRIM(CLEAN(K139))="D+",1.5)+IF(TRIM(CLEAN(K139))="D",1)+IF(TRIM(CLEAN(K139))="D*",1)+IF(TRIM(CLEAN(K139))="NU",0)+IF(TRIM(CLEAN(K139))="NA",0),"") -> 1 | R139: 1 | S139: =IFERROR(IF(N139=Profile!$E$250,IF(R139-P139<0,"-",IF(R139-P139>0,"+"," =")),"N.C."),"") -> = | T139: =IF(K139="D",Profile!F276, IF(K139="D+",Profile!F276, IF(K139="D*",Profile!F276, IF(K139="C",Profile!F277, IF(K139="C+",Profile!F278, IF(K139="B",Profile!F278, IF(K139="B+",Profile!F279, IF(K139="A",Profile!F279,"")))))))) -> 1. Below basic | U139: =IF(K139="A",Profile!F280, IF(K139="B+",Profile!F280, IF(K139="B",Profile!F280, IF(K139="D+",Profile!F281, IF(K139="D",Profile!F281, IF(K139="D*",Profile!F281, Profile!F282)))))) -> Weakness | V139: 0 | W139: 0 | X139: 1 | Y139: 4

Sheet Input. 2011 fmk
C2: =Profile!F256 -> Team Leader
C3: =Profile!F257 -> Country | H3: =+'Input. 2016 fmk'!H3 -> Pefalia | L3: =Profile!F291 -> PEFA assessment - 2011 Framework
B4: =Profile!F259 -> Current assessment | H4: =+'Input. 2016 fmk'!H4 -> 2023 | J4: =Profile!F289&" "&H4 -> Global score 2023 | K4: =IF(K6>3.65,"A", IF(K6>=3.25,"B+", IF(K6>2.65,"B", IF(K6>=2.25,"C+", IF(K6>1.75,"C", IF(K6>1.25,"D+", IF(AND(K6<=1.25,K6>0),"D", "NA" ))))))) -> C
B5: =Profile!F260 -> Previous assessment | H5: =+'Input. 2016 fmk'!H5 -> 2016 | J5: =Profile!F289&" "&H5 -> Global score 2016 | K5: =IF(I6>3.65,"A", IF(I6>=3.25,"B+", IF(I6>2.65,"B", IF(I6>=2.25,"C+", IF(I6>1.75,"C", IF(I6>1.25,"D+", IF(AND(I6<=1.25,I6>0),"D", "NA" ))))))) -> C
I6: =AVERAGEIFS(N9:N122,D9:D122,"Indic") -> 2.232258065 | K6: =AVERAGEIFS(P9:P122,D9:D122,"Indic") -> 1.922580645
A8: Country | B8: ID | C8: Method | D8: Type | E8: PI_Pilar | F8: Pilar | G8: PI_Indic | H8: Label | I8: =H5 -> 2016 | J8: =MetaData!F22&" "&I8 -> 2016 | K8: =H4 -> 2023 | L8: =MetaData!F22&" "&K8 -> 2023 | M8: Comp | N8: ="Num_temp "&I8 -> Num_temp 2016 | O8: ="Num "&I8 -> Num 2016 | P8: ="Num_temp "&K8 -> Num_temp 2023 | Q8: ="Num_"&K8 -> Num_2023 | R8: Evol | S8: ="Perf_"&K8 -> Perf_2023 | T8: ="SW_"&K8 -> SW_2023 | U8: Outcome1 | V8: Outcome2 | W8: Outcome3 | X8: Section
A9: =H3 -> Pefalia | B9: A | D9: Pilar | E9: A | F9: =IFERROR(VLOOKUP(E9,Profile!A2:B246,2,FALSE),"") -> A Credibility of public finance and budget | H9: =IFERROR(VLOOKUP(B9,Profile!A2:B246,2,FALSE),"") -> A Credibility of public finance and budget | I9: =IF(N9>3.65,"A", IF(N9>=3.25,"B+", IF(N9>2.65,"B", IF(N9>=2.25,"C+", IF(N9>1.75,"C", IF(N9>1.25,"D+", IF(AND(N9<=1.25,N9>0),"D", "" ))))))) -> C+ | K9: =IF(P9>3.65,"A", IF(P9>=3.25,"B+", IF(P9>2.65,"B", IF(P9>=2.25,"C+", IF(P9>1.75,"C", IF(P9>1.25,"D+", IF(AND(P9<=1.25,P9>0),"D", "" ))))))) -> D | M9: =IF(COUNTIFS(M10:M19,Profile!E250)=10,Profile!E250,Profile!E251) -> No | N9: =IFERROR(IF(OR(I10="NR",I12="NR",I15="NR",I17="NR"),1,AVERAGEIFS(N10:N19,D10:D19,"Indic",N10:N19,">0")),0) -> 2.25 | O9: =IF(I9="D",1, IF(I9="D+",1.5, IF(I9="C",2, IF(I9="C+",2.5, IF(I9="B",3, IF(I9="B+",3.5, IF(I9="A",4, IF(I9="NR",1, )))))))) -> 2.5 | P9: =IFERROR(IF(OR(K10="NR",K12="NR",K15="NR",K17="NR"),1,AVERAGEIFS(P10:P19,D10:D19,"Indic",P10:P19,">0")),0) -> 1 | Q9: =IF(K9="D",1, IF(K9="D+",1.5, IF(K9="C",2, IF(K9="C+",2.5, IF(K9="B",3, IF(K9="B+",3.5, IF(K9="A",4, IF(K9="NR",4, )))))))) -> 1 | R9: =IF(M9=Profile!E251,"N.C.", IF(Q9>O9,"+", IF(Q9<O9,"-", IF(Q9=O9," =", "" )))) -> N.C. | S9: =IF(K9="D",MetaData!F28, IF(K9="D+",MetaData!F28, IF(K9="C",MetaData!F29, IF(K9="C+",MetaData!F30, IF(K9="B+",MetaData!F30, IF(K9="B",MetaData!F31, IF(K9="A",MetaData!F31,""))))))) -> 0 | T9: =IF(K9="A",MetaData!F32, IF(K9="B+",MetaData!F32, IF(K9="B",MetaData!F32, IF(K9="D+",MetaData!F33, IF(K9="D",MetaData!F33, IF(K9="NR",MetaData!F33,MetaData!F34)))))) -> 0
A10: =H3 -> Pefalia | B10: PI-1 | C10: M1 | D10: Indic | E10: A | F10: =IFERROR(VLOOKUP(E10,Profile!A2:B246,2,FALSE),"") -> A Credibility of public finance and budget | G10: =+B10 -> PI-1 | H10: =IFERROR(VLOOKUP(B10,Profile!A2:B246,2,FALSE),"") -> PI-1 Aggregate expenditure outturn | I10: =IF(I11="NR","NR",IF(I11="","",I11)) -> C | K10: =IF(K11="NR","NR",IF(K11="","",K11)) -> C | M10: =IF(M11=Profile!E251,Profile!E251,Profile!E250) -> Yes | N10: =IF(I10="NR",1,IF(C10="M1",IF(AVERAGE(N11)=MIN(N11),N11,MIN(N11)+0.5),AVERAGE(N11))) -> 2 | O10: 2 | P10: =IF(K10="NR",1,IF(C10="M1",IF(AVERAGE(P11)=MIN(P11),P11,MIN(P11)+0.5),AVERAGE(P11))) -> 2 | Q10: 2 | R10: =IF(M10=MetaData!E4,"N.C.", IF(Q10>O10,"+", IF(Q10<O10,"-", IF(Q10=O10," =", "" )))) -> = | S10: =IF(K10="D",Profile!$F$276, IF(K10="D+",Profile!$F$276, IF(K10="D*",Profile!$F$276, IF(K10="C",Profile!$F$277, IF(K10="C+",Profile!$F$278, IF(K10="B",Profile!$F$278, IF(K10="B+",Profile!$F$279, IF(K10="A",Profile!$F$279,"")))))))) -> 2. Basic | T10: =IF(K10="A",Profile!$F$280, IF(K10="B+",Profile!$F$280, IF(K10="B",Profile!$F$280, IF(K10="D+",Profile!$F$281, IF(K10="D",Profile!$F$281, IF(K10="D*",Profile!$F$281, Profile!$F$282)))))) -> Average | U10: 1 | V10: 0 | W10: 0 | X10: 1
A11: =H3 -> Pefalia | B11: PI-1 (i) | C11: M1 | D11: Comp | E11: A | F11: =IFERROR(VLOOKUP(E11,Profile!A2:B246,2,FALSE),"") -> A Credibility of public finance and budget | G11: PI_1 | H11: =IFERROR(VLOOKUP(B11,Profile!A2:B246,2,FALSE),"") -> (i) Difference between actual primary expenditure and the originally budgeted primary expenditure | I11: C | J11: Actual primary expenditure has deviated from budgeted expenditure by less than 15% in all three years, but by more than 10% in two of the last three years (fiscal 2016/17 and 2017/18). | K11: C | L11: Performance is unchanged. | M11: Yes | N11: =(IF(TRIM(CLEAN(I11))="A",4)+IF(TRIM(CLEAN(I11))="B+",3.5)+IF(TRIM(CLEAN(I11))="B",3)+IF(TRIM(CLEAN(I11))="C+",2.5)+IF(TRIM(CLEAN(I11))="C",2)+IF(TRIM(CLEAN(I11))="D+",1.5)+IF(TRIM(CLEAN(I11))="D",1)+IF(TRIM(CLEAN(I11))="NR",1)+IF(TRIM(CLEAN(I11))="NU",0))+IF(TRIM(CLEAN(I11))="NA",0) -> 2 | O11: 2 | P11: =IF(TRIM(CLEAN(K11))="A",4)+IF(TRIM(CLEAN(K11))="B+",3.5)+IF(TRIM(CLEAN(K11))="B",3)+IF(TRIM(CLEAN(K11))="C+",2.5)+IF(TRIM(CLEAN(K11))="C",2)+IF(TRIM(CLEAN(K11))="D+",1.5)+IF(TRIM(CLEAN(K11))="D",1)+IF(TRIM(CLEAN(K11))="NR",1)+IF(TRIM(CLEAN(K11))="NU",0)+IF(TRIM(CLEAN(K11))="NA",0) -> 2 | Q11: 2 | R11: =IFERROR(IF(M14=Profile!$E$250,IF(Q14-O14<0,"-",IF(Q14-O14>0,"+"," =")),"N.C."),"") -> = | S11: =IF(K11="D",Profile!$F$276, IF(K11="D+",Profile!$F$276, IF(K11="D*",Profile!$F$276, IF(K11="C",Profile!$F$277, IF(K11="C+",Profile!$F$278, IF(K11="B",Profile!$F$278, IF(K11="B+",Profile!$F$279, IF(K11="A",Profile!$F$279,"")))))))) -> 2. Basic | T11: =IF(K11="A",Profile!$F$280, IF(K11="B+",Profile!$F$280, IF(K11="B",Profile!$F$280, IF(K11="D+",Profile!$F$281, IF(K11="D",Profile!$F$281, IF(K11="D*",Profile!$F$281, Profile!$F$282)))))) -> Average | X11: 1
A12: =H3 -> Pefalia | B12: PI-2 | C12: M1 | D12: Indic | E12: A | F12: =IFERROR(VLOOKUP(E12,Profile!A2:B246,2,FALSE),"") -> A Credibility of public finance and budget | G12: =+B12 -> PI-2 | H12: =IFERROR(VLOOKUP(B12,Profile!A2:B246,2,FALSE),"") -> PI-2 Expenditure composition outturn | I12: =IF(OR(I13="NR",I14="NR"),"NR", IF(AND(I13="NU",I14="NU"),"NU", IF(AND(OR(I13="NA",I13="NU"),OR(I14="NA",I14="NU")),"NA", IF(N12>3.65,"A", IF(N12>=3.25,"B+", IF(N12>2.65,"B", IF(N12>=2.25,"C+", IF(N12>1.75,"C", IF(N12>1.25,"D+", IF(AND(N12<=1.25,N12>0),"D", "" )))))))))) -> D+ | K12: =IF(OR(K13="NR",K14="NR"),"NR", IF(AND(K13="NU",K14="NU"),"NU", IF(AND(OR(K13="NA",K13="NU"),OR(K14="NA",K14="NU")),"NA", IF(P12>3.65,"A", IF(P12>=3.25,"B+", IF(P12>2.65,"B", IF(P12>=2.25,"C+", IF(P12>1.75,"C", IF(P12>1.25,"D+", IF(AND(P12<=1.25,P12>0),"D", "" )))))))))) -> C+ | M12: =IF(OR(M13=Profile!E251,M14=Profile!E251),Profile!E251,Profile!E250) -> Yes | N12: =IFERROR(IF(OR(I13="NR",I14="NR"),1,IF(C12="M1",IF(ROUND(AVERAGEIF(N13:N14,">0"),1)=ROUND(MIN(IF(N13:N14>0,N13:N14)),1),ROUND(AVERAGEIF(N13:N14,">0"),1),ROUND(MIN(IF(N13:N14>0,N13:N14)),1)+0.5),ROUND(AVERAGEIF(N13:N14,">0"),1))),0) -> 1.5 | O12: 1.5 | P12: =IFERROR(IF(OR(K13="NR",K14="NR"),1,IF(C12="M1",IF(ROUND(AVERAGEIF(P13:P14,">0"),1)=ROUND(MIN(IF(P13:P14>0,P13:P14)),1),ROUND(AVERAGEIF(P13:P14,">0"),1),ROUND(MIN(IF(P13:P14>0,P13:P14)),1)+0.5),ROUND(AVERAGEIF(P13:P14,">0"),1))),0) -> 2.5 | Q12: 2.5 | R12: =IF(M12=MetaData!E6,"N.C.", IF(Q12>O12,"+", IF(Q12<O12,"-", IF(Q12=O12," =", "" )))) -> + | S12: =IF(K12="D",Profile!$F$276, IF(K12="D+",Profile!$F$276, IF(K12="D*",Profile!$F$276, IF(K12="C",Profile!$F$277, IF(K12="C+",Profile!$F$278, IF(K12="B",Profile!$F$278, IF(K12="B+",Profile!$F$279, IF(K12="A",Profile!$F$279,"")))))))) -> 3. Sound | T12: =IF(K12="A",Profile!$F$280, IF(K12="B+",Profile!$F$280, IF(K12="B",Profile!$F$280, IF(K12="D+",Profile!$F$281, IF(K12="D",Profile!$F$281, IF(K12="D*",Profile!$F$281, Profile!$F$282)))))) -> Average | U12: 0 | V12: 1 | W12: 1 | X12: 2
A13: =H3 -> Pefalia | B13: PI-2 (i) | C13: M1 | D13: Comp | E13: A | F13: =IFERROR(VLOOKUP(E13,Profile!A2:B246,2,FALSE),"") -> A Credibility of public finance and budget | G13: PI_2 | H13: =IFERROR(VLOOKUP(B13,Profile!A2:B246,2,FALSE),"") -> (i) Extent of the variance in expenditure composition during the last three years, excluding contingency items | I13: D | J13: In only one of the last three years (FY 2018/19) has the variance in the mix of expenses exceeded 15%. | K13: C | L13: Performance improved in the first two years of the evaluation period, but declined in the last. | M13: Yes | N13: =IF(TRIM(CLEAN(I13))="A",4)+IF(TRIM(CLEAN(I13))="B+",3.5)+IF(TRIM(CLEAN(I13))="B",3)+IF(TRIM(CLEAN(I13))="C+",2.5)+IF(TRIM(CLEAN(I13))="C",2)+IF(TRIM(CLEAN(I13))="D+",1.5)+IF(TRIM(CLEAN(I13))="D",1)+IF(TRIM(CLEAN(I13))="NR",1)+IF(TRIM(CLEAN(I13))="NU",0)+IF(TRIM(CLEAN(I13))="NA",0) -> 1 | O13: 1 | P13: =IF(TRIM(CLEAN(K13))="A",4)+IF(TRIM(CLEAN(K13))="B+",3.5)+IF(TRIM(CLEAN(K13))="B",3)+IF(TRIM(CLEAN(K13))="C+",2.5)+IF(TRIM(CLEAN(K13))="C",2)+IF(TRIM(CLEAN(K13))="D+",1.5)+IF(TRIM(CLEAN(K13))="D",1)+IF(TRIM(CLEAN(K13))="NR",1)+IF(TRIM(CLEAN(K13))="NU",0)+IF(TRIM(CLEAN(K13))="NA",0) -> 2 | Q13: 2 | R13: =IFERROR(IF(M16=Profile!$E$250,IF(Q16-O16<0,"-",IF(Q16-O16>0,"+"," =")),"N.C."),"") -> = | S13: =IF(K13="D",Profile!$F$276, IF(K13="D+",Profile!$F$276, IF(K13="D*",Profile!$F$276, IF(K13="C",Profile!$F$277, IF(K13="C+",Profile!$F$278, IF(K13="B",Profile!$F$278, IF(K13="B+",Profile!$F$279, IF(K13="A",Profile!$F$279,"")))))))) -> 2. Basic | T13: =IF(K13="A",Profile!$F$280, IF(K13="B+",Profile!$F$280, IF(K13="B",Profile!$F$280, IF(K13="D+",Profile!$F$281, IF(K13="D",Profile!$F$281, IF(K13="D*",Profile!$F$281, Profile!$F$282)))))) -> Average | X13: 2
A14: =H3 -> Pefalia | B14: PI-2 (ii) | C14: M1 | D14: Comp | E14: A | F14: =IFERROR(VLOOKUP(E14,Profile!A2:B246,2,FALSE),"") -> A Credibility of public finance and budget | G14: PI_2 | H14: =IFERROR(VLOOKUP(B14,Profile!A2:B246,2,FALSE),"") -> (ii) The average amount of expenditure actually charged to the contingency vote over the last three years | I14: A | J14: The average level of expenditure charged directly to the contingency reserve fund was less than 3% of the initial budget. | K14: A | L14: Performance unchanged. | M14: Yes | N14: =IF(TRIM(CLEAN(I14))="A",4)+IF(TRIM(CLEAN(I14))="B+",3.5)+IF(TRIM(CLEAN(I14))="B",3)+IF(TRIM(CLEAN(I14))="C+",2.5)+IF(TRIM(CLEAN(I14))="C",2)+IF(TRIM(CLEAN(I14))="D+",1.5)+IF(TRIM(CLEAN(I14))="D",1)+IF(TRIM(CLEAN(I14))="NR",1)+IF(TRIM(CLEAN(I14))="NU",0)+IF(TRIM(CLEAN(I14))="NA",0) -> 4 | O14: 4 | P14: =IF(TRIM(CLEAN(K14))="A",4)+IF(TRIM(CLEAN(K14))="B+",3.5)+IF(TRIM(CLEAN(K14))="B",3)+IF(TRIM(CLEAN(K14))="C+",2.5)+IF(TRIM(CLEAN(K14))="C",2)+IF(TRIM(CLEAN(K14))="D+",1.5)+IF(TRIM(CLEAN(K14))="D",1)+IF(TRIM(CLEAN(K14))="NR",1)+IF(TRIM(CLEAN(K14))="NU",0)+IF(TRIM(CLEAN(K14))="NA",0) -> 4 | Q14: 4 | R14: =IFERROR(IF(M17=Profile!$E$250,IF(Q17-O17<0,"-",IF(Q17-O17>0,"+"," =")),"N.C."),"") -> N.C. | S14: =IF(K14="D",Profile!$F$276, IF(K14="D+",Profile!$F$276, IF(K14="D*",Profile!$F$276, IF(K14="C",Profile!$F$277, IF(K14="C+",Profile!$F$278, IF(K14="B",Profile!$F$278, IF(K14="B+",Profile!$F$279, IF(K14="A",Profile!$F$279,"")))))))) -> 4. High | T14: =IF(K14="A",Profile!$F$280, IF(K14="B+",Profile!$F$280, IF(K14="B",Profile!$F$280, IF(K14="D+",Profile!$F$281, IF(K14="D",Profile!$F$281, IF(K14="D*",Profile!$F$281, Profile!$F$282)))))) -> Strength | X14: 2
A15: =H3 -> Pefalia | B15: PI-3 | C15: M1 | D15: Indic | E15: A | F15: =IFERROR(VLOOKUP(E15,Profile!A2:B246,2,FALSE),"") -> A Credibility of public finance and budget | G15: =+B15 -> PI-3 | H15: =IFERROR(VLOOKUP(B15,Profile!A2:B246,2,FALSE),"") -> PI-3 Revenue outturn | I15: =IF(I16="NR","NR",IF(I16="","",I16)) -> B | K15: =IF(K16="NR","NR",IF(K16="","",K16)) -> B | M15: =IF(M16=Profile!E251,Profile!E251,Profile!E250) -> Yes | N15: =IF(I15="NR",1,IF(C15="M1",IF(AVERAGE(N16)=MIN(N16),N16,MIN(N16)+0.5),AVERAGE(N16))) -> 3 | O15: 3 | P15: =IF(K15="NR",1,IF(C15="M1",IF(AVERAGE(P16)=MIN(P16),P16,MIN(P16)+0.5),AVERAGE(P16))) -> 3 | Q15: 3 | R15: =IF(M15=MetaData!E9,"N.C.", IF(Q15>O15,"+", IF(Q15<O15,"-", IF(Q15=O15," =", "" )))) -> = | S15: =IF(K15="D",Profile!$F$276, IF(K15="D+",Profile!$F$276, IF(K15="D*",Profile!$F$276, IF(K15="C",Profile!$F$277, IF(K15="C+",Profile!$F$278, IF(K15="B",Profile!$F$278, IF(K15="B+",Profile!$F$279, IF(K15="A",Profile!$F$279,"")))))))) -> 3. Sound | T15: =IF(K15="A",Profile!$F$280, IF(K15="B+",Profile!$F$280, IF(K15="B",Profile!$F$280, IF(K15="D+",Profile!$F$281, IF(K15="D",Profile!$F$281, IF(K15="D*",Profile!$F$281, Profile!$F$282)))))) -> Strength | U15: 1 | V15: 0 | W15: 0 | X15: 1
A16: =H3 -> Pefalia | B16: PI-3 (i) | C16: M1 | D16: Comp | E16: A | F16: =IFERROR(VLOOKUP(E16,Profile!A2:B246,2,FALSE),"") -> A Credibility of public finance and budget | G16: PI_3 | H16: =IFERROR(VLOOKUP(B16,Profile!A2:B246,2,FALSE),"") -> (i) Actual domestic revenue collection compared to domestic revenue estimates in the original, approved budget | I16: B | J16: Actual domestic revenues ranged between 94% and 112% of budgeted domestic revenues in fiscal 2016/17 and 2017/18. | K16: B | L16: Performance remained unchanged, but there was a drop in domestic revenue collection in the last financial year. | M16: Yes | N16: =(IF(TRIM(CLEAN(I16))="A",4)+IF(TRIM(CLEAN(I16))="B+",3.5)+IF(TRIM(CLEAN(I16))="B",3)+IF(TRIM(CLEAN(I16))="C+",2.5)+IF(TRIM(CLEAN(I16))="C",2)+IF(TRIM(CLEAN(I16))="D+",1.5)+IF(TRIM(CLEAN(I16))="D",1)+IF(TRIM(CLEAN(I16))="NR",1)+IF(TRIM(CLEAN(I16))="NU",0))+IF(TRIM(CLEAN(I16))="NA",0) -> 3 | O16: 3 | P16: =IF(TRIM(CLEAN(K16))="A",4)+IF(TRIM(CLEAN(K16))="B+",3.5)+IF(TRIM(CLEAN(K16))="B",3)+IF(TRIM(CLEAN(K16))="C+",2.5)+IF(TRIM(CLEAN(K16))="C",2)+IF(TRIM(CLEAN(K16))="D+",1.5)+IF(TRIM(CLEAN(K16))="D",1)+IF(TRIM(CLEAN(K16))="NR",1)+IF(TRIM(CLEAN(K16))="NU",0)+IF(TRIM(CLEAN(K16))="NA",0) -> 3 | Q16: 3 | R16: =IFERROR(IF(M19=Profile!$E$250,IF(Q19-O19<0,"-",IF(Q19-O19>0,"+"," =")),"N.C."),"") -> N.C. | S16: =IF(K16="D",Profile!$F$276, IF(K16="D+",Profile!$F$276, IF(K16="D*",Profile!$F$276, IF(K16="C",Profile!$F$277, IF(K16="C+",Profile!$F$278, IF(K16="B",Profile!$F$278, IF(K16="B+",Profile!$F$279, IF(K16="A",Profile!$F$279,"")))))))) -> 3. Sound | T16: =IF(K16="A",Profile!$F$280, IF(K16="B+",Profile!$F$280, IF(K16="B",Profile!$F$280, IF(K16="D+",Profile!$F$281, IF(K16="D",Profile!$F$281, IF(K16="D*",Profile!$F$281, Profile!$F$282)))))) -> Strength | X16: 1
A17: =H3 -> Pefalia | B17: PI-4 | C17: M1 | D17: Indic | E17: A | F17: =IFERROR(VLOOKUP(E17,Profile!A2:B246,2,FALSE),"") -> A Credibility of public finance and budget | G17: =+B17 -> PI-4 | H17: =IFERROR(VLOOKUP(B17,Profile!A2:B246,2,FALSE),"") -> PI-4 Budget classification | I17: =IF(OR(I18="NR",I19="NR"),"NR", IF(AND(I18="NU",I19="NU"),"NU", IF(AND(OR(I18="NA",I18="NU"),OR(I19="NA",I19="NU")),"NA", IF(N17>3.65,"A", IF(N17>=3.25,"B+", IF(N17>2.65,"B", IF(N17>=2.25,"C+", IF(N17>1.75,"C", IF(N17>1.25,"D+", IF(AND(N17<=1.25,N17>0),"D", "" )))))))))) -> C+ | K17: =IF(OR(K18="NR",K19="NR"),"NR", IF(AND(K18="NU",K19="NU"),"NU", IF(AND(OR(K18="NA",K18="NU"),OR(K19="NA",K19="NU")),"NA", IF(P17>3.65,"A", IF(P17>=3.25,"B+", IF(P17>2.65,"B", IF(P17>=2.25,"C+", IF(P17>1.75,"C", IF(P17>1.25,"D+", IF(AND(P17<=1.25,P17>0),"D", "" )))))))))) -> NR | M17: =IF(OR(M18=Profile!E251,M19=Profile!E251),Profile!E251,Profile!E250) -> No | N17: =IFERROR(IF(OR(I18="NR",I19="NR"),1,IF(C17="M1",IF(ROUND(AVERAGEIF(N18:N19,">0"),1)=ROUND(MIN(IF(N18:N19>0,N18:N19)),1),ROUND(AVERAGEIF(N18:N19,">0"),1),ROUND(MIN(IF(N18:N19>0,N18:N19)),1)+0.5),ROUND(AVERAGEIF(N18:N19,">0"),1))),0) -> 2.5 | O17: 2.5 | P17: =IFERROR(IF(OR(K18="NR",K19="NR"),1,IF(C17="M1",IF(ROUND(AVERAGEIF(P18:P19,">0"),1)=ROUND(MIN(IF(P18:P19>0,P18:P19)),1),ROUND(AVERAGEIF(P18:P19,">0"),1),ROUND(MIN(IF(P18:P19>0,P18:P19)),1)+0.5),ROUND(AVERAGEIF(P18:P19,">0"),1))),0) -> 1 | Q17: 4 | R17: =IF(M17=MetaData!E11,"N.C.", IF(Q17>O17,"+", IF(Q17<O17,"-", IF(Q17=O17," =", "" )))) -> + | S17: =IF(K17="D",Profile!$F$276, IF(K17="D+",Profile!$F$276, IF(K17="D*",Profile!$F$276, IF(K17="C",Profile!$F$277, IF(K17="C+",Profile!$F$278, IF(K17="B",Profile!$F$278, IF(K17="B+",Profile!$F$279, IF(K17="A",Profile!$F$279,"")))))))) ->  | T17: =IF(K17="A",Profile!$F$280, IF(K17="B+",Profile!$F$280, IF(K17="B",Profile!$F$280, IF(K17="D+",Profile!$F$281, IF(K17="D",Profile!$F$281, IF(K17="D*",Profile!$F$281, Profile!$F$282)))))) -> Average | U17: 1 | V17: 0 | W17: 0 | X17: 2
A18: =H3 -> Pefalia | B18: PI-4 (i) | C18: M1 | D18: Comp | E18: A | F18: =IFERROR(VLOOKUP(E18,Profile!A2:B246,2,FALSE),"") -> A Credibility of public finance and budget | G18: PI_4 | H18: =IFERROR(VLOOKUP(B18,Profile!A2:B246,2,FALSE),"") -> (i) Stock of expenditure payment arrears(as a percentage of actual total expenditure for the corresponding fiscal year and any recent change in the stock | I18: C | J18: The stock of expenditure arrears represents around 50% of total expenditure over the last three fiscal years, but comprehensive information is not available. | K18: NR | L18: No comparison possible. Overdue payments to suppliers of more than one year are recorded as domestic debt. | M18: No | N18: =IF(TRIM(CLEAN(I18))="A",4)+IF(TRIM(CLEAN(I18))="B+",3.5)+IF(TRIM(CLEAN(I18))="B",3)+IF(TRIM(CLEAN(I18))="C+",2.5)+IF(TRIM(CLEAN(I18))="C",2)+IF(TRIM(CLEAN(I18))="D+",1.5)+IF(TRIM(CLEAN(I18))="D",1)+IF(TRIM(CLEAN(I18))="NR",1)+IF(TRIM(CLEAN(I18))="NU",0)+IF(TRIM(CLEAN(I18))="NA",0) -> 2 | O18: 2 | P18: =IF(TRIM(CLEAN(K18))="A",4)+IF(TRIM(CLEAN(K18))="B+",3.5)+IF(TRIM(CLEAN(K18))="B",3)+IF(TRIM(CLEAN(K18))="C+",2.5)+IF(TRIM(CLEAN(K18))="C",2)+IF(TRIM(CLEAN(K18))="D+",1.5)+IF(TRIM(CLEAN(K18))="D",1)+IF(TRIM(CLEAN(K18))="NR",1)+IF(TRIM(CLEAN(K18))="NU",0)+IF(TRIM(CLEAN(K18))="NA",0) -> 1 | Q18: 4 | R18: =IFERROR(IF(M21=Profile!$E$250,IF(Q21-O21<0,"-",IF(Q21-O21>0,"+"," =")),"N.C."),"") -> = | S18: =IF(K18="D",Profile!$F$276, IF(K18="D+",Profile!$F$276, IF(K18="D*",Profile!$F$276, IF(K18="C",Profile!$F$277, IF(K18="C+",Profile!$F$278, IF(K18="B",Profile!$F$278, IF(K18="B+",Profile!$F$279, IF(K18="A",Profile!$F$279,"")))))))) ->  | T18: =IF(K18="A",Profile!$F$280, IF(K18="B+",Profile!$F$280, IF(K18="B",Profile!$F$280, IF(K18="D+",Profile!$F$281, IF(K18="D",Profile!$F$281, IF(K18="D*",Profile!$F$281, Profile!$F$282)))))) -> Average | X18: 2
A19: =H3 -> Pefalia | B19: PI-4 (ii) | C19: M1 | D19: Comp | E19: A | F19: =IFERROR(VLOOKUP(E19,Profile!A2:B246,2,FALSE),"") -> A Credibility of public finance and budget | G19: PI_4 | H19: =IFERROR(VLOOKUP(B19,Profile!A2:B246,2,FALSE),"") -> (ii) Availability of data for monitoring the stock of expenditure payment arrears | I19: B | J19: Data on the stock of arrears are generated annually, but domestic arrears only concern those owed to suppliers. | K19: NR | L19: Performance unchanged. Accrual accounting has not yet been implemented, and IFMIS does not record supplier arrears arising from commitments made by MACs. However, the MACs make this information available to the Ministry of Finance at least once a year. | M19: No | N19: =IF(TRIM(CLEAN(I19))="A",4)+IF(TRIM(CLEAN(I19))="B+",3.5)+IF(TRIM(CLEAN(I19))="B",3)+IF(TRIM(CLEAN(I19))="C+",2.5)+IF(TRIM(CLEAN(I19))="C",2)+IF(TRIM(CLEAN(I19))="D+",1.5)+IF(TRIM(CLEAN(I19))="D",1)+IF(TRIM(CLEAN(I19))="NR",1)+IF(TRIM(CLEAN(I19))="NU",0)+IF(TRIM(CLEAN(I19))="NA",0) -> 3 | O19: 3 | P19: =IF(TRIM(CLEAN(K19))="A",4)+IF(TRIM(CLEAN(K19))="B+",3.5)+IF(TRIM(CLEAN(K19))="B",3)+IF(TRIM(CLEAN(K19))="C+",2.5)+IF(TRIM(CLEAN(K19))="C",2)+IF(TRIM(CLEAN(K19))="D+",1.5)+IF(TRIM(CLEAN(K19))="D",1)+IF(TRIM(CLEAN(K19))="NR",1)+IF(TRIM(CLEAN(K19))="NU",0)+IF(TRIM(CLEAN(K19))="NA",0) -> 1 | Q19: 4 | R19: =IFERROR(IF(M22=Profile!$E$250,IF(Q22-O22<0,"-",IF(Q22-O22>0,"+"," =")),"N.C."),"") -> = | S19: =IF(K19="D",Profile!$F$276, IF(K19="D+",Profile!$F$276, IF(K19="D*",Profile!$F$276, IF(K19="C",Profile!$F$277, IF(K19="C+",Profile!$F$278, IF(K19="B",Profile!$F$278, IF(K19="B+",Profile!$F$279, IF(K19="A",Profile!$F$279,"")))))))) ->  | T19: =IF(K19="A",Profile!$F$280, IF(K19="B+",Profile!$F$280, IF(K19="B",Profile!$F$280, IF(K19="D+",Profile!$F$281, IF(K19="D",Profile!$F$281, IF(K19="D*",Profile!$F$281, Profile!$F$282)))))) -> Average | X19: 2
A20: =H3 -> Pefalia | B20: B | D20: Pilar | E20: B | F20: =IFERROR(VLOOKUP(E20,Profile!A2:B246,2,FALSE),"") -> B Completeness and transparency | H20: =IFERROR(VLOOKUP(B20,Profile!A2:B246,2,FALSE),"") -> B Completeness and transparency | I20: =IF(N20>3.65,"A", IF(N20>=3.25,"B+", IF(N20>2.65,"B", IF(N20>=2.25,"C+", IF(N20>1.75,"C", IF(N20>1.25,"D+", IF(AND(N20<=1.25,N20>0),"D", "" ))))))) -> B | K20: =IF(P20>3.65,"A", IF(P20>=3.25,"B+", IF(P20>2.65,"B", IF(P20>=2.25,"C+", IF(P20>1.75,"C", IF(P20>1.25,"D+", IF(AND(P20<=1.25,P20>0),"D", "" ))))))) -> C | M20: =IF(COUNTIFS(M21:M36,Profile!E250)=16,Profile!E250,Profile!E251) -> No | N20: =IFERROR(IF(OR(I21="NR",I23="NR",I25="NR",I28="NR",I32="NR",I35="NR"),1,AVERAGEIFS(N21:N36,D21:D36,"Indic",N21:N36,">0")),0) -> 2.7 | O20: 3 | P20: =IFERROR(IF(OR(K21="NR",K23="NR",K25="NR",K28="NR",K32="NR",K35="NR"),1,AVERAGEIFS(P21:P36,D21:D36,"Indic",P21:P36,">0")),0) -> 2.216666667 | Q20: 2 | R20: =IF(M20=MetaData!E14,"N.C.", IF(Q20>O20,"+", IF(Q20<O20,"-", IF(Q20=O20," =", "" )))) -> - | S20: =IF(K20="D",Profile!$F$276, IF(K20="D+",Profile!$F$276, IF(K20="D*",Profile!$F$276, IF(K20="C",Profile!$F$277, IF(K20="C+",Profile!$F$278, IF(K20="B",Profile!$F$278, IF(K20="B+",Profile!$F$279, IF(K20="A",Profile!$F$279,"")))))))) -> 2. Basic | T20: =IF(K20="A",Profile!$F$280, IF(K20="B+",Profile!$F$280, IF(K20="B",Profile!$F$280, IF(K20="D+",Profile!$F$281, IF(K20="D",Profile!$F$281, IF(K20="D*",Profile!$F$281, Profile!$F$282)))))) -> Average
A21: =H3 -> Pefalia | B21: PI-5 | C21: M1 | D21: Indic | E21: B | F21: =IFERROR(VLOOKUP(E21,Profile!A2:B246,2,FALSE),"") -> B Completeness and transparency | G21: =+B21 -> PI-5 | H21: =IFERROR(VLOOKUP(B21,Profile!A2:B246,2,FALSE),"") -> PI-5 Budget documentation | I21: =IF(I22="NR","NR",IF(I22="","",I22)) -> B | K21: =IF(K22="NR","NR",IF(K22="","",K22)) -> B | M21: =IF(M22=Profile!E251,Profile!E251,Profile!E250) -> Yes | N21: =IF(I21="NR",1,IF(C21="M1",IF(AVERAGE(N22)=MIN(N22),N22,MIN(N22)+0.5),AVERAGE(N22))) -> 3 | O21: 3 | P21: =IF(K21="NR",1,IF(C21="M1",IF(AVERAGE(P22)=MIN(P22),P22,MIN(P22)+0.5),AVERAGE(P22))) -> 3 | Q21: 3 | R21: =IF(M21=MetaData!E15,"N.C.", IF(Q21>O21,"+", IF(Q21<O21,"-", IF(Q21=O21," =", "" )))) -> = | S21: =IF(K21="D",Profile!$F$276, IF(K21="D+",Profile!$F$276, IF(K21="D*",Profile!$F$276, IF(K21="C",Profile!$F$277, IF(K21="C+",Profile!$F$278, IF(K21="B",Profile!$F$278, IF(K21="B+",Profile!$F$279, IF(K21="A",Profile!$F$279,"")))))))) -> 3. Sound | T21: =IF(K21="A",Profile!$F$280, IF(K21="B+",Profile!$F$280, IF(K21="B",Profile!$F$280, IF(K21="D+",Profile!$F$281, IF(K21="D",Profile!$F$281, IF(K21="D*",Profile!$F$281, Profile!$F$282)))))) -> Strength | U21: 0 | V21: 1 | W21: 0 | X21: 1
A22: =H3 -> Pefalia | B22: PI-5 (i) | C22: M1 | D22: Comp | E22: B | F22: =IFERROR(VLOOKUP(E22,Profile!A2:B246,2,FALSE),"") -> B Completeness and transparency | G22: PI_5 | H22: =IFERROR(VLOOKUP(B22,Profile!A2:B246,2,FALSE),"") -> (i) The classification system used for formulation, execution and reporting of the central government's budget | I22: B | J22: Budget formulation and execution are based on an administrative, economic and functional classification (using at least the 10 main CFAP functions), using GFS/COFOG standards or a standard that can produce consistent documentation according to these standards. | K22: B | L22: Performance unchanged. Classification is consistent with COFOG sub-functions. | M22: Yes | N22: =(IF(TRIM(CLEAN(I22))="A",4)+IF(TRIM(CLEAN(I22))="B+",3.5)+IF(TRIM(CLEAN(I22))="B",3)+IF(TRIM(CLEAN(I22))="C+",2.5)+IF(TRIM(CLEAN(I22))="C",2)+IF(TRIM(CLEAN(I22))="D+",1.5)+IF(TRIM(CLEAN(I22))="D",1)+IF(TRIM(CLEAN(I22))="NR",1)+IF(TRIM(CLEAN(I22))="NU",0))+IF(TRIM(CLEAN(I22))="NA",0) -> 3 | O22: 3 | P22: =IF(TRIM(CLEAN(K22))="A",4)+IF(TRIM(CLEAN(K22))="B+",3.5)+IF(TRIM(CLEAN(K22))="B",3)+IF(TRIM(CLEAN(K22))="C+",2.5)+IF(TRIM(CLEAN(K22))="C",2)+IF(TRIM(CLEAN(K22))="D+",1.5)+IF(TRIM(CLEAN(K22))="D",1)+IF(TRIM(CLEAN(K22))="NR",1)+IF(TRIM(CLEAN(K22))="NU",0)+IF(TRIM(CLEAN(K22))="NA",0) -> 3 | Q22: 3 | R22: =IFERROR(IF(M25=Profile!$E$250,IF(Q25-O25<0,"-",IF(Q25-O25>0,"+"," =")),"N.C."),"") -> = | S22: =IF(K22="D",Profile!$F$276, IF(K22="D+",Profile!$F$276, IF(K22="D*",Profile!$F$276, IF(K22="C",Profile!$F$277, IF(K22="C+",Profile!$F$278, IF(K22="B",Profile!$F$278, IF(K22="B+",Profile!$F$279, IF(K22="A",Profile!$F$279,"")))))))) -> 3. Sound | T22: =IF(K22="A",Profile!$F$280, IF(K22="B+",Profile!$F$280, IF(K22="B",Profile!$F$280, IF(K22="D+",Profile!$F$281, IF(K22="D",Profile!$F$281, IF(K22="D*",Profile!$F$281, Profile!$F$282)))))) -> Strength | X22: 1
A23: =H3 -> Pefalia | B23: PI-6 | C23: M1 | D23: Indic | E23: B | F23: =IFERROR(VLOOKUP(E23,Profile!A2:B246,2,FALSE),"") -> B Completeness and transparency | G23: =+B23 -> PI-6 | H23: =IFERROR(VLOOKUP(B23,Profile!A2:B246,2,FALSE),"") -> PI-6 Central government operations outside financial reports | I23: =IF(I24="NR","NR",IF(I24="","",I24)) -> A | K23: =IF(K24="NR","NR",IF(K24="","",K24)) -> A | M23: =IF(M24=Profile!E251,Profile!E251,Profile!E250) -> Yes | N23: =IF(I23="NR",1,IF(C23="M1",IF(AVERAGE(N24)=MIN(N24),N24,MIN(N24)+0.5),AVERAGE(N24))) -> 4 | O23: 4 | P23: =IF(K23="NR",1,IF(C23="M1",IF(AVERAGE(P24)=MIN(P24),P24,MIN(P24)+0.5),AVERAGE(P24))) -> 4 | Q23: 4 | R23: =IF(M23=MetaData!E17,"N.C.", IF(Q23>O23,"+", IF(Q23<O23,"-", IF(Q23=O23," =", "" )))) -> = | S23: =IF(K23="D",Profile!$F$276, IF(K23="D+",Profile!$F$276, IF(K23="D*",Profile!$F$276, IF(K23="C",Profile!$F$277, IF(K23="C+",Profile!$F$278, IF(K23="B",Profile!$F$278, IF(K23="B+",Profile!$F$279, IF(K23="A",Profile!$F$279,"")))))))) -> 4. High | T23: =IF(K23="A",Profile!$F$280, IF(K23="B+",Profile!$F$280, IF(K23="B",Profile!$F$280, IF(K23="D+",Profile!$F$281, IF(K23="D",Profile!$F$281, IF(K23="D*",Profile!$F$281, Profile!$F$282)))))) -> Strength | U23: 0 | V23: 1 | W23: 0 | X23: 1
A24: =H3 -> Pefalia | B24: PI-6 (i) | C24: M1 | D24: Comp | E24: B | F24: =IFERROR(VLOOKUP(E24,Profile!A2:B246,2,FALSE),"") -> B Completeness and transparency | G24: PI_6 | H24: =IFERROR(VLOOKUP(B24,Profile!A2:B246,2,FALSE),"") -> (i) Share of the elements listed information in the budget documentation most recently issued by the central government(in order to count in the assessment, the full specification of the information benchmark must be met | I24: A | J24: Recent budget documentation meets seven of the nine required information criteria. | K24: A | L24: Performance unchanged. The 2020/2021 budget documentation fulfills 7 of the 9 elements. Elements not provided are financial assets and estimates of the budgetary impact of any major changes in revenue policy. | M24: Yes | N24: =(IF(TRIM(CLEAN(I24))="A",4)+IF(TRIM(CLEAN(I24))="B+",3.5)+IF(TRIM(CLEAN(I24))="B",3)+IF(TRIM(CLEAN(I24))="C+",2.5)+IF(TRIM(CLEAN(I24))="C",2)+IF(TRIM(CLEAN(I24))="D+",1.5)+IF(TRIM(CLEAN(I24))="D",1)+IF(TRIM(CLEAN(I24))="NR",1)+IF(TRIM(CLEAN(I24))="NU",0))+IF(TRIM(CLEAN(I24))="NA",0) -> 4 | O24: 4 | P24: =IF(TRIM(CLEAN(K24))="A",4)+IF(TRIM(CLEAN(K24))="B+",3.5)+IF(TRIM(CLEAN(K24))="B",3)+IF(TRIM(CLEAN(K24))="C+",2.5)+IF(TRIM(CLEAN(K24))="C",2)+IF(TRIM(CLEAN(K24))="D+",1.5)+IF(TRIM(CLEAN(K24))="D",1)+IF(TRIM(CLEAN(K24))="NR",1)+IF(TRIM(CLEAN(K24))="NU",0)+IF(TRIM(CLEAN(K24))="NA",0) -> 4 | Q24: 4 | R24: =IFERROR(IF(M27=Profile!$E$250,IF(Q27-O27<0,"-",IF(Q27-O27>0,"+"," =")),"N.C."),"") -> = | S24: =IF(K24="D",Profile!$F$276, IF(K24="D+",Profile!$F$276, IF(K24="D*",Profile!$F$276, IF(K24="C",Profile!$F$277, IF(K24="C+",Profile!$F$278, IF(K24="B",Profile!$F$278, IF(K24="B+",Profile!$F$279, IF(K24="A",Profile!$F$279,"")))))))) -> 4. High | T24: =IF(K24="A",Profile!$F$280, IF(K24="B+",Profile!$F$280, IF(K24="B",Profile!$F$280, IF(K24="D+",Profile!$F$281, IF(K24="D",Profile!$F$281, IF(K24="D*",Profile!$F$281, Profile!$F$282)))))) -> Strength | X24: 1
A25: =H3 -> Pefalia | B25: PI-7 | C25: M1 | D25: Indic | E25: B | F25: =IFERROR(VLOOKUP(E25,Profile!A2:B246,2,FALSE),"") -> B Completeness and transparency | G25: =+B25 -> PI-7 | H25: =IFERROR(VLOOKUP(B25,Profile!A2:B246,2,FALSE),"") -> PI-7 Transfers to subnational governments | I25: =IF(OR(I26="NR",I27="NR"),"NR", IF(AND(I26="NU",I27="NU"),"NU", IF(AND(OR(I26="NA",I26="NU"),OR(I27="NA",I27="NU")),"NA", IF(N25>3.65,"A", IF(N25>=3.25,"B+", IF(N25>2.65,"B", IF(N25>=2.25,"C+", IF(N25>1.75,"C", IF(N25>1.25,"D+", IF(AND(N25<=1.25,N25>0),"D", "" )))))))))) -> D+ | K25: =IF(OR(K26="NR",K27="NR"),"NR", IF(AND(K26="NU",K27="NU"),"NU", IF(AND(OR(K26="NA",K26="NU"),OR(K27="NA",K27="NU")),"NA", IF(P25>3.65,"A", IF(P25>=3.25,"B+", IF(P25>2.65,"B", IF(P25>=2.25,"C+", IF(P25>1.75,"C", IF(P25>1.25,"D+", IF(AND(P25<=1.25,P25>0),"D", "" )))))))))) -> D+ | M25: =IF(OR(M26=Profile!E251,M27=Profile!E251),Profile!E251,Profile!E250) -> Yes | N25: =IFERROR(IF(OR(I26="NR",I27="NR"),1,IF(C25="M1",IF(ROUND(AVERAGEIF(N26:N27,">0"),1)=ROUND(MIN(IF(N26:N27>0,N26:N27)),1),ROUND(AVERAGEIF(N26:N27,">0"),1),ROUND(MIN(IF(N26:N27>0,N26:N27)),1)+0.5),ROUND(AVERAGEIF(N26:N27,">0"),1))),0) -> 1.5 | O25: 1.5 | P25: =IFERROR(IF(OR(K26="NR",K27="NR"),1,IF(C25="M1",IF(ROUND(AVERAGEIF(P26:P27,">0"),1)=ROUND(MIN(IF(P26:P27>0,P26:P27)),1),ROUND(AVERAGEIF(P26:P27,">0"),1),ROUND(MIN(IF(P26:P27>0,P26:P27)),1)+0.5),ROUND(AVERAGEIF(P26:P27,">0"),1))),0) -> 1.5 | Q25: 1.5 | R25: =IF(M25=MetaData!E19,"N.C.", IF(Q25>O25,"+", IF(Q25<O25,"-", IF(Q25=O25," =", "" )))) -> = | S25: =IF(K25="D",Profile!$F$276, IF(K25="D+",Profile!$F$276, IF(K25="D*",Profile!$F$276, IF(K25="C",Profile!$F$277, IF(K25="C+",Profile!$F$278, IF(K25="B",Profile!$F$278, IF(K25="B+",Profile!$F$279, IF(K25="A",Profile!$F$279,"")))))))) -> 1. Below basic | T25: =IF(K25="A",Profile!$F$280, IF(K25="B+",Profile!$F$280, IF(K25="B",Profile!$F$280, IF(K25="D+",Profile!$F$281, IF(K25="D",Profile!$F$281, IF(K25="D*",Profile!$F$281, Profile!$F$282)))))) -> Weakness | U25: 1 | V25: 1 | W25: 0 | X25: 2
